Workbook

Sheet April
A1: April | B1: 01/04/2015 to 31/03/2016
A3: Treatment Use | B3: Waste Type | D3: Burton Farm HWRC | E3: Cherry Orchard HWRC | F3: Hunters Lane HWRC & Transfer | G3: Judkins HWRC | H3: Lower House Farm HWRC | I3: Princes Drive HWRC & Transfer | J3: Shipston HWRC | K3: Stockton HWRC | L3: Wellesbourne HWRC | N3: Total
A5: Composting | B5: Green waste | C5: CompostingGreen waste | D5: 82.92 | E5: 97.36 | F5: 99.04 | G5: 102.42 | H5: 64.38 | I5: 154.88 | J5: 34.94 | K5: 9.94 | L5: 12.13 | N5: =SUM(D5:L5) -> 658.01
B7: Sub Total | D7: =SUM(D5:D5) -> 82.92 | E7: =SUM(E5:E5) -> 97.36 | F7: =SUM(F5:F5) -> 99.04 | G7: =SUM(G5:G5) -> 102.42 | H7: =SUM(H5:H5) -> 64.38 | I7: =SUM(I5:I5) -> 154.88 | J7: =SUM(J5:J5) -> 34.94 | K7: =SUM(K5:K5) -> 9.94 | L7: =SUM(L5:L5) -> 12.13 | N7: =SUM(D7:L7) -> 658.01
A9: Efw (incineration) | B9: Bulky Waste | C9: Efw (incineration)Bulky Waste | D9: 0.00 | E9: 0.00 | F9: 0.00 | G9: 0.00 | H9: 31.24 | I9: 0.00 | J9: 0.00 | K9: 0.00 | L9: 0.00 | N9: =SUM(D9:L9) -> 31.24
B10: Chemicals | C10: Efw (incineration)Chemicals | D10: 0.00 | E10: 0.05 | F10: 0.00 | G10: 0.00 | H10: 0.00 | I10: 0.00 | J10: 0.00 | K10: 0.00 | L10: 0.01 | N10: =SUM(D10:L10) -> 0.06
B11: Clinical | C11: Efw (incineration)Clinical | D11: 0.00 | E11: 0.00 | F11: 0.00 | G11: 0.00 | H11: 0.00 | I11: 3.04 | J11: 0.00 | K11: 0.00 | L11: 0.00 | N11: =SUM(D11:L11) -> 3.04
B12: General (mixed waste) | C12: Efw (incineration)General (mixed waste) | D12: 0.00 | E12: 0.00 | F12: 0.00 | G12: 0.00 | H12: 170.14 | I12: 0.00 | J12: 0.00 | K12: 0.00 | L12: 0.00 | N12: =SUM(D12:L12) -> 170.14
B13: Paint (chemicals) | C13: Efw (incineration)Paint (chemicals) | D13: 0.00 | E13: 0.10 | F13: 0.00 | G13: 0.00 | H13: 0.00 | I13: 0.00 | J13: 0.00 | K13: 0.00 | L13: 0.03 | N13: =SUM(D13:L13) -> 0.13
B15: Sub Total | D15: =SUM(D9:D13) -> 0.00 | E15: =SUM(E9:E13) -> 0.15 | F15: =SUM(F9:F13) -> 0.00 | G15: =SUM(G9:G13) -> 0.00 | H15: =SUM(H9:H13) -> 201.38 | I15: =SUM(I9:I13) -> 3.04 | J15: =SUM(J9:J13) -> 0.00 | K15: =SUM(K9:K13) -> 0.00 | L15: =SUM(L9:L13) -> 0.04 | N15: =SUM(D15:L15) -> 204.61
A17: Landfill | B17: Asbestos | C17: LandfillAsbestos | D17: 0.00 | E17: 0.02 | F17: 0.00 | G17: 0.00 | H17: 3.92 | I17: 0.00 | J17: 0.00 | K17: 0.00 | L17: 0.00 | N17: =SUM(D17:L17) -> 3.94
B18: General (mixed waste) | C18: LandfillGeneral (mixed waste) | D18: 198.12 | E18: 125.62 | F18: 266.80 | G18: 344.51 | H18: 0.00 | I18: 752.14 | J18: 57.54 | K18: 27.61 | L18: 11.32 | N18: =SUM(D18:L18) -> 1,783.65
B19: Hard Plastic | C19: LandfillHard Plastic | D19: 0.00 | E19: 0.00 | F19: 0.00 | G19: 0.00 | H19: 0.00 | I19: 0.00 | J19: 0.00 | K19: 0.00 | L19: 0.00 | N19: =SUM(D19:L19) -> 0.00
B21: Sub Total | D21: =SUM(D17:D19) -> 198.12 | E21: =SUM(E17:E19) -> 125.64 | F21: =SUM(F17:F19) -> 266.80 | G21: =SUM(G17:G19) -> 344.51 | H21: =SUM(H17:H19) -> 3.92 | I21: =SUM(I17:I19) -> 752.14 | J21: =SUM(J17:J19) -> 57.54 | K21: =SUM(K17:K19) -> 27.61 | L21: =SUM(L17:L19) -> 11.32 | N21: =SUM(D21:L21) -> 1,787.59
A23: Recycling | B23: Aluminium (nf) | C23: RecyclingAluminium (nf) | D23: 0.00 | E23: 0.00 | F23: 0.00 | G23: 0.00 | H23: 0.00 | I23: 0.44 | J23: 0.00 | K23: 0.00 | L23: 0.00 | N23: =SUM(D23:L23) -> 0.44
B24: Batteries (car) | C24: RecyclingBatteries (car) | D24: 1.48 | E24: 3.30 | F24: 4.33 | G24: 1.20 | H24: 2.32 | I24: 5.58 | J24: 0.12 | K24: 0.00 | L24: 1.14 | N24: =SUM(D24:L24) -> 19.47
B25: Batteries (household) | C25: RecyclingBatteries (household) | D25: 0.00 | E25: 0.00 | F25: 0.00 | G25: 0.00 | H25: 0.00 | I25: 0.00 | J25: 0.00 | K25: 0.00 | L25: 0.00 | N25: =SUM(D25:L25) -> 0.00
B26: Books | C26: RecyclingBooks | D26: 0.00 | E26: 0.63 | F26: 0.00 | G26: 2.30 | H26: 0.00 | I26: 1.12 | J26: 0.00 | K26: 0.00 | L26: 0.00 | N26: =SUM(D26:L26) -> 4.05
B27: Brass(nf) | C27: RecyclingBrass(nf) | D27: 0.00 | E27: 0.00 | F27: 0.00 | G27: 0.00 | H27: 0.00 | I27: 0.00 | J27: 0.00 | K27: 0.00 | L27: 0.00 | N27: =SUM(D27:L27) -> 0.00
B28: Cable (nf) | C28: RecyclingCable (nf) | D28: 0.40 | E28: 0.00 | F28: 0.00 | G28: 0.00 | H28: 0.00 | I28: 0.00 | J28: 0.00 | K28: 0.00 | L28: 0.00 | N28: =SUM(D28:L28) -> 0.40
B29: Cardboard | C29: RecyclingCardboard | D29: 25.68 | E29: 16.34 | F29: 18.02 | G29: 33.22 | H29: 17.84 | I29: 46.61 | J29: 8.42 | K29: 2.48 | L29: 5.29 | N29: =SUM(D29:L29) -> 173.90
B30: Carpet | C30: RecyclingCarpet | D30: 23.16 | E30: 10.62 | F30: 20.46 | G30: 0.00 | H30: 31.34 | I30: 45.85 | J30: 6.30 | K30: 0.00 | L30: 0.00 | N30: =SUM(D30:L30) -> 137.73
B31: Chipboard | C31: RecyclingChipboard | D31: 90.96 | E31: 20.66 | F31: 89.90 | G31: 0.00 | H31: 91.12 | I31: 45.24 | J31: 13.74 | K31: 19.34 | L31: 14.09 | N31: =SUM(D31:L31) -> 385.05
B32: Copper & Brass Mixed (nf) | C32: RecyclingCopper & Brass Mixed (nf) | D32: 0.00 | E32: 0.00 | F32: 0.00 | G32: 0.00 | H32: 0.00 | I32: 0.00 | J32: 0.00 | K32: 0.00 | L32: 0.00 | N32: =SUM(D32:L32) -> 0.00
B33: Drink Cartons | C33: RecyclingDrink Cartons | D33: 0.00 | E33: 0.48 | F33: 0.00 | G33: 0.00 | H33: 0.00 | I33: 0.25 | J33: 0.00 | K33: 0.00 | L33: 0.00 | N33: =SUM(D33:L33) -> 0.73
B34: Fire Extinguishers | C34: RecyclingFire Extinguishers | D34: 0.00 | E34: 0.00 | F34: 0.00 | G34: 0.00 | H34: 0.00 | I34: 0.00 | J34: 0.00 | K34: 0.00 | L34: 0.00 | N34: =SUM(D34:L34) -> 0.00
B35: Fluorescent Tubes Output | C35: RecyclingFluorescent Tubes Output | D35: 0.26 | E35: 0.17 | F35: 0.28 | G35: 0.00 | H35: 0.19 | I35: 0.19 | J35: 0.20 | K35: 0.00 | L35: 0.00 | N35: =SUM(D35:L35) -> 1.29
B36: Fridges Output | C36: RecyclingFridges Output | D36: 12.30 | E36: 2.58 | F36: 7.64 | G36: 6.98 | H36: 6.79 | I36: 13.09 | J36: 2.07 | K36: 0.41 | L36: 0.00 | N36: =SUM(D36:L36) -> 51.87
B37: Gas Cylinders | C37: RecyclingGas Cylinders | D37: 0.00 | E37: 0.00 | F37: 0.00 | G37: 0.00 | H37: 0.00 | I37: 0.11 | J37: 0.00 | K37: 0.00 | L37: 0.00 | N37: =SUM(D37:L37) -> 0.11
B38: General (mixed waste) | C38: RecyclingGeneral (mixed waste) | D38: 0.00 | E38: 0.00 | F38: 0.00 | G38: 0.00 | H38: 0.00 | I38: 0.00 | J38: 0.00 | K38: 0.00 | L38: 23.01 | N38: =SUM(D38:L38) -> 23.01
B39: Glass (bottles) | C39: RecyclingGlass (bottles) | D39: 3.79 | E39: 6.73 | F39: 0.00 | G39: 0.00 | H39: 0.88 | I39: 6.37 | J39: 0.00 | K39: 0.66 | L39: 0.00 | N39: =SUM(D39:L39) -> 18.42
B40: Green waste | C40: RecyclingGreen waste | D40: 0.00 | E40: 0.00 | F40: 0.00 | G40: 0.00 | H40: 0.00 | I40: 0.00 | J40: 0.00 | K40: 0.00 | L40: 0.00 | N40: =SUM(D40:L40) -> 0.00
B41: Hard Plastic | C41: RecyclingHard Plastic | D41: 0.00 | E41: 0.00 | F41: 0.00 | G41: 18.58 | H41: 0.00 | I41: 0.00 | J41: 0.00 | K41: 0.00 | L41: 0.00 | N41: =SUM(D41:L41) -> 18.58
B42: Household Goods Household Goods | C42: RecyclingHousehold Goods Household Goods | D42: 0.00 | E42: 0.00 | F42: 0.00 | G42: 0.00 | H42: 0.00 | I42: 0.00 | J42: 0.00 | K42: 0.00 | L42: 0.00 | N42: =SUM(D42:L42) -> 0.00
B43: Inert (rubble/hardcore) | C43: RecyclingInert (rubble/hardcore) | D43: 0.00 | E43: 0.00 | F43: 0.00 | G43: 0.00 | H43: 0.00 | I43: 0.00 | J43: 0.00 | K43: 0.00 | L43: 0.00 | N43: =SUM(D43:L43) -> 0.00
B44: Lead (nf) | C44: RecyclingLead (nf) | D44: 0.00 | E44: 0.00 | F44: 0.00 | G44: 0.00 | H44: 0.00 | I44: 0.00 | J44: 0.00 | K44: 0.00 | L44: 0.00 | N44: =SUM(D44:L44) -> 0.00
B45: Matresses | C45: RecyclingMatresses | D45: 2.61 | E45: 2.19 | F45: 4.94 | G45: 0.00 | H45: 0.00 | I45: 8.86 | J45: 0.59 | K45: 0.00 | L45: 0.00 | N45: =SUM(D45:L45) -> 19.18
B46: Microwave Motors | C46: RecyclingMicrowave Motors | D46: 0.00 | E46: 0.00 | F46: 0.00 | G46: 0.00 | H46: 0.00 | I46: 0.00 | J46: 0.00 | K46: 0.00 | L46: 0.00 | N46: =SUM(D46:L46) -> 0.00
B47: Non Ferrous Metal Non Ferrous Metal | C47: RecyclingNon Ferrous Metal Non Ferrous Metal | D47: 0.00 | E47: 0.20 | F47: 0.00 | G47: 0.00 | H47: 0.00 | I47: 0.00 | J47: 0.36 | K47: 0.00 | L47: 0.00 | N47: =SUM(D47:L47) -> 0.56
B48: Oil (Engine) | C48: RecyclingOil (Engine) | D48: 1.12 | E48: 0.88 | F48: 2.38 | G48: 2.12 | H48: 0.00 | I48: 3.02 | J48: 0.44 | K48: 0.00 | L48: 0.35 | N48: =SUM(D48:L48) -> 10.31
B49: Oil (Vegetable) | C49: RecyclingOil (Vegetable) | D49: 0.00 | E49: 0.44 | F49: 0.00 | G49: 0.00 | H49: 0.00 | I49: 0.00 | J49: 0.00 | K49: 0.00 | L49: 0.00 | N49: =SUM(D49:L49) -> 0.44
B50: Paint (chemicals) | C50: RecyclingPaint (chemicals) | D50: 0.00 | E50: 0.00 | F50: 0.00 | G50: 0.00 | H50: 0.00 | I50: 2.29 | J50: 0.00 | K50: 0.00 | L50: 0.00 | N50: =SUM(D50:L50) -> 2.29
B51: Paper (mixed with card) | C51: RecyclingPaper (mixed with card) | D51: 0.00 | E51: 0.00 | F51: 0.00 | G51: 0.00 | H51: 0.00 | I51: 0.00 | J51: 0.00 | K51: 0.00 | L51: 0.00 | N51: =SUM(D51:L51) -> 0.00
B52: Paper (newspaper & magazines) | C52: RecyclingPaper (newspaper & magazines) | D52: 15.02 | E52: 10.44 | F52: 21.64 | G52: 8.34 | H52: 14.42 | I52: 20.98 | J52: 10.66 | K52: 0.00 | L52: 0.00 | N52: =SUM(D52:L52) -> 101.50
B53: Plasterboard | C53: RecyclingPlasterboard | D53: 6.46 | E53: 0.08 | F53: 9.16 | G53: 10.36 | H53: 7.11 | I53: 12.97 | J53: 0.00 | K53: 0.00 | L53: 0.10 | N53: =SUM(D53:L53) -> 46.24
B54: Plastic (Mixed) | C54: RecyclingPlastic (Mixed) | D54: 1.04 | E54: 1.36 | F54: 0.00 | G54: 0.00 | H54: 0.00 | I54: 0.00 | J54: 2.14 | K54: 0.00 | L54: 0.10 | N54: =SUM(D54:L54) -> 4.64
B55: Printer Cartridges | C55: RecyclingPrinter Cartridges | D55: 0.00 | E55: 0.00 | F55: 0.00 | G55: 0.00 | H55: 0.00 | I55: 0.00 | J55: 0.00 | K55: 0.00 | L55: 0.00 | N55: =SUM(D55:L55) -> 0.00
B56: Road Sweepings | C56: RecyclingRoad Sweepings | D56: 0.00 | E56: 0.00 | F56: 0.00 | G56: 0.00 | H56: 0.00 | I56: 331.28 | J56: 0.00 | K56: 0.00 | L56: 0.00 | N56: =SUM(D56:L56) -> 331.28
B57: Scrap metal (mixed) | C57: RecyclingScrap metal (mixed) | D57: 50.82 | E57: 25.34 | F57: 58.39 | G57: 54.90 | H57: 36.33 | I57: 82.03 | J57: 15.18 | K57: 8.74 | L57: 9.51 | N57: =SUM(D57:L57) -> 341.24
B58: Screens output | C58: RecyclingScreens output | D58: 5.13 | E58: 2.62 | F58: 10.63 | G58: 9.20 | H58: 5.55 | I58: 10.72 | J58: 2.83 | K58: 1.13 | L58: 1.57 | N58: =SUM(D58:L58) -> 49.36
B59: Small Domestic Appliances | C59: RecyclingSmall Domestic Appliances | D59: 24.66 | E59: 7.02 | F59: 23.50 | G59: 17.72 | H59: 15.51 | I59: 47.49 | J59: 6.88 | K59: 4.61 | L59: 2.60 | N59: =SUM(D59:L59) -> 149.99
B60: Soil & rubble | C60: RecyclingSoil & rubble | D60: 0.00 | E60: 0.00 | F60: 0.00 | G60: 180.86 | H60: 0.00 | I60: 0.00 | J60: 0.00 | K60: 0.00 | L60: 0.00 | N60: =SUM(D60:L60) -> 180.86
B61: Stainless Steel | C61: RecyclingStainless Steel | D61: 0.00 | E61: 0.00 | F61: 0.00 | G61: 0.00 | H61: 0.00 | I61: 0.00 | J61: 0.00 | K61: 0.00 | L61: 0.00 | N61: =SUM(D61:L61) -> 0.00
B62: Textiles | C62: RecyclingTextiles | D62: 7.19 | E62: 4.58 | F62: 10.01 | G62: 7.16 | H62: 4.78 | I62: 8.78 | J62: 1.43 | K62: 0.35 | L62: 1.55 | N62: =SUM(D62:L62) -> 45.83
B63: Tyres | C63: RecyclingTyres | D63: 0.00 | E63: 0.00 | F63: 0.00 | G63: 0.00 | H63: 0.00 | I63: 0.00 | J63: 0.00 | K63: 0.00 | L63: 0.00 | N63: =SUM(D63:L63) -> 0.00
B64: Wood (including treated) | C64: RecyclingWood (including treated) | D64: 0.00 | E64: 58.02 | F64: 58.95 | G64: 218.78 | H64: 63.00 | I64: 209.82 | J64: 27.95 | K64: 6.60 | L64: 8.72 | N64: =SUM(D64:L64) -> 651.83
B66: Sub Total | D66: =SUM(D23:D64) -> 272.07 | E66: =SUM(E23:E64) -> 174.67 | F66: =SUM(F23:F64) -> 340.23 | G66: =SUM(G23:G64) -> 571.72 | H66: =SUM(H23:H64) -> 297.18 | I66: =SUM(I23:I64) -> 903.08 | J66: =SUM(J23:J64) -> 99.31 | K66: =SUM(K23:K64) -> 44.31 | L66: =SUM(L23:L64) -> 68.02 | N66: =SUM(D66:L66) -> 2,770.59
A68: Re-Use | B68: Books | C68: Re-UseBooks | D68: 0.18 | E68: 0.00 | F68: 0.00 | G68: 0.00 | H68: 0.00 | I68: 0.00 | J68: 0.00 | K68: 0.00 | L68: 0.14 | N68: =SUM(D68:L68) -> 0.32
B69: Gas Cylinders | C69: Re-UseGas Cylinders | D69: 0.00 | E69: 0.00 | F69: 0.00 | G69: 0.00 | H69: 0.00 | I69: 0.00 | J69: 0.00 | K69: 0.00 | L69: 0.00 | N69: =SUM(D69:L69) -> 0.00
B70: Household Goods Household Goods | C70: Re-UseHousehold Goods Household Goods | D70: 0.00 | E70: 0.00 | F70: 0.00 | G70: 17.18 | H70: 0.00 | I70: 0.00 | J70: 0.00 | K70: 0.00 | L70: 0.00 | N70: =SUM(D70:L70) -> 17.18
B71: Inert (rubble/hardcore) | C71: Re-UseInert (rubble/hardcore) | D71: 143.10 | E71: 75.54 | F71: 125.14 | G71: 0.00 | H71: 98.06 | I71: 266.48 | J71: 21.30 | K71: 23.32 | L71: 17.66 | N71: =SUM(D71:L71) -> 770.60
B72: Soil | C72: Re-UseSoil | D72: 11.68 | E72: 0.00 | F72: 0.00 | G72: 0.00 | H72: 0.00 | I72: 0.00 | J72: 0.00 | K72: 0.00 | L72: 0.00 | N72: =SUM(D72:L72) -> 11.68
B74: Sub Total | D74: =SUM(D68:D73) -> 154.96 | E74: =SUM(E68:E73) -> 75.54 | F74: =SUM(F68:F73) -> 125.14 | G74: =SUM(G68:G73) -> 17.18 | H74: =SUM(H68:H73) -> 98.06 | I74: =SUM(I68:I73) -> 266.48 | J74: =SUM(J68:J73) -> 21.30 | K74: =SUM(K68:K73) -> 23.32 | L74: =SUM(L68:L73) -> 17.80 | N74: =SUM(D74:L74) -> 799.78
B77: Grand Total | D77: =SUM(D7)+(D15)+(D21)+(D66)+(D74) -> 708.07 | E77: =SUM(E7)+(E15)+(E21)+(E66)+(E74) -> 473.36 | F77: =SUM(F7)+(F15)+(F21)+(F66)+(F74) -> 831.21 | G77: =SUM(G7)+(G15)+(G21)+(G66)+(G74) -> 1,035.83 | H77: =SUM(H7)+(H15)+(H21)+(H66)+(H74) -> 664.92 | I77: =SUM(I7)+(I15)+(I21)+(I66)+(I74) -> 2,079.63 | J77: =SUM(J7)+(J15)+(J21)+(J66)+(J74) -> 213.08 | K77: =SUM(K7)+(K15)+(K21)+(K66)+(K74) -> 105.18 | L77: =SUM(L7)+(L15)+(L21)+(L66)+(L74) -> 109.31 | N77: =SUM(D77:L77) -> 6,220.58

Sheet May
A1: May | B1: 01/04/2015 to 31/03/2016
A3: Treatment Use | B3: Waste Type | D3: Burton Farm HWRC | E3: Cherry Orchard HWRC | F3: Hunters Lane HWRC & Transfer | G3: Judkins HWRC | H3: Lower House Farm HWRC | I3: Princes Drive HWRC & Transfer | J3: Shipston HWRC | K3: Stockton HWRC | L3: Wellesbourne HWRC | N3: Total
A5: Composting | B5: Green waste | C5: CompostingGreen waste | D5: 67.12 | E5: 76.20 | F5: 84.48 | G5: 84.78 | H5: 54.10 | I5: 164.44 | J5: 30.28 | K5: 8.95 | L5: 18.96 | N5: =SUM(D5:L5) -> 589.31
B7: Sub Total | D7: =SUM(D5:D5) -> 67.12 | E7: =SUM(E5:E5) -> 76.20 | F7: =SUM(F5:F5) -> 84.48 | G7: =SUM(G5:G5) -> 84.78 | H7: =SUM(H5:H5) -> 54.10 | I7: =SUM(I5:I5) -> 164.44 | J7: =SUM(J5:J5) -> 30.28 | K7: =SUM(K5:K5) -> 8.95 | L7: =SUM(L5:L5) -> 18.96 | N7: =SUM(D7:L7) -> 589.31
A9: Efw (incineration) | B9: Bulky Waste | C9: Efw (incineration)Bulky Waste | D9: 0.00 | E9: 0.00 | F9: 0.00 | G9: 0.00 | H9: 26.04 | I9: 0.00 | J9: 0.00 | K9: 0.00 | L9: 0.00 | N9: =SUM(D9:L9) -> 26.04
B10: Chemicals | C10: Efw (incineration)Chemicals | D10: 0.00 | E10: 0.00 | F10: 0.00 | G10: 0.00 | H10: 0.00 | I10: 0.00 | J10: 0.00 | K10: 0.00 | L10: 0.00 | N10: =SUM(D10:L10) -> 0.00
B11: Clinical | C11: Efw (incineration)Clinical | D11: 0.00 | E11: 0.00 | F11: 0.00 | G11: 0.00 | H11: 0.00 | I11: 2.21 | J11: 0.00 | K11: 0.00 | L11: 0.00 | N11: =SUM(D11:L11) -> 2.21
B12: General (mixed waste) | C12: Efw (incineration)General (mixed waste) | D12: 0.00 | E12: 0.00 | F12: 0.00 | G12: 0.00 | H12: 132.16 | I12: 0.00 | J12: 0.00 | K12: 0.00 | L12: 0.00 | N12: =SUM(D12:L12) -> 132.16
B13: Paint (chemicals) | C13: Efw (incineration)Paint (chemicals) | D13: 0.00 | E13: 0.00 | F13: 0.00 | G13: 0.00 | H13: 0.00 | I13: 0.00 | J13: 0.00 | K13: 0.00 | L13: 0.00 | N13: =SUM(D13:L13) -> 0.00
B15: Sub Total | D15: =SUM(D9:D13) -> 0.00 | E15: =SUM(E9:E13) -> 0.00 | F15: =SUM(F9:F13) -> 0.00 | G15: =SUM(G9:G13) -> 0.00 | H15: =SUM(H9:H13) -> 158.20 | I15: =SUM(I9:I13) -> 2.21 | J15: =SUM(J9:J13) -> 0.00 | K15: =SUM(K9:K13) -> 0.00 | L15: =SUM(L9:L13) -> 0.00 | N15: =SUM(D15:L15) -> 160.41
A17: Landfill | B17: Asbestos | C17: LandfillAsbestos | D17: 0.00 | E17: 0.00 | F17: 4.38 | G17: 0.00 | H17: 0.00 | I17: 2.70 | J17: 0.00 | K17: 0.00 | L17: 0.00 | N17: =SUM(D17:L17) -> 7.08
B18: General (mixed waste) | C18: LandfillGeneral (mixed waste) | D18: 170.08 | E18: 97.72 | F18: 205.51 | G18: 317.98 | H18: 0.00 | I18: 638.46 | J18: 40.84 | K18: 30.16 | L18: 29.43 | N18: =SUM(D18:L18) -> 1,530.18
B19: Hard Plastic | C19: LandfillHard Plastic | D19: 0.00 | E19: 7.10 | F19: 6.67 | G19: 0.00 | H19: 4.69 | I19: 0.00 | J19: 0.00 | K19: 0.00 | L19: 0.00 | N19: =SUM(D19:L19) -> 18.45
B21: Sub Total | D21: =SUM(D17:D19) -> 170.08 | E21: =SUM(E17:E19) -> 104.82 | F21: =SUM(F17:F19) -> 216.56 | G21: =SUM(G17:G19) -> 317.98 | H21: =SUM(H17:H19) -> 4.69 | I21: =SUM(I17:I19) -> 641.16 | J21: =SUM(J17:J19) -> 40.84 | K21: =SUM(K17:K19) -> 30.16 | L21: =SUM(L17:L19) -> 29.43 | N21: =SUM(D21:L21) -> 1,555.71
A23: Recycling | B23: Aluminium (nf) | C23: RecyclingAluminium (nf) | D23: 0.00 | E23: 0.00 | F23: 0.00 | G23: 0.00 | H23: 0.00 | I23: 0.00 | J23: 0.00 | K23: 0.00 | L23: 0.00 | N23: =SUM(D23:L23) -> 0.00
B24: Batteries (car) | C24: RecyclingBatteries (car) | D24: 0.00 | E24: 0.98 | F24: 0.00 | G24: 1.36 | H24: 2.28 | I24: 1.70 | J24: 0.36 | K24: 0.00 | L24: 0.00 | N24: =SUM(D24:L24) -> 6.68
B25: Batteries (household) | C25: RecyclingBatteries (household) | D25: 0.00 | E25: 0.00 | F25: 0.00 | G25: 0.00 | H25: 0.00 | I25: 0.73 | J25: 0.00 | K25: 0.00 | L25: 0.00 | N25: =SUM(D25:L25) -> 0.73
B26: Books | C26: RecyclingBooks | D26: 0.00 | E26: 0.05 | F26: 0.00 | G26: 3.24 | H26: 0.00 | I26: 0.33 | J26: 0.00 | K26: 0.00 | L26: 0.00 | N26: =SUM(D26:L26) -> 3.62
B27: Brass(nf) | C27: RecyclingBrass(nf) | D27: 0.00 | E27: 0.00 | F27: 0.00 | G27: 0.00 | H27: 0.00 | I27: 0.00 | J27: 0.00 | K27: 0.00 | L27: 0.00 | N27: =SUM(D27:L27) -> 0.00
B28: Cable (nf) | C28: RecyclingCable (nf) | D28: 0.00 | E28: 0.00 | F28: 0.00 | G28: 0.00 | H28: 0.00 | I28: 0.00 | J28: 0.20 | K28: 0.00 | L28: 0.00 | N28: =SUM(D28:L28) -> 0.20
B29: Cardboard | C29: RecyclingCardboard | D29: 26.92 | E29: 14.18 | F29: 21.52 | G29: 26.48 | H29: 25.28 | I29: 41.70 | J29: 6.36 | K29: 2.40 | L29: 3.82 | N29: =SUM(D29:L29) -> 168.66
B30: Carpet | C30: RecyclingCarpet | D30: 7.82 | E30: 11.30 | F30: 18.38 | G30: 0.00 | H30: 32.54 | I30: 34.69 | J30: 3.86 | K30: 0.00 | L30: 0.00 | N30: =SUM(D30:L30) -> 108.59
B31: Chipboard | C31: RecyclingChipboard | D31: 6.92 | E31: 24.46 | F31: 109.91 | G31: 0.00 | H31: 15.30 | I31: 5.98 | J31: 8.14 | K31: 0.00 | L31: 12.75 | N31: =SUM(D31:L31) -> 183.46
B32: Copper & Brass Mixed (nf) | C32: RecyclingCopper & Brass Mixed (nf) | D32: 0.00 | E32: 0.00 | F32: 0.00 | G32: 0.00 | H32: 0.00 | I32: 0.00 | J32: 0.00 | K32: 0.00 | L32: 0.00 | N32: =SUM(D32:L32) -> 0.00
B33: Drink Cartons | C33: RecyclingDrink Cartons | D33: 0.00 | E33: 0.64 | F33: 0.00 | G33: 0.00 | H33: 0.07 | I33: 0.12 | J33: 0.00 | K33: 0.00 | L33: 0.00 | N33: =SUM(D33:L33) -> 0.83
B34: Fire Extinguishers | C34: RecyclingFire Extinguishers | D34: 0.00 | E34: 0.00 | F34: 0.00 | G34: 0.00 | H34: 0.00 | I34: 0.00 | J34: 0.00 | K34: 0.00 | L34: 0.00 | N34: =SUM(D34:L34) -> 0.00
B35: Fluorescent Tubes Output | C35: RecyclingFluorescent Tubes Output | D35: 0.00 | E35: 0.00 | F35: 0.00 | G35: 0.00 | H35: 0.00 | I35: 0.13 | J35: 0.00 | K35: 0.00 | L35: 0.00 | N35: =SUM(D35:L35) -> 0.13
B36: Fridges Output | C36: RecyclingFridges Output | D36: 5.40 | E36: 2.09 | F36: 6.12 | G36: 6.30 | H36: 5.24 | I36: 9.42 | J36: 2.30 | K36: 0.51 | L36: 0.00 | N36: =SUM(D36:L36) -> 37.36
B37: Gas Cylinders | C37: RecyclingGas Cylinders | D37: 0.00 | E37: 0.00 | F37: 0.00 | G37: 0.00 | H37: 0.00 | I37: 0.09 | J37: 0.00 | K37: 0.00 | L37: 0.00 | N37: =SUM(D37:L37) -> 0.09
B38: General (mixed waste) | C38: RecyclingGeneral (mixed waste) | D38: 0.00 | E38: 0.00 | F38: 0.00 | G38: 0.00 | H38: 0.00 | I38: 0.00 | J38: 0.00 | K38: 0.00 | L38: 0.00 | N38: =SUM(D38:L38) -> 0.00
B39: Glass (bottles) | C39: RecyclingGlass (bottles) | D39: 0.00 | E39: 4.52 | F39: 2.78 | G39: 0.00 | H39: 0.00 | I39: 7.68 | J39: 4.03 | K39: 0.00 | L39: 1.83 | N39: =SUM(D39:L39) -> 20.84
B40: Green waste | C40: RecyclingGreen waste | D40: 0.00 | E40: 0.00 | F40: 0.00 | G40: 0.00 | H40: 0.00 | I40: 0.00 | J40: 0.00 | K40: 0.00 | L40: 0.00 | N40: =SUM(D40:L40) -> 0.00
B41: Hard Plastic | C41: RecyclingHard Plastic | D41: 0.00 | E41: 0.00 | F41: 0.00 | G41: 17.18 | H41: 5.36 | I41: 0.00 | J41: 0.00 | K41: 0.00 | L41: 0.00 | N41: =SUM(D41:L41) -> 22.54
B42: Household Goods Household Goods | C42: RecyclingHousehold Goods Household Goods | D42: 0.00 | E42: 0.00 | F42: 0.00 | G42: 0.00 | H42: 0.00 | I42: 0.00 | J42: 0.00 | K42: 0.00 | L42: 0.00 | N42: =SUM(D42:L42) -> 0.00
B43: Inert (rubble/hardcore) | C43: RecyclingInert (rubble/hardcore) | D43: 0.00 | E43: 0.00 | F43: 0.00 | G43: 0.00 | H43: 0.00 | I43: 0.00 | J43: 0.00 | K43: 0.00 | L43: 0.00 | N43: =SUM(D43:L43) -> 0.00
B44: Lead (nf) | C44: RecyclingLead (nf) | D44: 0.00 | E44: 0.00 | F44: 0.00 | G44: 0.00 | H44: 0.00 | I44: 0.00 | J44: 0.00 | K44: 0.00 | L44: 0.00 | N44: =SUM(D44:L44) -> 0.00
B45: Matresses | C45: RecyclingMatresses | D45: 3.22 | E45: 2.36 | F45: 5.86 | G45: 0.00 | H45: 0.00 | I45: 6.18 | J45: 0.42 | K45: 0.00 | L45: 0.00 | N45: =SUM(D45:L45) -> 18.04
B46: Microwave Motors | C46: RecyclingMicrowave Motors | D46: 0.00 | E46: 0.00 | F46: 0.00 | G46: 0.00 | H46: 0.00 | I46: 6.78 | J46: 0.37 | K46: 0.00 | L46: 0.00 | N46: =SUM(D46:L46) -> 7.15
B47: Non Ferrous Metal Non Ferrous Metal | C47: RecyclingNon Ferrous Metal Non Ferrous Metal | D47: 0.00 | E47: 0.29 | F47: 1.01 | G47: 0.00 | H47: 0.00 | I47: 0.16 | J47: 0.91 | K47: 0.00 | L47: 0.28 | N47: =SUM(D47:L47) -> 2.64
B48: Oil (Engine) | C48: RecyclingOil (Engine) | D48: 0.00 | E48: 0.00 | F48: 0.00 | G48: 1.36 | H48: 4.85 | I48: 0.74 | J48: 0.00 | K48: 0.00 | L48: 0.00 | N48: =SUM(D48:L48) -> 6.95
B49: Oil (Vegetable) | C49: RecyclingOil (Vegetable) | D49: 0.00 | E49: 0.00 | F49: 0.00 | G49: 0.00 | H49: 0.60 | I49: 0.97 | J49: 0.00 | K49: 0.00 | L49: 0.00 | N49: =SUM(D49:L49) -> 1.57
B50: Paint (chemicals) | C50: RecyclingPaint (chemicals) | D50: 0.00 | E50: 0.00 | F50: 0.00 | G50: 0.00 | H50: 0.00 | I50: 0.00 | J50: 0.00 | K50: 0.00 | L50: 0.00 | N50: =SUM(D50:L50) -> 0.00
B51: Paper (mixed with card) | C51: RecyclingPaper (mixed with card) | D51: 0.00 | E51: 0.00 | F51: 0.00 | G51: 0.00 | H51: 4.16 | I51: 0.00 | J51: 0.00 | K51: 0.00 | L51: 0.00 | N51: =SUM(D51:L51) -> 4.16
B52: Paper (newspaper & magazines) | C52: RecyclingPaper (newspaper & magazines) | D52: 6.12 | E52: 10.22 | F52: 11.54 | G52: 7.62 | H52: 4.16 | I52: 29.38 | J52: 0.00 | K52: 0.00 | L52: 0.00 | N52: =SUM(D52:L52) -> 69.04
B53: Plasterboard | C53: RecyclingPlasterboard | D53: 3.95 | E53: 0.00 | F53: 0.00 | G53: 5.36 | H53: 5.70 | I53: 13.10 | J53: 0.00 | K53: 0.00 | L53: 0.10 | N53: =SUM(D53:L53) -> 28.21
B54: Plastic (Mixed) | C54: RecyclingPlastic (Mixed) | D54: 0.00 | E54: 1.58 | F54: 0.00 | G54: 0.00 | H54: 0.86 | I54: 23.68 | J54: 0.28 | K54: 0.00 | L54: 0.05 | N54: =SUM(D54:L54) -> 26.45
B55: Printer Cartridges | C55: RecyclingPrinter Cartridges | D55: 0.00 | E55: 0.00 | F55: 0.00 | G55: 0.00 | H55: 0.00 | I55: 0.00 | J55: 0.00 | K55: 0.00 | L55: 0.00 | N55: =SUM(D55:L55) -> 0.00
B56: Road Sweepings | C56: RecyclingRoad Sweepings | D56: 0.00 | E56: 0.00 | F56: 0.00 | G56: 0.00 | H56: 0.00 | I56: 232.30 | J56: 0.00 | K56: 0.00 | L56: 0.00 | N56: =SUM(D56:L56) -> 232.30
B57: Scrap metal (mixed) | C57: RecyclingScrap metal (mixed) | D57: 37.93 | E57: 24.88 | F57: 49.93 | G57: 36.14 | H57: 29.81 | I57: 65.41 | J57: 16.76 | K57: 4.06 | L57: 7.88 | N57: =SUM(D57:L57) -> 272.80
B58: Screens output | C58: RecyclingScreens output | D58: 3.61 | E58: 2.24 | F58: 6.49 | G58: 7.08 | H58: 4.08 | I58: 7.67 | J58: 0.81 | K58: 0.53 | L58: 1.12 | N58: =SUM(D58:L58) -> 33.62
B59: Small Domestic Appliances | C59: RecyclingSmall Domestic Appliances | D59: 16.07 | E59: 6.82 | F59: 16.68 | G59: 14.20 | H59: 14.22 | I59: 31.90 | J59: 3.28 | K59: 0.00 | L59: 6.48 | N59: =SUM(D59:L59) -> 109.65
B60: Soil & rubble | C60: RecyclingSoil & rubble | D60: 0.00 | E60: 0.00 | F60: 0.00 | G60: 148.42 | H60: 0.00 | I60: 0.00 | J60: 0.00 | K60: 0.00 | L60: 0.00 | N60: =SUM(D60:L60) -> 148.42
B61: Stainless Steel | C61: RecyclingStainless Steel | D61: 0.00 | E61: 0.00 | F61: 0.00 | G61: 0.00 | H61: 0.00 | I61: 0.00 | J61: 0.00 | K61: 0.00 | L61: 0.00 | N61: =SUM(D61:L61) -> 0.00
B62: Textiles | C62: RecyclingTextiles | D62: 7.21 | E62: 3.78 | F62: 7.79 | G62: 6.88 | H62: 5.18 | I62: 9.44 | J62: 1.39 | K62: 0.45 | L62: 1.05 | N62: =SUM(D62:L62) -> 43.17
B63: Tyres | C63: RecyclingTyres | D63: 0.00 | E63: 0.00 | F63: 0.00 | G63: 0.00 | H63: 0.00 | I63: 0.00 | J63: 0.00 | K63: 0.00 | L63: 0.00 | N63: =SUM(D63:L63) -> 0.00
B64: Wood (including treated) | C64: RecyclingWood (including treated) | D64: 71.20 | E64: 31.50 | F64: 0.00 | G64: 115.54 | H64: 98.96 | I64: 229.20 | J64: 20.22 | K64: 5.76 | L64: 7.45 | N64: =SUM(D64:L64) -> 579.83
B66: Sub Total | D66: =SUM(D23:D64) -> 196.36 | E66: =SUM(E23:E64) -> 141.88 | F66: =SUM(F23:F64) -> 258.01 | G66: =SUM(G23:G64) -> 397.16 | H66: =SUM(H23:H64) -> 258.64 | I66: =SUM(I23:I64) -> 759.48 | J66: =SUM(J23:J64) -> 69.68 | K66: =SUM(K23:K64) -> 13.71 | L66: =SUM(L23:L64) -> 42.80 | N66: =SUM(D66:L66) -> 2,137.72
A68: Re-Use | B68: Books | C68: Re-UseBooks | D68: 0.16 | E68: 0.00 | F68: 0.00 | G68: 0.00 | H68: 0.00 | I68: 0.00 | J68: 0.00 | K68: 0.00 | L68: 0.14 | N68: =SUM(D68:L68) -> 0.30
B69: Gas Cylinders | C69: Re-UseGas Cylinders | D69: 0.00 | E69: 0.00 | F69: 0.00 | G69: 0.00 | H69: 0.00 | I69: 0.00 | J69: 0.00 | K69: 0.00 | L69: 0.00 | N69: =SUM(D69:L69) -> 0.00
B70: Household Goods Household Goods | C70: Re-UseHousehold Goods Household Goods | D70: 0.00 | E70: 0.00 | F70: 0.00 | G70: 12.48 | H70: 0.00 | I70: 0.00 | J70: 0.00 | K70: 0.00 | L70: 0.00 | N70: =SUM(D70:L70) -> 12.48
B71: Inert (rubble/hardcore) | C71: Re-UseInert (rubble/hardcore) | D71: 127.74 | E71: 75.60 | F71: 110.38 | G71: 0.00 | H71: 106.08 | I71: 212.70 | J71: 28.46 | K71: 15.72 | L71: 18.81 | N71: =SUM(D71:L71) -> 695.49
B72: Soil | C72: Re-UseSoil | D72: 13.26 | E72: 0.00 | F72: 0.00 | G72: 0.00 | H72: 0.00 | I72: 0.00 | J72: 0.00 | K72: 0.00 | L72: 0.00 | N72: =SUM(D72:L72) -> 13.26
B74: Sub Total | D74: =SUM(D68:D73) -> 141.16 | E74: =SUM(E68:E73) -> 75.60 | F74: =SUM(F68:F73) -> 110.38 | G74: =SUM(G68:G73) -> 12.48 | H74: =SUM(H68:H73) -> 106.08 | I74: =SUM(I68:I73) -> 212.70 | J74: =SUM(J68:J73) -> 28.46 | K74: =SUM(K68:K73) -> 15.72 | L74: =SUM(L68:L73) -> 18.95 | N74: =SUM(D74:L74) -> 721.53
B77: Grand Total | D77: =SUM(D7)+(D15)+(D21)+(D66)+(D74) -> 574.72 | E77: =SUM(E7)+(E15)+(E21)+(E66)+(E74) -> 398.50 | F77: =SUM(F7)+(F15)+(F21)+(F66)+(F74) -> 669.43 | G77: =SUM(G7)+(G15)+(G21)+(G66)+(G74) -> 812.40 | H77: =SUM(H7)+(H15)+(H21)+(H66)+(H74) -> 581.71 | I77: =SUM(I7)+(I15)+(I21)+(I66)+(I74) -> 1,779.99 | J77: =SUM(J7)+(J15)+(J21)+(J66)+(J74) -> 169.26 | K77: =SUM(K7)+(K15)+(K21)+(K66)+(K74) -> 68.54 | L77: =SUM(L7)+(L15)+(L21)+(L66)+(L74) -> 110.14 | N77: =SUM(D77:L77) -> 5,164.68

Sheet June
A1: June | B1: 01/04/2015 to 31/03/2016
A3: Treatment Use | B3: Waste Type | D3: Burton Farm HWRC | E3: Cherry Orchard HWRC | F3: Hunters Lane HWRC & Transfer | G3: Judkins HWRC | H3: Lower House Farm HWRC | I3: Princes Drive HWRC & Transfer | J3: Shipston HWRC | K3: Stockton HWRC | L3: Wellesbourne HWRC | N3: Total
A5: Composting | B5: Green waste | C5: CompostingGreen waste | D5: 76.90 | E5: 98.28 | F5: 102.20 | G5: 94.54 | H5: 67.56 | I5: 204.50 | J5: 36.18 | K5: 10.96 | L5: 17.47 | N5: =SUM(D5:L5) -> 708.59
B7: Sub Total | D7: =SUM(D5:D5) -> 76.90 | E7: =SUM(E5:E5) -> 98.28 | F7: =SUM(F5:F5) -> 102.20 | G7: =SUM(G5:G5) -> 94.54 | H7: =SUM(H5:H5) -> 67.56 | I7: =SUM(I5:I5) -> 204.50 | J7: =SUM(J5:J5) -> 36.18 | K7: =SUM(K5:K5) -> 10.96 | L7: =SUM(L5:L5) -> 17.47 | N7: =SUM(D7:L7) -> 708.59
A9: Efw (incineration) | B9: Bulky Waste | C9: Efw (incineration)Bulky Waste | D9: 0.00 | E9: 0.00 | F9: 0.00 | G9: 0.00 | H9: 18.66 | I9: 0.00 | J9: 0.00 | K9: 0.00 | L9: 0.00 | N9: =SUM(D9:L9) -> 18.66
B10: Chemicals | C10: Efw (incineration)Chemicals | D10: 0.00 | E10: 0.04 | F10: 0.00 | G10: 0.00 | H10: 0.00 | I10: 0.00 | J10: 0.00 | K10: 0.00 | L10: 0.00 | N10: =SUM(D10:L10) -> 0.04
B11: Clinical | C11: Efw (incineration)Clinical | D11: 0.00 | E11: 0.00 | F11: 0.00 | G11: 0.00 | H11: 0.00 | I11: 2.34 | J11: 0.00 | K11: 0.00 | L11: 0.00 | N11: =SUM(D11:L11) -> 2.34
B12: General (mixed waste) | C12: Efw (incineration)General (mixed waste) | D12: 0.00 | E12: 0.00 | F12: 0.00 | G12: 0.00 | H12: 117.54 | I12: 0.00 | J12: 0.00 | K12: 0.00 | L12: 0.00 | N12: =SUM(D12:L12) -> 117.54
B13: Paint (chemicals) | C13: Efw (incineration)Paint (chemicals) | D13: 0.00 | E13: 0.00 | F13: 0.00 | G13: 0.00 | H13: 0.00 | I13: 0.00 | J13: 0.00 | K13: 0.00 | L13: 0.00 | N13: =SUM(D13:L13) -> 0.00
B15: Sub Total | D15: =SUM(D9:D13) -> 0.00 | E15: =SUM(E9:E13) -> 0.04 | F15: =SUM(F9:F13) -> 0.00 | G15: =SUM(G9:G13) -> 0.00 | H15: =SUM(H9:H13) -> 136.20 | I15: =SUM(I9:I13) -> 2.34 | J15: =SUM(J9:J13) -> 0.00 | K15: =SUM(K9:K13) -> 0.00 | L15: =SUM(L9:L13) -> 0.00 | N15: =SUM(D15:L15) -> 138.58
A17: Landfill | B17: Asbestos | C17: LandfillAsbestos | D17: 0.00 | E17: 0.02 | F17: 0.00 | G17: 5.74 | H17: 0.00 | I17: 2.92 | J17: 0.00 | K17: 0.00 | L17: 0.00 | N17: =SUM(D17:L17) -> 8.68
B18: General (mixed waste) | C18: LandfillGeneral (mixed waste) | D18: 141.90 | E18: 102.10 | F18: 217.53 | G18: 265.10 | H18: 0.00 | I18: 660.48 | J18: 47.42 | K18: 25.76 | L18: 34.10 | N18: =SUM(D18:L18) -> 1,494.39
B19: Hard Plastic | C19: LandfillHard Plastic | D19: 0.00 | E19: 1.64 | F19: 3.61 | G19: 0.00 | H19: 5.25 | I19: 0.00 | J19: 0.00 | K19: 0.00 | L19: 0.00 | N19: =SUM(D19:L19) -> 10.49
B21: Sub Total | D21: =SUM(D17:D19) -> 141.90 | E21: =SUM(E17:E19) -> 103.76 | F21: =SUM(F17:F19) -> 221.14 | G21: =SUM(G17:G19) -> 270.84 | H21: =SUM(H17:H19) -> 5.25 | I21: =SUM(I17:I19) -> 663.40 | J21: =SUM(J17:J19) -> 47.42 | K21: =SUM(K17:K19) -> 25.76 | L21: =SUM(L17:L19) -> 34.10 | N21: =SUM(D21:L21) -> 1,513.56
A23: Recycling | B23: Aluminium (nf) | C23: RecyclingAluminium (nf) | D23: 0.00 | E23: 0.00 | F23: 0.00 | G23: 0.00 | H23: 0.00 | I23: 0.96 | J23: 0.00 | K23: 0.00 | L23: 0.00 | N23: =SUM(D23:L23) -> 0.96
B24: Batteries (car) | C24: RecyclingBatteries (car) | D24: 0.00 | E24: 0.00 | F24: 0.00 | G24: 1.06 | H24: 2.28 | I24: 0.65 | J24: 0.20 | K24: 1.70 | L24: 0.83 | N24: =SUM(D24:L24) -> 6.72
B25: Batteries (household) | C25: RecyclingBatteries (household) | D25: 0.00 | E25: 0.00 | F25: 0.00 | G25: 0.00 | H25: 0.00 | I25: 0.00 | J25: 0.00 | K25: 0.55 | L25: 0.00 | N25: =SUM(D25:L25) -> 0.55
B26: Books | C26: RecyclingBooks | D26: 0.00 | E26: 0.15 | F26: 0.00 | G26: 1.46 | H26: 0.00 | I26: 0.86 | J26: 0.00 | K26: 0.00 | L26: 0.00 | N26: =SUM(D26:L26) -> 2.47
B27: Brass(nf) | C27: RecyclingBrass(nf) | D27: 0.00 | E27: 0.00 | F27: 0.00 | G27: 0.00 | H27: 0.00 | I27: 0.00 | J27: 0.00 | K27: 0.00 | L27: 0.00 | N27: =SUM(D27:L27) -> 0.00
B28: Cable (nf) | C28: RecyclingCable (nf) | D28: 0.00 | E28: 0.46 | F28: 0.00 | G28: 0.00 | H28: 0.00 | I28: 0.00 | J28: 0.00 | K28: 0.00 | L28: 0.00 | N28: =SUM(D28:L28) -> 0.46
B29: Cardboard | C29: RecyclingCardboard | D29: 24.30 | E29: 14.32 | F29: 21.04 | G29: 19.52 | H29: 14.50 | I29: 42.66 | J29: 7.82 | K29: 2.58 | L29: 5.98 | N29: =SUM(D29:L29) -> 152.72
B30: Carpet | C30: RecyclingCarpet | D30: 5.46 | E30: 12.06 | F30: 27.32 | G30: 0.00 | H30: 15.98 | I30: 39.34 | J30: 0.00 | K30: 0.00 | L30: 0.00 | N30: =SUM(D30:L30) -> 100.16
B31: Chipboard | C31: RecyclingChipboard | D31: 84.96 | E31: 5.94 | F31: 96.97 | G31: 0.00 | H31: 41.30 | I31: 21.80 | J31: 6.94 | K31: 0.00 | L31: 1.72 | N31: =SUM(D31:L31) -> 259.63
B32: Copper & Brass Mixed (nf) | C32: RecyclingCopper & Brass Mixed (nf) | D32: 0.00 | E32: 0.00 | F32: 0.00 | G32: 11.20 | H32: 0.00 | I32: 0.00 | J32: 0.00 | K32: 0.00 | L32: 0.00 | N32: =SUM(D32:L32) -> 11.20
B33: Drink Cartons | C33: RecyclingDrink Cartons | D33: 0.00 | E33: 0.08 | F33: 0.00 | G33: 0.00 | H33: 0.03 | I33: 0.22 | J33: 0.00 | K33: 0.00 | L33: 0.00 | N33: =SUM(D33:L33) -> 0.33
B34: Fire Extinguishers | C34: RecyclingFire Extinguishers | D34: 0.00 | E34: 0.00 | F34: 0.00 | G34: 0.00 | H34: 0.00 | I34: 0.00 | J34: 0.00 | K34: 0.00 | L34: 0.00 | N34: =SUM(D34:L34) -> 0.00
B35: Fluorescent Tubes Output | C35: RecyclingFluorescent Tubes Output | D35: 0.14 | E35: 0.00 | F35: 0.00 | G35: 0.00 | H35: 0.00 | I35: 0.00 | J35: 0.00 | K35: 0.00 | L35: 0.14 | N35: =SUM(D35:L35) -> 0.28
B36: Fridges Output | C36: RecyclingFridges Output | D36: 5.88 | E36: 2.33 | F36: 5.71 | G36: 16.00 | H36: 6.59 | I36: 12.19 | J36: 2.18 | K36: 0.95 | L36: 0.00 | N36: =SUM(D36:L36) -> 51.83
B37: Gas Cylinders | C37: RecyclingGas Cylinders | D37: 0.00 | E37: 0.00 | F37: 0.00 | G37: 0.00 | H37: 0.44 | I37: 0.03 | J37: 0.00 | K37: 0.00 | L37: 0.00 | N37: =SUM(D37:L37) -> 0.47
B38: General (mixed waste) | C38: RecyclingGeneral (mixed waste) | D38: 0.00 | E38: 0.00 | F38: 0.00 | G38: 0.00 | H38: 0.00 | I38: 0.00 | J38: 0.00 | K38: 0.00 | L38: 0.00 | N38: =SUM(D38:L38) -> 0.00
B39: Glass (bottles) | C39: RecyclingGlass (bottles) | D39: 3.26 | E39: 3.74 | F39: 0.68 | G39: 0.00 | H39: 1.47 | I39: 7.84 | J39: 2.48 | K39: 0.29 | L39: 1.91 | N39: =SUM(D39:L39) -> 21.67
B40: Green waste | C40: RecyclingGreen waste | D40: 0.00 | E40: 0.00 | F40: 0.00 | G40: 0.00 | H40: 0.00 | I40: 0.00 | J40: 0.00 | K40: 0.00 | L40: 0.00 | N40: =SUM(D40:L40) -> 0.00
B41: Hard Plastic | C41: RecyclingHard Plastic | D41: 0.00 | E41: 0.00 | F41: 0.00 | G41: 15.72 | H41: 0.00 | I41: 0.00 | J41: 0.00 | K41: 0.00 | L41: 0.00 | N41: =SUM(D41:L41) -> 15.72
B42: Household Goods Household Goods | C42: RecyclingHousehold Goods Household Goods | D42: 0.00 | E42: 0.00 | F42: 0.00 | G42: 0.00 | H42: 0.00 | I42: 0.00 | J42: 0.00 | K42: 0.00 | L42: 0.00 | N42: =SUM(D42:L42) -> 0.00
B43: Inert (rubble/hardcore) | C43: RecyclingInert (rubble/hardcore) | D43: 0.00 | E43: 0.00 | F43: 0.00 | G43: 0.00 | H43: 0.00 | I43: 0.00 | J43: 0.00 | K43: 0.00 | L43: 0.00 | N43: =SUM(D43:L43) -> 0.00
B44: Lead (nf) | C44: RecyclingLead (nf) | D44: 0.00 | E44: 0.00 | F44: 0.00 | G44: 0.00 | H44: 0.00 | I44: 0.00 | J44: 0.00 | K44: 0.00 | L44: 0.00 | N44: =SUM(D44:L44) -> 0.00
B45: Matresses | C45: RecyclingMatresses | D45: 2.86 | E45: 0.65 | F45: 4.41 | G45: 0.00 | H45: 1.62 | I45: 0.00 | J45: 0.48 | K45: 0.00 | L45: 0.00 | N45: =SUM(D45:L45) -> 10.02
B46: Microwave Motors | C46: RecyclingMicrowave Motors | D46: 0.00 | E46: 0.64 | F46: 0.00 | G46: 0.00 | H46: 0.00 | I46: 0.00 | J46: 0.05 | K46: 0.00 | L46: 0.00 | N46: =SUM(D46:L46) -> 0.69
B47: Non Ferrous Metal Non Ferrous Metal | C47: RecyclingNon Ferrous Metal Non Ferrous Metal | D47: 0.00 | E47: 1.16 | F47: 0.00 | G47: 0.00 | H47: 1.17 | I47: 0.44 | J47: 0.81 | K47: 0.00 | L47: 0.00 | N47: =SUM(D47:L47) -> 3.58
B48: Oil (Engine) | C48: RecyclingOil (Engine) | D48: 1.58 | E48: 0.00 | F48: 2.02 | G48: 1.72 | H48: 1.76 | I48: 1.58 | J48: 0.00 | K48: 0.74 | L48: 0.00 | N48: =SUM(D48:L48) -> 9.41
B49: Oil (Vegetable) | C49: RecyclingOil (Vegetable) | D49: 0.00 | E49: 0.00 | F49: 0.00 | G49: 0.00 | H49: 0.00 | I49: 0.00 | J49: 0.00 | K49: 0.00 | L49: 0.00 | N49: =SUM(D49:L49) -> 0.00
B50: Paint (chemicals) | C50: RecyclingPaint (chemicals) | D50: 0.00 | E50: 0.00 | F50: 0.00 | G50: 0.00 | H50: 1.38 | I50: 2.18 | J50: 0.00 | K50: 0.00 | L50: 0.00 | N50: =SUM(D50:L50) -> 3.56
B51: Paper (mixed with card) | C51: RecyclingPaper (mixed with card) | D51: 0.00 | E51: 0.00 | F51: 0.00 | G51: 0.00 | H51: 0.00 | I51: 0.00 | J51: 0.00 | K51: 0.00 | L51: 0.00 | N51: =SUM(D51:L51) -> 0.00
B52: Paper (newspaper & magazines) | C52: RecyclingPaper (newspaper & magazines) | D52: 9.20 | E52: 10.40 | F52: 15.18 | G52: 0.00 | H52: 18.18 | I52: 20.58 | J52: 9.32 | K52: 0.00 | L52: 0.00 | N52: =SUM(D52:L52) -> 82.86
B53: Plasterboard | C53: RecyclingPlasterboard | D53: 3.89 | E53: 0.14 | F53: 9.52 | G53: 10.92 | H53: 7.43 | I53: 7.89 | J53: 0.00 | K53: 0.00 | L53: 0.02 | N53: =SUM(D53:L53) -> 39.81
B54: Plastic (Mixed) | C54: RecyclingPlastic (Mixed) | D54: 0.00 | E54: 0.98 | F54: 0.00 | G54: 0.00 | H54: 0.07 | I54: 0.00 | J54: 0.30 | K54: 0.00 | L54: 0.10 | N54: =SUM(D54:L54) -> 1.45
B55: Printer Cartridges | C55: RecyclingPrinter Cartridges | D55: 0.00 | E55: 0.00 | F55: 0.00 | G55: 0.00 | H55: 0.00 | I55: 0.00 | J55: 0.00 | K55: 0.00 | L55: 0.00 | N55: =SUM(D55:L55) -> 0.00
B56: Road Sweepings | C56: RecyclingRoad Sweepings | D56: 0.00 | E56: 0.00 | F56: 0.00 | G56: 0.00 | H56: 0.00 | I56: 227.14 | J56: 0.00 | K56: 0.00 | L56: 0.00 | N56: =SUM(D56:L56) -> 227.14
B57: Scrap metal (mixed) | C57: RecyclingScrap metal (mixed) | D57: 31.04 | E57: 17.52 | F57: 51.25 | G57: 34.32 | H57: 39.88 | I57: 68.74 | J57: 23.05 | K57: 7.29 | L57: 8.79 | N57: =SUM(D57:L57) -> 281.88
B58: Screens output | C58: RecyclingScreens output | D58: 3.93 | E58: 3.70 | F58: 8.22 | G58: 8.96 | H58: 7.62 | I58: 8.51 | J58: 3.34 | K58: 0.00 | L58: 1.70 | N58: =SUM(D58:L58) -> 45.98
B59: Small Domestic Appliances | C59: RecyclingSmall Domestic Appliances | D59: 16.88 | E59: 6.16 | F59: 25.38 | G59: 13.80 | H59: 0.00 | I59: 31.04 | J59: 2.92 | K59: 4.11 | L59: 2.59 | N59: =SUM(D59:L59) -> 102.88
B60: Soil & rubble | C60: RecyclingSoil & rubble | D60: 0.00 | E60: 0.00 | F60: 0.00 | G60: 149.82 | H60: 0.00 | I60: 0.00 | J60: 0.00 | K60: 0.00 | L60: 0.00 | N60: =SUM(D60:L60) -> 149.82
B61: Stainless Steel | C61: RecyclingStainless Steel | D61: 0.00 | E61: 0.00 | F61: 0.00 | G61: 0.00 | H61: 0.00 | I61: 0.00 | J61: 0.00 | K61: 0.00 | L61: 0.00 | N61: =SUM(D61:L61) -> 0.00
B62: Textiles | C62: RecyclingTextiles | D62: 6.48 | E62: 5.49 | F62: 9.85 | G62: 7.04 | H62: 4.72 | I62: 9.06 | J62: 1.18 | K62: 0.53 | L62: 1.96 | N62: =SUM(D62:L62) -> 46.31
B63: Tyres | C63: RecyclingTyres | D63: 0.00 | E63: 0.00 | F63: 0.00 | G63: 0.00 | H63: 0.00 | I63: 0.00 | J63: 0.00 | K63: 0.00 | L63: 0.00 | N63: =SUM(D63:L63) -> 0.00
B64: Wood (including treated) | C64: RecyclingWood (including treated) | D64: 0.00 | E64: 73.48 | F64: 14.41 | G64: 182.02 | H64: 83.82 | I64: 213.56 | J64: 18.60 | K64: 14.29 | L64: 15.26 | N64: =SUM(D64:L64) -> 615.44
B66: Sub Total | D66: =SUM(D23:D64) -> 199.86 | E66: =SUM(E23:E64) -> 159.39 | F66: =SUM(F23:F64) -> 291.97 | G66: =SUM(G23:G64) -> 473.56 | H66: =SUM(H23:H64) -> 250.23 | I66: =SUM(I23:I64) -> 717.28 | J66: =SUM(J23:J64) -> 79.67 | K66: =SUM(K23:K64) -> 33.03 | L66: =SUM(L23:L64) -> 41.00 | N66: =SUM(D66:L66) -> 2,246.00
A68: Re-Use | B68: Books | C68: Re-UseBooks | D68: 0.01 | E68: 0.00 | F68: 0.00 | G68: 0.00 | H68: 0.00 | I68: 0.00 | J68: 0.00 | K68: 0.00 | L68: 0.07 | N68: =SUM(D68:L68) -> 0.08
B69: Gas Cylinders | C69: Re-UseGas Cylinders | D69: 0.00 | E69: 0.00 | F69: 0.00 | G69: 0.00 | H69: 0.00 | I69: 0.00 | J69: 0.00 | K69: 0.00 | L69: 0.00 | N69: =SUM(D69:L69) -> 0.00
B70: Household Goods Household Goods | C70: Re-UseHousehold Goods Household Goods | D70: 0.00 | E70: 0.00 | F70: 0.00 | G70: 13.29 | H70: 0.00 | I70: 0.00 | J70: 0.00 | K70: 0.00 | L70: 0.00 | N70: =SUM(D70:L70) -> 13.29
B71: Inert (rubble/hardcore) | C71: Re-UseInert (rubble/hardcore) | D71: 111.44 | E71: 79.02 | F71: 98.10 | G71: 0.00 | H71: 79.56 | I71: 218.98 | J71: 21.92 | K71: 14.02 | L71: 24.46 | N71: =SUM(D71:L71) -> 647.50
B72: Soil | C72: Re-UseSoil | D72: 9.66 | E72: 0.00 | F72: 0.00 | G72: 0.00 | H72: 0.00 | I72: 0.00 | J72: 0.00 | K72: 0.00 | L72: 0.00 | N72: =SUM(D72:L72) -> 9.66
B74: Sub Total | D74: =SUM(D68:D73) -> 121.11 | E74: =SUM(E68:E73) -> 79.02 | F74: =SUM(F68:F73) -> 98.10 | G74: =SUM(G68:G73) -> 13.29 | H74: =SUM(H68:H73) -> 79.56 | I74: =SUM(I68:I73) -> 218.98 | J74: =SUM(J68:J73) -> 21.92 | K74: =SUM(K68:K73) -> 14.02 | L74: =SUM(L68:L73) -> 24.53 | N74: =SUM(D74:L74) -> 670.53
B77: Grand Total | D77: =SUM(D7)+(D15)+(D21)+(D66)+(D74) -> 539.77 | E77: =SUM(E7)+(E15)+(E21)+(E66)+(E74) -> 440.49 | F77: =SUM(F7)+(F15)+(F21)+(F66)+(F74) -> 713.41 | G77: =SUM(G7)+(G15)+(G21)+(G66)+(G74) -> 852.23 | H77: =SUM(H7)+(H15)+(H21)+(H66)+(H74) -> 538.80 | I77: =SUM(I7)+(I15)+(I21)+(I66)+(I74) -> 1,806.51 | J77: =SUM(J7)+(J15)+(J21)+(J66)+(J74) -> 185.19 | K77: =SUM(K7)+(K15)+(K21)+(K66)+(K74) -> 83.77 | L77: =SUM(L7)+(L15)+(L21)+(L66)+(L74) -> 117.10 | N77: =SUM(D77:L77) -> 5,277.26

Sheet July
A1: July | B1: 01/04/2015 to 31/03/2016
A3: Treatment Use | B3: Waste Type | D3: Burton Farm HWRC | E3: Cherry Orchard HWRC | F3: Hunters Lane HWRC & Transfer | G3: Judkins HWRC | H3: Lower House Farm HWRC | I3: Princes Drive HWRC & Transfer | J3: Shipston HWRC | K3: Stockton HWRC | L3: Wellesbourne HWRC | N3: Total
A5: Composting | B5: Green waste | C5: CompostingGreen waste | D5: 75.58 | E5: 93.56 | F5: 94.34 | G5: 79.90 | H5: 47.14 | I5: 181.52 | J5: 39.50 | K5: 12.79 | L5: 18.71 | N5: =SUM(D5:L5) -> 643.04
B7: Sub Total | D7: =SUM(D5:D5) -> 75.58 | E7: =SUM(E5:E5) -> 93.56 | F7: =SUM(F5:F5) -> 94.34 | G7: =SUM(G5:G5) -> 79.90 | H7: =SUM(H5:H5) -> 47.14 | I7: =SUM(I5:I5) -> 181.52 | J7: =SUM(J5:J5) -> 39.50 | K7: =SUM(K5:K5) -> 12.79 | L7: =SUM(L5:L5) -> 18.71 | N7: =SUM(D7:L7) -> 643.04
A9: Efw (incineration) | B9: Bulky Waste | C9: Efw (incineration)Bulky Waste | D9: 0.00 | E9: 0.00 | F9: 0.00 | G9: 0.00 | H9: 15.46 | I9: 0.00 | J9: 0.00 | K9: 0.00 | L9: 0.00 | N9: =SUM(D9:L9) -> 15.46
B10: Chemicals | C10: Efw (incineration)Chemicals | D10: 0.00 | E10: 0.00 | F10: 0.00 | G10: 0.00 | H10: 0.00 | I10: 1.41 | J10: 0.00 | K10: 0.00 | L10: 0.00 | N10: =SUM(D10:L10) -> 1.41
B11: Clinical | C11: Efw (incineration)Clinical | D11: 0.00 | E11: 0.00 | F11: 0.00 | G11: 0.00 | H11: 0.00 | I11: 1.95 | J11: 0.00 | K11: 0.00 | L11: 0.00 | N11: =SUM(D11:L11) -> 1.95
B12: General (mixed waste) | C12: Efw (incineration)General (mixed waste) | D12: 0.00 | E12: 0.00 | F12: 0.00 | G12: 0.00 | H12: 102.60 | I12: 0.00 | J12: 0.00 | K12: 0.00 | L12: 0.00 | N12: =SUM(D12:L12) -> 102.60
B13: Paint (chemicals) | C13: Efw (incineration)Paint (chemicals) | D13: 0.00 | E13: 0.00 | F13: 0.00 | G13: 0.00 | H13: 0.00 | I13: 0.00 | J13: 0.00 | K13: 0.00 | L13: 0.00 | N13: =SUM(D13:L13) -> 0.00
B15: Sub Total | D15: =SUM(D9:D13) -> 0.00 | E15: =SUM(E9:E13) -> 0.00 | F15: =SUM(F9:F13) -> 0.00 | G15: =SUM(G9:G13) -> 0.00 | H15: =SUM(H9:H13) -> 118.06 | I15: =SUM(I9:I13) -> 3.36 | J15: =SUM(J9:J13) -> 0.00 | K15: =SUM(K9:K13) -> 0.00 | L15: =SUM(L9:L13) -> 0.00 | N15: =SUM(D15:L15) -> 121.42
A17: Landfill | B17: Asbestos | C17: LandfillAsbestos | D17: 0.00 | E17: 0.08 | F17: 0.00 | G17: 0.00 | H17: 0.00 | I17: 0.00 | J17: 0.00 | K17: 0.00 | L17: 0.92 | N17: =SUM(D17:L17) -> 1.00
B18: General (mixed waste) | C18: LandfillGeneral (mixed waste) | D18: 159.96 | E18: 115.90 | F18: 235.91 | G18: 481.49 | H18: 0.00 | I18: 737.82 | J18: 39.18 | K18: 39.67 | L18: 29.83 | N18: =SUM(D18:L18) -> 1,839.76
B19: Hard Plastic | C19: LandfillHard Plastic | D19: 0.00 | E19: 2.93 | F19: 1.90 | G19: 0.00 | H19: 6.11 | I19: 0.00 | J19: 0.00 | K19: 0.00 | L19: 0.00 | N19: =SUM(D19:L19) -> 10.93
B21: Sub Total | D21: =SUM(D17:D19) -> 159.96 | E21: =SUM(E17:E19) -> 118.91 | F21: =SUM(F17:F19) -> 237.81 | G21: =SUM(G17:G19) -> 481.49 | H21: =SUM(H17:H19) -> 6.11 | I21: =SUM(I17:I19) -> 737.82 | J21: =SUM(J17:J19) -> 39.18 | K21: =SUM(K17:K19) -> 39.67 | L21: =SUM(L17:L19) -> 30.75 | N21: =SUM(D21:L21) -> 1,851.69
A23: Recycling | B23: Aluminium (nf) | C23: RecyclingAluminium (nf) | D23: 0.00 | E23: 0.00 | F23: 0.00 | G23: 0.00 | H23: 0.00 | I23: 0.00 | J23: 0.00 | K23: 0.00 | L23: 0.00 | N23: =SUM(D23:L23) -> 0.00
B24: Batteries (car) | C24: RecyclingBatteries (car) | D24: 0.00 | E24: 0.00 | F24: 5.95 | G24: 1.74 | H24: 2.36 | I24: 0.00 | J24: 0.24 | K24: 0.00 | L24: 0.00 | N24: =SUM(D24:L24) -> 10.29
B25: Batteries (household) | C25: RecyclingBatteries (household) | D25: 0.00 | E25: 0.00 | F25: 0.00 | G25: 0.00 | H25: 0.68 | I25: 0.00 | J25: 0.00 | K25: 0.00 | L25: 0.00 | N25: =SUM(D25:L25) -> 0.68
B26: Books | C26: RecyclingBooks | D26: 0.00 | E26: 0.19 | F26: 0.00 | G26: 2.16 | H26: 0.00 | I26: 0.83 | J26: 0.00 | K26: 0.00 | L26: 0.00 | N26: =SUM(D26:L26) -> 3.18
B27: Brass(nf) | C27: RecyclingBrass(nf) | D27: 0.00 | E27: 0.00 | F27: 0.00 | G27: 0.00 | H27: 0.00 | I27: 0.00 | J27: 0.00 | K27: 0.00 | L27: 0.00 | N27: =SUM(D27:L27) -> 0.00
B28: Cable (nf) | C28: RecyclingCable (nf) | D28: 0.00 | E28: 0.00 | F28: 0.00 | G28: 0.00 | H28: 0.00 | I28: 0.00 | J28: 0.00 | K28: 0.00 | L28: 0.00 | N28: =SUM(D28:L28) -> 0.00
B29: Cardboard | C29: RecyclingCardboard | D29: 29.36 | E29: 16.86 | F29: 21.72 | G29: 28.32 | H29: 16.38 | I29: 48.34 | J29: 8.02 | K29: 3.98 | L29: 6.56 | N29: =SUM(D29:L29) -> 179.54
B30: Carpet | C30: RecyclingCarpet | D30: 19.90 | E30: 13.56 | F30: 23.35 | G30: 0.00 | H30: 31.22 | I30: 28.37 | J30: 6.66 | K30: 0.00 | L30: 0.00 | N30: =SUM(D30:L30) -> 123.06
B31: Chipboard | C31: RecyclingChipboard | D31: 91.24 | E31: 14.90 | F31: 85.52 | G31: 0.00 | H31: 86.80 | I31: 39.82 | J31: 13.56 | K31: 5.87 | L31: 9.52 | N31: =SUM(D31:L31) -> 347.23
B32: Copper & Brass Mixed (nf) | C32: RecyclingCopper & Brass Mixed (nf) | D32: 0.00 | E32: 0.00 | F32: 0.00 | G32: 0.00 | H32: 0.00 | I32: 0.00 | J32: 0.00 | K32: 0.00 | L32: 0.00 | N32: =SUM(D32:L32) -> 0.00
B33: Drink Cartons | C33: RecyclingDrink Cartons | D33: 0.00 | E33: 0.41 | F33: 0.00 | G33: 0.00 | H33: 0.00 | I33: 0.27 | J33: 0.00 | K33: 0.00 | L33: 0.00 | N33: =SUM(D33:L33) -> 0.69
B34: Fire Extinguishers | C34: RecyclingFire Extinguishers | D34: 0.00 | E34: 0.00 | F34: 0.00 | G34: 0.00 | H34: 0.00 | I34: 0.00 | J34: 0.00 | K34: 0.00 | L34: 0.00 | N34: =SUM(D34:L34) -> 0.00
B35: Fluorescent Tubes Output | C35: RecyclingFluorescent Tubes Output | D35: 0.00 | E35: 0.21 | F35: 0.00 | G35: 0.00 | H35: 0.20 | I35: 0.19 | J35: 0.00 | K35: 0.00 | L35: 0.00 | N35: =SUM(D35:L35) -> 0.60
B36: Fridges Output | C36: RecyclingFridges Output | D36: 5.62 | E36: 2.80 | F36: 7.44 | G36: 7.28 | H36: 9.66 | I36: 13.80 | J36: 2.55 | K36: 0.84 | L36: 0.00 | N36: =SUM(D36:L36) -> 49.97
B37: Gas Cylinders | C37: RecyclingGas Cylinders | D37: 0.00 | E37: 0.00 | F37: 0.00 | G37: 0.00 | H37: 0.00 | I37: 0.12 | J37: 0.00 | K37: 0.00 | L37: 0.00 | N37: =SUM(D37:L37) -> 0.12
B38: General (mixed waste) | C38: RecyclingGeneral (mixed waste) | D38: 0.00 | E38: 0.00 | F38: 0.00 | G38: 0.00 | H38: 0.00 | I38: 0.00 | J38: 0.00 | K38: 0.00 | L38: 0.00 | N38: =SUM(D38:L38) -> 0.00
B39: Glass (bottles) | C39: RecyclingGlass (bottles) | D39: 2.60 | E39: 6.00 | F39: 2.13 | G39: 2.28 | H39: 0.00 | I39: 11.14 | J39: 3.67 | K39: 0.49 | L39: 1.90 | N39: =SUM(D39:L39) -> 30.21
B40: Green waste | C40: RecyclingGreen waste | D40: 0.00 | E40: 0.00 | F40: 0.00 | G40: 0.00 | H40: 0.00 | I40: 0.00 | J40: 0.00 | K40: 0.00 | L40: 0.00 | N40: =SUM(D40:L40) -> 0.00
B41: Hard Plastic | C41: RecyclingHard Plastic | D41: 0.00 | E41: 0.00 | F41: 0.00 | G41: 18.66 | H41: 0.00 | I41: 0.00 | J41: 0.00 | K41: 0.00 | L41: 0.00 | N41: =SUM(D41:L41) -> 18.66
B42: Household Goods Household Goods | C42: RecyclingHousehold Goods Household Goods | D42: 0.00 | E42: 0.00 | F42: 0.00 | G42: 0.00 | H42: 0.00 | I42: 0.00 | J42: 0.00 | K42: 0.00 | L42: 0.00 | N42: =SUM(D42:L42) -> 0.00
B43: Inert (rubble/hardcore) | C43: RecyclingInert (rubble/hardcore) | D43: 0.00 | E43: 0.00 | F43: 0.00 | G43: 0.00 | H43: 0.00 | I43: 0.00 | J43: 0.00 | K43: 0.00 | L43: 0.00 | N43: =SUM(D43:L43) -> 0.00
B44: Lead (nf) | C44: RecyclingLead (nf) | D44: 0.00 | E44: 0.00 | F44: 0.00 | G44: 0.00 | H44: 0.00 | I44: 0.00 | J44: 0.00 | K44: 0.00 | L44: 0.00 | N44: =SUM(D44:L44) -> 0.00
B45: Matresses | C45: RecyclingMatresses | D45: 2.24 | E45: 0.66 | F45: 1.61 | G45: 0.00 | H45: 3.36 | I45: 6.14 | J45: 0.00 | K45: 0.00 | L45: 0.00 | N45: =SUM(D45:L45) -> 14.01
B46: Microwave Motors | C46: RecyclingMicrowave Motors | D46: 0.00 | E46: 0.00 | F46: 0.00 | G46: 0.00 | H46: 0.00 | I46: 0.00 | J46: 0.00 | K46: 0.00 | L46: 0.00 | N46: =SUM(D46:L46) -> 0.00
B47: Non Ferrous Metal Non Ferrous Metal | C47: RecyclingNon Ferrous Metal Non Ferrous Metal | D47: 0.00 | E47: 1.71 | F47: 2.03 | G47: 0.00 | H47: 1.01 | I47: 4.24 | J47: 1.14 | K47: 0.37 | L47: 0.00 | N47: =SUM(D47:L47) -> 10.50
B48: Oil (Engine) | C48: RecyclingOil (Engine) | D48: 0.00 | E48: 0.00 | F48: 0.00 | G48: 2.66 | H48: 0.00 | I48: 0.00 | J48: 0.00 | K48: 0.00 | L48: 0.00 | N48: =SUM(D48:L48) -> 2.66
B49: Oil (Vegetable) | C49: RecyclingOil (Vegetable) | D49: 0.00 | E49: 0.00 | F49: 0.74 | G49: 0.00 | H49: 0.00 | I49: 1.04 | J49: 0.00 | K49: 0.00 | L49: 0.00 | N49: =SUM(D49:L49) -> 1.78
B50: Paint (chemicals) | C50: RecyclingPaint (chemicals) | D50: 0.00 | E50: 0.00 | F50: 0.00 | G50: 0.00 | H50: 0.00 | I50: 0.00 | J50: 0.00 | K50: 0.00 | L50: 0.00 | N50: =SUM(D50:L50) -> 0.00
B51: Paper (mixed with card) | C51: RecyclingPaper (mixed with card) | D51: 0.00 | E51: 0.00 | F51: 0.00 | G51: 0.00 | H51: 0.00 | I51: 0.00 | J51: 0.00 | K51: 0.00 | L51: 0.00 | N51: =SUM(D51:L51) -> 0.00
B52: Paper (newspaper & magazines) | C52: RecyclingPaper (newspaper & magazines) | D52: 18.36 | E52: 13.12 | F52: 13.24 | G52: 5.68 | H52: 0.00 | I52: 20.46 | J52: 9.10 | K52: 0.00 | L52: 0.00 | N52: =SUM(D52:L52) -> 79.96
B53: Plasterboard | C53: RecyclingPlasterboard | D53: 8.81 | E53: 0.04 | F53: 0.00 | G53: 5.48 | H53: 8.95 | I53: 17.72 | J53: 0.00 | K53: 0.00 | L53: 0.00 | N53: =SUM(D53:L53) -> 41.00
B54: Plastic (Mixed) | C54: RecyclingPlastic (Mixed) | D54: 0.00 | E54: 1.36 | F54: 0.00 | G54: 0.00 | H54: 0.00 | I54: 0.00 | J54: 0.36 | K54: 0.00 | L54: 0.11 | N54: =SUM(D54:L54) -> 1.83
B55: Printer Cartridges | C55: RecyclingPrinter Cartridges | D55: 0.00 | E55: 0.00 | F55: 0.00 | G55: 0.00 | H55: 0.00 | I55: 0.00 | J55: 0.00 | K55: 0.00 | L55: 0.00 | N55: =SUM(D55:L55) -> 0.00
B56: Road Sweepings | C56: RecyclingRoad Sweepings | D56: 0.00 | E56: 0.00 | F56: 0.00 | G56: 0.00 | H56: 0.00 | I56: 293.50 | J56: 0.00 | K56: 0.00 | L56: 0.00 | N56: =SUM(D56:L56) -> 293.50
B57: Scrap metal (mixed) | C57: RecyclingScrap metal (mixed) | D57: 37.12 | E57: 25.00 | F57: 44.48 | G57: 31.20 | H57: 33.92 | I57: 75.21 | J57: 13.21 | K57: 6.27 | L57: 8.19 | N57: =SUM(D57:L57) -> 274.60
B58: Screens output | C58: RecyclingScreens output | D58: 4.80 | E58: 3.58 | F58: 7.68 | G58: 7.14 | H58: 4.46 | I58: 11.27 | J58: 2.13 | K58: 1.33 | L58: 1.75 | N58: =SUM(D58:L58) -> 44.13
B59: Small Domestic Appliances | C59: RecyclingSmall Domestic Appliances | D59: 18.51 | E59: 13.08 | F59: 15.92 | G59: 13.24 | H59: 14.88 | I59: 37.45 | J59: 7.35 | K59: 3.30 | L59: 3.11 | N59: =SUM(D59:L59) -> 126.84
B60: Soil & rubble | C60: RecyclingSoil & rubble | D60: 0.00 | E60: 0.00 | F60: 0.00 | G60: 194.18 | H60: 0.00 | I60: 0.00 | J60: 0.00 | K60: 0.00 | L60: 0.00 | N60: =SUM(D60:L60) -> 194.18
B61: Stainless Steel | C61: RecyclingStainless Steel | D61: 0.00 | E61: 0.00 | F61: 0.00 | G61: 0.00 | H61: 0.00 | I61: 0.00 | J61: 0.00 | K61: 0.00 | L61: 0.00 | N61: =SUM(D61:L61) -> 0.00
B62: Textiles | C62: RecyclingTextiles | D62: 6.94 | E62: 4.67 | F62: 9.03 | G62: 6.34 | H62: 6.40 | I62: 10.29 | J62: 1.12 | K62: 0.46 | L62: 1.06 | N62: =SUM(D62:L62) -> 46.31
B63: Tyres | C63: RecyclingTyres | D63: 0.00 | E63: 0.00 | F63: 0.00 | G63: 0.00 | H63: 0.00 | I63: 0.00 | J63: 0.00 | K63: 0.00 | L63: 0.00 | N63: =SUM(D63:L63) -> 0.00
B64: Wood (including treated) | C64: RecyclingWood (including treated) | D64: 0.00 | E64: 49.08 | F64: 37.01 | G64: 77.40 | H64: 38.66 | I64: 199.72 | J64: 19.44 | K64: 2.97 | L64: 9.22 | N64: =SUM(D64:L64) -> 433.50
B66: Sub Total | D66: =SUM(D23:D64) -> 245.50 | E66: =SUM(E23:E64) -> 167.24 | F66: =SUM(F23:F64) -> 277.85 | G66: =SUM(G23:G64) -> 403.76 | H66: =SUM(H23:H64) -> 258.93 | I66: =SUM(I23:I64) -> 819.92 | J66: =SUM(J23:J64) -> 88.55 | K66: =SUM(K23:K64) -> 25.87 | L66: =SUM(L23:L64) -> 41.42 | N66: =SUM(D66:L66) -> 2,329.02
A68: Re-Use | B68: Books | C68: Re-UseBooks | D68: 0.08 | E68: 0.00 | F68: 0.00 | G68: 0.00 | H68: 0.00 | I68: 0.00 | J68: 0.00 | K68: 0.00 | L68: 0.07 | N68: =SUM(D68:L68) -> 0.15
B69: Gas Cylinders | C69: Re-UseGas Cylinders | D69: 0.00 | E69: 0.00 | F69: 0.00 | G69: 0.00 | H69: 0.00 | I69: 0.00 | J69: 0.00 | K69: 0.00 | L69: 0.00 | N69: =SUM(D69:L69) -> 0.00
B70: Household Goods Household Goods | C70: Re-UseHousehold Goods Household Goods | D70: 0.00 | E70: 0.00 | F70: 0.00 | G70: 13.69 | H70: 0.00 | I70: 0.00 | J70: 0.00 | K70: 0.00 | L70: 0.00 | N70: =SUM(D70:L70) -> 13.69
B71: Inert (rubble/hardcore) | C71: Re-UseInert (rubble/hardcore) | D71: 97.78 | E71: 83.46 | F71: 124.64 | G71: 0.00 | H71: 70.62 | I71: 226.04 | J71: 33.26 | K71: 16.14 | L71: 17.44 | N71: =SUM(D71:L71) -> 669.38
B72: Soil | C72: Re-UseSoil | D72: 0.00 | E72: 0.00 | F72: 0.00 | G72: 0.00 | H72: 0.00 | I72: 0.00 | J72: 0.00 | K72: 0.00 | L72: 0.00 | N72: =SUM(D72:L72) -> 0.00
B74: Sub Total | D74: =SUM(D68:D73) -> 97.86 | E74: =SUM(E68:E73) -> 83.46 | F74: =SUM(F68:F73) -> 124.64 | G74: =SUM(G68:G73) -> 13.69 | H74: =SUM(H68:H73) -> 70.62 | I74: =SUM(I68:I73) -> 226.04 | J74: =SUM(J68:J73) -> 33.26 | K74: =SUM(K68:K73) -> 16.14 | L74: =SUM(L68:L73) -> 17.51 | N74: =SUM(D74:L74) -> 683.22
B77: Grand Total | D77: =SUM(D7)+(D15)+(D21)+(D66)+(D74) -> 578.90 | E77: =SUM(E7)+(E15)+(E21)+(E66)+(E74) -> 463.16 | F77: =SUM(F7)+(F15)+(F21)+(F66)+(F74) -> 734.64 | G77: =SUM(G7)+(G15)+(G21)+(G66)+(G74) -> 978.84 | H77: =SUM(H7)+(H15)+(H21)+(H66)+(H74) -> 500.85 | I77: =SUM(I7)+(I15)+(I21)+(I66)+(I74) -> 1,968.66 | J77: =SUM(J7)+(J15)+(J21)+(J66)+(J74) -> 200.49 | K77: =SUM(K7)+(K15)+(K21)+(K66)+(K74) -> 94.47 | L77: =SUM(L7)+(L15)+(L21)+(L66)+(L74) -> 108.39 | N77: =SUM(D77:L77) -> 5,628.40

Sheet August
A1: August | B1: 01/04/2015 to 31/03/2016
A3: Treatment Use | B3: Waste Type | D3: Burton Farm HWRC | E3: Cherry Orchard HWRC | F3: Hunters Lane HWRC & Transfer | G3: Judkins HWRC | H3: Lower House Farm HWRC | I3: Princes Drive HWRC & Transfer | J3: Shipston HWRC | K3: Stockton HWRC | L3: Wellesbourne HWRC | N3: Total
A5: Composting | B5: Green waste | C5: CompostingGreen waste | D5: 68.12 | E5: 91.38 | F5: 105.10 | G5: 101.34 | H5: 54.22 | I5: 201.66 | J5: 31.28 | K5: 15.82 | L5: 17.87 | N5: =SUM(D5:L5) -> 686.79
B7: Sub Total | D7: =SUM(D5:D5) -> 68.12 | E7: =SUM(E5:E5) -> 91.38 | F7: =SUM(F5:F5) -> 105.10 | G7: =SUM(G5:G5) -> 101.34 | H7: =SUM(H5:H5) -> 54.22 | I7: =SUM(I5:I5) -> 201.66 | J7: =SUM(J5:J5) -> 31.28 | K7: =SUM(K5:K5) -> 15.82 | L7: =SUM(L5:L5) -> 17.87 | N7: =SUM(D7:L7) -> 686.79
A9: Efw (incineration) | B9: Bulky Waste | C9: Efw (incineration)Bulky Waste | D9: 0.00 | E9: 0.00 | F9: 0.00 | G9: 0.00 | H9: 14.16 | I9: 0.00 | J9: 0.00 | K9: 0.00 | L9: 0.00 | N9: =SUM(D9:L9) -> 14.16
B10: Chemicals | C10: Efw (incineration)Chemicals | D10: 0.00 | E10: 0.00 | F10: 0.00 | G10: 0.00 | H10: 0.00 | I10: 0.00 | J10: 0.00 | K10: 0.00 | L10: 0.00 | N10: =SUM(D10:L10) -> 0.00
B11: Clinical | C11: Efw (incineration)Clinical | D11: 0.00 | E11: 0.00 | F11: 0.00 | G11: 0.00 | H11: 0.00 | I11: 2.58 | J11: 0.00 | K11: 0.00 | L11: 0.00 | N11: =SUM(D11:L11) -> 2.58
B12: General (mixed waste) | C12: Efw (incineration)General (mixed waste) | D12: 0.00 | E12: 0.00 | F12: 0.00 | G12: 0.00 | H12: 139.56 | I12: 0.00 | J12: 0.00 | K12: 0.00 | L12: 0.00 | N12: =SUM(D12:L12) -> 139.56
B13: Paint (chemicals) | C13: Efw (incineration)Paint (chemicals) | D13: 0.00 | E13: 0.00 | F13: 0.00 | G13: 0.00 | H13: 0.00 | I13: 0.00 | J13: 0.00 | K13: 0.00 | L13: 0.00 | N13: =SUM(D13:L13) -> 0.00
B15: Sub Total | D15: =SUM(D9:D13) -> 0.00 | E15: =SUM(E9:E13) -> 0.00 | F15: =SUM(F9:F13) -> 0.00 | G15: =SUM(G9:G13) -> 0.00 | H15: =SUM(H9:H13) -> 153.72 | I15: =SUM(I9:I13) -> 2.58 | J15: =SUM(J9:J13) -> 0.00 | K15: =SUM(K9:K13) -> 0.00 | L15: =SUM(L9:L13) -> 0.00 | N15: =SUM(D15:L15) -> 156.30
A17: Landfill | B17: Asbestos | C17: LandfillAsbestos | D17: 0.00 | E17: 0.00 | F17: 0.00 | G17: 0.00 | H17: 0.00 | I17: 0.00 | J17: 0.00 | K17: 0.00 | L17: 0.00 | N17: =SUM(D17:L17) -> 0.00
B18: General (mixed waste) | C18: LandfillGeneral (mixed waste) | D18: 167.20 | E18: 116.32 | F18: 258.98 | G18: 393.14 | H18: 0.00 | I18: 708.26 | J18: 45.30 | K18: 32.17 | L18: 42.35 | N18: =SUM(D18:L18) -> 1,763.72
B19: Hard Plastic | C19: LandfillHard Plastic | D19: 0.00 | E19: 10.49 | F19: 3.17 | G19: 0.00 | H19: 5.31 | I19: 0.00 | J19: 0.00 | K19: 0.00 | L19: 0.00 | N19: =SUM(D19:L19) -> 18.97
B21: Sub Total | D21: =SUM(D17:D19) -> 167.20 | E21: =SUM(E17:E19) -> 126.81 | F21: =SUM(F17:F19) -> 262.15 | G21: =SUM(G17:G19) -> 393.14 | H21: =SUM(H17:H19) -> 5.31 | I21: =SUM(I17:I19) -> 708.26 | J21: =SUM(J17:J19) -> 45.30 | K21: =SUM(K17:K19) -> 32.17 | L21: =SUM(L17:L19) -> 42.35 | N21: =SUM(D21:L21) -> 1,782.69
A23: Recycling | B23: Aluminium (nf) | C23: RecyclingAluminium (nf) | D23: 0.00 | E23: 0.00 | F23: 0.00 | G23: 0.00 | H23: 0.00 | I23: 0.78 | J23: 0.50 | K23: 0.00 | L23: 0.00 | N23: =SUM(D23:L23) -> 1.28
B24: Batteries (car) | C24: RecyclingBatteries (car) | D24: 0.00 | E24: 2.27 | F24: 0.00 | G24: 0.00 | H24: 0.00 | I24: 8.61 | J24: 1.13 | K24: 0.20 | L24: 0.75 | N24: =SUM(D24:L24) -> 12.95
B25: Batteries (household) | C25: RecyclingBatteries (household) | D25: 0.00 | E25: 0.67 | F25: 0.00 | G25: 0.00 | H25: 0.00 | I25: 1.42 | J25: 0.00 | K25: 0.00 | L25: 0.34 | N25: =SUM(D25:L25) -> 2.42
B26: Books | C26: RecyclingBooks | D26: 0.00 | E26: 0.00 | F26: 0.00 | G26: 1.02 | H26: 0.00 | I26: 0.00 | J26: 0.00 | K26: 0.00 | L26: 0.00 | N26: =SUM(D26:L26) -> 1.02
B27: Brass(nf) | C27: RecyclingBrass(nf) | D27: 0.00 | E27: 0.00 | F27: 0.00 | G27: 0.00 | H27: 0.00 | I27: 0.00 | J27: 0.00 | K27: 0.00 | L27: 0.00 | N27: =SUM(D27:L27) -> 0.00
B28: Cable (nf) | C28: RecyclingCable (nf) | D28: 0.60 | E28: 0.00 | F28: 0.00 | G28: 0.00 | H28: 0.00 | I28: 0.15 | J28: 0.00 | K28: 0.02 | L28: 0.00 | N28: =SUM(D28:L28) -> 0.77
B29: Cardboard | C29: RecyclingCardboard | D29: 21.60 | E29: 16.18 | F29: 34.92 | G29: 28.90 | H29: 9.74 | I29: 49.40 | J29: 11.88 | K29: 3.77 | L29: 6.24 | N29: =SUM(D29:L29) -> 182.63
B30: Carpet | C30: RecyclingCarpet | D30: 22.12 | E30: 14.88 | F30: 19.70 | G30: 0.00 | H30: 22.96 | I30: 37.97 | J30: 10.08 | K30: 0.00 | L30: 0.00 | N30: =SUM(D30:L30) -> 127.71
B31: Chipboard | C31: RecyclingChipboard | D31: 90.74 | E31: 0.00 | F31: 85.93 | G31: 0.00 | H31: 76.40 | I31: 27.46 | J31: 6.68 | K31: 0.00 | L31: 2.74 | N31: =SUM(D31:L31) -> 289.95
B32: Copper & Brass Mixed (nf) | C32: RecyclingCopper & Brass Mixed (nf) | D32: 0.00 | E32: 0.00 | F32: 0.00 | G32: 0.00 | H32: 0.00 | I32: 0.00 | J32: 0.00 | K32: 0.00 | L32: 0.00 | N32: =SUM(D32:L32) -> 0.00
B33: Drink Cartons | C33: RecyclingDrink Cartons | D33: 0.00 | E33: 0.16 | F33: 0.00 | G33: 0.00 | H33: 0.07 | I33: 0.16 | J33: 0.00 | K33: 0.00 | L33: 0.00 | N33: =SUM(D33:L33) -> 0.39
B34: Fire Extinguishers | C34: RecyclingFire Extinguishers | D34: 0.00 | E34: 0.00 | F34: 0.00 | G34: 0.00 | H34: 0.00 | I34: 0.00 | J34: 0.00 | K34: 0.00 | L34: 0.00 | N34: =SUM(D34:L34) -> 0.00
B35: Fluorescent Tubes Output | C35: RecyclingFluorescent Tubes Output | D35: 0.23 | E35: 0.00 | F35: 0.00 | G35: 0.00 | H35: 0.00 | I35: 0.00 | J35: 0.27 | K35: 0.00 | L35: 0.00 | N35: =SUM(D35:L35) -> 0.50
B36: Fridges Output | C36: RecyclingFridges Output | D36: 6.25 | E36: 3.15 | F36: 7.13 | G36: 3.30 | H36: 5.42 | I36: 8.17 | J36: 2.24 | K36: 0.54 | L36: 0.00 | N36: =SUM(D36:L36) -> 36.20
B37: Gas Cylinders | C37: RecyclingGas Cylinders | D37: 0.07 | E37: 0.00 | F37: 0.22 | G37: 0.00 | H37: 0.00 | I37: 0.43 | J37: 0.00 | K37: 0.00 | L37: 0.00 | N37: =SUM(D37:L37) -> 0.72
B38: General (mixed waste) | C38: RecyclingGeneral (mixed waste) | D38: 0.00 | E38: 0.00 | F38: 0.00 | G38: 0.00 | H38: 0.00 | I38: 0.00 | J38: 0.00 | K38: 0.00 | L38: 0.00 | N38: =SUM(D38:L38) -> 0.00
B39: Glass (bottles) | C39: RecyclingGlass (bottles) | D39: 5.52 | E39: 7.41 | F39: 0.00 | G39: 0.00 | H39: 0.00 | I39: 9.14 | J39: 1.78 | K39: 0.00 | L39: 1.18 | N39: =SUM(D39:L39) -> 25.04
B40: Green waste | C40: RecyclingGreen waste | D40: 0.00 | E40: 0.00 | F40: 0.00 | G40: 0.00 | H40: 0.00 | I40: 0.00 | J40: 0.00 | K40: 0.00 | L40: 0.00 | N40: =SUM(D40:L40) -> 0.00
B41: Hard Plastic | C41: RecyclingHard Plastic | D41: 0.00 | E41: 0.00 | F41: 0.00 | G41: 0.00 | H41: 0.00 | I41: 0.00 | J41: 0.00 | K41: 0.00 | L41: 0.00 | N41: =SUM(D41:L41) -> 0.00
B42: Household Goods Household Goods | C42: RecyclingHousehold Goods Household Goods | D42: 0.00 | E42: 0.00 | F42: 0.00 | G42: 0.00 | H42: 0.00 | I42: 0.00 | J42: 0.00 | K42: 0.00 | L42: 0.00 | N42: =SUM(D42:L42) -> 0.00
B43: Inert (rubble/hardcore) | C43: RecyclingInert (rubble/hardcore) | D43: 0.00 | E43: 0.00 | F43: 0.00 | G43: 0.00 | H43: 0.00 | I43: 0.00 | J43: 0.00 | K43: 0.00 | L43: 0.00 | N43: =SUM(D43:L43) -> 0.00
B44: Lead (nf) | C44: RecyclingLead (nf) | D44: 0.00 | E44: 0.00 | F44: 0.00 | G44: 0.00 | H44: 0.00 | I44: 0.00 | J44: 0.00 | K44: 0.00 | L44: 0.00 | N44: =SUM(D44:L44) -> 0.00
B45: Matresses | C45: RecyclingMatresses | D45: 0.66 | E45: 2.31 | F45: 2.80 | G45: 0.00 | H45: 4.62 | I45: 6.09 | J45: 0.00 | K45: 0.00 | L45: 0.00 | N45: =SUM(D45:L45) -> 16.48
B46: Microwave Motors | C46: RecyclingMicrowave Motors | D46: 0.00 | E46: 0.00 | F46: 0.00 | G46: 0.00 | H46: 0.00 | I46: 0.00 | J46: 0.00 | K46: 0.00 | L46: 0.00 | N46: =SUM(D46:L46) -> 0.00
B47: Non Ferrous Metal Non Ferrous Metal | C47: RecyclingNon Ferrous Metal Non Ferrous Metal | D47: 0.00 | E47: 1.49 | F47: 0.19 | G47: 0.00 | H47: 0.00 | I47: 0.18 | J47: 0.94 | K47: 0.25 | L47: 0.52 | N47: =SUM(D47:L47) -> 3.57
B48: Oil (Engine) | C48: RecyclingOil (Engine) | D48: 0.00 | E48: 0.00 | F48: 1.94 | G48: 1.50 | H48: 1.76 | I48: 2.20 | J48: 0.00 | K48: 0.00 | L48: 0.00 | N48: =SUM(D48:L48) -> 7.40
B49: Oil (Vegetable) | C49: RecyclingOil (Vegetable) | D49: 0.00 | E49: 0.00 | F49: 0.00 | G49: 0.00 | H49: 0.00 | I49: 0.00 | J49: 0.00 | K49: 0.00 | L49: 0.00 | N49: =SUM(D49:L49) -> 0.00
B50: Paint (chemicals) | C50: RecyclingPaint (chemicals) | D50: 0.00 | E50: 0.00 | F50: 0.00 | G50: 0.00 | H50: 0.74 | I50: 1.08 | J50: 0.00 | K50: 0.35 | L50: 0.04 | N50: =SUM(D50:L50) -> 2.21
B51: Paper (mixed with card) | C51: RecyclingPaper (mixed with card) | D51: 0.00 | E51: 0.00 | F51: 0.00 | G51: 0.00 | H51: 0.00 | I51: 0.00 | J51: 0.00 | K51: 0.00 | L51: 0.00 | N51: =SUM(D51:L51) -> 0.00
B52: Paper (newspaper & magazines) | C52: RecyclingPaper (newspaper & magazines) | D52: 25.10 | E52: 17.00 | F52: 0.00 | G52: 7.34 | H52: 24.88 | I52: 26.94 | J52: 0.00 | K52: 0.00 | L52: 0.00 | N52: =SUM(D52:L52) -> 101.26
B53: Plasterboard | C53: RecyclingPlasterboard | D53: 0.00 | E53: 0.00 | F53: 8.94 | G53: 10.21 | H53: 8.55 | I53: 12.34 | J53: 0.00 | K53: 0.00 | L53: 0.00 | N53: =SUM(D53:L53) -> 40.04
B54: Plastic (Mixed) | C54: RecyclingPlastic (Mixed) | D54: 0.00 | E54: 0.00 | F54: 0.10 | G54: 0.00 | H54: 0.00 | I54: 0.00 | J54: 0.10 | K54: 0.00 | L54: 0.22 | N54: =SUM(D54:L54) -> 0.42
B55: Printer Cartridges | C55: RecyclingPrinter Cartridges | D55: 0.00 | E55: 0.00 | F55: 0.00 | G55: 0.00 | H55: 0.00 | I55: 0.00 | J55: 0.00 | K55: 0.00 | L55: 0.00 | N55: =SUM(D55:L55) -> 0.00
B56: Road Sweepings | C56: RecyclingRoad Sweepings | D56: 0.00 | E56: 0.00 | F56: 0.00 | G56: 0.00 | H56: 0.00 | I56: 115.76 | J56: 0.00 | K56: 0.00 | L56: 0.00 | N56: =SUM(D56:L56) -> 115.76
B57: Scrap metal (mixed) | C57: RecyclingScrap metal (mixed) | D57: 39.31 | E57: 18.64 | F57: 41.70 | G57: 45.16 | H57: 28.77 | I57: 78.54 | J57: 19.63 | K57: 5.90 | L57: 9.30 | N57: =SUM(D57:L57) -> 286.95
B58: Screens output | C58: RecyclingScreens output | D58: 3.36 | E58: 3.26 | F58: 8.56 | G58: 4.42 | H58: 5.70 | I58: 7.89 | J58: 2.85 | K58: 0.99 | L58: 1.85 | N58: =SUM(D58:L58) -> 38.88
B59: Small Domestic Appliances | C59: RecyclingSmall Domestic Appliances | D59: 17.60 | E59: 6.80 | F59: 24.20 | G59: 13.28 | H59: 13.20 | I59: 30.60 | J59: 9.49 | K59: 2.77 | L59: 2.98 | N59: =SUM(D59:L59) -> 120.92
B60: Soil & rubble | C60: RecyclingSoil & rubble | D60: 0.00 | E60: 0.00 | F60: 0.00 | G60: 100.62 | H60: 0.00 | I60: 0.00 | J60: 0.00 | K60: 0.00 | L60: 0.00 | N60: =SUM(D60:L60) -> 100.62
B61: Stainless Steel | C61: RecyclingStainless Steel | D61: 0.00 | E61: 0.00 | F61: 0.00 | G61: 0.00 | H61: 0.00 | I61: 0.00 | J61: 0.00 | K61: 0.00 | L61: 0.00 | N61: =SUM(D61:L61) -> 0.00
B62: Textiles | C62: RecyclingTextiles | D62: 6.52 | E62: 2.23 | F62: 5.38 | G62: 7.73 | H62: 4.46 | I62: 6.90 | J62: 1.25 | K62: 0.64 | L62: 1.75 | N62: =SUM(D62:L62) -> 36.86
B63: Tyres | C63: RecyclingTyres | D63: 0.00 | E63: 0.00 | F63: 0.00 | G63: 0.00 | H63: 0.00 | I63: 0.00 | J63: 0.00 | K63: 0.00 | L63: 0.00 | N63: =SUM(D63:L63) -> 0.00
B64: Wood (including treated) | C64: RecyclingWood (including treated) | D64: 0.00 | E64: 68.56 | F64: 35.82 | G64: 0.00 | H64: 52.20 | I64: 220.96 | J64: 20.34 | K64: 17.94 | L64: 11.26 | N64: =SUM(D64:L64) -> 427.08
B66: Sub Total | D66: =SUM(D23:D64) -> 239.67 | E66: =SUM(E23:E64) -> 164.99 | F66: =SUM(F23:F64) -> 277.53 | G66: =SUM(G23:G64) -> 223.48 | H66: =SUM(H23:H64) -> 259.46 | I66: =SUM(I23:I64) -> 653.18 | J66: =SUM(J23:J64) -> 89.16 | K66: =SUM(K23:K64) -> 33.37 | L66: =SUM(L23:L64) -> 39.17 | N66: =SUM(D66:L66) -> 1,980.02
A68: Re-Use | B68: Books | C68: Re-UseBooks | D68: 0.09 | E68: 0.00 | F68: 0.00 | G68: 0.00 | H68: 0.00 | I68: 0.00 | J68: 0.00 | K68: 0.00 | L68: 0.07 | N68: =SUM(D68:L68) -> 0.16
B69: Gas Cylinders | C69: Re-UseGas Cylinders | D69: 0.00 | E69: 0.00 | F69: 0.00 | G69: 0.00 | H69: 0.00 | I69: 0.00 | J69: 0.00 | K69: 0.00 | L69: 0.00 | N69: =SUM(D69:L69) -> 0.00
B70: Household Goods Household Goods | C70: Re-UseHousehold Goods Household Goods | D70: 0.00 | E70: 0.00 | F70: 0.00 | G70: 15.32 | H70: 0.00 | I70: 0.00 | J70: 0.00 | K70: 0.00 | L70: 0.00 | N70: =SUM(D70:L70) -> 15.32
B71: Inert (rubble/hardcore) | C71: Re-UseInert (rubble/hardcore) | D71: 108.02 | E71: 66.92 | F71: 90.78 | G71: 0.00 | H71: 88.92 | I71: 226.70 | J71: 21.74 | K71: 12.62 | L71: 16.70 | N71: =SUM(D71:L71) -> 632.40
B72: Soil | C72: Re-UseSoil | D72: 0.00 | E72: 0.00 | F72: 0.00 | G72: 0.00 | H72: 0.00 | I72: 0.00 | J72: 0.00 | K72: 0.00 | L72: 0.00 | N72: =SUM(D72:L72) -> 0.00
B74: Sub Total | D74: =SUM(D68:D73) -> 108.11 | E74: =SUM(E68:E73) -> 66.92 | F74: =SUM(F68:F73) -> 90.78 | G74: =SUM(G68:G73) -> 15.32 | H74: =SUM(H68:H73) -> 88.92 | I74: =SUM(I68:I73) -> 226.70 | J74: =SUM(J68:J73) -> 21.74 | K74: =SUM(K68:K73) -> 12.62 | L74: =SUM(L68:L73) -> 16.77 | N74: =SUM(D74:L74) -> 647.88
B77: Grand Total | D77: =SUM(D7)+(D15)+(D21)+(D66)+(D74) -> 583.10 | E77: =SUM(E7)+(E15)+(E21)+(E66)+(E74) -> 450.10 | F77: =SUM(F7)+(F15)+(F21)+(F66)+(F74) -> 735.56 | G77: =SUM(G7)+(G15)+(G21)+(G66)+(G74) -> 733.28 | H77: =SUM(H7)+(H15)+(H21)+(H66)+(H74) -> 561.63 | I77: =SUM(I7)+(I15)+(I21)+(I66)+(I74) -> 1,792.38 | J77: =SUM(J7)+(J15)+(J21)+(J66)+(J74) -> 187.48 | K77: =SUM(K7)+(K15)+(K21)+(K66)+(K74) -> 93.98 | L77: =SUM(L7)+(L15)+(L21)+(L66)+(L74) -> 116.16 | N77: =SUM(D77:L77) -> 5,253.68

Sheet September
A1: September | B1: 01/04/2015 to 31/03/2016
A3: Treatment Use | B3: Waste Type | D3: Burton Farm HWRC | E3: Cherry Orchard HWRC | F3: Hunters Lane HWRC & Transfer | G3: Judkins HWRC | H3: Lower House Farm HWRC | I3: Princes Drive HWRC & Transfer | J3: Shipston HWRC | K3: Stockton HWRC | L3: Wellesbourne HWRC | N3: Total
A5: Composting | B5: Green waste | C5: CompostingGreen waste | D5: 75.40 | E5: 78.02 | F5: 97.52 | G5: 59.80 | H5: 50.88 | I5: 151.08 | J5: 30.86 | K5: 12.55 | L5: 14.65 | N5: =SUM(D5:L5) -> 570.76
B7: Sub Total | D7: =SUM(D5:D5) -> 75.40 | E7: =SUM(E5:E5) -> 78.02 | F7: =SUM(F5:F5) -> 97.52 | G7: =SUM(G5:G5) -> 59.80 | H7: =SUM(H5:H5) -> 50.88 | I7: =SUM(I5:I5) -> 151.08 | J7: =SUM(J5:J5) -> 30.86 | K7: =SUM(K5:K5) -> 12.55 | L7: =SUM(L5:L5) -> 14.65 | N7: =SUM(D7:L7) -> 570.76
A9: Efw (incineration) | B9: Bulky Waste | C9: Efw (incineration)Bulky Waste | D9: 0.00 | E9: 0.00 | F9: 0.00 | G9: 0.00 | H9: 16.40 | I9: 0.00 | J9: 0.00 | K9: 0.00 | L9: 0.00 | N9: =SUM(D9:L9) -> 16.40
B10: Chemicals | C10: Efw (incineration)Chemicals | D10: 0.00 | E10: 0.05 | F10: 0.00 | G10: 0.00 | H10: 0.00 | I10: 0.53 | J10: 0.00 | K10: 0.00 | L10: 0.00 | N10: =SUM(D10:L10) -> 0.58
B11: Clinical | C11: Efw (incineration)Clinical | D11: 0.00 | E11: 0.00 | F11: 0.00 | G11: 0.00 | H11: 0.00 | I11: 2.86 | J11: 0.00 | K11: 0.00 | L11: 0.00 | N11: =SUM(D11:L11) -> 2.86
B12: General (mixed waste) | C12: Efw (incineration)General (mixed waste) | D12: 0.00 | E12: 0.00 | F12: 0.00 | G12: 0.00 | H12: 102.14 | I12: 0.00 | J12: 0.00 | K12: 0.00 | L12: 0.00 | N12: =SUM(D12:L12) -> 102.14
B13: Paint (chemicals) | C13: Efw (incineration)Paint (chemicals) | D13: 0.00 | E13: 0.00 | F13: 0.00 | G13: 0.00 | H13: 0.00 | I13: 0.00 | J13: 0.00 | K13: 0.00 | L13: 0.00 | N13: =SUM(D13:L13) -> 0.00
B15: Sub Total | D15: =SUM(D9:D13) -> 0.00 | E15: =SUM(E9:E13) -> 0.05 | F15: =SUM(F9:F13) -> 0.00 | G15: =SUM(G9:G13) -> 0.00 | H15: =SUM(H9:H13) -> 118.54 | I15: =SUM(I9:I13) -> 3.39 | J15: =SUM(J9:J13) -> 0.00 | K15: =SUM(K9:K13) -> 0.00 | L15: =SUM(L9:L13) -> 0.00 | N15: =SUM(D15:L15) -> 121.98
A17: Landfill | B17: Asbestos | C17: LandfillAsbestos | D17: 0.00 | E17: 0.00 | F17: 0.00 | G17: 0.00 | H17: 0.00 | I17: 2.92 | J17: 0.00 | K17: 0.00 | L17: 0.00 | N17: =SUM(D17:L17) -> 2.92
B18: General (mixed waste) | C18: LandfillGeneral (mixed waste) | D18: 159.44 | E18: 80.90 | F18: 227.14 | G18: 611.31 | H18: 0.00 | I18: 580.62 | J18: 49.24 | K18: 25.44 | L18: 30.21 | N18: =SUM(D18:L18) -> 1,764.30
B19: Hard Plastic | C19: LandfillHard Plastic | D19: 0.00 | E19: 1.50 | F19: 3.41 | G19: 0.00 | H19: 6.48 | I19: 0.00 | J19: 0.00 | K19: 0.00 | L19: 0.00 | N19: =SUM(D19:L19) -> 11.38
B21: Sub Total | D21: =SUM(D17:D19) -> 159.44 | E21: =SUM(E17:E19) -> 82.40 | F21: =SUM(F17:F19) -> 230.55 | G21: =SUM(G17:G19) -> 611.31 | H21: =SUM(H17:H19) -> 6.48 | I21: =SUM(I17:I19) -> 583.54 | J21: =SUM(J17:J19) -> 49.24 | K21: =SUM(K17:K19) -> 25.44 | L21: =SUM(L17:L19) -> 30.21 | N21: =SUM(D21:L21) -> 1,778.60
A23: Recycling | B23: Aluminium (nf) | C23: RecyclingAluminium (nf) | D23: 0.00 | E23: 0.00 | F23: 0.00 | G23: 2.78 | H23: 0.00 | I23: 0.00 | J23: 0.00 | K23: 0.00 | L23: 0.00 | N23: =SUM(D23:L23) -> 2.78
B24: Batteries (car) | C24: RecyclingBatteries (car) | D24: 0.00 | E24: 0.00 | F24: 0.00 | G24: 2.03 | H24: 3.32 | I24: 0.00 | J24: 0.00 | K24: 0.47 | L24: 0.78 | N24: =SUM(D24:L24) -> 6.60
B25: Batteries (household) | C25: RecyclingBatteries (household) | D25: 0.00 | E25: 0.00 | F25: 0.00 | G25: 0.00 | H25: 0.00 | I25: 0.00 | J25: 0.00 | K25: 0.00 | L25: 0.00 | N25: =SUM(D25:L25) -> 0.00
B26: Books | C26: RecyclingBooks | D26: 0.00 | E26: 0.00 | F26: 0.00 | G26: 3.04 | H26: 0.00 | I26: 0.00 | J26: 0.00 | K26: 0.00 | L26: 0.00 | N26: =SUM(D26:L26) -> 3.04
B27: Brass(nf) | C27: RecyclingBrass(nf) | D27: 0.00 | E27: 0.00 | F27: 0.00 | G27: 0.00 | H27: 0.00 | I27: 0.00 | J27: 0.00 | K27: 0.00 | L27: 0.00 | N27: =SUM(D27:L27) -> 0.00
B28: Cable (nf) | C28: RecyclingCable (nf) | D28: 0.00 | E28: 0.00 | F28: 0.00 | G28: 0.00 | H28: 0.00 | I28: 0.00 | J28: 0.00 | K28: 0.08 | L28: 0.00 | N28: =SUM(D28:L28) -> 0.08
B29: Cardboard | C29: RecyclingCardboard | D29: 13.14 | E29: 16.90 | F29: 41.04 | G29: 28.82 | H29: 19.34 | I29: 40.66 | J29: 9.96 | K29: 4.13 | L29: 6.16 | N29: =SUM(D29:L29) -> 180.15
B30: Carpet | C30: RecyclingCarpet | D30: 18.62 | E30: 14.14 | F30: 25.38 | G30: 0.00 | H30: 29.74 | I30: 32.43 | J30: 0.00 | K30: 0.00 | L30: 0.00 | N30: =SUM(D30:L30) -> 120.31
B31: Chipboard | C31: RecyclingChipboard | D31: 64.02 | E31: 17.26 | F31: 91.80 | G31: 0.00 | H31: 83.04 | I31: 25.34 | J31: 20.64 | K31: 4.57 | L31: 2.78 | N31: =SUM(D31:L31) -> 309.45
B32: Copper & Brass Mixed (nf) | C32: RecyclingCopper & Brass Mixed (nf) | D32: 0.00 | E32: 0.00 | F32: 0.00 | G32: 0.00 | H32: 0.00 | I32: 0.00 | J32: 0.00 | K32: 0.00 | L32: 0.00 | N32: =SUM(D32:L32) -> 0.00
B33: Drink Cartons | C33: RecyclingDrink Cartons | D33: 0.00 | E33: 0.40 | F33: 0.00 | G33: 0.00 | H33: 0.00 | I33: 0.20 | J33: 0.00 | K33: 0.00 | L33: 0.00 | N33: =SUM(D33:L33) -> 0.59
B34: Fire Extinguishers | C34: RecyclingFire Extinguishers | D34: 0.00 | E34: 0.00 | F34: 0.00 | G34: 0.00 | H34: 0.00 | I34: 0.00 | J34: 0.00 | K34: 0.00 | L34: 0.00 | N34: =SUM(D34:L34) -> 0.00
B35: Fluorescent Tubes Output | C35: RecyclingFluorescent Tubes Output | D35: 0.20 | E35: 0.00 | F35: 0.44 | G35: 0.00 | H35: 0.18 | I35: 0.38 | J35: 0.00 | K35: 0.17 | L35: 0.00 | N35: =SUM(D35:L35) -> 1.37
B36: Fridges Output | C36: RecyclingFridges Output | D36: 3.77 | E36: 2.67 | F36: 7.88 | G36: 5.10 | H36: 7.38 | I36: 15.17 | J36: 1.90 | K36: 1.70 | L36: 0.00 | N36: =SUM(D36:L36) -> 45.57
B37: Gas Cylinders | C37: RecyclingGas Cylinders | D37: 0.00 | E37: 0.01 | F37: 0.40 | G37: 0.00 | H37: 0.00 | I37: 0.00 | J37: 0.00 | K37: 0.00 | L37: 0.00 | N37: =SUM(D37:L37) -> 0.41
B38: General (mixed waste) | C38: RecyclingGeneral (mixed waste) | D38: 0.00 | E38: 0.00 | F38: 0.00 | G38: 0.00 | H38: 0.00 | I38: 0.00 | J38: 0.00 | K38: 0.00 | L38: 0.00 | N38: =SUM(D38:L38) -> 0.00
B39: Glass (bottles) | C39: RecyclingGlass (bottles) | D39: 1.52 | E39: 8.65 | F39: 3.14 | G39: 4.50 | H39: 1.37 | I39: 6.44 | J39: 4.69 | K39: 0.38 | L39: 2.39 | N39: =SUM(D39:L39) -> 33.07
B40: Green waste | C40: RecyclingGreen waste | D40: 0.00 | E40: 0.00 | F40: 0.00 | G40: 0.00 | H40: 0.00 | I40: 0.00 | J40: 0.00 | K40: 0.00 | L40: 0.00 | N40: =SUM(D40:L40) -> 0.00
B41: Hard Plastic | C41: RecyclingHard Plastic | D41: 0.00 | E41: 0.00 | F41: 0.00 | G41: 0.00 | H41: 0.00 | I41: 0.00 | J41: 0.00 | K41: 0.00 | L41: 0.00 | N41: =SUM(D41:L41) -> 0.00
B42: Household Goods Household Goods | C42: RecyclingHousehold Goods Household Goods | D42: 0.00 | E42: 0.00 | F42: 0.00 | G42: 0.00 | H42: 0.00 | I42: 0.00 | J42: 0.00 | K42: 0.00 | L42: 0.00 | N42: =SUM(D42:L42) -> 0.00
B43: Inert (rubble/hardcore) | C43: RecyclingInert (rubble/hardcore) | D43: 0.00 | E43: 0.00 | F43: 0.00 | G43: 0.00 | H43: 0.00 | I43: 0.00 | J43: 0.00 | K43: 0.00 | L43: 5.67 | N43: =SUM(D43:L43) -> 5.67
B44: Lead (nf) | C44: RecyclingLead (nf) | D44: 0.00 | E44: 0.00 | F44: 0.00 | G44: 0.00 | H44: 0.00 | I44: 0.00 | J44: 0.00 | K44: 0.00 | L44: 0.00 | N44: =SUM(D44:L44) -> 0.00
B45: Matresses | C45: RecyclingMatresses | D45: 0.00 | E45: 0.59 | F45: 0.00 | G45: 0.00 | H45: 4.88 | I45: 1.48 | J45: 0.00 | K45: 0.00 | L45: 0.00 | N45: =SUM(D45:L45) -> 6.95
B46: Microwave Motors | C46: RecyclingMicrowave Motors | D46: 0.00 | E46: 0.00 | F46: 0.00 | G46: 0.00 | H46: 0.00 | I46: 0.00 | J46: 0.00 | K46: 0.00 | L46: 0.00 | N46: =SUM(D46:L46) -> 0.00
B47: Non Ferrous Metal Non Ferrous Metal | C47: RecyclingNon Ferrous Metal Non Ferrous Metal | D47: 0.00 | E47: 1.25 | F47: 3.96 | G47: 0.00 | H47: 3.10 | I47: 1.47 | J47: 1.22 | K47: 0.26 | L47: 0.00 | N47: =SUM(D47:L47) -> 11.26
B48: Oil (Engine) | C48: RecyclingOil (Engine) | D48: 1.67 | E48: 0.00 | F48: 0.00 | G48: 1.70 | H48: 0.00 | I48: 0.00 | J48: 0.00 | K48: 0.00 | L48: 0.00 | N48: =SUM(D48:L48) -> 3.37
B49: Oil (Vegetable) | C49: RecyclingOil (Vegetable) | D49: 0.00 | E49: 0.46 | F49: 0.00 | G49: 0.00 | H49: 0.58 | I49: 0.72 | J49: 0.00 | K49: 0.00 | L49: 0.00 | N49: =SUM(D49:L49) -> 1.76
B50: Paint (chemicals) | C50: RecyclingPaint (chemicals) | D50: 0.00 | E50: 0.05 | F50: 0.00 | G50: 0.00 | H50: 0.80 | I50: 2.20 | J50: 0.00 | K50: 0.00 | L50: 0.71 | N50: =SUM(D50:L50) -> 3.76
B51: Paper (mixed with card) | C51: RecyclingPaper (mixed with card) | D51: 0.00 | E51: 0.00 | F51: 0.00 | G51: 0.00 | H51: 0.00 | I51: 0.00 | J51: 0.00 | K51: 0.00 | L51: 0.00 | N51: =SUM(D51:L51) -> 0.00
B52: Paper (newspaper & magazines) | C52: RecyclingPaper (newspaper & magazines) | D52: 19.20 | E52: 12.20 | F52: 22.30 | G52: 8.36 | H52: 0.00 | I52: 31.98 | J52: 9.12 | K52: 0.00 | L52: 0.00 | N52: =SUM(D52:L52) -> 103.16
B53: Plasterboard | C53: RecyclingPlasterboard | D53: 0.00 | E53: 0.06 | F53: 0.00 | G53: 9.87 | H53: 12.68 | I53: 12.55 | J53: 0.00 | K53: 0.00 | L53: 0.00 | N53: =SUM(D53:L53) -> 35.16
B54: Plastic (Mixed) | C54: RecyclingPlastic (Mixed) | D54: 0.00 | E54: 1.41 | F54: 0.28 | G54: 0.00 | H54: 0.00 | I54: 8.72 | J54: 0.41 | K54: 0.00 | L54: 0.01 | N54: =SUM(D54:L54) -> 10.83
B55: Printer Cartridges | C55: RecyclingPrinter Cartridges | D55: 0.00 | E55: 0.00 | F55: 0.00 | G55: 0.00 | H55: 0.00 | I55: 0.00 | J55: 0.00 | K55: 0.00 | L55: 0.00 | N55: =SUM(D55:L55) -> 0.00
B56: Road Sweepings | C56: RecyclingRoad Sweepings | D56: 0.00 | E56: 0.00 | F56: 0.00 | G56: 0.00 | H56: 0.00 | I56: 195.68 | J56: 0.00 | K56: 0.00 | L56: 0.00 | N56: =SUM(D56:L56) -> 195.68
B57: Scrap metal (mixed) | C57: RecyclingScrap metal (mixed) | D57: 22.83 | E57: 24.78 | F57: 44.35 | G57: 38.20 | H57: 29.93 | I57: 83.11 | J57: 26.26 | K57: 7.40 | L57: 8.30 | N57: =SUM(D57:L57) -> 285.16
B58: Screens output | C58: RecyclingScreens output | D58: 4.26 | E58: 3.49 | F58: 6.03 | G58: 3.90 | H58: 5.26 | I58: 11.58 | J58: 1.66 | K58: 0.65 | L58: 1.55 | N58: =SUM(D58:L58) -> 38.38
B59: Small Domestic Appliances | C59: RecyclingSmall Domestic Appliances | D59: 17.46 | E59: 6.72 | F59: 15.29 | G59: 7.00 | H59: 22.06 | I59: 36.66 | J59: 2.72 | K59: 0.98 | L59: 2.26 | N59: =SUM(D59:L59) -> 111.15
B60: Soil & rubble | C60: RecyclingSoil & rubble | D60: 0.00 | E60: 0.00 | F60: 0.00 | G60: 107.00 | H60: 0.00 | I60: 0.00 | J60: 0.00 | K60: 0.00 | L60: 0.00 | N60: =SUM(D60:L60) -> 107.00
B61: Stainless Steel | C61: RecyclingStainless Steel | D61: 0.00 | E61: 0.00 | F61: 0.00 | G61: 0.00 | H61: 0.00 | I61: 0.00 | J61: 0.00 | K61: 0.00 | L61: 0.00 | N61: =SUM(D61:L61) -> 0.00
B62: Textiles | C62: RecyclingTextiles | D62: 7.30 | E62: 6.54 | F62: 0.27 | G62: 17.90 | H62: 5.14 | I62: 15.26 | J62: 1.81 | K62: 0.88 | L62: 2.54 | N62: =SUM(D62:L62) -> 57.64
B63: Tyres | C63: RecyclingTyres | D63: 0.00 | E63: 0.00 | F63: 0.00 | G63: 0.00 | H63: 0.00 | I63: 0.00 | J63: 0.00 | K63: 0.00 | L63: 0.00 | N63: =SUM(D63:L63) -> 0.00
B64: Wood (including treated) | C64: RecyclingWood (including treated) | D64: 20.60 | E64: 52.32 | F64: 38.17 | G64: 0.00 | H64: 40.32 | I64: 199.32 | J64: 5.50 | K64: 9.57 | L64: 15.96 | N64: =SUM(D64:L64) -> 381.76
B66: Sub Total | D66: =SUM(D23:D64) -> 194.59 | E66: =SUM(E23:E64) -> 169.88 | F66: =SUM(F23:F64) -> 300.73 | G66: =SUM(G23:G64) -> 240.20 | H66: =SUM(H23:H64) -> 269.12 | I66: =SUM(I23:I64) -> 721.34 | J66: =SUM(J23:J64) -> 85.89 | K66: =SUM(K23:K64) -> 31.24 | L66: =SUM(L23:L64) -> 49.12 | N66: =SUM(D66:L66) -> 2,062.11
A68: Re-Use | B68: Books | C68: Re-UseBooks | D68: 0.11 | E68: 0.00 | F68: 0.00 | G68: 0.00 | H68: 0.00 | I68: 0.00 | J68: 0.00 | K68: 0.00 | L68: 0.08 | N68: =SUM(D68:L68) -> 0.19
B69: Gas Cylinders | C69: Re-UseGas Cylinders | D69: 0.00 | E69: 0.00 | F69: 0.00 | G69: 0.00 | H69: 0.00 | I69: 0.00 | J69: 0.00 | K69: 0.00 | L69: 0.00 | N69: =SUM(D69:L69) -> 0.00
B70: Household Goods Household Goods | C70: Re-UseHousehold Goods Household Goods | D70: 0.00 | E70: 0.00 | F70: 0.00 | G70: 11.46 | H70: 0.00 | I70: 0.00 | J70: 0.00 | K70: 0.00 | L70: 0.00 | N70: =SUM(D70:L70) -> 11.46
B71: Inert (rubble/hardcore) | C71: Re-UseInert (rubble/hardcore) | D71: 98.80 | E71: 57.76 | F71: 77.80 | G71: 0.00 | H71: 69.94 | I71: 147.50 | J71: 20.08 | K71: 16.22 | L71: 9.08 | N71: =SUM(D71:L71) -> 497.18
B72: Soil | C72: Re-UseSoil | D72: 0.00 | E72: 0.00 | F72: 0.00 | G72: 0.00 | H72: 0.00 | I72: 0.00 | J72: 0.00 | K72: 0.00 | L72: 0.00 | N72: =SUM(D72:L72) -> 0.00
B74: Sub Total | D74: =SUM(D68:D73) -> 98.91 | E74: =SUM(E68:E73) -> 57.76 | F74: =SUM(F68:F73) -> 77.80 | G74: =SUM(G68:G73) -> 11.46 | H74: =SUM(H68:H73) -> 69.94 | I74: =SUM(I68:I73) -> 147.50 | J74: =SUM(J68:J73) -> 20.08 | K74: =SUM(K68:K73) -> 16.22 | L74: =SUM(L68:L73) -> 9.16 | N74: =SUM(D74:L74) -> 508.83
B77: Grand Total | D77: =SUM(D7)+(D15)+(D21)+(D66)+(D74) -> 528.34 | E77: =SUM(E7)+(E15)+(E21)+(E66)+(E74) -> 388.10 | F77: =SUM(F7)+(F15)+(F21)+(F66)+(F74) -> 706.60 | G77: =SUM(G7)+(G15)+(G21)+(G66)+(G74) -> 922.77 | H77: =SUM(H7)+(H15)+(H21)+(H66)+(H74) -> 514.95 | I77: =SUM(I7)+(I15)+(I21)+(I66)+(I74) -> 1,606.85 | J77: =SUM(J7)+(J15)+(J21)+(J66)+(J74) -> 186.07 | K77: =SUM(K7)+(K15)+(K21)+(K66)+(K74) -> 85.46 | L77: =SUM(L7)+(L15)+(L21)+(L66)+(L74) -> 103.14 | N77: =SUM(D77:L77) -> 5,042.27

Sheet October
A1: October | B1: 01/04/2015 to 31/03/2016
A3: Treatment Use | B3: Waste Type | D3: Burton Farm HWRC | E3: Cherry Orchard HWRC | F3: Hunters Lane HWRC & Transfer | G3: Judkins HWRC | H3: Lower House Farm HWRC | I3: Princes Drive HWRC & Transfer | J3: Shipston HWRC | K3: Stockton HWRC | L3: Wellesbourne HWRC | N3: Total
A5: Composting | B5: Green waste | C5: CompostingGreen waste | D5: 72.24 | E5: 78.22 | F5: 75.56 | G5: 19.98 | H5: 53.22 | I5: 167.92 | J5: 35.26 | K5: 12.65 | L5: 14.67 | N5: =SUM(D5:L5) -> 529.72
B7: Sub Total | D7: =SUM(D5:D5) -> 72.24 | E7: =SUM(E5:E5) -> 78.22 | F7: =SUM(F5:F5) -> 75.56 | G7: =SUM(G5:G5) -> 19.98 | H7: =SUM(H5:H5) -> 53.22 | I7: =SUM(I5:I5) -> 167.92 | J7: =SUM(J5:J5) -> 35.26 | K7: =SUM(K5:K5) -> 12.65 | L7: =SUM(L5:L5) -> 14.67 | N7: =SUM(D7:L7) -> 529.72
A9: Efw (incineration) | B9: Bulky Waste | C9: Efw (incineration)Bulky Waste | D9: 0.00 | E9: 0.00 | F9: 0.00 | G9: 0.00 | H9: 15.82 | I9: 0.00 | J9: 0.00 | K9: 0.00 | L9: 0.00 | N9: =SUM(D9:L9) -> 15.82
B10: Chemicals | C10: Efw (incineration)Chemicals | D10: 0.00 | E10: 0.00 | F10: 0.00 | G10: 0.00 | H10: 0.00 | I10: 0.00 | J10: 0.00 | K10: 0.00 | L10: 0.00 | N10: =SUM(D10:L10) -> 0.00
B11: Clinical | C11: Efw (incineration)Clinical | D11: 0.00 | E11: 0.00 | F11: 0.00 | G11: 0.00 | H11: 0.00 | I11: 3.21 | J11: 0.00 | K11: 0.00 | L11: 0.00 | N11: =SUM(D11:L11) -> 3.21
B12: General (mixed waste) | C12: Efw (incineration)General (mixed waste) | D12: 0.00 | E12: 0.00 | F12: 0.00 | G12: 0.00 | H12: 107.28 | I12: 0.00 | J12: 0.00 | K12: 0.00 | L12: 0.00 | N12: =SUM(D12:L12) -> 107.28
B13: Paint (chemicals) | C13: Efw (incineration)Paint (chemicals) | D13: 0.00 | E13: 0.00 | F13: 0.00 | G13: 0.00 | H13: 0.00 | I13: 0.00 | J13: 0.00 | K13: 0.00 | L13: 0.00 | N13: =SUM(D13:L13) -> 0.00
B15: Sub Total | D15: =SUM(D9:D13) -> 0.00 | E15: =SUM(E9:E13) -> 0.00 | F15: =SUM(F9:F13) -> 0.00 | G15: =SUM(G9:G13) -> 0.00 | H15: =SUM(H9:H13) -> 123.10 | I15: =SUM(I9:I13) -> 3.21 | J15: =SUM(J9:J13) -> 0.00 | K15: =SUM(K9:K13) -> 0.00 | L15: =SUM(L9:L13) -> 0.00 | N15: =SUM(D15:L15) -> 126.31
A17: Landfill | B17: Asbestos | C17: LandfillAsbestos | D17: 0.00 | E17: 0.00 | F17: 0.00 | G17: 0.00 | H17: 0.00 | I17: 0.00 | J17: 0.00 | K17: 0.00 | L17: 0.00 | N17: =SUM(D17:L17) -> 0.00
B18: General (mixed waste) | C18: LandfillGeneral (mixed waste) | D18: 143.68 | E18: 107.86 | F18: 182.50 | G18: 395.39 | H18: 0.00 | I18: 721.66 | J18: 26.38 | K18: 21.00 | L18: 23.81 | N18: =SUM(D18:L18) -> 1,622.28
B19: Hard Plastic | C19: LandfillHard Plastic | D19: 0.00 | E19: 4.58 | F19: 2.75 | G19: 0.00 | H19: 6.37 | I19: 0.00 | J19: 0.00 | K19: 0.00 | L19: 0.00 | N19: =SUM(D19:L19) -> 13.70
B21: Sub Total | D21: =SUM(D17:D19) -> 143.68 | E21: =SUM(E17:E19) -> 112.44 | F21: =SUM(F17:F19) -> 185.25 | G21: =SUM(G17:G19) -> 395.39 | H21: =SUM(H17:H19) -> 6.37 | I21: =SUM(I17:I19) -> 721.66 | J21: =SUM(J17:J19) -> 26.38 | K21: =SUM(K17:K19) -> 21.00 | L21: =SUM(L17:L19) -> 23.81 | N21: =SUM(D21:L21) -> 1,635.98
A23: Recycling | B23: Aluminium (nf) | C23: RecyclingAluminium (nf) | D23: 0.00 | E23: 0.00 | F23: 0.00 | G23: 0.00 | H23: 0.00 | I23: 0.00 | J23: 0.00 | K23: 0.00 | L23: 0.00 | N23: =SUM(D23:L23) -> 0.00
B24: Batteries (car) | C24: RecyclingBatteries (car) | D24: 0.00 | E24: 2.18 | F24: 5.87 | G24: 2.03 | H24: 2.38 | I24: 5.15 | J24: 0.70 | K24: 0.00 | L24: 0.00 | N24: =SUM(D24:L24) -> 18.31
B25: Batteries (household) | C25: RecyclingBatteries (household) | D25: 0.00 | E25: 0.00 | F25: 0.00 | G25: 0.00 | H25: 0.00 | I25: 0.00 | J25: 0.00 | K25: 0.00 | L25: 0.00 | N25: =SUM(D25:L25) -> 0.00
B26: Books | C26: RecyclingBooks | D26: 0.00 | E26: 0.00 | F26: 0.00 | G26: 2.14 | H26: 0.00 | I26: 0.59 | J26: 0.00 | K26: 0.00 | L26: 0.00 | N26: =SUM(D26:L26) -> 2.73
B27: Brass(nf) | C27: RecyclingBrass(nf) | D27: 0.00 | E27: 0.00 | F27: 0.00 | G27: 0.00 | H27: 0.00 | I27: 0.00 | J27: 0.00 | K27: 0.00 | L27: 0.00 | N27: =SUM(D27:L27) -> 0.00
B28: Cable (nf) | C28: RecyclingCable (nf) | D28: 0.00 | E28: 0.00 | F28: 0.00 | G28: 0.00 | H28: 0.00 | I28: 0.00 | J28: 0.00 | K28: 0.00 | L28: 0.00 | N28: =SUM(D28:L28) -> 0.00
B29: Cardboard | C29: RecyclingCardboard | D29: 23.10 | E29: 14.98 | F29: 18.82 | G29: 21.08 | H29: 11.10 | I29: 42.20 | J29: 9.90 | K29: 3.75 | L29: 3.78 | N29: =SUM(D29:L29) -> 148.71
B30: Carpet | C30: RecyclingCarpet | D30: 7.24 | E30: 11.76 | F30: 11.58 | G30: 0.00 | H30: 21.40 | I30: 43.18 | J30: 12.98 | K30: 0.00 | L30: 0.00 | N30: =SUM(D30:L30) -> 108.14
B31: Chipboard | C31: RecyclingChipboard | D31: 79.38 | E31: 21.32 | F31: 36.14 | G31: 0.00 | H31: 63.08 | I31: 20.84 | J31: 26.16 | K31: 0.00 | L31: 6.62 | N31: =SUM(D31:L31) -> 253.54
B32: Copper & Brass Mixed (nf) | C32: RecyclingCopper & Brass Mixed (nf) | D32: 0.00 | E32: 0.00 | F32: 0.00 | G32: 0.49 | H32: 0.00 | I32: 0.00 | J32: 0.00 | K32: 0.00 | L32: 0.00 | N32: =SUM(D32:L32) -> 0.49
B33: Drink Cartons | C33: RecyclingDrink Cartons | D33: 0.00 | E33: 0.41 | F33: 0.00 | G33: 0.00 | H33: 0.24 | I33: 0.25 | J33: 0.00 | K33: 0.00 | L33: 0.00 | N33: =SUM(D33:L33) -> 0.90
B34: Fire Extinguishers | C34: RecyclingFire Extinguishers | D34: 0.00 | E34: 0.00 | F34: 0.00 | G34: 0.00 | H34: 0.00 | I34: 0.00 | J34: 0.00 | K34: 0.00 | L34: 0.00 | N34: =SUM(D34:L34) -> 0.00
B35: Fluorescent Tubes Output | C35: RecyclingFluorescent Tubes Output | D35: 0.00 | E35: 0.00 | F35: 0.00 | G35: 0.00 | H35: 0.00 | I35: 0.00 | J35: 0.00 | K35: 0.00 | L35: 0.37 | N35: =SUM(D35:L35) -> 0.37
B36: Fridges Output | C36: RecyclingFridges Output | D36: 7.15 | E36: 2.35 | F36: 9.41 | G36: 5.40 | H36: 7.16 | I36: 10.84 | J36: 2.31 | K36: 0.77 | L36: 0.00 | N36: =SUM(D36:L36) -> 45.38
B37: Gas Cylinders | C37: RecyclingGas Cylinders | D37: 0.00 | E37: 0.00 | F37: 0.00 | G37: 0.00 | H37: 0.00 | I37: 0.00 | J37: 0.00 | K37: 0.00 | L37: 0.00 | N37: =SUM(D37:L37) -> 0.00
B38: General (mixed waste) | C38: RecyclingGeneral (mixed waste) | D38: 0.00 | E38: 0.00 | F38: 0.00 | G38: 0.00 | H38: 0.00 | I38: 0.00 | J38: 0.00 | K38: 0.00 | L38: 0.00 | N38: =SUM(D38:L38) -> 0.00
B39: Glass (bottles) | C39: RecyclingGlass (bottles) | D39: 0.00 | E39: 3.91 | F39: 0.00 | G39: 0.00 | H39: 0.00 | I39: 9.85 | J39: 2.27 | K39: 0.00 | L39: 2.61 | N39: =SUM(D39:L39) -> 18.63
B40: Green waste | C40: RecyclingGreen waste | D40: 0.00 | E40: 0.00 | F40: 0.00 | G40: 0.00 | H40: 0.00 | I40: 0.00 | J40: 0.00 | K40: 0.00 | L40: 0.00 | N40: =SUM(D40:L40) -> 0.00
B41: Hard Plastic | C41: RecyclingHard Plastic | D41: 0.00 | E41: 0.00 | F41: 0.00 | G41: 0.00 | H41: 0.00 | I41: 0.00 | J41: 0.00 | K41: 0.00 | L41: 0.00 | N41: =SUM(D41:L41) -> 0.00
B42: Household Goods Household Goods | C42: RecyclingHousehold Goods Household Goods | D42: 0.00 | E42: 0.00 | F42: 0.00 | G42: 0.00 | H42: 0.00 | I42: 0.00 | J42: 0.00 | K42: 0.00 | L42: 0.00 | N42: =SUM(D42:L42) -> 0.00
B43: Inert (rubble/hardcore) | C43: RecyclingInert (rubble/hardcore) | D43: 0.00 | E43: 0.00 | F43: 0.00 | G43: 0.00 | H43: 0.00 | I43: 0.00 | J43: 0.00 | K43: 0.00 | L43: 0.00 | N43: =SUM(D43:L43) -> 0.00
B44: Lead (nf) | C44: RecyclingLead (nf) | D44: 0.00 | E44: 0.00 | F44: 0.00 | G44: 0.00 | H44: 0.00 | I44: 0.00 | J44: 0.00 | K44: 0.00 | L44: 0.00 | N44: =SUM(D44:L44) -> 0.00
B45: Matresses | C45: RecyclingMatresses | D45: 0.00 | E45: 0.00 | F45: 0.00 | G45: 0.00 | H45: 3.82 | I45: 0.00 | J45: 0.00 | K45: 0.00 | L45: 0.00 | N45: =SUM(D45:L45) -> 3.82
B46: Microwave Motors | C46: RecyclingMicrowave Motors | D46: 0.00 | E46: 0.00 | F46: 0.00 | G46: 0.00 | H46: 0.00 | I46: 0.00 | J46: 0.00 | K46: 0.00 | L46: 0.00 | N46: =SUM(D46:L46) -> 0.00
B47: Non Ferrous Metal Non Ferrous Metal | C47: RecyclingNon Ferrous Metal Non Ferrous Metal | D47: 0.00 | E47: 0.00 | F47: 0.00 | G47: 0.00 | H47: 0.00 | I47: 0.79 | J47: 0.93 | K47: 0.00 | L47: 0.00 | N47: =SUM(D47:L47) -> 1.72
B48: Oil (Engine) | C48: RecyclingOil (Engine) | D48: 0.00 | E48: 2.02 | F48: 1.85 | G48: 2.50 | H48: 1.41 | I48: 2.11 | J48: 0.00 | K48: 0.00 | L48: 0.00 | N48: =SUM(D48:L48) -> 9.89
B49: Oil (Vegetable) | C49: RecyclingOil (Vegetable) | D49: 0.00 | E49: 0.00 | F49: 0.00 | G49: 0.00 | H49: 0.00 | I49: 0.00 | J49: 0.00 | K49: 0.00 | L49: 0.00 | N49: =SUM(D49:L49) -> 0.00
B50: Paint (chemicals) | C50: RecyclingPaint (chemicals) | D50: 0.00 | E50: 0.00 | F50: 0.00 | G50: 0.00 | H50: 0.64 | I50: 1.83 | J50: 0.00 | K50: 0.00 | L50: 0.00 | N50: =SUM(D50:L50) -> 2.47
B51: Paper (mixed with card) | C51: RecyclingPaper (mixed with card) | D51: 0.00 | E51: 0.00 | F51: 0.00 | G51: 0.00 | H51: 0.00 | I51: 0.00 | J51: 0.00 | K51: 0.00 | L51: 0.00 | N51: =SUM(D51:L51) -> 0.00
B52: Paper (newspaper & magazines) | C52: RecyclingPaper (newspaper & magazines) | D52: 10.84 | E52: 18.80 | F52: 11.14 | G52: 6.98 | H52: 8.38 | I52: 21.34 | J52: 7.58 | K52: 0.00 | L52: 0.00 | N52: =SUM(D52:L52) -> 85.06
B53: Plasterboard | C53: RecyclingPlasterboard | D53: 14.20 | E53: 0.00 | F53: 11.42 | G53: 11.81 | H53: 8.50 | I53: 24.49 | J53: 0.00 | K53: 0.00 | L53: 0.00 | N53: =SUM(D53:L53) -> 70.42
B54: Plastic (Mixed) | C54: RecyclingPlastic (Mixed) | D54: 0.00 | E54: 1.18 | F54: 0.00 | G54: 0.00 | H54: 0.00 | I54: 0.00 | J54: 0.18 | K54: 0.00 | L54: 0.05 | N54: =SUM(D54:L54) -> 1.41
B55: Printer Cartridges | C55: RecyclingPrinter Cartridges | D55: 0.00 | E55: 0.00 | F55: 0.00 | G55: 0.00 | H55: 0.00 | I55: 0.00 | J55: 0.00 | K55: 0.00 | L55: 0.00 | N55: =SUM(D55:L55) -> 0.00
B56: Road Sweepings | C56: RecyclingRoad Sweepings | D56: 0.00 | E56: 0.00 | F56: 0.00 | G56: 0.00 | H56: 0.00 | I56: 223.88 | J56: 0.00 | K56: 0.00 | L56: 0.00 | N56: =SUM(D56:L56) -> 223.88
B57: Scrap metal (mixed) | C57: RecyclingScrap metal (mixed) | D57: 36.49 | E57: 28.07 | F57: 39.23 | G57: 46.50 | H57: 24.97 | I57: 73.49 | J57: 15.40 | K57: 6.37 | L57: 4.54 | N57: =SUM(D57:L57) -> 275.06
B58: Screens output | C58: RecyclingScreens output | D58: 4.17 | E58: 3.26 | F58: 7.90 | G58: 7.50 | H58: 7.60 | I58: 8.10 | J58: 2.63 | K58: 0.90 | L58: 1.44 | N58: =SUM(D58:L58) -> 43.49
B59: Small Domestic Appliances | C59: RecyclingSmall Domestic Appliances | D59: 19.38 | E59: 7.24 | F59: 15.82 | G59: 21.00 | H59: 13.52 | I59: 23.30 | J59: 3.13 | K59: 3.87 | L59: 3.35 | N59: =SUM(D59:L59) -> 110.61
B60: Soil & rubble | C60: RecyclingSoil & rubble | D60: 0.00 | E60: 0.00 | F60: 0.00 | G60: 125.24 | H60: 0.00 | I60: 0.00 | J60: 0.00 | K60: 0.00 | L60: 0.00 | N60: =SUM(D60:L60) -> 125.24
B61: Stainless Steel | C61: RecyclingStainless Steel | D61: 0.00 | E61: 0.00 | F61: 0.00 | G61: 0.00 | H61: 0.00 | I61: 0.00 | J61: 0.00 | K61: 0.00 | L61: 0.00 | N61: =SUM(D61:L61) -> 0.00
B62: Textiles | C62: RecyclingTextiles | D62: 6.42 | E62: 5.41 | F62: 10.64 | G62: 5.85 | H62: 6.94 | I62: 8.95 | J62: 2.26 | K62: 0.96 | L62: 1.61 | N62: =SUM(D62:L62) -> 49.04
B63: Tyres | C63: RecyclingTyres | D63: 0.00 | E63: 0.00 | F63: 0.00 | G63: 0.00 | H63: 0.00 | I63: 0.00 | J63: 0.00 | K63: 0.00 | L63: 0.00 | N63: =SUM(D63:L63) -> 0.00
B64: Wood (including treated) | C64: RecyclingWood (including treated) | D64: 0.00 | E64: 35.34 | F64: 62.63 | G64: 0.00 | H64: 44.22 | I64: 162.40 | J64: 0.00 | K64: 12.57 | L64: 10.48 | N64: =SUM(D64:L64) -> 327.64
B66: Sub Total | D66: =SUM(D23:D64) -> 208.37 | E66: =SUM(E23:E64) -> 158.23 | F66: =SUM(F23:F64) -> 242.45 | G66: =SUM(G23:G64) -> 258.51 | H66: =SUM(H23:H64) -> 225.36 | I66: =SUM(I23:I64) -> 683.58 | J66: =SUM(J23:J64) -> 86.42 | K66: =SUM(K23:K64) -> 29.20 | L66: =SUM(L23:L64) -> 34.85 | N66: =SUM(D66:L66) -> 1,926.95
A68: Re-Use | B68: Books | C68: Re-UseBooks | D68: 0.13 | E68: 0.00 | F68: 0.00 | G68: 0.00 | H68: 0.00 | I68: 0.00 | J68: 0.00 | K68: 0.00 | L68: 0.10 | N68: =SUM(D68:L68) -> 0.23
B69: Gas Cylinders | C69: Re-UseGas Cylinders | D69: 0.00 | E69: 0.00 | F69: 0.00 | G69: 0.00 | H69: 0.00 | I69: 0.68 | J69: 0.00 | K69: 0.00 | L69: 0.00 | N69: =SUM(D69:L69) -> 0.68
B70: Household Goods Household Goods | C70: Re-UseHousehold Goods Household Goods | D70: 0.00 | E70: 0.00 | F70: 0.00 | G70: 12.47 | H70: 0.00 | I70: 0.00 | J70: 0.00 | K70: 0.00 | L70: 0.00 | N70: =SUM(D70:L70) -> 12.47
B71: Inert (rubble/hardcore) | C71: Re-UseInert (rubble/hardcore) | D71: 68.78 | E71: 48.18 | F71: 80.44 | G71: 0.00 | H71: 87.30 | I71: 174.70 | J71: 18.34 | K71: 7.86 | L71: 19.34 | N71: =SUM(D71:L71) -> 504.94
B72: Soil | C72: Re-UseSoil | D72: 0.00 | E72: 0.00 | F72: 0.00 | G72: 0.00 | H72: 0.00 | I72: 0.00 | J72: 0.00 | K72: 0.00 | L72: 0.00 | N72: =SUM(D72:L72) -> 0.00
B74: Sub Total | D74: =SUM(D68:D73) -> 68.91 | E74: =SUM(E68:E73) -> 48.18 | F74: =SUM(F68:F73) -> 80.44 | G74: =SUM(G68:G73) -> 12.47 | H74: =SUM(H68:H73) -> 87.30 | I74: =SUM(I68:I73) -> 175.38 | J74: =SUM(J68:J73) -> 18.34 | K74: =SUM(K68:K73) -> 7.86 | L74: =SUM(L68:L73) -> 19.44 | N74: =SUM(D74:L74) -> 518.32
B77: Grand Total | D77: =SUM(D7)+(D15)+(D21)+(D66)+(D74) -> 493.20 | E77: =SUM(E7)+(E15)+(E21)+(E66)+(E74) -> 397.07 | F77: =SUM(F7)+(F15)+(F21)+(F66)+(F74) -> 583.70 | G77: =SUM(G7)+(G15)+(G21)+(G66)+(G74) -> 686.36 | H77: =SUM(H7)+(H15)+(H21)+(H66)+(H74) -> 495.35 | I77: =SUM(I7)+(I15)+(I21)+(I66)+(I74) -> 1,751.75 | J77: =SUM(J7)+(J15)+(J21)+(J66)+(J74) -> 166.40 | K77: =SUM(K7)+(K15)+(K21)+(K66)+(K74) -> 70.71 | L77: =SUM(L7)+(L15)+(L21)+(L66)+(L74) -> 92.77 | N77: =SUM(D77:L77) -> 4,737.29

Sheet November
A1: November | B1: 01/04/2015 to 31/03/2016
A3: Treatment Use | B3: Waste Type | D3: Burton Farm HWRC | E3: Cherry Orchard HWRC | F3: Hunters Lane HWRC & Transfer | G3: Judkins HWRC | H3: Lower House Farm HWRC | I3: Princes Drive HWRC & Transfer | J3: Shipston HWRC | K3: Stockton HWRC | L3: Wellesbourne HWRC | N3: Total
A5: Composting | B5: Green waste | C5: CompostingGreen waste | D5: 54.28 | E5: 57.90 | F5: 43.08 | G5: 33.42 | H5: 20.74 | I5: 138.66 | J5: 31.10 | K5: 6.71 | L5: 15.61 | N5: =SUM(D5:L5) -> 401.50
B7: Sub Total | D7: =SUM(D5:D5) -> 54.28 | E7: =SUM(E5:E5) -> 57.90 | F7: =SUM(F5:F5) -> 43.08 | G7: =SUM(G5:G5) -> 33.42 | H7: =SUM(H5:H5) -> 20.74 | I7: =SUM(I5:I5) -> 138.66 | J7: =SUM(J5:J5) -> 31.10 | K7: =SUM(K5:K5) -> 6.71 | L7: =SUM(L5:L5) -> 15.61 | N7: =SUM(D7:L7) -> 401.50
A9: Efw (incineration) | B9: Bulky Waste | C9: Efw (incineration)Bulky Waste | D9: 0.00 | E9: 0.00 | F9: 0.00 | G9: 0.00 | H9: 16.82 | I9: 0.00 | J9: 0.00 | K9: 0.00 | L9: 0.00 | N9: =SUM(D9:L9) -> 16.82
B10: Chemicals | C10: Efw (incineration)Chemicals | D10: 0.00 | E10: 0.00 | F10: 0.00 | G10: 0.00 | H10: 0.00 | I10: 0.00 | J10: 0.00 | K10: 0.00 | L10: 0.00 | N10: =SUM(D10:L10) -> 0.00
B11: Clinical | C11: Efw (incineration)Clinical | D11: 0.00 | E11: 0.00 | F11: 0.00 | G11: 0.00 | H11: 0.00 | I11: 2.69 | J11: 0.00 | K11: 0.00 | L11: 0.00 | N11: =SUM(D11:L11) -> 2.69
B12: General (mixed waste) | C12: Efw (incineration)General (mixed waste) | D12: 0.00 | E12: 7.30 | F12: 0.00 | G12: 0.00 | H12: 92.44 | I12: 0.00 | J12: 4.38 | K12: 0.00 | L12: 0.00 | N12: =SUM(D12:L12) -> 104.12
B13: Paint (chemicals) | C13: Efw (incineration)Paint (chemicals) | D13: 0.00 | E13: 0.00 | F13: 0.00 | G13: 0.00 | H13: 0.00 | I13: 0.00 | J13: 0.00 | K13: 0.00 | L13: 0.00 | N13: =SUM(D13:L13) -> 0.00
B15: Sub Total | D15: =SUM(D9:D13) -> 0.00 | E15: =SUM(E9:E13) -> 7.30 | F15: =SUM(F9:F13) -> 0.00 | G15: =SUM(G9:G13) -> 0.00 | H15: =SUM(H9:H13) -> 109.26 | I15: =SUM(I9:I13) -> 2.69 | J15: =SUM(J9:J13) -> 4.38 | K15: =SUM(K9:K13) -> 0.00 | L15: =SUM(L9:L13) -> 0.00 | N15: =SUM(D15:L15) -> 123.63
A17: Landfill | B17: Asbestos | C17: LandfillAsbestos | D17: 0.00 | E17: 0.00 | F17: 0.00 | G17: 4.30 | H17: 0.00 | I17: 0.00 | J17: 0.00 | K17: 0.00 | L17: 0.00 | N17: =SUM(D17:L17) -> 4.30
B18: General (mixed waste) | C18: LandfillGeneral (mixed waste) | D18: 142.88 | E18: 87.06 | F18: 179.32 | G18: 262.19 | H18: 0.00 | I18: 619.85 | J18: 34.56 | K18: 25.65 | L18: 29.78 | N18: =SUM(D18:L18) -> 1,381.29
B19: Hard Plastic | C19: LandfillHard Plastic | D19: 0.00 | E19: 2.90 | F19: 3.18 | G19: 0.00 | H19: 1.71 | I19: 0.00 | J19: 0.00 | K19: 0.00 | L19: 0.00 | N19: =SUM(D19:L19) -> 7.78
B21: Sub Total | D21: =SUM(D17:D19) -> 142.88 | E21: =SUM(E17:E19) -> 89.96 | F21: =SUM(F17:F19) -> 182.50 | G21: =SUM(G17:G19) -> 266.49 | H21: =SUM(H17:H19) -> 1.71 | I21: =SUM(I17:I19) -> 619.85 | J21: =SUM(J17:J19) -> 34.56 | K21: =SUM(K17:K19) -> 25.65 | L21: =SUM(L17:L19) -> 29.78 | N21: =SUM(D21:L21) -> 1,393.37
A23: Recycling | B23: Aluminium (nf) | C23: RecyclingAluminium (nf) | D23: 0.00 | E23: 0.00 | F23: 0.00 | G23: 0.00 | H23: 0.00 | I23: 0.00 | J23: 0.00 | K23: 0.00 | L23: 0.00 | N23: =SUM(D23:L23) -> 0.00
B24: Batteries (car) | C24: RecyclingBatteries (car) | D24: 0.00 | E24: 0.00 | F24: 0.00 | G24: 0.00 | H24: 0.00 | I24: 0.00 | J24: 0.40 | K24: 0.00 | L24: 0.00 | N24: =SUM(D24:L24) -> 0.40
B25: Batteries (household) | C25: RecyclingBatteries (household) | D25: 0.00 | E25: 0.00 | F25: 0.00 | G25: 0.00 | H25: 0.00 | I25: 0.00 | J25: 0.00 | K25: 0.00 | L25: 0.00 | N25: =SUM(D25:L25) -> 0.00
B26: Books | C26: RecyclingBooks | D26: 0.00 | E26: 0.00 | F26: 0.00 | G26: 1.70 | H26: 0.00 | I26: 0.00 | J26: 0.00 | K26: 0.00 | L26: 0.00 | N26: =SUM(D26:L26) -> 1.70
B27: Brass(nf) | C27: RecyclingBrass(nf) | D27: 0.00 | E27: 0.00 | F27: 0.00 | G27: 0.00 | H27: 0.00 | I27: 0.00 | J27: 0.00 | K27: 0.00 | L27: 0.00 | N27: =SUM(D27:L27) -> 0.00
B28: Cable (nf) | C28: RecyclingCable (nf) | D28: 0.00 | E28: 0.00 | F28: 0.00 | G28: 0.00 | H28: 0.00 | I28: 0.00 | J28: 0.00 | K28: 0.00 | L28: 0.00 | N28: =SUM(D28:L28) -> 0.00
B29: Cardboard | C29: RecyclingCardboard | D29: 22.10 | E29: 14.56 | F29: 20.00 | G29: 24.40 | H29: 21.00 | I29: 52.94 | J29: 7.40 | K29: 3.58 | L29: 4.08 | N29: =SUM(D29:L29) -> 170.06
B30: Carpet | C30: RecyclingCarpet | D30: 14.40 | E30: 7.16 | F30: 21.22 | G30: 0.00 | H30: 32.40 | I30: 28.32 | J30: 12.54 | K30: 0.00 | L30: 0.00 | N30: =SUM(D30:L30) -> 116.04
B31: Chipboard | C31: RecyclingChipboard | D31: 61.02 | E31: 22.24 | F31: 60.86 | G31: 0.00 | H31: 31.24 | I31: 46.90 | J31: 0.00 | K31: 0.00 | L31: 2.21 | N31: =SUM(D31:L31) -> 224.47
B32: Copper & Brass Mixed (nf) | C32: RecyclingCopper & Brass Mixed (nf) | D32: 0.00 | E32: 0.00 | F32: 0.00 | G32: 0.00 | H32: 0.00 | I32: 0.00 | J32: 0.00 | K32: 0.00 | L32: 0.00 | N32: =SUM(D32:L32) -> 0.00
B33: Drink Cartons | C33: RecyclingDrink Cartons | D33: 0.00 | E33: 0.00 | F33: 0.00 | G33: 0.00 | H33: 0.24 | I33: 0.22 | J33: 0.00 | K33: 0.00 | L33: 0.00 | N33: =SUM(D33:L33) -> 0.46
B34: Fire Extinguishers | C34: RecyclingFire Extinguishers | D34: 0.00 | E34: 0.00 | F34: 0.00 | G34: 0.00 | H34: 0.00 | I34: 0.00 | J34: 0.00 | K34: 0.00 | L34: 0.00 | N34: =SUM(D34:L34) -> 0.00
B35: Fluorescent Tubes Output | C35: RecyclingFluorescent Tubes Output | D35: 0.00 | E35: 0.18 | F35: 0.00 | G35: 0.00 | H35: 0.15 | I35: 0.29 | J35: 0.00 | K35: 0.00 | L35: 0.00 | N35: =SUM(D35:L35) -> 0.62
B36: Fridges Output | C36: RecyclingFridges Output | D36: 6.04 | E36: 2.32 | F36: 4.60 | G36: 3.64 | H36: 4.54 | I36: 11.96 | J36: 2.03 | K36: 0.53 | L36: 0.00 | N36: =SUM(D36:L36) -> 35.66
B37: Gas Cylinders | C37: RecyclingGas Cylinders | D37: 0.00 | E37: 0.00 | F37: 0.00 | G37: 0.00 | H37: 0.00 | I37: 0.81 | J37: 0.00 | K37: 0.00 | L37: 0.00 | N37: =SUM(D37:L37) -> 0.81
B38: General (mixed waste) | C38: RecyclingGeneral (mixed waste) | D38: 0.00 | E38: 0.00 | F38: 0.00 | G38: 0.00 | H38: 0.00 | I38: 0.00 | J38: 0.00 | K38: 0.00 | L38: 0.00 | N38: =SUM(D38:L38) -> 0.00
B39: Glass (bottles) | C39: RecyclingGlass (bottles) | D39: 6.63 | E39: 6.14 | F39: 2.53 | G39: 3.00 | H39: 0.00 | I39: 2.26 | J39: 0.89 | K39: 0.00 | L39: 0.25 | N39: =SUM(D39:L39) -> 21.70
B40: Green waste | C40: RecyclingGreen waste | D40: 0.00 | E40: 0.00 | F40: 0.00 | G40: 0.00 | H40: 0.00 | I40: 0.00 | J40: 0.00 | K40: 0.00 | L40: 0.00 | N40: =SUM(D40:L40) -> 0.00
B41: Hard Plastic | C41: RecyclingHard Plastic | D41: 0.00 | E41: 0.00 | F41: 0.00 | G41: 0.00 | H41: 0.00 | I41: 0.00 | J41: 0.00 | K41: 0.00 | L41: 0.00 | N41: =SUM(D41:L41) -> 0.00
B42: Household Goods Household Goods | C42: RecyclingHousehold Goods Household Goods | D42: 0.00 | E42: 0.00 | F42: 0.00 | G42: 0.00 | H42: 0.00 | I42: 0.00 | J42: 0.00 | K42: 0.00 | L42: 0.00 | N42: =SUM(D42:L42) -> 0.00
B43: Inert (rubble/hardcore) | C43: RecyclingInert (rubble/hardcore) | D43: 0.00 | E43: 0.00 | F43: 0.00 | G43: 0.00 | H43: 0.00 | I43: 0.00 | J43: 0.00 | K43: 0.00 | L43: 0.00 | N43: =SUM(D43:L43) -> 0.00
B44: Lead (nf) | C44: RecyclingLead (nf) | D44: 0.00 | E44: 0.00 | F44: 0.00 | G44: 0.00 | H44: 0.00 | I44: 0.00 | J44: 0.00 | K44: 0.00 | L44: 0.00 | N44: =SUM(D44:L44) -> 0.00
B45: Matresses | C45: RecyclingMatresses | D45: 0.00 | E45: 0.00 | F45: 0.00 | G45: 0.00 | H45: 0.00 | I45: 0.00 | J45: 0.00 | K45: 0.00 | L45: 0.00 | N45: =SUM(D45:L45) -> 0.00
B46: Microwave Motors | C46: RecyclingMicrowave Motors | D46: 0.00 | E46: 0.00 | F46: 0.00 | G46: 0.00 | H46: 0.00 | I46: 0.00 | J46: 0.00 | K46: 0.00 | L46: 0.00 | N46: =SUM(D46:L46) -> 0.00
B47: Non Ferrous Metal Non Ferrous Metal | C47: RecyclingNon Ferrous Metal Non Ferrous Metal | D47: 0.00 | E47: 1.88 | F47: 1.22 | G47: 0.00 | H47: 0.00 | I47: 0.31 | J47: 0.60 | K47: 0.00 | L47: 0.78 | N47: =SUM(D47:L47) -> 4.79
B48: Oil (Engine) | C48: RecyclingOil (Engine) | D48: 0.00 | E48: 0.00 | F48: 0.00 | G48: 0.00 | H48: 1.04 | I48: 1.41 | J48: 0.00 | K48: 1.06 | L48: 0.00 | N48: =SUM(D48:L48) -> 3.51
B49: Oil (Vegetable) | C49: RecyclingOil (Vegetable) | D49: 0.00 | E49: 0.00 | F49: 0.00 | G49: 0.00 | H49: 0.00 | I49: 0.00 | J49: 0.00 | K49: 0.00 | L49: 0.00 | N49: =SUM(D49:L49) -> 0.00
B50: Paint (chemicals) | C50: RecyclingPaint (chemicals) | D50: 0.00 | E50: 0.00 | F50: 0.00 | G50: 0.00 | H50: 0.00 | I50: 0.00 | J50: 0.00 | K50: 0.00 | L50: 0.00 | N50: =SUM(D50:L50) -> 0.00
B51: Paper (mixed with card) | C51: RecyclingPaper (mixed with card) | D51: 0.00 | E51: 0.00 | F51: 0.00 | G51: 0.00 | H51: 0.00 | I51: 0.00 | J51: 0.00 | K51: 0.00 | L51: 0.00 | N51: =SUM(D51:L51) -> 0.00
B52: Paper (newspaper & magazines) | C52: RecyclingPaper (newspaper & magazines) | D52: 16.94 | E52: 12.18 | F52: 6.00 | G52: 0.00 | H52: 4.56 | I52: 18.00 | J52: 0.00 | K52: 0.00 | L52: 0.00 | N52: =SUM(D52:L52) -> 57.68
B53: Plasterboard | C53: RecyclingPlasterboard | D53: 0.00 | E53: 0.14 | F53: 0.00 | G53: 6.44 | H53: 0.00 | I53: 10.68 | J53: 0.00 | K53: 0.00 | L53: 0.00 | N53: =SUM(D53:L53) -> 17.26
B54: Plastic (Mixed) | C54: RecyclingPlastic (Mixed) | D54: 0.00 | E54: 1.43 | F54: 0.00 | G54: 0.00 | H54: 0.00 | I54: 0.00 | J54: 0.18 | K54: 0.00 | L54: 0.10 | N54: =SUM(D54:L54) -> 1.71
B55: Printer Cartridges | C55: RecyclingPrinter Cartridges | D55: 0.00 | E55: 0.00 | F55: 0.00 | G55: 0.00 | H55: 0.00 | I55: 0.00 | J55: 0.00 | K55: 0.00 | L55: 0.00 | N55: =SUM(D55:L55) -> 0.00
B56: Road Sweepings | C56: RecyclingRoad Sweepings | D56: 0.00 | E56: 0.00 | F56: 0.00 | G56: 0.00 | H56: 0.00 | I56: 354.92 | J56: 0.00 | K56: 0.00 | L56: 0.00 | N56: =SUM(D56:L56) -> 354.92
B57: Scrap metal (mixed) | C57: RecyclingScrap metal (mixed) | D57: 30.73 | E57: 16.41 | F57: 45.42 | G57: 20.10 | H57: 16.63 | I57: 57.25 | J57: 12.09 | K57: 5.30 | L57: 6.08 | N57: =SUM(D57:L57) -> 210.01
B58: Screens output | C58: RecyclingScreens output | D58: 3.44 | E58: 3.46 | F58: 6.59 | G58: 3.29 | H58: 5.38 | I58: 8.03 | J58: 2.10 | K58: 0.93 | L58: 1.35 | N58: =SUM(D58:L58) -> 34.57
B59: Small Domestic Appliances | C59: RecyclingSmall Domestic Appliances | D59: 16.71 | E59: 7.51 | F59: 16.43 | G59: 7.00 | H59: 15.69 | I59: 26.64 | J59: 5.78 | K59: 0.59 | L59: 2.35 | N59: =SUM(D59:L59) -> 98.70
B60: Soil & rubble | C60: RecyclingSoil & rubble | D60: 0.00 | E60: 0.00 | F60: 0.00 | G60: 60.15 | H60: 0.00 | I60: 0.00 | J60: 0.00 | K60: 0.00 | L60: 0.00 | N60: =SUM(D60:L60) -> 60.15
B61: Stainless Steel | C61: RecyclingStainless Steel | D61: 0.00 | E61: 0.00 | F61: 0.00 | G61: 0.00 | H61: 0.00 | I61: 0.00 | J61: 0.00 | K61: 0.00 | L61: 0.00 | N61: =SUM(D61:L61) -> 0.00
B62: Textiles | C62: RecyclingTextiles | D62: 9.58 | E62: 5.13 | F62: 7.23 | G62: 3.72 | H62: 7.22 | I62: 10.26 | J62: 2.36 | K62: 0.87 | L62: 1.61 | N62: =SUM(D62:L62) -> 47.98
B63: Tyres | C63: RecyclingTyres | D63: 0.00 | E63: 0.00 | F63: 0.00 | G63: 0.00 | H63: 0.00 | I63: 0.00 | J63: 0.00 | K63: 0.00 | L63: 0.00 | N63: =SUM(D63:L63) -> 0.00
B64: Wood (including treated) | C64: RecyclingWood (including treated) | D64: 9.64 | E64: 38.06 | F64: 40.43 | G64: 108.00 | H64: 59.60 | I64: 129.04 | J64: 13.12 | K64: 9.37 | L64: 13.07 | N64: =SUM(D64:L64) -> 420.33
B66: Sub Total | D66: =SUM(D23:D64) -> 197.23 | E66: =SUM(E23:E64) -> 138.80 | F66: =SUM(F23:F64) -> 232.53 | G66: =SUM(G23:G64) -> 241.44 | H66: =SUM(H23:H64) -> 199.69 | I66: =SUM(I23:I64) -> 760.24 | J66: =SUM(J23:J64) -> 59.48 | K66: =SUM(K23:K64) -> 22.23 | L66: =SUM(L23:L64) -> 31.88 | N66: =SUM(D66:L66) -> 1,883.51
A68: Re-Use | B68: Books | C68: Re-UseBooks | D68: 0.15 | E68: 0.00 | F68: 0.00 | G68: 0.00 | H68: 0.00 | I68: 0.00 | J68: 0.00 | K68: 0.00 | L68: 0.13 | N68: =SUM(D68:L68) -> 0.28
B69: Gas Cylinders | C69: Re-UseGas Cylinders | D69: 0.00 | E69: 0.00 | F69: 0.00 | G69: 0.00 | H69: 0.00 | I69: 0.00 | J69: 0.00 | K69: 0.00 | L69: 0.00 | N69: =SUM(D69:L69) -> 0.00
B70: Household Goods Household Goods | C70: Re-UseHousehold Goods Household Goods | D70: 0.00 | E70: 0.00 | F70: 0.00 | G70: 9.93 | H70: 0.00 | I70: 0.00 | J70: 0.00 | K70: 0.00 | L70: 0.00 | N70: =SUM(D70:L70) -> 9.93
B71: Inert (rubble/hardcore) | C71: Re-UseInert (rubble/hardcore) | D71: 46.90 | E71: 40.52 | F71: 48.90 | G71: 0.00 | H71: 37.32 | I71: 131.12 | J71: 9.66 | K71: 6.96 | L71: 9.26 | N71: =SUM(D71:L71) -> 330.64
B72: Soil | C72: Re-UseSoil | D72: 0.00 | E72: 0.00 | F72: 0.00 | G72: 0.00 | H72: 0.00 | I72: 0.00 | J72: 0.00 | K72: 0.00 | L72: 0.00 | N72: =SUM(D72:L72) -> 0.00
B74: Sub Total | D74: =SUM(D68:D73) -> 47.05 | E74: =SUM(E68:E73) -> 40.52 | F74: =SUM(F68:F73) -> 48.90 | G74: =SUM(G68:G73) -> 9.93 | H74: =SUM(H68:H73) -> 37.32 | I74: =SUM(I68:I73) -> 131.12 | J74: =SUM(J68:J73) -> 9.66 | K74: =SUM(K68:K73) -> 6.96 | L74: =SUM(L68:L73) -> 9.39 | N74: =SUM(D74:L74) -> 340.85
B77: Grand Total | D77: =SUM(D7)+(D15)+(D21)+(D66)+(D74) -> 441.44 | E77: =SUM(E7)+(E15)+(E21)+(E66)+(E74) -> 334.48 | F77: =SUM(F7)+(F15)+(F21)+(F66)+(F74) -> 507.01 | G77: =SUM(G7)+(G15)+(G21)+(G66)+(G74) -> 551.28 | H77: =SUM(H7)+(H15)+(H21)+(H66)+(H74) -> 368.71 | I77: =SUM(I7)+(I15)+(I21)+(I66)+(I74) -> 1,652.56 | J77: =SUM(J7)+(J15)+(J21)+(J66)+(J74) -> 139.18 | K77: =SUM(K7)+(K15)+(K21)+(K66)+(K74) -> 61.55 | L77: =SUM(L7)+(L15)+(L21)+(L66)+(L74) -> 86.66 | N77: =SUM(D77:L77) -> 4,142.85

Sheet December
A1: December | B1: 01/04/2015 to 31/03/2016
A3: Treatment Use | B3: Waste Type | D3: Burton Farm HWRC | E3: Cherry Orchard HWRC | F3: Hunters Lane HWRC & Transfer | G3: Judkins HWRC | H3: Lower House Farm HWRC | I3: Princes Drive HWRC & Transfer | J3: Shipston HWRC | K3: Stockton HWRC | L3: Wellesbourne HWRC | N3: Total
A5: Composting | B5: Green waste | C5: CompostingGreen waste | D5: 24.68 | E5: 23.60 | F5: 30.20 | G5: 8.82 | H5: 10.08 | I5: 75.91 | J5: 12.66 | K5: 0.94 | L5: 5.11 | N5: =SUM(D5:L5) -> 192.00
B7: Sub Total | D7: =SUM(D5:D5) -> 24.68 | E7: =SUM(E5:E5) -> 23.60 | F7: =SUM(F5:F5) -> 30.20 | G7: =SUM(G5:G5) -> 8.82 | H7: =SUM(H5:H5) -> 10.08 | I7: =SUM(I5:I5) -> 75.91 | J7: =SUM(J5:J5) -> 12.66 | K7: =SUM(K5:K5) -> 0.94 | L7: =SUM(L5:L5) -> 5.11 | N7: =SUM(D7:L7) -> 192.00
A9: Efw (incineration) | B9: Bulky Waste | C9: Efw (incineration)Bulky Waste | D9: 0.00 | E9: 0.00 | F9: 0.00 | G9: 0.00 | H9: 20.90 | I9: 0.00 | J9: 0.00 | K9: 0.00 | L9: 0.00 | N9: =SUM(D9:L9) -> 20.90
B10: Chemicals | C10: Efw (incineration)Chemicals | D10: 0.00 | E10: 0.00 | F10: 0.00 | G10: 0.00 | H10: 0.00 | I10: 0.00 | J10: 0.00 | K10: 0.00 | L10: 0.00 | N10: =SUM(D10:L10) -> 0.00
B11: Clinical | C11: Efw (incineration)Clinical | D11: 0.00 | E11: 0.00 | F11: 0.00 | G11: 0.00 | H11: 0.00 | I11: 2.69 | J11: 0.00 | K11: 0.00 | L11: 0.00 | N11: =SUM(D11:L11) -> 2.69
B12: General (mixed waste) | C12: Efw (incineration)General (mixed waste) | D12: 7.26 | E12: 11.92 | F12: 14.26 | G12: 6.82 | H12: 108.78 | I12: 29.98 | J12: 0.00 | K12: 1.98 | L12: 0.00 | N12: =SUM(D12:L12) -> 181.00
B13: Paint (chemicals) | C13: Efw (incineration)Paint (chemicals) | D13: 0.00 | E13: 0.00 | F13: 0.00 | G13: 0.00 | H13: 0.00 | I13: 0.00 | J13: 0.00 | K13: 0.00 | L13: 0.00 | N13: =SUM(D13:L13) -> 0.00
B15: Sub Total | D15: =SUM(D9:D13) -> 7.26 | E15: =SUM(E9:E13) -> 11.92 | F15: =SUM(F9:F13) -> 14.26 | G15: =SUM(G9:G13) -> 6.82 | H15: =SUM(H9:H13) -> 129.68 | I15: =SUM(I9:I13) -> 32.67 | J15: =SUM(J9:J13) -> 0.00 | K15: =SUM(K9:K13) -> 1.98 | L15: =SUM(L9:L13) -> 0.00 | N15: =SUM(D15:L15) -> 204.59
A17: Landfill | B17: Asbestos | C17: LandfillAsbestos | D17: 0.00 | E17: 0.00 | F17: 0.00 | G17: 0.00 | H17: 0.00 | I17: 3.08 | J17: 0.00 | K17: 0.00 | L17: 0.00 | N17: =SUM(D17:L17) -> 3.08
B18: General (mixed waste) | C18: LandfillGeneral (mixed waste) | D18: 133.42 | E18: 71.32 | F18: 167.22 | G18: 203.86 | H18: 0.00 | I18: 615.21 | J18: 33.48 | K18: 5.08 | L18: 31.80 | N18: =SUM(D18:L18) -> 1,261.39
B19: Hard Plastic | C19: LandfillHard Plastic | D19: 0.00 | E19: 1.52 | F19: 1.58 | G19: 0.00 | H19: 1.17 | I19: 0.00 | J19: 0.00 | K19: 0.00 | L19: 0.00 | N19: =SUM(D19:L19) -> 4.27
B21: Sub Total | D21: =SUM(D17:D19) -> 133.42 | E21: =SUM(E17:E19) -> 72.84 | F21: =SUM(F17:F19) -> 168.80 | G21: =SUM(G17:G19) -> 203.86 | H21: =SUM(H17:H19) -> 1.17 | I21: =SUM(I17:I19) -> 618.29 | J21: =SUM(J17:J19) -> 33.48 | K21: =SUM(K17:K19) -> 5.08 | L21: =SUM(L17:L19) -> 31.80 | N21: =SUM(D21:L21) -> 1,268.74
A23: Recycling | B23: Aluminium (nf) | C23: RecyclingAluminium (nf) | D23: 0.00 | E23: 0.00 | F23: 0.00 | G23: 0.00 | H23: 0.00 | I23: 0.00 | J23: 0.80 | K23: 0.00 | L23: 0.00 | N23: =SUM(D23:L23) -> 0.80
B24: Batteries (car) | C24: RecyclingBatteries (car) | D24: 0.00 | E24: 0.00 | F24: 0.00 | G24: 0.00 | H24: 0.00 | I24: 5.36 | J24: 0.28 | K24: 0.78 | L24: 0.80 | N24: =SUM(D24:L24) -> 7.22
B25: Batteries (household) | C25: RecyclingBatteries (household) | D25: 0.00 | E25: 0.00 | F25: 0.00 | G25: 0.00 | H25: 0.00 | I25: 0.00 | J25: 0.00 | K25: 0.00 | L25: 0.00 | N25: =SUM(D25:L25) -> 0.00
B26: Books | C26: RecyclingBooks | D26: 0.00 | E26: 0.00 | F26: 0.00 | G26: 2.60 | H26: 0.00 | I26: 0.00 | J26: 0.00 | K26: 0.00 | L26: 0.00 | N26: =SUM(D26:L26) -> 2.60
B27: Brass(nf) | C27: RecyclingBrass(nf) | D27: 0.00 | E27: 0.00 | F27: 0.00 | G27: 0.00 | H27: 0.00 | I27: 0.07 | J27: 0.00 | K27: 0.00 | L27: 0.00 | N27: =SUM(D27:L27) -> 0.07
B28: Cable (nf) | C28: RecyclingCable (nf) | D28: 0.00 | E28: 0.00 | F28: 0.00 | G28: 0.00 | H28: 0.00 | I28: 0.00 | J28: 0.00 | K28: 0.00 | L28: 0.00 | N28: =SUM(D28:L28) -> 0.00
B29: Cardboard | C29: RecyclingCardboard | D29: 28.68 | E29: 27.84 | F29: 9.58 | G29: 40.32 | H29: 18.58 | I29: 55.36 | J29: 13.92 | K29: 3.65 | L29: 5.05 | N29: =SUM(D29:L29) -> 202.98
B30: Carpet | C30: RecyclingCarpet | D30: 12.38 | E30: 12.50 | F30: 24.80 | G30: 14.70 | H30: 21.30 | I30: 33.15 | J30: 4.36 | K30: 0.00 | L30: 0.00 | N30: =SUM(D30:L30) -> 123.19
B31: Chipboard | C31: RecyclingChipboard | D31: 65.28 | E31: 16.22 | F31: 53.74 | G31: 0.00 | H31: 41.68 | I31: 25.50 | J31: 0.00 | K31: 5.91 | L31: 0.00 | N31: =SUM(D31:L31) -> 208.33
B32: Copper & Brass Mixed (nf) | C32: RecyclingCopper & Brass Mixed (nf) | D32: 0.00 | E32: 0.00 | F32: 0.00 | G32: 0.00 | H32: 0.00 | I32: 0.00 | J32: 0.00 | K32: 0.00 | L32: 0.00 | N32: =SUM(D32:L32) -> 0.00
B33: Drink Cartons | C33: RecyclingDrink Cartons | D33: 0.00 | E33: 0.43 | F33: 0.00 | G33: 0.00 | H33: 0.00 | I33: 0.42 | J33: 0.00 | K33: 0.00 | L33: 0.00 | N33: =SUM(D33:L33) -> 0.85
B34: Fire Extinguishers | C34: RecyclingFire Extinguishers | D34: 0.00 | E34: 0.00 | F34: 0.00 | G34: 0.00 | H34: 0.00 | I34: 0.00 | J34: 0.00 | K34: 0.00 | L34: 0.00 | N34: =SUM(D34:L34) -> 0.00
B35: Fluorescent Tubes Output | C35: RecyclingFluorescent Tubes Output | D35: 0.20 | E35: 0.00 | F35: 0.00 | G35: 0.40 | H35: 0.00 | I35: 0.00 | J35: 0.00 | K35: 0.00 | L35: 0.00 | N35: =SUM(D35:L35) -> 0.60
B36: Fridges Output | C36: RecyclingFridges Output | D36: 6.17 | E36: 2.02 | F36: 7.85 | G36: 4.40 | H36: 8.22 | I36: 8.92 | J36: 2.12 | K36: 0.70 | L36: 0.00 | N36: =SUM(D36:L36) -> 40.41
B37: Gas Cylinders | C37: RecyclingGas Cylinders | D37: 0.00 | E37: 0.00 | F37: 0.06 | G37: 1.75 | H37: 0.00 | I37: 1.14 | J37: 0.00 | K37: 0.00 | L37: 0.00 | N37: =SUM(D37:L37) -> 2.95
B38: General (mixed waste) | C38: RecyclingGeneral (mixed waste) | D38: 0.00 | E38: 0.00 | F38: 0.00 | G38: 0.00 | H38: 0.00 | I38: 0.00 | J38: 0.00 | K38: 14.03 | L38: 0.00 | N38: =SUM(D38:L38) -> 14.03
B39: Glass (bottles) | C39: RecyclingGlass (bottles) | D39: 4.31 | E39: 8.50 | F39: 0.00 | G39: 0.00 | H39: 1.61 | I39: 8.67 | J39: 2.40 | K39: 0.00 | L39: 1.78 | N39: =SUM(D39:L39) -> 27.26
B40: Green waste | C40: RecyclingGreen waste | D40: 0.00 | E40: 0.00 | F40: 0.00 | G40: 0.00 | H40: 0.00 | I40: 0.00 | J40: 0.00 | K40: 3.59 | L40: 0.00 | N40: =SUM(D40:L40) -> 3.59
B41: Hard Plastic | C41: RecyclingHard Plastic | D41: 0.00 | E41: 0.00 | F41: 0.00 | G41: 0.00 | H41: 0.00 | I41: 0.00 | J41: 0.00 | K41: 0.00 | L41: 0.00 | N41: =SUM(D41:L41) -> 0.00
B42: Household Goods Household Goods | C42: RecyclingHousehold Goods Household Goods | D42: 0.00 | E42: 0.00 | F42: 0.00 | G42: 0.00 | H42: 0.00 | I42: 0.00 | J42: 0.00 | K42: 0.00 | L42: 0.00 | N42: =SUM(D42:L42) -> 0.00
B43: Inert (rubble/hardcore) | C43: RecyclingInert (rubble/hardcore) | D43: 0.00 | E43: 0.00 | F43: 0.00 | G43: 0.00 | H43: 0.00 | I43: 0.00 | J43: 0.00 | K43: 0.00 | L43: 0.00 | N43: =SUM(D43:L43) -> 0.00
B44: Lead (nf) | C44: RecyclingLead (nf) | D44: 0.00 | E44: 0.00 | F44: 0.00 | G44: 0.00 | H44: 0.00 | I44: 0.00 | J44: 0.00 | K44: 0.00 | L44: 0.00 | N44: =SUM(D44:L44) -> 0.00
B45: Matresses | C45: RecyclingMatresses | D45: 0.00 | E45: 0.00 | F45: 0.00 | G45: 0.00 | H45: 0.00 | I45: 0.00 | J45: 0.00 | K45: 0.00 | L45: 0.00 | N45: =SUM(D45:L45) -> 0.00
B46: Microwave Motors | C46: RecyclingMicrowave Motors | D46: 0.00 | E46: 0.61 | F46: 1.57 | G46: 0.00 | H46: 0.00 | I46: 0.00 | J46: 0.00 | K46: 0.00 | L46: 0.00 | N46: =SUM(D46:L46) -> 2.18
B47: Non Ferrous Metal Non Ferrous Metal | C47: RecyclingNon Ferrous Metal Non Ferrous Metal | D47: 0.00 | E47: 0.00 | F47: 0.00 | G47: 0.00 | H47: 0.00 | I47: 0.54 | J47: 0.30 | K47: 0.00 | L47: 0.00 | N47: =SUM(D47:L47) -> 0.84
B48: Oil (Engine) | C48: RecyclingOil (Engine) | D48: 0.00 | E48: 0.00 | F48: 2.29 | G48: 1.10 | H48: 0.00 | I48: 0.00 | J48: 0.00 | K48: 0.00 | L48: 0.00 | N48: =SUM(D48:L48) -> 3.39
B49: Oil (Vegetable) | C49: RecyclingOil (Vegetable) | D49: 0.42 | E49: 0.00 | F49: 0.97 | G49: 0.00 | H49: 0.00 | I49: 0.61 | J49: 0.00 | K49: 0.00 | L49: 0.00 | N49: =SUM(D49:L49) -> 2.00
B50: Paint (chemicals) | C50: RecyclingPaint (chemicals) | D50: 0.00 | E50: 0.00 | F50: 0.00 | G50: 0.00 | H50: 0.60 | I50: 1.08 | J50: 0.00 | K50: 0.60 | L50: 0.00 | N50: =SUM(D50:L50) -> 2.28
B51: Paper (mixed with card) | C51: RecyclingPaper (mixed with card) | D51: 0.00 | E51: 0.00 | F51: 0.00 | G51: 0.00 | H51: 0.00 | I51: 0.00 | J51: 0.00 | K51: 0.00 | L51: 0.00 | N51: =SUM(D51:L51) -> 0.00
B52: Paper (newspaper & magazines) | C52: RecyclingPaper (newspaper & magazines) | D52: 24.24 | E52: 20.56 | F52: 30.94 | G52: 9.02 | H52: 9.34 | I52: 32.94 | J52: 10.72 | K52: 0.00 | L52: 0.00 | N52: =SUM(D52:L52) -> 137.76
B53: Plasterboard | C53: RecyclingPlasterboard | D53: 12.69 | E53: 0.00 | F53: 0.00 | G53: 5.53 | H53: 12.50 | I53: 11.49 | J53: 0.00 | K53: 0.00 | L53: 0.00 | N53: =SUM(D53:L53) -> 42.21
B54: Plastic (Mixed) | C54: RecyclingPlastic (Mixed) | D54: 1.39 | E54: 0.99 | F54: 0.00 | G54: 0.00 | H54: 0.00 | I54: 0.00 | J54: 0.33 | K54: 0.90 | L54: 0.07 | N54: =SUM(D54:L54) -> 3.68
B55: Printer Cartridges | C55: RecyclingPrinter Cartridges | D55: 0.00 | E55: 0.00 | F55: 0.00 | G55: 0.00 | H55: 0.00 | I55: 0.00 | J55: 0.00 | K55: 0.00 | L55: 0.00 | N55: =SUM(D55:L55) -> 0.00
B56: Road Sweepings | C56: RecyclingRoad Sweepings | D56: 0.00 | E56: 0.00 | F56: 0.00 | G56: 0.00 | H56: 0.00 | I56: 319.54 | J56: 0.00 | K56: 0.00 | L56: 0.00 | N56: =SUM(D56:L56) -> 319.54
B57: Scrap metal (mixed) | C57: RecyclingScrap metal (mixed) | D57: 30.67 | E57: 18.56 | F57: 28.67 | G57: 30.65 | H57: 20.53 | I57: 54.60 | J57: 16.36 | K57: 6.54 | L57: 4.00 | N57: =SUM(D57:L57) -> 210.58
B58: Screens output | C58: RecyclingScreens output | D58: 3.85 | E58: 1.79 | F58: 8.04 | G58: 6.60 | H58: 4.75 | I58: 11.58 | J58: 2.79 | K58: 0.71 | L58: 1.33 | N58: =SUM(D58:L58) -> 41.45
B59: Small Domestic Appliances | C59: RecyclingSmall Domestic Appliances | D59: 7.88 | E59: 8.14 | F59: 21.49 | G59: 6.30 | H59: 11.26 | I59: 21.79 | J59: 5.46 | K59: 1.32 | L59: 1.86 | N59: =SUM(D59:L59) -> 85.50
B60: Soil & rubble | C60: RecyclingSoil & rubble | D60: 0.00 | E60: 0.00 | F60: 0.00 | G60: 36.00 | H60: 0.00 | I60: 0.00 | J60: 0.00 | K60: 0.00 | L60: 0.00 | N60: =SUM(D60:L60) -> 36.00
B61: Stainless Steel | C61: RecyclingStainless Steel | D61: 0.00 | E61: 0.00 | F61: 0.00 | G61: 0.00 | H61: 0.00 | I61: 0.00 | J61: 0.00 | K61: 0.00 | L61: 0.00 | N61: =SUM(D61:L61) -> 0.00
B62: Textiles | C62: RecyclingTextiles | D62: 5.50 | E62: 3.70 | F62: 7.64 | G62: 5.10 | H62: 5.78 | I62: 5.56 | J62: 2.15 | K62: 0.40 | L62: 1.15 | N62: =SUM(D62:L62) -> 36.98
B63: Tyres | C63: RecyclingTyres | D63: 0.00 | E63: 0.00 | F63: 0.00 | G63: 0.00 | H63: 0.00 | I63: 0.00 | J63: 0.00 | K63: 0.00 | L63: 0.00 | N63: =SUM(D63:L63) -> 0.00
B64: Wood (including treated) | C64: RecyclingWood (including treated) | D64: 0.00 | E64: 30.10 | F64: 36.17 | G64: 98.03 | H64: 35.86 | I64: 124.88 | J64: 14.14 | K64: 4.54 | L64: 10.68 | N64: =SUM(D64:L64) -> 354.40
B66: Sub Total | D66: =SUM(D23:D64) -> 203.66 | E66: =SUM(E23:E64) -> 151.96 | F66: =SUM(F23:F64) -> 233.81 | G66: =SUM(G23:G64) -> 262.50 | H66: =SUM(H23:H64) -> 192.00 | I66: =SUM(I23:I64) -> 723.20 | J66: =SUM(J23:J64) -> 76.14 | K66: =SUM(K23:K64) -> 43.67 | L66: =SUM(L23:L64) -> 26.72 | N66: =SUM(D66:L66) -> 1,913.66
A68: Re-Use | B68: Books | C68: Re-UseBooks | D68: 0.00 | E68: 0.00 | F68: 0.00 | G68: 0.00 | H68: 0.00 | I68: 0.00 | J68: 0.00 | K68: 0.00 | L68: 0.00 | N68: =SUM(D68:L68) -> 0.00
B69: Gas Cylinders | C69: Re-UseGas Cylinders | D69: 0.00 | E69: 0.00 | F69: 0.00 | G69: 0.00 | H69: 0.00 | I69: 0.00 | J69: 0.00 | K69: 0.00 | L69: 0.00 | N69: =SUM(D69:L69) -> 0.00
B70: Household Goods Household Goods | C70: Re-UseHousehold Goods Household Goods | D70: 0.00 | E70: 0.00 | F70: 0.00 | G70: 9.31 | H70: 0.00 | I70: 0.00 | J70: 0.00 | K70: 0.00 | L70: 0.00 | N70: =SUM(D70:L70) -> 9.31
B71: Inert (rubble/hardcore) | C71: Re-UseInert (rubble/hardcore) | D71: 41.22 | E71: 25.84 | F71: 46.40 | G71: 0.00 | H71: 37.46 | I71: 83.58 | J71: 6.18 | K71: 6.54 | L71: 0.00 | N71: =SUM(D71:L71) -> 247.22
B72: Soil | C72: Re-UseSoil | D72: 0.00 | E72: 0.00 | F72: 0.00 | G72: 0.00 | H72: 0.00 | I72: 0.00 | J72: 8.80 | K72: 0.00 | L72: 0.00 | N72: =SUM(D72:L72) -> 8.80
B74: Sub Total | D74: =SUM(D68:D73) -> 41.22 | E74: =SUM(E68:E73) -> 25.84 | F74: =SUM(F68:F73) -> 46.40 | G74: =SUM(G68:G73) -> 9.31 | H74: =SUM(H68:H73) -> 37.46 | I74: =SUM(I68:I73) -> 83.58 | J74: =SUM(J68:J73) -> 14.98 | K74: =SUM(K68:K73) -> 6.54 | L74: =SUM(L68:L73) -> 0.00 | N74: =SUM(D74:L74) -> 265.33
B77: Grand Total | D77: =SUM(D7)+(D15)+(D21)+(D66)+(D74) -> 410.24 | E77: =SUM(E7)+(E15)+(E21)+(E66)+(E74) -> 286.16 | F77: =SUM(F7)+(F15)+(F21)+(F66)+(F74) -> 493.47 | G77: =SUM(G7)+(G15)+(G21)+(G66)+(G74) -> 491.31 | H77: =SUM(H7)+(H15)+(H21)+(H66)+(H74) -> 370.39 | I77: =SUM(I7)+(I15)+(I21)+(I66)+(I74) -> 1,533.65 | J77: =SUM(J7)+(J15)+(J21)+(J66)+(J74) -> 137.26 | K77: =SUM(K7)+(K15)+(K21)+(K66)+(K74) -> 58.21 | L77: =SUM(L7)+(L15)+(L21)+(L66)+(L74) -> 63.63 | N77: =SUM(D77:L77) -> 3,844.31

Sheet January
A1: January | B1: 01/04/2015 to 31/03/2016
A3: Treatment Use | B3: Waste Type | D3: Burton Farm HWRC | E3: Cherry Orchard HWRC | F3: Hunters Lane HWRC & Transfer | G3: Judkins HWRC | H3: Lower House Farm HWRC | I3: Princes Drive HWRC & Transfer | J3: Shipston HWRC | K3: Stockton HWRC | L3: Wellesbourne HWRC | N3: Total
A5: Composting | B5: Green waste | C5: CompostingGreen waste | D5: 25.82 | E5: 14.10 | F5: 16.46 | G5: 19.98 | H5: 10.44 | I5: 52.16 | J5: 10.70 | K5: 2.69 | L5: 1.97 | N5: =SUM(D5:L5) -> 154.32
B7: Sub Total | D7: =SUM(D5:D5) -> 25.82 | E7: =SUM(E5:E5) -> 14.10 | F7: =SUM(F5:F5) -> 16.46 | G7: =SUM(G5:G5) -> 19.98 | H7: =SUM(H5:H5) -> 10.44 | I7: =SUM(I5:I5) -> 52.16 | J7: =SUM(J5:J5) -> 10.70 | K7: =SUM(K5:K5) -> 2.69 | L7: =SUM(L5:L5) -> 1.97 | N7: =SUM(D7:L7) -> 154.32
A9: Efw (incineration) | B9: Bulky Waste | C9: Efw (incineration)Bulky Waste | D9: 0.00 | E9: 0.00 | F9: 0.00 | G9: 0.00 | H9: 23.04 | I9: 0.00 | J9: 0.00 | K9: 0.00 | L9: 0.00 | N9: =SUM(D9:L9) -> 23.04
B10: Chemicals | C10: Efw (incineration)Chemicals | D10: 0.00 | E10: 0.00 | F10: 0.00 | G10: 0.00 | H10: 0.00 | I10: 0.00 | J10: 0.00 | K10: 0.00 | L10: 0.00 | N10: =SUM(D10:L10) -> 0.00
B11: Clinical | C11: Efw (incineration)Clinical | D11: 0.00 | E11: 0.00 | F11: 0.00 | G11: 0.00 | H11: 0.00 | I11: 2.31 | J11: 0.00 | K11: 0.00 | L11: 0.00 | N11: =SUM(D11:L11) -> 2.31
B12: General (mixed waste) | C12: Efw (incineration)General (mixed waste) | D12: 0.00 | E12: 0.00 | F12: 0.00 | G12: 0.00 | H12: 130.92 | I12: 0.00 | J12: 0.00 | K12: 0.00 | L12: 0.00 | N12: =SUM(D12:L12) -> 130.92
B13: Paint (chemicals) | C13: Efw (incineration)Paint (chemicals) | D13: 0.00 | E13: 0.00 | F13: 0.00 | G13: 0.00 | H13: 0.00 | I13: 0.00 | J13: 0.00 | K13: 0.00 | L13: 0.00 | N13: =SUM(D13:L13) -> 0.00
B15: Sub Total | D15: =SUM(D9:D13) -> 0.00 | E15: =SUM(E9:E13) -> 0.00 | F15: =SUM(F9:F13) -> 0.00 | G15: =SUM(G9:G13) -> 0.00 | H15: =SUM(H9:H13) -> 153.96 | I15: =SUM(I9:I13) -> 2.31 | J15: =SUM(J9:J13) -> 0.00 | K15: =SUM(K9:K13) -> 0.00 | L15: =SUM(L9:L13) -> 0.00 | N15: =SUM(D15:L15) -> 156.27
A17: Landfill | B17: Asbestos | C17: LandfillAsbestos | D17: 0.00 | E17: 0.00 | F17: 0.00 | G17: 0.00 | H17: 0.00 | I17: 0.00 | J17: 0.00 | K17: 0.00 | L17: 0.00 | N17: =SUM(D17:L17) -> 0.00
B18: General (mixed waste) | C18: LandfillGeneral (mixed waste) | D18: 146.84 | E18: 110.03 | F18: 211.76 | G18: 348.86 | H18: 0.00 | I18: 642.02 | J18: 45.88 | K18: 25.33 | L18: 31.46 | N18: =SUM(D18:L18) -> 1,562.18
B19: Hard Plastic | C19: LandfillHard Plastic | D19: 0.00 | E19: 0.00 | F19: 0.00 | G19: 0.00 | H19: 1.48 | I19: 0.71 | J19: 0.00 | K19: 0.00 | L19: 0.00 | N19: =SUM(D19:L19) -> 2.19
B21: Sub Total | D21: =SUM(D17:D19) -> 146.84 | E21: =SUM(E17:E19) -> 110.03 | F21: =SUM(F17:F19) -> 211.76 | G21: =SUM(G17:G19) -> 348.86 | H21: =SUM(H17:H19) -> 1.48 | I21: =SUM(I17:I19) -> 642.73 | J21: =SUM(J17:J19) -> 45.88 | K21: =SUM(K17:K19) -> 25.33 | L21: =SUM(L17:L19) -> 31.46 | N21: =SUM(D21:L21) -> 1,564.37
A23: Recycling | B23: Aluminium (nf) | C23: RecyclingAluminium (nf) | D23: 0.00 | E23: 0.00 | F23: 0.00 | G23: 0.00 | H23: 0.00 | I23: 0.00 | J23: 0.00 | K23: 0.00 | L23: 0.00 | N23: =SUM(D23:L23) -> 0.00
B24: Batteries (car) | C24: RecyclingBatteries (car) | D24: 0.00 | E24: 2.27 | F24: 4.74 | G24: 0.00 | H24: 4.02 | I24: 0.00 | J24: 0.36 | K24: 0.00 | L24: 0.00 | N24: =SUM(D24:L24) -> 11.39
B25: Batteries (household) | C25: RecyclingBatteries (household) | D25: 0.00 | E25: 0.00 | F25: 0.00 | G25: 0.00 | H25: 0.72 | I25: 0.00 | J25: 0.00 | K25: 0.00 | L25: 0.00 | N25: =SUM(D25:L25) -> 0.72
B26: Books | C26: RecyclingBooks | D26: 0.00 | E26: 0.00 | F26: 0.00 | G26: 4.10 | H26: 0.00 | I26: 0.00 | J26: 0.00 | K26: 0.00 | L26: 0.00 | N26: =SUM(D26:L26) -> 4.10
B27: Brass(nf) | C27: RecyclingBrass(nf) | D27: 0.00 | E27: 0.00 | F27: 0.00 | G27: 0.00 | H27: 0.00 | I27: 0.06 | J27: 0.00 | K27: 0.00 | L27: 0.00 | N27: =SUM(D27:L27) -> 0.06
B28: Cable (nf) | C28: RecyclingCable (nf) | D28: 0.00 | E28: 0.00 | F28: 0.00 | G28: 0.00 | H28: 0.00 | I28: 0.00 | J28: 0.36 | K28: 0.00 | L28: 0.00 | N28: =SUM(D28:L28) -> 0.36
B29: Cardboard | C29: RecyclingCardboard | D29: 17.84 | E29: 15.62 | F29: 6.52 | G29: 38.19 | H29: 14.80 | I29: 73.48 | J29: 11.22 | K29: 2.75 | L29: 8.27 | N29: =SUM(D29:L29) -> 188.69
B30: Carpet | C30: RecyclingCarpet | D30: 18.48 | E30: 13.64 | F30: 16.67 | G30: 29.70 | H30: 14.46 | I30: 36.20 | J30: 5.32 | K30: 0.00 | L30: 0.00 | N30: =SUM(D30:L30) -> 134.47
B31: Chipboard | C31: RecyclingChipboard | D31: 63.98 | E31: 15.16 | F31: 59.54 | G31: 0.00 | H31: 57.90 | I31: 14.70 | J31: 6.44 | K31: 0.00 | L31: 2.99 | N31: =SUM(D31:L31) -> 220.71
B32: Copper & Brass Mixed (nf) | C32: RecyclingCopper & Brass Mixed (nf) | D32: 0.00 | E32: 0.00 | F32: 0.00 | G32: 0.00 | H32: 0.00 | I32: 0.00 | J32: 0.00 | K32: 0.00 | L32: 0.00 | N32: =SUM(D32:L32) -> 0.00
B33: Drink Cartons | C33: RecyclingDrink Cartons | D33: 0.00 | E33: 0.16 | F33: 0.00 | G33: 0.00 | H33: 0.12 | I33: 0.15 | J33: 0.00 | K33: 0.00 | L33: 0.00 | N33: =SUM(D33:L33) -> 0.43
B34: Fire Extinguishers | C34: RecyclingFire Extinguishers | D34: 0.00 | E34: 0.00 | F34: 0.00 | G34: 0.00 | H34: 0.00 | I34: 0.50 | J34: 0.00 | K34: 0.00 | L34: 0.00 | N34: =SUM(D34:L34) -> 0.50
B35: Fluorescent Tubes Output | C35: RecyclingFluorescent Tubes Output | D35: 0.00 | E35: 0.27 | F35: 0.19 | G35: 0.00 | H35: 0.00 | I35: 0.09 | J35: 0.34 | K35: 0.00 | L35: 0.00 | N35: =SUM(D35:L35) -> 0.89
B36: Fridges Output | C36: RecyclingFridges Output | D36: 7.83 | E36: 2.14 | F36: 11.58 | G36: 4.00 | H36: 13.40 | I36: 9.91 | J36: 2.77 | K36: 1.29 | L36: 0.00 | N36: =SUM(D36:L36) -> 52.92
B37: Gas Cylinders | C37: RecyclingGas Cylinders | D37: 0.02 | E37: 0.00 | F37: 0.00 | G37: 0.95 | H37: 0.00 | I37: 0.62 | J37: 0.00 | K37: 0.00 | L37: 0.00 | N37: =SUM(D37:L37) -> 1.59
B38: General (mixed waste) | C38: RecyclingGeneral (mixed waste) | D38: 0.00 | E38: 0.00 | F38: 0.00 | G38: 0.00 | H38: 0.00 | I38: 0.00 | J38: 0.00 | K38: 0.00 | L38: 0.00 | N38: =SUM(D38:L38) -> 0.00
B39: Glass (bottles) | C39: RecyclingGlass (bottles) | D39: 4.84 | E39: 10.99 | F39: 4.42 | G39: 0.00 | H39: 2.27 | I39: 14.04 | J39: 3.70 | K39: 1.29 | L39: 2.94 | N39: =SUM(D39:L39) -> 44.49
B40: Green waste | C40: RecyclingGreen waste | D40: 0.00 | E40: 0.00 | F40: 0.00 | G40: 0.00 | H40: 0.00 | I40: 0.00 | J40: 0.00 | K40: 0.00 | L40: 0.00 | N40: =SUM(D40:L40) -> 0.00
B41: Hard Plastic | C41: RecyclingHard Plastic | D41: 0.00 | E41: 0.00 | F41: 0.00 | G41: 7.58 | H41: 0.00 | I41: 0.00 | J41: 0.00 | K41: 0.00 | L41: 0.00 | N41: =SUM(D41:L41) -> 7.58
B42: Household Goods Household Goods | C42: RecyclingHousehold Goods Household Goods | D42: 0.00 | E42: 0.00 | F42: 0.00 | G42: 0.00 | H42: 0.00 | I42: 0.00 | J42: 0.00 | K42: 0.00 | L42: 0.00 | N42: =SUM(D42:L42) -> 0.00
B43: Inert (rubble/hardcore) | C43: RecyclingInert (rubble/hardcore) | D43: 0.00 | E43: 0.00 | F43: 0.00 | G43: 0.00 | H43: 0.00 | I43: 0.00 | J43: 0.00 | K43: 0.00 | L43: 0.00 | N43: =SUM(D43:L43) -> 0.00
B44: Lead (nf) | C44: RecyclingLead (nf) | D44: 0.00 | E44: 0.00 | F44: 0.00 | G44: 0.00 | H44: 0.00 | I44: 0.04 | J44: 0.00 | K44: 0.00 | L44: 0.00 | N44: =SUM(D44:L44) -> 0.04
B45: Matresses | C45: RecyclingMatresses | D45: 0.00 | E45: 0.00 | F45: 0.00 | G45: 0.00 | H45: 7.06 | I45: 0.00 | J45: 0.00 | K45: 0.00 | L45: 0.00 | N45: =SUM(D45:L45) -> 7.06
B46: Microwave Motors | C46: RecyclingMicrowave Motors | D46: 0.00 | E46: 0.00 | F46: 0.00 | G46: 0.00 | H46: 0.00 | I46: 6.50 | J46: 0.00 | K46: 0.00 | L46: 0.00 | N46: =SUM(D46:L46) -> 6.50
B47: Non Ferrous Metal Non Ferrous Metal | C47: RecyclingNon Ferrous Metal Non Ferrous Metal | D47: 0.36 | E47: 1.08 | F47: 4.06 | G47: 0.00 | H47: 1.80 | I47: 0.28 | J47: 1.04 | K47: 0.00 | L47: 0.00 | N47: =SUM(D47:L47) -> 8.62
B48: Oil (Engine) | C48: RecyclingOil (Engine) | D48: 1.58 | E48: 0.00 | F48: 0.00 | G48: 1.50 | H48: 0.00 | I48: 1.41 | J48: 0.00 | K48: 0.00 | L48: 1.41 | N48: =SUM(D48:L48) -> 5.90
B49: Oil (Vegetable) | C49: RecyclingOil (Vegetable) | D49: 0.00 | E49: 0.00 | F49: 0.00 | G49: 0.00 | H49: 0.00 | I49: 0.00 | J49: 0.53 | K49: 0.00 | L49: 0.00 | N49: =SUM(D49:L49) -> 0.53
B50: Paint (chemicals) | C50: RecyclingPaint (chemicals) | D50: 0.00 | E50: 0.03 | F50: 0.00 | G50: 0.00 | H50: 0.00 | I50: 0.00 | J50: 0.00 | K50: 0.00 | L50: 0.00 | N50: =SUM(D50:L50) -> 0.03
B51: Paper (mixed with card) | C51: RecyclingPaper (mixed with card) | D51: 0.00 | E51: 0.00 | F51: 0.00 | G51: 0.00 | H51: 0.00 | I51: 0.00 | J51: 0.00 | K51: 0.00 | L51: 0.00 | N51: =SUM(D51:L51) -> 0.00
B52: Paper (newspaper & magazines) | C52: RecyclingPaper (newspaper & magazines) | D52: 31.16 | E52: 29.10 | F52: 30.06 | G52: 7.80 | H52: 15.30 | I52: 16.94 | J52: 0.00 | K52: 0.00 | L52: 0.00 | N52: =SUM(D52:L52) -> 130.36
B53: Plasterboard | C53: RecyclingPlasterboard | D53: 0.00 | E53: 0.16 | F53: 13.04 | G53: 10.00 | H53: 0.00 | I53: 9.72 | J53: 0.00 | K53: 0.00 | L53: 0.00 | N53: =SUM(D53:L53) -> 32.92
B54: Plastic (Mixed) | C54: RecyclingPlastic (Mixed) | D54: 0.00 | E54: 1.64 | F54: 0.18 | G54: 0.00 | H54: 0.00 | I54: 0.00 | J54: 0.25 | K54: 0.00 | L54: 0.22 | N54: =SUM(D54:L54) -> 2.29
B55: Printer Cartridges | C55: RecyclingPrinter Cartridges | D55: 0.00 | E55: 0.00 | F55: 0.00 | G55: 0.00 | H55: 0.00 | I55: 0.00 | J55: 0.00 | K55: 0.00 | L55: 0.00 | N55: =SUM(D55:L55) -> 0.00
B56: Road Sweepings | C56: RecyclingRoad Sweepings | D56: 0.00 | E56: 0.00 | F56: 0.00 | G56: 0.00 | H56: 0.00 | I56: 377.20 | J56: 0.00 | K56: 0.00 | L56: 0.00 | N56: =SUM(D56:L56) -> 377.20
B57: Scrap metal (mixed) | C57: RecyclingScrap metal (mixed) | D57: 31.67 | E57: 20.68 | F57: 37.64 | G57: 46.42 | H57: 31.20 | I57: 62.16 | J57: 19.64 | K57: 6.76 | L57: 7.44 | N57: =SUM(D57:L57) -> 263.61
B58: Screens output | C58: RecyclingScreens output | D58: 4.21 | E58: 2.82 | F58: 6.87 | G58: 4.10 | H58: 5.36 | I58: 13.13 | J58: 1.88 | K58: 1.40 | L58: 4.12 | N58: =SUM(D58:L58) -> 43.89
B59: Small Domestic Appliances | C59: RecyclingSmall Domestic Appliances | D59: 19.23 | E59: 6.50 | F59: 17.17 | G59: 12.60 | H59: 19.19 | I59: 39.63 | J59: 6.72 | K59: 2.60 | L59: 2.91 | N59: =SUM(D59:L59) -> 126.55
B60: Soil & rubble | C60: RecyclingSoil & rubble | D60: 0.00 | E60: 0.00 | F60: 0.00 | G60: 55.90 | H60: 0.00 | I60: 0.00 | J60: 0.00 | K60: 0.00 | L60: 0.00 | N60: =SUM(D60:L60) -> 55.90
B61: Stainless Steel | C61: RecyclingStainless Steel | D61: 0.00 | E61: 0.00 | F61: 0.00 | G61: 0.00 | H61: 0.00 | I61: 0.00 | J61: 0.00 | K61: 0.00 | L61: 0.00 | N61: =SUM(D61:L61) -> 0.00
B62: Textiles | C62: RecyclingTextiles | D62: 8.80 | E62: 7.10 | F62: 9.21 | G62: 5.64 | H62: 7.24 | I62: 10.28 | J62: 3.25 | K62: 1.10 | L62: 1.92 | N62: =SUM(D62:L62) -> 54.54
B63: Tyres | C63: RecyclingTyres | D63: 0.00 | E63: 0.00 | F63: 0.00 | G63: 0.00 | H63: 0.00 | I63: 0.00 | J63: 0.00 | K63: 0.00 | L63: 0.00 | N63: =SUM(D63:L63) -> 0.00
B64: Wood (including treated) | C64: RecyclingWood (including treated) | D64: 0.00 | E64: 37.64 | F64: 26.10 | G64: 101.38 | H64: 34.78 | I64: 145.08 | J64: 19.54 | K64: 10.02 | L64: 10.77 | N64: =SUM(D64:L64) -> 385.31
B66: Sub Total | D66: =SUM(D23:D64) -> 210.01 | E66: =SUM(E23:E64) -> 166.99 | F66: =SUM(F23:F64) -> 247.99 | G66: =SUM(G23:G64) -> 329.86 | H66: =SUM(H23:H64) -> 229.62 | I66: =SUM(I23:I64) -> 832.13 | J66: =SUM(J23:J64) -> 83.36 | K66: =SUM(K23:K64) -> 27.20 | L66: =SUM(L23:L64) -> 43.00 | N66: =SUM(D66:L66) -> 2,170.15
A68: Re-Use | B68: Books | C68: Re-UseBooks | D68: 0.18 | E68: 0.00 | F68: 0.00 | G68: 0.00 | H68: 0.00 | I68: 0.00 | J68: 0.00 | K68: 0.00 | L68: 0.16 | N68: =SUM(D68:L68) -> 0.34
B69: Gas Cylinders | C69: Re-UseGas Cylinders | D69: 0.00 | E69: 0.00 | F69: 0.00 | G69: 0.00 | H69: 0.00 | I69: 0.00 | J69: 0.00 | K69: 0.00 | L69: 0.00 | N69: =SUM(D69:L69) -> 0.00
B70: Household Goods Household Goods | C70: Re-UseHousehold Goods Household Goods | D70: 0.00 | E70: 0.00 | F70: 0.00 | G70: 10.60 | H70: 0.00 | I70: 0.00 | J70: 0.00 | K70: 0.00 | L70: 0.00 | N70: =SUM(D70:L70) -> 10.60
B71: Inert (rubble/hardcore) | C71: Re-UseInert (rubble/hardcore) | D71: 47.72 | E71: 27.12 | F71: 23.10 | G71: 0.00 | H71: 46.34 | I71: 86.52 | J71: 15.76 | K71: 6.00 | L71: 9.92 | N71: =SUM(D71:L71) -> 262.48
B72: Soil | C72: Re-UseSoil | D72: 0.00 | E72: 0.00 | F72: 0.00 | G72: 0.00 | H72: 0.00 | I72: 0.00 | J72: 0.00 | K72: 0.00 | L72: 0.00 | N72: =SUM(D72:L72) -> 0.00
B74: Sub Total | D74: =SUM(D68:D73) -> 47.90 | E74: =SUM(E68:E73) -> 27.12 | F74: =SUM(F68:F73) -> 23.10 | G74: =SUM(G68:G73) -> 10.60 | H74: =SUM(H68:H73) -> 46.34 | I74: =SUM(I68:I73) -> 86.52 | J74: =SUM(J68:J73) -> 15.76 | K74: =SUM(K68:K73) -> 6.00 | L74: =SUM(L68:L73) -> 10.08 | N74: =SUM(D74:L74) -> 273.42
B77: Grand Total | D77: =SUM(D7)+(D15)+(D21)+(D66)+(D74) -> 430.57 | E77: =SUM(E7)+(E15)+(E21)+(E66)+(E74) -> 318.24 | F77: =SUM(F7)+(F15)+(F21)+(F66)+(F74) -> 499.31 | G77: =SUM(G7)+(G15)+(G21)+(G66)+(G74) -> 709.30 | H77: =SUM(H7)+(H15)+(H21)+(H66)+(H74) -> 441.84 | I77: =SUM(I7)+(I15)+(I21)+(I66)+(I74) -> 1,615.84 | J77: =SUM(J7)+(J15)+(J21)+(J66)+(J74) -> 155.70 | K77: =SUM(K7)+(K15)+(K21)+(K66)+(K74) -> 61.22 | L77: =SUM(L7)+(L15)+(L21)+(L66)+(L74) -> 86.51 | N77: =SUM(D77:L77) -> 4,318.53

Sheet February
A1: February | B1: 01/04/2015 to 31/03/2016
A3: Treatment Use | B3: Waste Type | D3: Burton Farm HWRC | E3: Cherry Orchard HWRC | F3: Hunters Lane HWRC & Transfer | G3: Judkins HWRC | H3: Lower House Farm HWRC | I3: Princes Drive HWRC & Transfer | J3: Shipston HWRC | K3: Stockton HWRC | L3: Wellesbourne HWRC | N3: Total
A5: Composting | B5: Green waste | C5: CompostingGreen waste | D5: 24.64 | E5: 42.82 | F5: 18.03 | G5: 21.80 | H5: 17.22 | I5: 62.58 | J5: 12.18 | K5: 1.93 | L5: 0.00 | N5: =SUM(D5:L5) -> 201.20
B7: Sub Total | D7: =SUM(D5:D5) -> 24.64 | E7: =SUM(E5:E5) -> 42.82 | F7: =SUM(F5:F5) -> 18.03 | G7: =SUM(G5:G5) -> 21.80 | H7: =SUM(H5:H5) -> 17.22 | I7: =SUM(I5:I5) -> 62.58 | J7: =SUM(J5:J5) -> 12.18 | K7: =SUM(K5:K5) -> 1.93 | L7: =SUM(L5:L5) -> 0.00 | N7: =SUM(D7:L7) -> 201.20
A9: Efw (incineration) | B9: Bulky Waste | C9: Efw (incineration)Bulky Waste | D9: 0.00 | E9: 0.00 | F9: 0.00 | G9: 0.00 | H9: 17.18 | I9: 0.00 | J9: 0.00 | K9: 0.00 | L9: 0.00 | N9: =SUM(D9:L9) -> 17.18
B10: Chemicals | C10: Efw (incineration)Chemicals | D10: 0.00 | E10: 0.00 | F10: 0.00 | G10: 0.00 | H10: 0.00 | I10: 0.00 | J10: 0.00 | K10: 0.00 | L10: 0.00 | N10: =SUM(D10:L10) -> 0.00
B11: Clinical | C11: Efw (incineration)Clinical | D11: 0.00 | E11: 0.00 | F11: 0.00 | G11: 0.00 | H11: 0.00 | I11: 1.11 | J11: 0.00 | K11: 0.00 | L11: 0.00 | N11: =SUM(D11:L11) -> 1.11
B12: General (mixed waste) | C12: Efw (incineration)General (mixed waste) | D12: 0.00 | E12: 0.00 | F12: 0.00 | G12: 0.00 | H12: 133.14 | I12: 0.00 | J12: 0.00 | K12: 0.00 | L12: 0.00 | N12: =SUM(D12:L12) -> 133.14
B13: Paint (chemicals) | C13: Efw (incineration)Paint (chemicals) | D13: 0.00 | E13: 0.00 | F13: 0.00 | G13: 0.00 | H13: 0.00 | I13: 0.00 | J13: 0.00 | K13: 0.00 | L13: 0.00 | N13: =SUM(D13:L13) -> 0.00
B15: Sub Total | D15: =SUM(D9:D13) -> 0.00 | E15: =SUM(E9:E13) -> 0.00 | F15: =SUM(F9:F13) -> 0.00 | G15: =SUM(G9:G13) -> 0.00 | H15: =SUM(H9:H13) -> 150.32 | I15: =SUM(I9:I13) -> 1.11 | J15: =SUM(J9:J13) -> 0.00 | K15: =SUM(K9:K13) -> 0.00 | L15: =SUM(L9:L13) -> 0.00 | N15: =SUM(D15:L15) -> 151.43
A17: Landfill | B17: Asbestos | C17: LandfillAsbestos | D17: 0.00 | E17: 0.00 | F17: 0.00 | G17: 0.00 | H17: 0.00 | I17: 0.00 | J17: 0.00 | K17: 0.00 | L17: 0.00 | N17: =SUM(D17:L17) -> 0.00
B18: General (mixed waste) | C18: LandfillGeneral (mixed waste) | D18: 160.30 | E18: 85.80 | F18: 157.83 | G18: 254.70 | H18: 18.11 | I18: 600.14 | J18: 34.96 | K18: 27.40 | L18: 39.83 | N18: =SUM(D18:L18) -> 1,379.07
B19: Hard Plastic | C19: LandfillHard Plastic | D19: 0.00 | E19: 0.00 | F19: 3.43 | G19: 0.00 | H19: 2.77 | I19: 0.00 | J19: 0.00 | K19: 0.00 | L19: 0.00 | N19: =SUM(D19:L19) -> 6.19
B21: Sub Total | D21: =SUM(D17:D19) -> 160.30 | E21: =SUM(E17:E19) -> 85.80 | F21: =SUM(F17:F19) -> 161.26 | G21: =SUM(G17:G19) -> 254.70 | H21: =SUM(H17:H19) -> 20.88 | I21: =SUM(I17:I19) -> 600.14 | J21: =SUM(J17:J19) -> 34.96 | K21: =SUM(K17:K19) -> 27.40 | L21: =SUM(L17:L19) -> 39.83 | N21: =SUM(D21:L21) -> 1,385.26
A23: Recycling | B23: Aluminium (nf) | C23: RecyclingAluminium (nf) | D23: 0.00 | E23: 0.00 | F23: 0.30 | G23: 0.00 | H23: 1.50 | I23: 0.44 | J23: 0.00 | K23: 0.00 | L23: 0.00 | N23: =SUM(D23:L23) -> 2.24
B24: Batteries (car) | C24: RecyclingBatteries (car) | D24: 0.00 | E24: 0.00 | F24: 0.00 | G24: 0.00 | H24: 0.00 | I24: 0.00 | J24: 0.77 | K24: 1.02 | L24: 0.00 | N24: =SUM(D24:L24) -> 1.79
B25: Batteries (household) | C25: RecyclingBatteries (household) | D25: 1.96 | E25: 0.89 | F25: 0.00 | G25: 0.00 | H25: 0.00 | I25: 1.59 | J25: 1.48 | K25: 0.00 | L25: 0.34 | N25: =SUM(D25:L25) -> 6.26
B26: Books | C26: RecyclingBooks | D26: 0.00 | E26: 0.00 | F26: 0.00 | G26: 1.50 | H26: 0.00 | I26: 0.00 | J26: 0.00 | K26: 0.00 | L26: 0.00 | N26: =SUM(D26:L26) -> 1.50
B27: Brass(nf) | C27: RecyclingBrass(nf) | D27: 0.00 | E27: 0.00 | F27: 0.00 | G27: 0.00 | H27: 0.00 | I27: 0.00 | J27: 0.00 | K27: 0.00 | L27: 0.00 | N27: =SUM(D27:L27) -> 0.00
B28: Cable (nf) | C28: RecyclingCable (nf) | D28: 0.00 | E28: 0.00 | F28: 0.00 | G28: 0.00 | H28: 0.00 | I28: 1.38 | J28: 0.00 | K28: 0.00 | L28: 0.00 | N28: =SUM(D28:L28) -> 1.38
B29: Cardboard | C29: RecyclingCardboard | D29: 20.16 | E29: 15.18 | F29: 9.38 | G29: 0.00 | H29: 14.58 | I29: 50.66 | J29: 9.86 | K29: 2.86 | L29: 6.00 | N29: =SUM(D29:L29) -> 128.68
B30: Carpet | C30: RecyclingCarpet | D30: 21.30 | E30: 12.08 | F30: 14.16 | G30: 35.40 | H30: 38.82 | I30: 19.71 | J30: 5.64 | K30: 0.00 | L30: 0.00 | N30: =SUM(D30:L30) -> 147.11
B31: Chipboard | C31: RecyclingChipboard | D31: 65.10 | E31: 27.42 | F31: 58.34 | G31: 0.00 | H31: 24.24 | I31: 37.40 | J31: 13.12 | K31: 0.00 | L31: 2.94 | N31: =SUM(D31:L31) -> 228.56
B32: Copper & Brass Mixed (nf) | C32: RecyclingCopper & Brass Mixed (nf) | D32: 0.00 | E32: 0.00 | F32: 0.00 | G32: 0.00 | H32: 0.00 | I32: 0.00 | J32: 0.00 | K32: 0.00 | L32: 0.00 | N32: =SUM(D32:L32) -> 0.00
B33: Drink Cartons | C33: RecyclingDrink Cartons | D33: 0.00 | E33: 0.31 | F33: 0.00 | G33: 0.00 | H33: 0.00 | I33: 0.18 | J33: 0.00 | K33: 0.00 | L33: 0.00 | N33: =SUM(D33:L33) -> 0.48
B34: Fire Extinguishers | C34: RecyclingFire Extinguishers | D34: 0.00 | E34: 0.00 | F34: 0.00 | G34: 0.00 | H34: 0.00 | I34: 0.00 | J34: 0.00 | K34: 0.00 | L34: 0.00 | N34: =SUM(D34:L34) -> 0.00
B35: Fluorescent Tubes Output | C35: RecyclingFluorescent Tubes Output | D35: 0.21 | E35: 0.00 | F35: 0.00 | G35: 0.00 | H35: 0.00 | I35: 0.16 | J35: 0.00 | K35: 0.00 | L35: 0.00 | N35: =SUM(D35:L35) -> 0.37
B36: Fridges Output | C36: RecyclingFridges Output | D36: 4.49 | E36: 2.41 | F36: 8.27 | G36: 3.00 | H36: 9.67 | I36: 9.90 | J36: 2.01 | K36: 0.59 | L36: 0.00 | N36: =SUM(D36:L36) -> 40.33
B37: Gas Cylinders | C37: RecyclingGas Cylinders | D37: 1.46 | E37: 0.00 | F37: 0.00 | G37: 0.80 | H37: 0.00 | I37: 0.20 | J37: 0.00 | K37: 0.00 | L37: 0.00 | N37: =SUM(D37:L37) -> 2.46
B38: General (mixed waste) | C38: RecyclingGeneral (mixed waste) | D38: 0.00 | E38: 0.00 | F38: 0.00 | G38: 0.00 | H38: 0.00 | I38: 0.00 | J38: 0.00 | K38: 0.00 | L38: 0.00 | N38: =SUM(D38:L38) -> 0.00
B39: Glass (bottles) | C39: RecyclingGlass (bottles) | D39: 4.63 | E39: 6.57 | F39: 1.62 | G39: 6.20 | H39: 0.00 | I39: 7.61 | J39: 5.06 | K39: 0.00 | L39: 0.00 | N39: =SUM(D39:L39) -> 31.68
B40: Green waste | C40: RecyclingGreen waste | D40: 0.00 | E40: 0.00 | F40: 0.00 | G40: 0.00 | H40: 0.00 | I40: 0.00 | J40: 0.00 | K40: 0.00 | L40: 4.79 | N40: =SUM(D40:L40) -> 4.79
B41: Hard Plastic | C41: RecyclingHard Plastic | D41: 0.00 | E41: 0.00 | F41: 0.00 | G41: 0.00 | H41: 0.00 | I41: 0.00 | J41: 0.00 | K41: 0.00 | L41: 0.00 | N41: =SUM(D41:L41) -> 0.00
B42: Household Goods Household Goods | C42: RecyclingHousehold Goods Household Goods | D42: 0.00 | E42: 0.00 | F42: 0.00 | G42: 0.00 | H42: 0.00 | I42: 0.00 | J42: 0.00 | K42: 0.00 | L42: 0.00 | N42: =SUM(D42:L42) -> 0.00
B43: Inert (rubble/hardcore) | C43: RecyclingInert (rubble/hardcore) | D43: 0.00 | E43: 0.00 | F43: 0.00 | G43: 0.00 | H43: 0.00 | I43: 0.00 | J43: 0.00 | K43: 0.00 | L43: 0.00 | N43: =SUM(D43:L43) -> 0.00
B44: Lead (nf) | C44: RecyclingLead (nf) | D44: 0.00 | E44: 0.00 | F44: 0.00 | G44: 0.00 | H44: 0.00 | I44: 0.00 | J44: 0.00 | K44: 0.00 | L44: 0.00 | N44: =SUM(D44:L44) -> 0.00
B45: Matresses | C45: RecyclingMatresses | D45: 0.00 | E45: 0.86 | F45: 0.00 | G45: 0.00 | H45: 3.08 | I45: 0.00 | J45: 0.00 | K45: 0.00 | L45: 0.00 | N45: =SUM(D45:L45) -> 3.94
B46: Microwave Motors | C46: RecyclingMicrowave Motors | D46: 0.00 | E46: 0.00 | F46: 0.00 | G46: 0.00 | H46: 0.00 | I46: 0.00 | J46: 0.00 | K46: 0.00 | L46: 0.00 | N46: =SUM(D46:L46) -> 0.00
B47: Non Ferrous Metal Non Ferrous Metal | C47: RecyclingNon Ferrous Metal Non Ferrous Metal | D47: 0.00 | E47: 0.48 | F47: 2.22 | G47: 0.00 | H47: 1.74 | I47: 0.00 | J47: 0.50 | K47: 0.00 | L47: 0.00 | N47: =SUM(D47:L47) -> 4.94
B48: Oil (Engine) | C48: RecyclingOil (Engine) | D48: 0.00 | E48: 0.00 | F48: 0.00 | G48: 1.40 | H48: 0.00 | I48: 0.00 | J48: 0.00 | K48: 0.00 | L48: 0.00 | N48: =SUM(D48:L48) -> 1.40
B49: Oil (Vegetable) | C49: RecyclingOil (Vegetable) | D49: 0.00 | E49: 0.00 | F49: 0.00 | G49: 0.00 | H49: 0.00 | I49: 0.00 | J49: 0.00 | K49: 0.00 | L49: 0.00 | N49: =SUM(D49:L49) -> 0.00
B50: Paint (chemicals) | C50: RecyclingPaint (chemicals) | D50: 0.00 | E50: 0.00 | F50: 0.00 | G50: 0.00 | H50: 0.62 | I50: 0.00 | J50: 0.00 | K50: 0.00 | L50: 0.00 | N50: =SUM(D50:L50) -> 0.62
B51: Paper (mixed with card) | C51: RecyclingPaper (mixed with card) | D51: 0.00 | E51: 0.00 | F51: 0.00 | G51: 30.50 | H51: 0.00 | I51: 0.00 | J51: 0.00 | K51: 0.00 | L51: 0.00 | N51: =SUM(D51:L51) -> 30.50
B52: Paper (newspaper & magazines) | C52: RecyclingPaper (newspaper & magazines) | D52: 10.46 | E52: 10.54 | F52: 28.34 | G52: 0.00 | H52: 10.36 | I52: 26.40 | J52: 10.50 | K52: 0.00 | L52: 0.00 | N52: =SUM(D52:L52) -> 96.60
B53: Plasterboard | C53: RecyclingPlasterboard | D53: 12.24 | E53: 0.00 | F53: 0.00 | G53: 5.70 | H53: 0.00 | I53: 20.96 | J53: 0.00 | K53: 0.00 | L53: 0.00 | N53: =SUM(D53:L53) -> 38.90
B54: Plastic (Mixed) | C54: RecyclingPlastic (Mixed) | D54: 0.00 | E54: 1.70 | F54: 0.25 | G54: 0.00 | H54: 0.11 | I54: 23.89 | J54: 0.20 | K54: 0.05 | L54: 0.07 | N54: =SUM(D54:L54) -> 26.27
B55: Printer Cartridges | C55: RecyclingPrinter Cartridges | D55: 0.00 | E55: 0.00 | F55: 0.57 | G55: 0.00 | H55: 0.00 | I55: 0.00 | J55: 0.00 | K55: 0.00 | L55: 0.00 | N55: =SUM(D55:L55) -> 0.57
B56: Road Sweepings | C56: RecyclingRoad Sweepings | D56: 0.00 | E56: 0.00 | F56: 0.00 | G56: 0.00 | H56: 0.00 | I56: 352.02 | J56: 0.00 | K56: 0.00 | L56: 0.00 | N56: =SUM(D56:L56) -> 352.02
B57: Scrap metal (mixed) | C57: RecyclingScrap metal (mixed) | D57: 36.52 | E57: 14.80 | F57: 46.91 | G57: 36.60 | H57: 24.16 | I57: 69.56 | J57: 13.42 | K57: 6.40 | L57: 4.54 | N57: =SUM(D57:L57) -> 252.91
B58: Screens output | C58: RecyclingScreens output | D58: 4.06 | E58: 3.73 | F58: 8.11 | G58: 4.20 | H58: 5.76 | I58: 8.04 | J58: 1.94 | K58: 0.68 | L58: 2.67 | N58: =SUM(D58:L58) -> 39.20
B59: Small Domestic Appliances | C59: RecyclingSmall Domestic Appliances | D59: 38.36 | E59: 7.20 | F59: 16.57 | G59: 7.70 | H59: 15.05 | I59: 32.42 | J59: 6.18 | K59: 0.97 | L59: 4.29 | N59: =SUM(D59:L59) -> 128.74
B60: Soil & rubble | C60: RecyclingSoil & rubble | D60: 0.00 | E60: 0.00 | F60: 0.00 | G60: 0.00 | H60: 0.00 | I60: 0.00 | J60: 0.00 | K60: 0.00 | L60: 0.00 | N60: =SUM(D60:L60) -> 0.00
B61: Stainless Steel | C61: RecyclingStainless Steel | D61: 0.00 | E61: 0.00 | F61: 0.00 | G61: 0.00 | H61: 0.00 | I61: 0.53 | J61: 0.00 | K61: 0.00 | L61: 0.00 | N61: =SUM(D61:L61) -> 0.53
B62: Textiles | C62: RecyclingTextiles | D62: 4.39 | E62: 4.40 | F62: 6.87 | G62: 53.20 | H62: 6.34 | I62: 8.48 | J62: 3.45 | K62: 0.65 | L62: 1.85 | N62: =SUM(D62:L62) -> 89.63
B63: Tyres | C63: RecyclingTyres | D63: 0.00 | E63: 0.00 | F63: 0.00 | G63: 0.00 | H63: 0.00 | I63: 0.00 | J63: 0.00 | K63: 0.00 | L63: 0.00 | N63: =SUM(D63:L63) -> 0.00
B64: Wood (including treated) | C64: RecyclingWood (including treated) | D64: 0.00 | E64: 30.64 | F64: 48.61 | G64: 179.40 | H64: 80.40 | I64: 169.98 | J64: 13.42 | K64: 8.02 | L64: 16.08 | N64: =SUM(D64:L64) -> 546.55
B66: Sub Total | D66: =SUM(D23:D64) -> 225.35 | E66: =SUM(E23:E64) -> 139.21 | F66: =SUM(F23:F64) -> 250.52 | G66: =SUM(G23:G64) -> 365.60 | H66: =SUM(H23:H64) -> 236.43 | I66: =SUM(I23:I64) -> 841.50 | J66: =SUM(J23:J64) -> 87.55 | K66: =SUM(K23:K64) -> 21.24 | L66: =SUM(L23:L64) -> 43.57 | N66: =SUM(D66:L66) -> 2,210.96
A68: Re-Use | B68: Books | C68: Re-UseBooks | D68: 0.00 | E68: 0.00 | F68: 0.00 | G68: 0.00 | H68: 0.00 | I68: 0.00 | J68: 0.00 | K68: 0.00 | L68: 0.00 | N68: =SUM(D68:L68) -> 0.00
B69: Gas Cylinders | C69: Re-UseGas Cylinders | D69: 0.00 | E69: 0.00 | F69: 0.00 | G69: 0.00 | H69: 0.00 | I69: 0.00 | J69: 0.00 | K69: 0.00 | L69: 0.00 | N69: =SUM(D69:L69) -> 0.00
B70: Household Goods Household Goods | C70: Re-UseHousehold Goods Household Goods | D70: 0.00 | E70: 0.00 | F70: 0.00 | G70: 9.00 | H70: 0.00 | I70: 0.00 | J70: 0.00 | K70: 0.00 | L70: 0.00 | N70: =SUM(D70:L70) -> 9.00
B71: Inert (rubble/hardcore) | C71: Re-UseInert (rubble/hardcore) | D71: 64.43 | E71: 41.74 | F71: 65.84 | G71: 0.00 | H71: 27.34 | I71: 104.68 | J71: 8.78 | K71: 7.26 | L71: 8.84 | N71: =SUM(D71:L71) -> 328.91
B72: Soil | C72: Re-UseSoil | D72: 0.00 | E72: 0.00 | F72: 0.00 | G72: 0.00 | H72: 0.00 | I72: 0.00 | J72: 0.00 | K72: 0.00 | L72: 0.00 | N72: =SUM(D72:L72) -> 0.00
B74: Sub Total | D74: =SUM(D68:D73) -> 64.43 | E74: =SUM(E68:E73) -> 41.74 | F74: =SUM(F68:F73) -> 65.84 | G74: =SUM(G68:G73) -> 9.00 | H74: =SUM(H68:H73) -> 27.34 | I74: =SUM(I68:I73) -> 104.68 | J74: =SUM(J68:J73) -> 8.78 | K74: =SUM(K68:K73) -> 7.26 | L74: =SUM(L68:L73) -> 8.84 | N74: =SUM(D74:L74) -> 337.91
B77: Grand Total | D77: =SUM(D7)+(D15)+(D21)+(D66)+(D74) -> 474.72 | E77: =SUM(E7)+(E15)+(E21)+(E66)+(E74) -> 309.57 | F77: =SUM(F7)+(F15)+(F21)+(F66)+(F74) -> 495.65 | G77: =SUM(G7)+(G15)+(G21)+(G66)+(G74) -> 651.10 | H77: =SUM(H7)+(H15)+(H21)+(H66)+(H74) -> 452.19 | I77: =SUM(I7)+(I15)+(I21)+(I66)+(I74) -> 1,610.01 | J77: =SUM(J7)+(J15)+(J21)+(J66)+(J74) -> 143.47 | K77: =SUM(K7)+(K15)+(K21)+(K66)+(K74) -> 57.83 | L77: =SUM(L7)+(L15)+(L21)+(L66)+(L74) -> 92.24 | N77: =SUM(D77:L77) -> 4,286.76

Sheet March
A1: March | B1: 01/04/2015 to 31/03/2016
A3: Treatment Use | B3: Waste Type | D3: Burton Farm HWRC | E3: Cherry Orchard HWRC | F3: Hunters Lane HWRC & Transfer | G3: Judkins HWRC | H3: Lower House Farm HWRC | I3: Princes Drive HWRC & Transfer | J3: Shipston HWRC | K3: Stockton HWRC | L3: Wellesbourne HWRC | N3: Total
A5: Composting | B5: Green waste | C5: CompostingGreen waste | D5: 48.68 | E5: 57.52 | F5: 54.76 | G5: 44.90 | H5: 31.06 | I5: 128.52 | J5: 22.14 | K5: 7.70 | L5: 11.45 | N5: =SUM(D5:L5) -> 406.73
B7: Sub Total | D7: =SUM(D5:D5) -> 48.68 | E7: =SUM(E5:E5) -> 57.52 | F7: =SUM(F5:F5) -> 54.76 | G7: =SUM(G5:G5) -> 44.90 | H7: =SUM(H5:H5) -> 31.06 | I7: =SUM(I5:I5) -> 128.52 | J7: =SUM(J5:J5) -> 22.14 | K7: =SUM(K5:K5) -> 7.70 | L7: =SUM(L5:L5) -> 11.45 | N7: =SUM(D7:L7) -> 406.73
A9: Efw (incineration) | B9: Bulky Waste | C9: Efw (incineration)Bulky Waste | D9: 0.00 | E9: 0.00 | F9: 0.00 | G9: 0.00 | H9: 18.10 | I9: 0.00 | J9: 0.00 | K9: 0.00 | L9: 0.00 | N9: =SUM(D9:L9) -> 18.10
B10: Chemicals | C10: Efw (incineration)Chemicals | D10: 0.00 | E10: 0.00 | F10: 0.00 | G10: 0.00 | H10: 2.60 | I10: 0.00 | J10: 0.00 | K10: 0.00 | L10: 0.00 | N10: =SUM(D10:L10) -> 2.60
B11: Clinical | C11: Efw (incineration)Clinical | D11: 0.00 | E11: 0.00 | F11: 0.00 | G11: 0.00 | H11: 0.00 | I11: 4.26 | J11: 0.00 | K11: 0.00 | L11: 0.00 | N11: =SUM(D11:L11) -> 4.26
B12: General (mixed waste) | C12: Efw (incineration)General (mixed waste) | D12: 22.95 | E12: 12.78 | F12: 16.48 | G12: 0.00 | H12: 156.93 | I12: 9.82 | J12: 0.00 | K12: 0.00 | L12: 0.00 | N12: =SUM(D12:L12) -> 218.96
B13: Paint (chemicals) | C13: Efw (incineration)Paint (chemicals) | D13: 0.00 | E13: 0.00 | F13: 0.00 | G13: 0.00 | H13: 0.00 | I13: 0.00 | J13: 0.00 | K13: 0.00 | L13: 0.00 | N13: =SUM(D13:L13) -> 0.00
B15: Sub Total | D15: =SUM(D9:D13) -> 22.95 | E15: =SUM(E9:E13) -> 12.78 | F15: =SUM(F9:F13) -> 16.48 | G15: =SUM(G9:G13) -> 0.00 | H15: =SUM(H9:H13) -> 177.63 | I15: =SUM(I9:I13) -> 14.08 | J15: =SUM(J9:J13) -> 0.00 | K15: =SUM(K9:K13) -> 0.00 | L15: =SUM(L9:L13) -> 0.00 | N15: =SUM(D15:L15) -> 243.92
A17: Landfill | B17: Asbestos | C17: LandfillAsbestos | D17: 0.00 | E17: 0.00 | F17: 0.00 | G17: 0.00 | H17: 4.60 | I17: 0.00 | J17: 0.00 | K17: 0.00 | L17: 0.00 | N17: =SUM(D17:L17) -> 4.60
B18: General (mixed waste) | C18: LandfillGeneral (mixed waste) | D18: 140.96 | E18: 83.68 | F18: 220.82 | G18: 255.90 | H18: 6.86 | I18: 675.92 | J18: 45.88 | K18: 9.56 | L18: 0.00 | N18: =SUM(D18:L18) -> 1,439.58
B19: Hard Plastic | C19: LandfillHard Plastic | D19: 0.00 | E19: 3.32 | F19: 0.00 | G19: 0.00 | H19: 3.17 | I19: 0.00 | J19: 0.00 | K19: 0.00 | L19: 0.00 | N19: =SUM(D19:L19) -> 6.49
B21: Sub Total | D21: =SUM(D17:D19) -> 140.96 | E21: =SUM(E17:E19) -> 87.00 | F21: =SUM(F17:F19) -> 220.82 | G21: =SUM(G17:G19) -> 255.90 | H21: =SUM(H17:H19) -> 14.63 | I21: =SUM(I17:I19) -> 675.92 | J21: =SUM(J17:J19) -> 45.88 | K21: =SUM(K17:K19) -> 9.56 | L21: =SUM(L17:L19) -> 0.00 | N21: =SUM(D21:L21) -> 1,450.67
A23: Recycling | B23: Aluminium (nf) | C23: RecyclingAluminium (nf) | D23: 0.00 | E23: 0.00 | F23: 0.00 | G23: 0.00 | H23: 0.00 | I23: 0.74 | J23: 0.00 | K23: 0.00 | L23: 0.00 | N23: =SUM(D23:L23) -> 0.74
B24: Batteries (car) | C24: RecyclingBatteries (car) | D24: 0.00 | E24: 1.86 | F24: 4.61 | G24: 0.00 | H24: 4.38 | I24: 9.99 | J24: 0.00 | K24: 0.03 | L24: 0.79 | N24: =SUM(D24:L24) -> 21.66
B25: Batteries (household) | C25: RecyclingBatteries (household) | D25: 0.00 | E25: 0.00 | F25: 0.00 | G25: 0.00 | H25: 0.00 | I25: 0.00 | J25: 0.00 | K25: 0.00 | L25: 0.00 | N25: =SUM(D25:L25) -> 0.00
B26: Books | C26: RecyclingBooks | D26: 0.00 | E26: 0.00 | F26: 0.00 | G26: 1.10 | H26: 0.00 | I26: 0.00 | J26: 0.00 | K26: 0.00 | L26: 0.00 | N26: =SUM(D26:L26) -> 1.10
B27: Brass(nf) | C27: RecyclingBrass(nf) | D27: 0.00 | E27: 0.00 | F27: 0.00 | G27: 0.00 | H27: 0.00 | I27: 0.00 | J27: 0.00 | K27: 0.00 | L27: 0.00 | N27: =SUM(D27:L27) -> 0.00
B28: Cable (nf) | C28: RecyclingCable (nf) | D28: 0.48 | E28: 0.00 | F28: 0.82 | G28: 0.00 | H28: 0.00 | I28: 0.00 | J28: 0.32 | K28: 0.00 | L28: 0.00 | N28: =SUM(D28:L28) -> 1.62
B29: Cardboard | C29: RecyclingCardboard | D29: 23.77 | E29: 22.34 | F29: 20.48 | G29: 38.28 | H29: 13.68 | I29: 50.80 | J29: 11.38 | K29: 5.45 | L29: 8.69 | N29: =SUM(D29:L29) -> 194.87
B30: Carpet | C30: RecyclingCarpet | D30: 13.02 | E30: 11.00 | F30: 15.97 | G30: 34.20 | H30: 37.11 | I30: 42.53 | J30: 6.94 | K30: 0.00 | L30: 0.00 | N30: =SUM(D30:L30) -> 160.77
B31: Chipboard | C31: RecyclingChipboard | D31: 71.64 | E31: 19.84 | F31: 51.23 | G31: 0.00 | H31: 68.46 | I31: 72.74 | J31: 22.14 | K31: 0.00 | L31: 0.00 | N31: =SUM(D31:L31) -> 306.05
B32: Copper & Brass Mixed (nf) | C32: RecyclingCopper & Brass Mixed (nf) | D32: 0.00 | E32: 0.00 | F32: 0.00 | G32: 0.00 | H32: 0.00 | I32: 0.00 | J32: 0.00 | K32: 0.00 | L32: 0.00 | N32: =SUM(D32:L32) -> 0.00
B33: Drink Cartons | C33: RecyclingDrink Cartons | D33: 0.00 | E33: 0.29 | F33: 0.00 | G33: 0.00 | H33: 0.00 | I33: 0.43 | J33: 0.00 | K33: 0.00 | L33: 0.00 | N33: =SUM(D33:L33) -> 0.72
B34: Fire Extinguishers | C34: RecyclingFire Extinguishers | D34: 0.00 | E34: 0.00 | F34: 0.00 | G34: 0.00 | H34: 0.00 | I34: 0.00 | J34: 0.00 | K34: 0.00 | L34: 0.00 | N34: =SUM(D34:L34) -> 0.00
B35: Fluorescent Tubes Output | C35: RecyclingFluorescent Tubes Output | D35: 0.00 | E35: 0.00 | F35: 0.00 | G35: 0.60 | H35: 0.34 | I35: 0.29 | J35: 0.00 | K35: 0.00 | L35: 0.31 | N35: =SUM(D35:L35) -> 1.54
B36: Fridges Output | C36: RecyclingFridges Output | D36: 6.97 | E36: 2.48 | F36: 7.33 | G36: 8.80 | H36: 8.84 | I36: 11.89 | J36: 2.74 | K36: 1.12 | L36: 0.00 | N36: =SUM(D36:L36) -> 50.16
B37: Gas Cylinders | C37: RecyclingGas Cylinders | D37: 0.00 | E37: 0.01 | F37: 0.00 | G37: 0.30 | H37: 0.36 | I37: 0.55 | J37: 0.00 | K37: 0.00 | L37: 0.00 | N37: =SUM(D37:L37) -> 1.22
B38: General (mixed waste) | C38: RecyclingGeneral (mixed waste) | D38: 2.33 | E38: 0.00 | F38: 0.00 | G38: 0.00 | H38: 0.00 | I38: 0.00 | J38: 0.00 | K38: 14.49 | L38: 33.49 | N38: =SUM(D38:L38) -> 50.31
B39: Glass (bottles) | C39: RecyclingGlass (bottles) | D39: 3.62 | E39: 3.51 | F39: 1.15 | G39: 0.00 | H39: 0.00 | I39: 8.77 | J39: 1.06 | K39: 0.00 | L39: 1.36 | N39: =SUM(D39:L39) -> 19.46
B40: Green waste | C40: RecyclingGreen waste | D40: 0.00 | E40: 0.00 | F40: 0.00 | G40: 0.00 | H40: 0.00 | I40: 0.00 | J40: 0.00 | K40: 0.00 | L40: 0.00 | N40: =SUM(D40:L40) -> 0.00
B41: Hard Plastic | C41: RecyclingHard Plastic | D41: 0.00 | E41: 0.00 | F41: 3.83 | G41: 0.00 | H41: 0.00 | I41: 0.00 | J41: 0.00 | K41: 0.00 | L41: 0.00 | N41: =SUM(D41:L41) -> 3.83
B42: Household Goods Household Goods | C42: RecyclingHousehold Goods Household Goods | D42: 0.00 | E42: 0.00 | F42: 0.00 | G42: 10.40 | H42: 0.00 | I42: 0.00 | J42: 0.00 | K42: 0.00 | L42: 0.00 | N42: =SUM(D42:L42) -> 10.40
B43: Inert (rubble/hardcore) | C43: RecyclingInert (rubble/hardcore) | D43: 0.00 | E43: 0.00 | F43: 0.00 | G43: 0.00 | H43: 0.00 | I43: 0.00 | J43: 0.00 | K43: 0.00 | L43: 0.00 | N43: =SUM(D43:L43) -> 0.00
B44: Lead (nf) | C44: RecyclingLead (nf) | D44: 0.00 | E44: 0.00 | F44: 0.00 | G44: 0.00 | H44: 0.00 | I44: 0.00 | J44: 0.00 | K44: 0.00 | L44: 0.00 | N44: =SUM(D44:L44) -> 0.00
B45: Matresses | C45: RecyclingMatresses | D45: 1.09 | E45: 0.00 | F45: 0.00 | G45: 0.00 | H45: 3.62 | I45: 0.00 | J45: 0.00 | K45: 0.00 | L45: 0.00 | N45: =SUM(D45:L45) -> 4.71
B46: Microwave Motors | C46: RecyclingMicrowave Motors | D46: 0.00 | E46: 0.00 | F46: 1.11 | G46: 0.00 | H46: 0.00 | I46: 0.00 | J46: 0.00 | K46: 0.00 | L46: 0.00 | N46: =SUM(D46:L46) -> 1.11
B47: Non Ferrous Metal Non Ferrous Metal | C47: RecyclingNon Ferrous Metal Non Ferrous Metal | D47: 0.02 | E47: 2.23 | F47: 0.00 | G47: 0.00 | H47: 1.37 | I47: 0.82 | J47: 0.16 | K47: 0.00 | L47: 0.00 | N47: =SUM(D47:L47) -> 4.60
B48: Oil (Engine) | C48: RecyclingOil (Engine) | D48: 0.00 | E48: 0.00 | F48: 1.85 | G48: 1.00 | H48: 1.32 | I48: 1.74 | J48: 0.00 | K48: 0.00 | L48: 0.00 | N48: =SUM(D48:L48) -> 5.91
B49: Oil (Vegetable) | C49: RecyclingOil (Vegetable) | D49: 0.00 | E49: 0.00 | F49: 0.00 | G49: 0.00 | H49: 0.00 | I49: 0.00 | J49: 0.00 | K49: 0.00 | L49: 0.00 | N49: =SUM(D49:L49) -> 0.00
B50: Paint (chemicals) | C50: RecyclingPaint (chemicals) | D50: 0.00 | E50: 0.10 | F50: 0.00 | G50: 0.00 | H50: 0.00 | I50: 1.23 | J50: 0.00 | K50: 0.00 | L50: 0.00 | N50: =SUM(D50:L50) -> 1.33
B51: Paper (mixed with card) | C51: RecyclingPaper (mixed with card) | D51: 0.00 | E51: 0.00 | F51: 0.00 | G51: 0.00 | H51: 0.00 | I51: 0.00 | J51: 0.00 | K51: 0.00 | L51: 0.00 | N51: =SUM(D51:L51) -> 0.00
B52: Paper (newspaper & magazines) | C52: RecyclingPaper (newspaper & magazines) | D52: 14.48 | E52: 0.00 | F52: 18.02 | G52: 7.48 | H52: 3.38 | I52: 29.62 | J52: 10.78 | K52: 0.00 | L52: 0.00 | N52: =SUM(D52:L52) -> 83.76
B53: Plasterboard | C53: RecyclingPlasterboard | D53: 0.00 | E53: 0.05 | F53: 11.32 | G53: 9.90 | H53: 18.49 | I53: 10.90 | J53: 0.22 | K53: 0.00 | L53: 0.00 | N53: =SUM(D53:L53) -> 50.88
B54: Plastic (Mixed) | C54: RecyclingPlastic (Mixed) | D54: 0.00 | E54: 0.00 | F54: 0.10 | G54: 0.00 | H54: 0.00 | I54: 0.00 | J54: 0.00 | K54: 0.00 | L54: 0.08 | N54: =SUM(D54:L54) -> 0.18
B55: Printer Cartridges | C55: RecyclingPrinter Cartridges | D55: 0.00 | E55: 0.00 | F55: 0.00 | G55: 0.00 | H55: 0.00 | I55: 0.00 | J55: 0.00 | K55: 0.00 | L55: 0.00 | N55: =SUM(D55:L55) -> 0.00
B56: Road Sweepings | C56: RecyclingRoad Sweepings | D56: 0.00 | E56: 0.00 | F56: 0.00 | G56: 0.00 | H56: 0.00 | I56: 332.70 | J56: 0.00 | K56: 0.00 | L56: 0.00 | N56: =SUM(D56:L56) -> 332.70
B57: Scrap metal (mixed) | C57: RecyclingScrap metal (mixed) | D57: 39.00 | E57: 18.82 | F57: 46.39 | G57: 45.90 | H57: 40.44 | I57: 84.72 | J57: 16.70 | K57: 9.42 | L57: 6.71 | N57: =SUM(D57:L57) -> 308.10
B58: Screens output | C58: RecyclingScreens output | D58: 3.90 | E58: 2.56 | F58: 6.91 | G58: 10.40 | H58: 6.57 | I58: 10.04 | J58: 2.44 | K58: 1.36 | L58: 1.66 | N58: =SUM(D58:L58) -> 45.84
B59: Small Domestic Appliances | C59: RecyclingSmall Domestic Appliances | D59: 19.00 | E59: 13.36 | F59: 23.75 | G59: 7.00 | H59: 18.46 | I59: 26.18 | J59: 3.48 | K59: 3.35 | L59: 3.62 | N59: =SUM(D59:L59) -> 118.20
B60: Soil & rubble | C60: RecyclingSoil & rubble | D60: 0.00 | E60: 0.00 | F60: 0.00 | G60: 0.00 | H60: 0.00 | I60: 0.00 | J60: 0.00 | K60: 0.00 | L60: 0.00 | N60: =SUM(D60:L60) -> 0.00
B61: Stainless Steel | C61: RecyclingStainless Steel | D61: 0.00 | E61: 0.00 | F61: 0.00 | G61: 0.00 | H61: 0.00 | I61: 0.00 | J61: 0.00 | K61: 0.00 | L61: 0.00 | N61: =SUM(D61:L61) -> 0.00
B62: Textiles | C62: RecyclingTextiles | D62: 7.62 | E62: 4.80 | F62: 7.66 | G62: 9.30 | H62: 9.14 | I62: 11.71 | J62: 2.35 | K62: 0.50 | L62: 1.85 | N62: =SUM(D62:L62) -> 54.93
B63: Tyres | C63: RecyclingTyres | D63: 0.00 | E63: 0.01 | F63: 0.00 | G63: 0.00 | H63: 0.00 | I63: 0.00 | J63: 0.00 | K63: 0.00 | L63: 0.00 | N63: =SUM(D63:L63) -> 0.01
B64: Wood (including treated) | C64: RecyclingWood (including treated) | D64: 26.58 | E64: 46.84 | F64: 79.75 | G64: 127.80 | H64: 73.88 | I64: 170.22 | J64: 6.94 | K64: 15.10 | L64: 19.73 | N64: =SUM(D64:L64) -> 566.84
B66: Sub Total | D66: =SUM(D23:D64) -> 233.51 | E66: =SUM(E23:E64) -> 150.09 | F66: =SUM(F23:F64) -> 302.28 | G66: =SUM(G23:G64) -> 312.46 | H66: =SUM(H23:H64) -> 309.85 | I66: =SUM(I23:I64) -> 878.61 | J66: =SUM(J23:J64) -> 87.64 | K66: =SUM(K23:K64) -> 50.82 | L66: =SUM(L23:L64) -> 78.28 | N66: =SUM(D66:L66) -> 2,403.54
A68: Re-Use | B68: Books | C68: Re-UseBooks | D68: 0.00 | E68: 0.00 | F68: 0.00 | G68: 0.00 | H68: 0.00 | I68: 0.00 | J68: 0.00 | K68: 0.00 | L68: 0.00 | N68: =SUM(D68:L68) -> 0.00
B69: Gas Cylinders | C69: Re-UseGas Cylinders | D69: 0.00 | E69: 0.00 | F69: 0.00 | G69: 0.00 | H69: 0.00 | I69: 0.00 | J69: 0.00 | K69: 0.00 | L69: 0.00 | N69: =SUM(D69:L69) -> 0.00
B70: Household Goods Household Goods | C70: Re-UseHousehold Goods Household Goods | D70: 0.00 | E70: 0.00 | F70: 0.00 | G70: 0.00 | H70: 0.00 | I70: 0.00 | J70: 0.00 | K70: 0.00 | L70: 0.00 | N70: =SUM(D70:L70) -> 0.00
B71: Inert (rubble/hardcore) | C71: Re-UseInert (rubble/hardcore) | D71: 99.98 | E71: 51.94 | F71: 62.14 | G71: 0.00 | H71: 70.88 | I71: 173.08 | J71: 25.42 | K71: 16.46 | L71: 17.78 | N71: =SUM(D71:L71) -> 517.68
B72: Soil | C72: Re-UseSoil | D72: 0.00 | E72: 0.00 | F72: 0.00 | G72: 0.00 | H72: 0.00 | I72: 0.00 | J72: 0.00 | K72: 0.00 | L72: 0.00 | N72: =SUM(D72:L72) -> 0.00
B74: Sub Total | D74: =SUM(D68:D73) -> 99.98 | E74: =SUM(E68:E73) -> 51.94 | F74: =SUM(F68:F73) -> 62.14 | G74: =SUM(G68:G73) -> 0.00 | H74: =SUM(H68:H73) -> 70.88 | I74: =SUM(I68:I73) -> 173.08 | J74: =SUM(J68:J73) -> 25.42 | K74: =SUM(K68:K73) -> 16.46 | L74: =SUM(L68:L73) -> 17.78 | N74: =SUM(D74:L74) -> 517.68
B77: Grand Total | D77: =SUM(D7)+(D15)+(D21)+(D66)+(D74) -> 546.08 | E77: =SUM(E7)+(E15)+(E21)+(E66)+(E74) -> 359.33 | F77: =SUM(F7)+(F15)+(F21)+(F66)+(F74) -> 656.48 | G77: =SUM(G7)+(G15)+(G21)+(G66)+(G74) -> 613.26 | H77: =SUM(H7)+(H15)+(H21)+(H66)+(H74) -> 604.04 | I77: =SUM(I7)+(I15)+(I21)+(I66)+(I74) -> 1,870.21 | J77: =SUM(J7)+(J15)+(J21)+(J66)+(J74) -> 181.08 | K77: =SUM(K7)+(K15)+(K21)+(K66)+(K74) -> 84.54 | L77: =SUM(L7)+(L15)+(L21)+(L66)+(L74) -> 107.51 | N77: =SUM(D77:L77) -> 5,022.53

Sheet Cumulative Totals
A1: Cumulative Totals | B1: 01/04/2015 to 31/03/2016
A3: Treatment Use | B3: Waste Type | D3: Burton Farm HWRC | E3: Cherry Orchard HWRC | F3: Hunters Lane HWRC & Transfer | G3: Judkins HWRC | H3: Lower House Farm HWRC | I3: Princes Drive HWRC & Transfer | J3: Shipston HWRC | K3: Stockton HWRC | L3: Wellesbourne HWRC | N3: Total
A5: Composting | B5: Green waste | C5: CompostingGreen waste | D5: =April!D5+May!D5+June!D5+July!D5+August!D5+September!D5+October!D5+November!D5+December!D5+January!D5+February!D5+March!D5 -> 696.38 | E5: =April!E5+May!E5+June!E5+July!E5+August!E5+September!E5+October!E5+November!E5+December!E5+January!E5+February!E5+March!E5 -> 808.96 | F5: =April!F5+May!F5+June!F5+July!F5+August!F5+September!F5+October!F5+November!F5+December!F5+January!F5+February!F5+March!F5 -> 820.77 | G5: =April!G5+May!G5+June!G5+July!G5+August!G5+September!G5+October!G5+November!G5+December!G5+January!G5+February!G5+March!G5 -> 671.68 | H5: =April!H5+May!H5+June!H5+July!H5+August!H5+September!H5+October!H5+November!H5+December!H5+January!H5+February!H5+March!H5 -> 481.04 | I5: =April!I5+May!I5+June!I5+July!I5+August!I5+September!I5+October!I5+November!I5+December!I5+January!I5+February!I5+March!I5 -> 1,683.83 | J5: =April!J5+May!J5+June!J5+July!J5+August!J5+September!J5+October!J5+November!J5+December!J5+January!J5+February!J5+March!J5 -> 327.08 | K5: =April!K5+May!K5+June!K5+July!K5+August!K5+September!K5+October!K5+November!K5+December!K5+January!K5+February!K5+March!K5 -> 103.63 | L5: =April!L5+May!L5+June!L5+July!L5+August!L5+September!L5+October!L5+November!L5+December!L5+January!L5+February!L5+March!L5 -> 148.60 | N5: =SUM(D5:L5) -> 5,741.97
B7: Sub Total | D7: =SUM(D5:D5) -> 696.38 | E7: =SUM(E5:E5) -> 808.96 | F7: =SUM(F5:F5) -> 820.77 | G7: =SUM(G5:G5) -> 671.68 | H7: =SUM(H5:H5) -> 481.04 | I7: =SUM(I5:I5) -> 1,683.83 | J7: =SUM(J5:J5) -> 327.08 | K7: =SUM(K5:K5) -> 103.63 | L7: =SUM(L5:L5) -> 148.60 | N7: =SUM(D7:L7) -> 5,741.97
A9: Efw (incineration) | B9: Bulky Waste | C9: Efw (incineration)Bulky Waste | D9: =April!D9+May!D9+June!D9+July!D9+August!D9+September!D9+October!D9+November!D9+December!D9+January!D9+February!D9+March!D9 -> 0.00 | E9: =April!E9+May!E9+June!E9+July!E9+August!E9+September!E9+October!E9+November!E9+December!E9+January!E9+February!E9+March!E9 -> 0.00 | F9: =April!F9+May!F9+June!F9+July!F9+August!F9+September!F9+October!F9+November!F9+December!F9+January!F9+February!F9+March!F9 -> 0.00 | G9: =April!G9+May!G9+June!G9+July!G9+August!G9+September!G9+October!G9+November!G9+December!G9+January!G9+February!G9+March!G9 -> 0.00 | H9: =April!H9+May!H9+June!H9+July!H9+August!H9+September!H9+October!H9+November!H9+December!H9+January!H9+February!H9+March!H9 -> 233.82 | I9: =April!I9+May!I9+June!I9+July!I9+August!I9+September!I9+October!I9+November!I9+December!I9+January!I9+February!I9+March!I9 -> 0.00 | J9: =April!J9+May!J9+June!J9+July!J9+August!J9+September!J9+October!J9+November!J9+December!J9+January!J9+February!J9+March!J9 -> 0.00 | K9: =April!K9+May!K9+June!K9+July!K9+August!K9+September!K9+October!K9+November!K9+December!K9+January!K9+February!K9+March!K9 -> 0.00 | L9: =April!L9+May!L9+June!L9+July!L9+August!L9+September!L9+October!L9+November!L9+December!L9+January!L9+February!L9+March!L9 -> 0.00 | N9: =SUM(D9:L9) -> 233.82
B10: Chemicals | C10: Efw (incineration)Chemicals | D10: =April!D10+May!D10+June!D10+July!D10+August!D10+September!D10+October!D10+November!D10+December!D10+January!D10+February!D10+March!D10 -> 0.00 | E10: =April!E10+May!E10+June!E10+July!E10+August!E10+September!E10+October!E10+November!E10+December!E10+January!E10+February!E10+March!E10 -> 0.14 | F10: =April!F10+May!F10+June!F10+July!F10+August!F10+September!F10+October!F10+November!F10+December!F10+January!F10+February!F10+March!F10 -> 0.00 | G10: =April!G10+May!G10+June!G10+July!G10+August!G10+September!G10+October!G10+November!G10+December!G10+January!G10+February!G10+March!G10 -> 0.00 | H10: =April!H10+May!H10+June!H10+July!H10+August!H10+September!H10+October!H10+November!H10+December!H10+January!H10+February!H10+March!H10 -> 2.60 | I10: =April!I10+May!I10+June!I10+July!I10+August!I10+September!I10+October!I10+November!I10+December!I10+January!I10+February!I10+March!I10 -> 1.94 | J10: =April!J10+May!J10+June!J10+July!J10+August!J10+September!J10+October!J10+November!J10+December!J10+January!J10+February!J10+March!J10 -> 0.00 | K10: =April!K10+May!K10+June!K10+July!K10+August!K10+September!K10+October!K10+November!K10+December!K10+January!K10+February!K10+March!K10 -> 0.00 | L10: =April!L10+May!L10+June!L10+July!L10+August!L10+September!L10+October!L10+November!L10+December!L10+January!L10+February!L10+March!L10 -> 0.01 | N10: =SUM(D10:L10) -> 4.69
B11: Clinical | C11: Efw (incineration)Clinical | D11: =April!D11+May!D11+June!D11+July!D11+August!D11+September!D11+October!D11+November!D11+December!D11+January!D11+February!D11+March!D11 -> 0.00 | E11: =April!E11+May!E11+June!E11+July!E11+August!E11+September!E11+October!E11+November!E11+December!E11+January!E11+February!E11+March!E11 -> 0.00 | F11: =April!F11+May!F11+June!F11+July!F11+August!F11+September!F11+October!F11+November!F11+December!F11+January!F11+February!F11+March!F11 -> 0.00 | G11: =April!G11+May!G11+June!G11+July!G11+August!G11+September!G11+October!G11+November!G11+December!G11+January!G11+February!G11+March!G11 -> 0.00 | H11: =April!H11+May!H11+June!H11+July!H11+August!H11+September!H11+October!H11+November!H11+December!H11+January!H11+February!H11+March!H11 -> 0.00 | I11: =April!I11+May!I11+June!I11+July!I11+August!I11+September!I11+October!I11+November!I11+December!I11+January!I11+February!I11+March!I11 -> 31.25 | J11: =April!J11+May!J11+June!J11+July!J11+August!J11+September!J11+October!J11+November!J11+December!J11+January!J11+February!J11+March!J11 -> 0.00 | K11: =April!K11+May!K11+June!K11+July!K11+August!K11+September!K11+October!K11+November!K11+December!K11+January!K11+February!K11+March!K11 -> 0.00 | L11: =April!L11+May!L11+June!L11+July!L11+August!L11+September!L11+October!L11+November!L11+December!L11+January!L11+February!L11+March!L11 -> 0.00 | N11: =SUM(D11:L11) -> 31.25
B12: General (mixed waste) | C12: Efw (incineration)General (mixed waste) | D12: =April!D12+May!D12+June!D12+July!D12+August!D12+September!D12+October!D12+November!D12+December!D12+January!D12+February!D12+March!D12 -> 30.21 | E12: =April!E12+May!E12+June!E12+July!E12+August!E12+September!E12+October!E12+November!E12+December!E12+January!E12+February!E12+March!E12 -> 32.00 | F12: =April!F12+May!F12+June!F12+July!F12+August!F12+September!F12+October!F12+November!F12+December!F12+January!F12+February!F12+March!F12 -> 30.74 | G12: =April!G12+May!G12+June!G12+July!G12+August!G12+September!G12+October!G12+November!G12+December!G12+January!G12+February!G12+March!G12 -> 6.82 | H12: =April!H12+May!H12+June!H12+July!H12+August!H12+September!H12+October!H12+November!H12+December!H12+January!H12+February!H12+March!H12 -> 1,493.63 | I12: =April!I12+May!I12+June!I12+July!I12+August!I12+September!I12+October!I12+November!I12+December!I12+January!I12+February!I12+March!I12 -> 39.80 | J12: =April!J12+May!J12+June!J12+July!J12+August!J12+September!J12+October!J12+November!J12+December!J12+January!J12+February!J12+March!J12 -> 4.38 | K12: =April!K12+May!K12+June!K12+July!K12+August!K12+September!K12+October!K12+November!K12+December!K12+January!K12+February!K12+March!K12 -> 1.98 | L12: =April!L12+May!L12+June!L12+July!L12+August!L12+September!L12+October!L12+November!L12+December!L12+January!L12+February!L12+March!L12 -> 0.00 | N12: =SUM(D12:L12) -> 1,639.56
B13: Paint (chemicals) | C13: Efw (incineration)Paint (chemicals) | D13: =April!D13+May!D13+June!D13+July!D13+August!D13+September!D13+October!D13+November!D13+December!D13+January!D13+February!D13+March!D13 -> 0.00 | E13: =April!E13+May!E13+June!E13+July!E13+August!E13+September!E13+October!E13+November!E13+December!E13+January!E13+February!E13+March!E13 -> 0.10 | F13: =April!F13+May!F13+June!F13+July!F13+August!F13+September!F13+October!F13+November!F13+December!F13+January!F13+February!F13+March!F13 -> 0.00 | G13: =April!G13+May!G13+June!G13+July!G13+August!G13+September!G13+October!G13+November!G13+December!G13+January!G13+February!G13+March!G13 -> 0.00 | H13: =April!H13+May!H13+June!H13+July!H13+August!H13+September!H13+October!H13+November!H13+December!H13+January!H13+February!H13+March!H13 -> 0.00 | I13: =April!I13+May!I13+June!I13+July!I13+August!I13+September!I13+October!I13+November!I13+December!I13+January!I13+February!I13+March!I13 -> 0.00 | J13: =April!J13+May!J13+June!J13+July!J13+August!J13+September!J13+October!J13+November!J13+December!J13+January!J13+February!J13+March!J13 -> 0.00 | K13: =April!K13+May!K13+June!K13+July!K13+August!K13+September!K13+October!K13+November!K13+December!K13+January!K13+February!K13+March!K13 -> 0.00 | L13: =April!L13+May!L13+June!L13+July!L13+August!L13+September!L13+October!L13+November!L13+December!L13+January!L13+February!L13+March!L13 -> 0.03 | N13: =SUM(D13:L13) -> 0.13
B15: Sub Total | D15: =SUM(D9:D13) -> 30.21 | E15: =SUM(E9:E13) -> 32.24 | F15: =SUM(F9:F13) -> 30.74 | G15: =SUM(G9:G13) -> 6.82 | H15: =SUM(H9:H13) -> 1,730.05 | I15: =SUM(I9:I13) -> 72.99 | J15: =SUM(J9:J13) -> 4.38 | K15: =SUM(K9:K13) -> 1.98 | L15: =SUM(L9:L13) -> 0.04 | N15: =SUM(D15:L15) -> 1,909.45
A17: Landfill | B17: Asbestos | C17: LandfillAsbestos | D17: =April!D17+May!D17+June!D17+July!D17+August!D17+September!D17+October!D17+November!D17+December!D17+January!D17+February!D17+March!D17 -> 0.00 | E17: =April!E17+May!E17+June!E17+July!E17+August!E17+September!E17+October!E17+November!E17+December!E17+January!E17+February!E17+March!E17 -> 0.12 | F17: =April!F17+May!F17+June!F17+July!F17+August!F17+September!F17+October!F17+November!F17+December!F17+January!F17+February!F17+March!F17 -> 4.38 | G17: =April!G17+May!G17+June!G17+July!G17+August!G17+September!G17+October!G17+November!G17+December!G17+January!G17+February!G17+March!G17 -> 10.04 | H17: =April!H17+May!H17+June!H17+July!H17+August!H17+September!H17+October!H17+November!H17+December!H17+January!H17+February!H17+March!H17 -> 8.52 | I17: =April!I17+May!I17+June!I17+July!I17+August!I17+September!I17+October!I17+November!I17+December!I17+January!I17+February!I17+March!I17 -> 11.62 | J17: =April!J17+May!J17+June!J17+July!J17+August!J17+September!J17+October!J17+November!J17+December!J17+January!J17+February!J17+March!J17 -> 0.00 | K17: =April!K17+May!K17+June!K17+July!K17+August!K17+September!K17+October!K17+November!K17+December!K17+January!K17+February!K17+March!K17 -> 0.00 | L17: =April!L17+May!L17+June!L17+July!L17+August!L17+September!L17+October!L17+November!L17+December!L17+January!L17+February!L17+March!L17 -> 0.92 | N17: =SUM(D17:L17) -> 35.60
B18: General (mixed waste) | C18: LandfillGeneral (mixed waste) | D18: =April!D18+May!D18+June!D18+July!D18+August!D18+September!D18+October!D18+November!D18+December!D18+January!D18+February!D18+March!D18 -> 1,864.78 | E18: =April!E18+May!E18+June!E18+July!E18+August!E18+September!E18+October!E18+November!E18+December!E18+January!E18+February!E18+March!E18 -> 1,184.31 | F18: =April!F18+May!F18+June!F18+July!F18+August!F18+September!F18+October!F18+November!F18+December!F18+January!F18+February!F18+March!F18 -> 2,531.32 | G18: =April!G18+May!G18+June!G18+July!G18+August!G18+September!G18+October!G18+November!G18+December!G18+January!G18+February!G18+March!G18 -> 4,134.43 | H18: =April!H18+May!H18+June!H18+July!H18+August!H18+September!H18+October!H18+November!H18+December!H18+January!H18+February!H18+March!H18 -> 24.97 | I18: =April!I18+May!I18+June!I18+July!I18+August!I18+September!I18+October!I18+November!I18+December!I18+January!I18+February!I18+March!I18 -> 7,952.58 | J18: =April!J18+May!J18+June!J18+July!J18+August!J18+September!J18+October!J18+November!J18+December!J18+January!J18+February!J18+March!J18 -> 500.66 | K18: =April!K18+May!K18+June!K18+July!K18+August!K18+September!K18+October!K18+November!K18+December!K18+January!K18+February!K18+March!K18 -> 294.83 | L18: =April!L18+May!L18+June!L18+July!L18+August!L18+September!L18+October!L18+November!L18+December!L18+January!L18+February!L18+March!L18 -> 333.92 | N18: =SUM(D18:L18) -> 18,821.79
B19: Hard Plastic | C19: LandfillHard Plastic | D19: =April!D19+May!D19+June!D19+July!D19+August!D19+September!D19+October!D19+November!D19+December!D19+January!D19+February!D19+March!D19 -> 0.00 | E19: =April!E19+May!E19+June!E19+July!E19+August!E19+September!E19+October!E19+November!E19+December!E19+January!E19+February!E19+March!E19 -> 35.96 | F19: =April!F19+May!F19+June!F19+July!F19+August!F19+September!F19+October!F19+November!F19+December!F19+January!F19+February!F19+March!F19 -> 29.68 | G19: =April!G19+May!G19+June!G19+July!G19+August!G19+September!G19+October!G19+November!G19+December!G19+January!G19+February!G19+March!G19 -> 0.00 | H19: =April!H19+May!H19+June!H19+July!H19+August!H19+September!H19+October!H19+November!H19+December!H19+January!H19+February!H19+March!H19 -> 44.47 | I19: =April!I19+May!I19+June!I19+July!I19+August!I19+September!I19+October!I19+November!I19+December!I19+January!I19+February!I19+March!I19 -> 0.71 | J19: =April!J19+May!J19+June!J19+July!J19+August!J19+September!J19+October!J19+November!J19+December!J19+January!J19+February!J19+March!J19 -> 0.00 | K19: =April!K19+May!K19+June!K19+July!K19+August!K19+September!K19+October!K19+November!K19+December!K19+January!K19+February!K19+March!K19 -> 0.00 | L19: =April!L19+May!L19+June!L19+July!L19+August!L19+September!L19+October!L19+November!L19+December!L19+January!L19+February!L19+March!L19 -> 0.00 | N19: =SUM(D19:L19) -> 110.82
B21: Sub Total | D21: =SUM(D17:D19) -> 1,864.78 | E21: =SUM(E17:E19) -> 1,220.39 | F21: =SUM(F17:F19) -> 2,565.38 | G21: =SUM(G17:G19) -> 4,144.47 | H21: =SUM(H17:H19) -> 77.96 | I21: =SUM(I17:I19) -> 7,964.91 | J21: =SUM(J17:J19) -> 500.66 | K21: =SUM(K17:K19) -> 294.83 | L21: =SUM(L17:L19) -> 334.84 | N21: =SUM(D21:L21) -> 18,968.21
A23: Recycling | B23: Aluminium (nf) | C23: RecyclingAluminium (nf) | D23: =April!D23+May!D23+June!D23+July!D23+August!D23+September!D23+October!D23+November!D23+December!D23+January!D23+February!D23+March!D23 -> 0.00 | E23: =April!E23+May!E23+June!E23+July!E23+August!E23+September!E23+October!E23+November!E23+December!E23+January!E23+February!E23+March!E23 -> 0.00 | F23: =April!F23+May!F23+June!F23+July!F23+August!F23+September!F23+October!F23+November!F23+December!F23+January!F23+February!F23+March!F23 -> 0.30 | G23: =April!G23+May!G23+June!G23+July!G23+August!G23+September!G23+October!G23+November!G23+December!G23+January!G23+February!G23+March!G23 -> 2.78 | H23: =April!H23+May!H23+June!H23+July!H23+August!H23+September!H23+October!H23+November!H23+December!H23+January!H23+February!H23+March!H23 -> 1.50 | I23: =April!I23+May!I23+June!I23+July!I23+August!I23+September!I23+October!I23+November!I23+December!I23+January!I23+February!I23+March!I23 -> 3.36 | J23: =April!J23+May!J23+June!J23+July!J23+August!J23+September!J23+October!J23+November!J23+December!J23+January!J23+February!J23+March!J23 -> 1.30 | K23: =April!K23+May!K23+June!K23+July!K23+August!K23+September!K23+October!K23+November!K23+December!K23+January!K23+February!K23+March!K23 -> 0.00 | L23: =April!L23+May!L23+June!L23+July!L23+August!L23+September!L23+October!L23+November!L23+December!L23+January!L23+February!L23+March!L23 -> 0.00 | N23: =SUM(D23:L23) -> 9.24
B24: Batteries (car) | C24: RecyclingBatteries (car) | D24: =April!D24+May!D24+June!D24+July!D24+August!D24+September!D24+October!D24+November!D24+December!D24+January!D24+February!D24+March!D24 -> 1.48 | E24: =April!E24+May!E24+June!E24+July!E24+August!E24+September!E24+October!E24+November!E24+December!E24+January!E24+February!E24+March!E24 -> 12.86 | F24: =April!F24+May!F24+June!F24+July!F24+August!F24+September!F24+October!F24+November!F24+December!F24+January!F24+February!F24+March!F24 -> 25.50 | G24: =April!G24+May!G24+June!G24+July!G24+August!G24+September!G24+October!G24+November!G24+December!G24+January!G24+February!G24+March!G24 -> 9.41 | H24: =April!H24+May!H24+June!H24+July!H24+August!H24+September!H24+October!H24+November!H24+December!H24+January!H24+February!H24+March!H24 -> 23.34 | I24: =April!I24+May!I24+June!I24+July!I24+August!I24+September!I24+October!I24+November!I24+December!I24+January!I24+February!I24+March!I24 -> 37.03 | J24: =April!J24+May!J24+June!J24+July!J24+August!J24+September!J24+October!J24+November!J24+December!J24+January!J24+February!J24+March!J24 -> 4.56 | K24: =April!K24+May!K24+June!K24+July!K24+August!K24+September!K24+October!K24+November!K24+December!K24+January!K24+February!K24+March!K24 -> 4.20 | L24: =April!L24+May!L24+June!L24+July!L24+August!L24+September!L24+October!L24+November!L24+December!L24+January!L24+February!L24+March!L24 -> 5.08 | N24: =SUM(D24:L24) -> 123.47
B25: Batteries (household) | C25: RecyclingBatteries (household) | D25: =April!D25+May!D25+June!D25+July!D25+August!D25+September!D25+October!D25+November!D25+December!D25+January!D25+February!D25+March!D25 -> 1.96 | E25: =April!E25+May!E25+June!E25+July!E25+August!E25+September!E25+October!E25+November!E25+December!E25+January!E25+February!E25+March!E25 -> 1.56 | F25: =April!F25+May!F25+June!F25+July!F25+August!F25+September!F25+October!F25+November!F25+December!F25+January!F25+February!F25+March!F25 -> 0.00 | G25: =April!G25+May!G25+June!G25+July!G25+August!G25+September!G25+October!G25+November!G25+December!G25+January!G25+February!G25+March!G25 -> 0.00 | H25: =April!H25+May!H25+June!H25+July!H25+August!H25+September!H25+October!H25+November!H25+December!H25+January!H25+February!H25+March!H25 -> 1.40 | I25: =April!I25+May!I25+June!I25+July!I25+August!I25+September!I25+October!I25+November!I25+December!I25+January!I25+February!I25+March!I25 -> 3.74 | J25: =April!J25+May!J25+June!J25+July!J25+August!J25+September!J25+October!J25+November!J25+December!J25+January!J25+February!J25+March!J25 -> 1.48 | K25: =April!K25+May!K25+June!K25+July!K25+August!K25+September!K25+October!K25+November!K25+December!K25+January!K25+February!K25+March!K25 -> 0.55 | L25: =April!L25+May!L25+June!L25+July!L25+August!L25+September!L25+October!L25+November!L25+December!L25+January!L25+February!L25+March!L25 -> 0.67 | N25: =SUM(D25:L25) -> 11.36
B26: Books | C26: RecyclingBooks | D26: =April!D26+May!D26+June!D26+July!D26+August!D26+September!D26+October!D26+November!D26+December!D26+January!D26+February!D26+March!D26 -> 0.00 | E26: =April!E26+May!E26+June!E26+July!E26+August!E26+September!E26+October!E26+November!E26+December!E26+January!E26+February!E26+March!E26 -> 1.02 | F26: =April!F26+May!F26+June!F26+July!F26+August!F26+September!F26+October!F26+November!F26+December!F26+January!F26+February!F26+March!F26 -> 0.00 | G26: =April!G26+May!G26+June!G26+July!G26+August!G26+September!G26+October!G26+November!G26+December!G26+January!G26+February!G26+March!G26 -> 26.36 | H26: =April!H26+May!H26+June!H26+July!H26+August!H26+September!H26+October!H26+November!H26+December!H26+January!H26+February!H26+March!H26 -> 0.00 | I26: =April!I26+May!I26+June!I26+July!I26+August!I26+September!I26+October!I26+November!I26+December!I26+January!I26+February!I26+March!I26 -> 3.73 | J26: =April!J26+May!J26+June!J26+July!J26+August!J26+September!J26+October!J26+November!J26+December!J26+January!J26+February!J26+March!J26 -> 0.00 | K26: =April!K26+May!K26+June!K26+July!K26+August!K26+September!K26+October!K26+November!K26+December!K26+January!K26+February!K26+March!K26 -> 0.00 | L26: =April!L26+May!L26+June!L26+July!L26+August!L26+September!L26+October!L26+November!L26+December!L26+January!L26+February!L26+March!L26 -> 0.00 | N26: =SUM(D26:L26) -> 31.11
B27: Brass(nf) | C27: RecyclingBrass(nf) | D27: =April!D27+May!D27+June!D27+July!D27+August!D27+September!D27+October!D27+November!D27+December!D27+January!D27+February!D27+March!D27 -> 0.00 | E27: =April!E27+May!E27+June!E27+July!E27+August!E27+September!E27+October!E27+November!E27+December!E27+January!E27+February!E27+March!E27 -> 0.00 | F27: =April!F27+May!F27+June!F27+July!F27+August!F27+September!F27+October!F27+November!F27+December!F27+January!F27+February!F27+March!F27 -> 0.00 | G27: =April!G27+May!G27+June!G27+July!G27+August!G27+September!G27+October!G27+November!G27+December!G27+January!G27+February!G27+March!G27 -> 0.00 | H27: =April!H27+May!H27+June!H27+July!H27+August!H27+September!H27+October!H27+November!H27+December!H27+January!H27+February!H27+March!H27 -> 0.00 | I27: =April!I27+May!I27+June!I27+July!I27+August!I27+September!I27+October!I27+November!I27+December!I27+January!I27+February!I27+March!I27 -> 0.14 | J27: =April!J27+May!J27+June!J27+July!J27+August!J27+September!J27+October!J27+November!J27+December!J27+January!J27+February!J27+March!J27 -> 0.00 | K27: =April!K27+May!K27+June!K27+July!K27+August!K27+September!K27+October!K27+November!K27+December!K27+January!K27+February!K27+March!K27 -> 0.00 | L27: =April!L27+May!L27+June!L27+July!L27+August!L27+September!L27+October!L27+November!L27+December!L27+January!L27+February!L27+March!L27 -> 0.00 | N27: =SUM(D27:L27) -> 0.14
B28: Cable (nf) | C28: RecyclingCable (nf) | D28: =April!D28+May!D28+June!D28+July!D28+August!D28+September!D28+October!D28+November!D28+December!D28+January!D28+February!D28+March!D28 -> 1.48 | E28: =April!E28+May!E28+June!E28+July!E28+August!E28+September!E28+October!E28+November!E28+December!E28+January!E28+February!E28+March!E28 -> 0.46 | F28: =April!F28+May!F28+June!F28+July!F28+August!F28+September!F28+October!F28+November!F28+December!F28+January!F28+February!F28+March!F28 -> 0.82 | G28: =April!G28+May!G28+June!G28+July!G28+August!G28+September!G28+October!G28+November!G28+December!G28+January!G28+February!G28+March!G28 -> 0.00 | H28: =April!H28+May!H28+June!H28+July!H28+August!H28+September!H28+October!H28+November!H28+December!H28+January!H28+February!H28+March!H28 -> 0.00 | I28: =April!I28+May!I28+June!I28+July!I28+August!I28+September!I28+October!I28+November!I28+December!I28+January!I28+February!I28+March!I28 -> 1.53 | J28: =April!J28+May!J28+June!J28+July!J28+August!J28+September!J28+October!J28+November!J28+December!J28+January!J28+February!J28+March!J28 -> 0.88 | K28: =April!K28+May!K28+June!K28+July!K28+August!K28+September!K28+October!K28+November!K28+December!K28+January!K28+February!K28+March!K28 -> 0.10 | L28: =April!L28+May!L28+June!L28+July!L28+August!L28+September!L28+October!L28+November!L28+December!L28+January!L28+February!L28+March!L28 -> 0.00 | N28: =SUM(D28:L28) -> 5.27
B29: Cardboard | C29: RecyclingCardboard | D29: =April!D29+May!D29+June!D29+July!D29+August!D29+September!D29+October!D29+November!D29+December!D29+January!D29+February!D29+March!D29 -> 276.65 | E29: =April!E29+May!E29+June!E29+July!E29+August!E29+September!E29+October!E29+November!E29+December!E29+January!E29+February!E29+March!E29 -> 205.30 | F29: =April!F29+May!F29+June!F29+July!F29+August!F29+September!F29+October!F29+November!F29+December!F29+January!F29+February!F29+March!F29 -> 243.04 | G29: =April!G29+May!G29+June!G29+July!G29+August!G29+September!G29+October!G29+November!G29+December!G29+January!G29+February!G29+March!G29 -> 327.53 | H29: =April!H29+May!H29+June!H29+July!H29+August!H29+September!H29+October!H29+November!H29+December!H29+January!H29+February!H29+March!H29 -> 196.82 | I29: =April!I29+May!I29+June!I29+July!I29+August!I29+September!I29+October!I29+November!I29+December!I29+January!I29+February!I29+March!I29 -> 594.81 | J29: =April!J29+May!J29+June!J29+July!J29+August!J29+September!J29+October!J29+November!J29+December!J29+January!J29+February!J29+March!J29 -> 116.14 | K29: =April!K29+May!K29+June!K29+July!K29+August!K29+September!K29+October!K29+November!K29+December!K29+January!K29+February!K29+March!K29 -> 41.38 | L29: =April!L29+May!L29+June!L29+July!L29+August!L29+September!L29+October!L29+November!L29+December!L29+January!L29+February!L29+March!L29 -> 69.92 | N29: =SUM(D29:L29) -> 2,071.59
B30: Carpet | C30: RecyclingCarpet | D30: =April!D30+May!D30+June!D30+July!D30+August!D30+September!D30+October!D30+November!D30+December!D30+January!D30+February!D30+March!D30 -> 183.90 | E30: =April!E30+May!E30+June!E30+July!E30+August!E30+September!E30+October!E30+November!E30+December!E30+January!E30+February!E30+March!E30 -> 144.70 | F30: =April!F30+May!F30+June!F30+July!F30+August!F30+September!F30+October!F30+November!F30+December!F30+January!F30+February!F30+March!F30 -> 238.99 | G30: =April!G30+May!G30+June!G30+July!G30+August!G30+September!G30+October!G30+November!G30+December!G30+January!G30+February!G30+March!G30 -> 114.00 | H30: =April!H30+May!H30+June!H30+July!H30+August!H30+September!H30+October!H30+November!H30+December!H30+January!H30+February!H30+March!H30 -> 329.27 | I30: =April!I30+May!I30+June!I30+July!I30+August!I30+September!I30+October!I30+November!I30+December!I30+January!I30+February!I30+March!I30 -> 421.74 | J30: =April!J30+May!J30+June!J30+July!J30+August!J30+September!J30+October!J30+November!J30+December!J30+January!J30+February!J30+March!J30 -> 74.68 | K30: =April!K30+May!K30+June!K30+July!K30+August!K30+September!K30+October!K30+November!K30+December!K30+January!K30+February!K30+March!K30 -> 0.00 | L30: =April!L30+May!L30+June!L30+July!L30+August!L30+September!L30+October!L30+November!L30+December!L30+January!L30+February!L30+March!L30 -> 0.00 | N30: =SUM(D30:L30) -> 1,507.28
B31: Chipboard | C31: RecyclingChipboard | D31: =April!D31+May!D31+June!D31+July!D31+August!D31+September!D31+October!D31+November!D31+December!D31+January!D31+February!D31+March!D31 -> 835.24 | E31: =April!E31+May!E31+June!E31+July!E31+August!E31+September!E31+October!E31+November!E31+December!E31+January!E31+February!E31+March!E31 -> 205.42 | F31: =April!F31+May!F31+June!F31+July!F31+August!F31+September!F31+October!F31+November!F31+December!F31+January!F31+February!F31+March!F31 -> 879.88 | G31: =April!G31+May!G31+June!G31+July!G31+August!G31+September!G31+October!G31+November!G31+December!G31+January!G31+February!G31+March!G31 -> 0.00 | H31: =April!H31+May!H31+June!H31+July!H31+August!H31+September!H31+October!H31+November!H31+December!H31+January!H31+February!H31+March!H31 -> 680.56 | I31: =April!I31+May!I31+June!I31+July!I31+August!I31+September!I31+October!I31+November!I31+December!I31+January!I31+February!I31+March!I31 -> 383.72 | J31: =April!J31+May!J31+June!J31+July!J31+August!J31+September!J31+October!J31+November!J31+December!J31+January!J31+February!J31+March!J31 -> 137.56 | K31: =April!K31+May!K31+June!K31+July!K31+August!K31+September!K31+October!K31+November!K31+December!K31+January!K31+February!K31+March!K31 -> 35.69 | L31: =April!L31+May!L31+June!L31+July!L31+August!L31+September!L31+October!L31+November!L31+December!L31+January!L31+February!L31+March!L31 -> 58.36 | N31: =SUM(D31:L31) -> 3,216.43
B32: Copper & Brass Mixed (nf) | C32: RecyclingCopper & Brass Mixed (nf) | D32: =April!D32+May!D32+June!D32+July!D32+August!D32+September!D32+October!D32+November!D32+December!D32+January!D32+February!D32+March!D32 -> 0.00 | E32: =April!E32+May!E32+June!E32+July!E32+August!E32+September!E32+October!E32+November!E32+December!E32+January!E32+February!E32+March!E32 -> 0.00 | F32: =April!F32+May!F32+June!F32+July!F32+August!F32+September!F32+October!F32+November!F32+December!F32+January!F32+February!F32+March!F32 -> 0.00 | G32: =April!G32+May!G32+June!G32+July!G32+August!G32+September!G32+October!G32+November!G32+December!G32+January!G32+February!G32+March!G32 -> 11.69 | H32: =April!H32+May!H32+June!H32+July!H32+August!H32+September!H32+October!H32+November!H32+December!H32+January!H32+February!H32+March!H32 -> 0.00 | I32: =April!I32+May!I32+June!I32+July!I32+August!I32+September!I32+October!I32+November!I32+December!I32+January!I32+February!I32+March!I32 -> 0.00 | J32: =April!J32+May!J32+June!J32+July!J32+August!J32+September!J32+October!J32+November!J32+December!J32+January!J32+February!J32+March!J32 -> 0.00 | K32: =April!K32+May!K32+June!K32+July!K32+August!K32+September!K32+October!K32+November!K32+December!K32+January!K32+February!K32+March!K32 -> 0.00 | L32: =April!L32+May!L32+June!L32+July!L32+August!L32+September!L32+October!L32+November!L32+December!L32+January!L32+February!L32+March!L32 -> 0.00 | N32: =SUM(D32:L32) -> 11.69
B33: Drink Cartons | C33: RecyclingDrink Cartons | D33: =April!D33+May!D33+June!D33+July!D33+August!D33+September!D33+October!D33+November!D33+December!D33+January!D33+February!D33+March!D33 -> 0.00 | E33: =April!E33+May!E33+June!E33+July!E33+August!E33+September!E33+October!E33+November!E33+December!E33+January!E33+February!E33+March!E33 -> 3.75 | F33: =April!F33+May!F33+June!F33+July!F33+August!F33+September!F33+October!F33+November!F33+December!F33+January!F33+February!F33+March!F33 -> 0.00 | G33: =April!G33+May!G33+June!G33+July!G33+August!G33+September!G33+October!G33+November!G33+December!G33+January!G33+February!G33+March!G33 -> 0.00 | H33: =April!H33+May!H33+June!H33+July!H33+August!H33+September!H33+October!H33+November!H33+December!H33+January!H33+February!H33+March!H33 -> 0.77 | I33: =April!I33+May!I33+June!I33+July!I33+August!I33+September!I33+October!I33+November!I33+December!I33+January!I33+February!I33+March!I33 -> 2.87 | J33: =April!J33+May!J33+June!J33+July!J33+August!J33+September!J33+October!J33+November!J33+December!J33+January!J33+February!J33+March!J33 -> 0.00 | K33: =April!K33+May!K33+June!K33+July!K33+August!K33+September!K33+October!K33+November!K33+December!K33+January!K33+February!K33+March!K33 -> 0.00 | L33: =April!L33+May!L33+June!L33+July!L33+August!L33+September!L33+October!L33+November!L33+December!L33+January!L33+February!L33+March!L33 -> 0.00 | N33: =SUM(D33:L33) -> 7.39
B34: Fire Extinguishers | C34: RecyclingFire Extinguishers | D34: =April!D34+May!D34+June!D34+July!D34+August!D34+September!D34+October!D34+November!D34+December!D34+January!D34+February!D34+March!D34 -> 0.00 | E34: =April!E34+May!E34+June!E34+July!E34+August!E34+September!E34+October!E34+November!E34+December!E34+January!E34+February!E34+March!E34 -> 0.00 | F34: =April!F34+May!F34+June!F34+July!F34+August!F34+September!F34+October!F34+November!F34+December!F34+January!F34+February!F34+March!F34 -> 0.00 | G34: =April!G34+May!G34+June!G34+July!G34+August!G34+September!G34+October!G34+November!G34+December!G34+January!G34+February!G34+March!G34 -> 0.00 | H34: =April!H34+May!H34+June!H34+July!H34+August!H34+September!H34+October!H34+November!H34+December!H34+January!H34+February!H34+March!H34 -> 0.00 | I34: =April!I34+May!I34+June!I34+July!I34+August!I34+September!I34+October!I34+November!I34+December!I34+January!I34+February!I34+March!I34 -> 0.50 | J34: =April!J34+May!J34+June!J34+July!J34+August!J34+September!J34+October!J34+November!J34+December!J34+January!J34+February!J34+March!J34 -> 0.00 | K34: =April!K34+May!K34+June!K34+July!K34+August!K34+September!K34+October!K34+November!K34+December!K34+January!K34+February!K34+March!K34 -> 0.00 | L34: =April!L34+May!L34+June!L34+July!L34+August!L34+September!L34+October!L34+November!L34+December!L34+January!L34+February!L34+March!L34 -> 0.00 | N34: =SUM(D34:L34) -> 0.50
B35: Fluorescent Tubes Output | C35: RecyclingFluorescent Tubes Output | D35: =April!D35+May!D35+June!D35+July!D35+August!D35+September!D35+October!D35+November!D35+December!D35+January!D35+February!D35+March!D35 -> 1.24 | E35: =April!E35+May!E35+June!E35+July!E35+August!E35+September!E35+October!E35+November!E35+December!E35+January!E35+February!E35+March!E35 -> 0.82 | F35: =April!F35+May!F35+June!F35+July!F35+August!F35+September!F35+October!F35+November!F35+December!F35+January!F35+February!F35+March!F35 -> 0.91 | G35: =April!G35+May!G35+June!G35+July!G35+August!G35+September!G35+October!G35+November!G35+December!G35+January!G35+February!G35+March!G35 -> 1.00 | H35: =April!H35+May!H35+June!H35+July!H35+August!H35+September!H35+October!H35+November!H35+December!H35+January!H35+February!H35+March!H35 -> 1.06 | I35: =April!I35+May!I35+June!I35+July!I35+August!I35+September!I35+October!I35+November!I35+December!I35+January!I35+February!I35+March!I35 -> 1.72 | J35: =April!J35+May!J35+June!J35+July!J35+August!J35+September!J35+October!J35+November!J35+December!J35+January!J35+February!J35+March!J35 -> 0.82 | K35: =April!K35+May!K35+June!K35+July!K35+August!K35+September!K35+October!K35+November!K35+December!K35+January!K35+February!K35+March!K35 -> 0.17 | L35: =April!L35+May!L35+June!L35+July!L35+August!L35+September!L35+October!L35+November!L35+December!L35+January!L35+February!L35+March!L35 -> 0.81 | N35: =SUM(D35:L35) -> 8.55
B36: Fridges Output | C36: RecyclingFridges Output | D36: =April!D36+May!D36+June!D36+July!D36+August!D36+September!D36+October!D36+November!D36+December!D36+January!D36+February!D36+March!D36 -> 77.87 | E36: =April!E36+May!E36+June!E36+July!E36+August!E36+September!E36+October!E36+November!E36+December!E36+January!E36+February!E36+March!E36 -> 29.33 | F36: =April!F36+May!F36+June!F36+July!F36+August!F36+September!F36+October!F36+November!F36+December!F36+January!F36+February!F36+March!F36 -> 90.97 | G36: =April!G36+May!G36+June!G36+July!G36+August!G36+September!G36+October!G36+November!G36+December!G36+January!G36+February!G36+March!G36 -> 74.20 | H36: =April!H36+May!H36+June!H36+July!H36+August!H36+September!H36+October!H36+November!H36+December!H36+January!H36+February!H36+March!H36 -> 92.90 | I36: =April!I36+May!I36+June!I36+July!I36+August!I36+September!I36+October!I36+November!I36+December!I36+January!I36+February!I36+March!I36 -> 135.23 | J36: =April!J36+May!J36+June!J36+July!J36+August!J36+September!J36+October!J36+November!J36+December!J36+January!J36+February!J36+March!J36 -> 27.22 | K36: =April!K36+May!K36+June!K36+July!K36+August!K36+September!K36+October!K36+November!K36+December!K36+January!K36+February!K36+March!K36 -> 9.95 | L36: =April!L36+May!L36+June!L36+July!L36+August!L36+September!L36+October!L36+November!L36+December!L36+January!L36+February!L36+March!L36 -> 0.00 | N36: =SUM(D36:L36) -> 537.67
B37: Gas Cylinders | C37: RecyclingGas Cylinders | D37: =April!D37+May!D37+June!D37+July!D37+August!D37+September!D37+October!D37+November!D37+December!D37+January!D37+February!D37+March!D37 -> 1.55 | E37: =April!E37+May!E37+June!E37+July!E37+August!E37+September!E37+October!E37+November!E37+December!E37+January!E37+February!E37+March!E37 -> 0.02 | F37: =April!F37+May!F37+June!F37+July!F37+August!F37+September!F37+October!F37+November!F37+December!F37+January!F37+February!F37+March!F37 -> 0.68 | G37: =April!G37+May!G37+June!G37+July!G37+August!G37+September!G37+October!G37+November!G37+December!G37+January!G37+February!G37+March!G37 -> 3.80 | H37: =April!H37+May!H37+June!H37+July!H37+August!H37+September!H37+October!H37+November!H37+December!H37+January!H37+February!H37+March!H37 -> 0.80 | I37: =April!I37+May!I37+June!I37+July!I37+August!I37+September!I37+October!I37+November!I37+December!I37+January!I37+February!I37+March!I37 -> 4.10 | J37: =April!J37+May!J37+June!J37+July!J37+August!J37+September!J37+October!J37+November!J37+December!J37+January!J37+February!J37+March!J37 -> 0.00 | K37: =April!K37+May!K37+June!K37+July!K37+August!K37+September!K37+October!K37+November!K37+December!K37+January!K37+February!K37+March!K37 -> 0.00 | L37: =April!L37+May!L37+June!L37+July!L37+August!L37+September!L37+October!L37+November!L37+December!L37+January!L37+February!L37+March!L37 -> 0.00 | N37: =SUM(D37:L37) -> 10.95
B38: General (mixed waste) | C38: RecyclingGeneral (mixed waste) | D38: =April!D38+May!D38+June!D38+July!D38+August!D38+September!D38+October!D38+November!D38+December!D38+January!D38+February!D38+March!D38 -> 2.33 | E38: =April!E38+May!E38+June!E38+July!E38+August!E38+September!E38+October!E38+November!E38+December!E38+January!E38+February!E38+March!E38 -> 0.00 | F38: =April!F38+May!F38+June!F38+July!F38+August!F38+September!F38+October!F38+November!F38+December!F38+January!F38+February!F38+March!F38 -> 0.00 | G38: =April!G38+May!G38+June!G38+July!G38+August!G38+September!G38+October!G38+November!G38+December!G38+January!G38+February!G38+March!G38 -> 0.00 | H38: =April!H38+May!H38+June!H38+July!H38+August!H38+September!H38+October!H38+November!H38+December!H38+January!H38+February!H38+March!H38 -> 0.00 | I38: =April!I38+May!I38+June!I38+July!I38+August!I38+September!I38+October!I38+November!I38+December!I38+January!I38+February!I38+March!I38 -> 0.00 | J38: =April!J38+May!J38+June!J38+July!J38+August!J38+September!J38+October!J38+November!J38+December!J38+January!J38+February!J38+March!J38 -> 0.00 | K38: =April!K38+May!K38+June!K38+July!K38+August!K38+September!K38+October!K38+November!K38+December!K38+January!K38+February!K38+March!K38 -> 28.52 | L38: =April!L38+May!L38+June!L38+July!L38+August!L38+September!L38+October!L38+November!L38+December!L38+January!L38+February!L38+March!L38 -> 56.49 | N38: =SUM(D38:L38) -> 87.34
B39: Glass (bottles) | C39: RecyclingGlass (bottles) | D39: =April!D39+May!D39+June!D39+July!D39+August!D39+September!D39+October!D39+November!D39+December!D39+January!D39+February!D39+March!D39 -> 40.72 | E39: =April!E39+May!E39+June!E39+July!E39+August!E39+September!E39+October!E39+November!E39+December!E39+January!E39+February!E39+March!E39 -> 76.63 | F39: =April!F39+May!F39+June!F39+July!F39+August!F39+September!F39+October!F39+November!F39+December!F39+January!F39+February!F39+March!F39 -> 18.45 | G39: =April!G39+May!G39+June!G39+July!G39+August!G39+September!G39+October!G39+November!G39+December!G39+January!G39+February!G39+March!G39 -> 15.98 | H39: =April!H39+May!H39+June!H39+July!H39+August!H39+September!H39+October!H39+November!H39+December!H39+January!H39+February!H39+March!H39 -> 7.60 | I39: =April!I39+May!I39+June!I39+July!I39+August!I39+September!I39+October!I39+November!I39+December!I39+January!I39+February!I39+March!I39 -> 99.81 | J39: =April!J39+May!J39+June!J39+July!J39+August!J39+September!J39+October!J39+November!J39+December!J39+January!J39+February!J39+March!J39 -> 32.01 | K39: =April!K39+May!K39+June!K39+July!K39+August!K39+September!K39+October!K39+November!K39+December!K39+January!K39+February!K39+March!K39 -> 3.10 | L39: =April!L39+May!L39+June!L39+July!L39+August!L39+September!L39+October!L39+November!L39+December!L39+January!L39+February!L39+March!L39 -> 18.17 | N39: =SUM(D39:L39) -> 312.47
B40: Green waste | C40: RecyclingGreen waste | D40: =April!D40+May!D40+June!D40+July!D40+August!D40+September!D40+October!D40+November!D40+December!D40+January!D40+February!D40+March!D40 -> 0.00 | E40: =April!E40+May!E40+June!E40+July!E40+August!E40+September!E40+October!E40+November!E40+December!E40+January!E40+February!E40+March!E40 -> 0.00 | F40: =April!F40+May!F40+June!F40+July!F40+August!F40+September!F40+October!F40+November!F40+December!F40+January!F40+February!F40+March!F40 -> 0.00 | G40: =April!G40+May!G40+June!G40+July!G40+August!G40+September!G40+October!G40+November!G40+December!G40+January!G40+February!G40+March!G40 -> 0.00 | H40: =April!H40+May!H40+June!H40+July!H40+August!H40+September!H40+October!H40+November!H40+December!H40+January!H40+February!H40+March!H40 -> 0.00 | I40: =April!I40+May!I40+June!I40+July!I40+August!I40+September!I40+October!I40+November!I40+December!I40+January!I40+February!I40+March!I40 -> 0.00 | J40: =April!J40+May!J40+June!J40+July!J40+August!J40+September!J40+October!J40+November!J40+December!J40+January!J40+February!J40+March!J40 -> 0.00 | K40: =April!K40+May!K40+June!K40+July!K40+August!K40+September!K40+October!K40+November!K40+December!K40+January!K40+February!K40+March!K40 -> 3.59 | L40: =April!L40+May!L40+June!L40+July!L40+August!L40+September!L40+October!L40+November!L40+December!L40+January!L40+February!L40+March!L40 -> 4.79 | N40: =SUM(D40:L40) -> 8.38
B41: Hard Plastic | C41: RecyclingHard Plastic | D41: =April!D41+May!D41+June!D41+July!D41+August!D41+September!D41+October!D41+November!D41+December!D41+January!D41+February!D41+March!D41 -> 0.00 | E41: =April!E41+May!E41+June!E41+July!E41+August!E41+September!E41+October!E41+November!E41+December!E41+January!E41+February!E41+March!E41 -> 0.00 | F41: =April!F41+May!F41+June!F41+July!F41+August!F41+September!F41+October!F41+November!F41+December!F41+January!F41+February!F41+March!F41 -> 3.83 | G41: =April!G41+May!G41+June!G41+July!G41+August!G41+September!G41+October!G41+November!G41+December!G41+January!G41+February!G41+March!G41 -> 77.72 | H41: =April!H41+May!H41+June!H41+July!H41+August!H41+September!H41+October!H41+November!H41+December!H41+January!H41+February!H41+March!H41 -> 5.36 | I41: =April!I41+May!I41+June!I41+July!I41+August!I41+September!I41+October!I41+November!I41+December!I41+January!I41+February!I41+March!I41 -> 0.00 | J41: =April!J41+May!J41+June!J41+July!J41+August!J41+September!J41+October!J41+November!J41+December!J41+January!J41+February!J41+March!J41 -> 0.00 | K41: =April!K41+May!K41+June!K41+July!K41+August!K41+September!K41+October!K41+November!K41+December!K41+January!K41+February!K41+March!K41 -> 0.00 | L41: =April!L41+May!L41+June!L41+July!L41+August!L41+September!L41+October!L41+November!L41+December!L41+January!L41+February!L41+March!L41 -> 0.00 | N41: =SUM(D41:L41) -> 86.91
B42: Household Goods Household Goods | C42: RecyclingHousehold Goods Household Goods | D42: =April!D42+May!D42+June!D42+July!D42+August!D42+September!D42+October!D42+November!D42+December!D42+January!D42+February!D42+March!D42 -> 0.00 | E42: =April!E42+May!E42+June!E42+July!E42+August!E42+September!E42+October!E42+November!E42+December!E42+January!E42+February!E42+March!E42 -> 0.00 | F42: =April!F42+May!F42+June!F42+July!F42+August!F42+September!F42+October!F42+November!F42+December!F42+January!F42+February!F42+March!F42 -> 0.00 | G42: =April!G42+May!G42+June!G42+July!G42+August!G42+September!G42+October!G42+November!G42+December!G42+January!G42+February!G42+March!G42 -> 10.40 | H42: =April!H42+May!H42+June!H42+July!H42+August!H42+September!H42+October!H42+November!H42+December!H42+January!H42+February!H42+March!H42 -> 0.00 | I42: =April!I42+May!I42+June!I42+July!I42+August!I42+September!I42+October!I42+November!I42+December!I42+January!I42+February!I42+March!I42 -> 0.00 | J42: =April!J42+May!J42+June!J42+July!J42+August!J42+September!J42+October!J42+November!J42+December!J42+January!J42+February!J42+March!J42 -> 0.00 | K42: =April!K42+May!K42+June!K42+July!K42+August!K42+September!K42+October!K42+November!K42+December!K42+January!K42+February!K42+March!K42 -> 0.00 | L42: =April!L42+May!L42+June!L42+July!L42+August!L42+September!L42+October!L42+November!L42+December!L42+January!L42+February!L42+March!L42 -> 0.00 | N42: =SUM(D42:L42) -> 10.40
B43: Inert (rubble/hardcore) | C43: RecyclingInert (rubble/hardcore) | D43: =April!D43+May!D43+June!D43+July!D43+August!D43+September!D43+October!D43+November!D43+December!D43+January!D43+February!D43+March!D43 -> 0.00 | E43: =April!E43+May!E43+June!E43+July!E43+August!E43+September!E43+October!E43+November!E43+December!E43+January!E43+February!E43+March!E43 -> 0.00 | F43: =April!F43+May!F43+June!F43+July!F43+August!F43+September!F43+October!F43+November!F43+December!F43+January!F43+February!F43+March!F43 -> 0.00 | G43: =April!G43+May!G43+June!G43+July!G43+August!G43+September!G43+October!G43+November!G43+December!G43+January!G43+February!G43+March!G43 -> 0.00 | H43: =April!H43+May!H43+June!H43+July!H43+August!H43+September!H43+October!H43+November!H43+December!H43+January!H43+February!H43+March!H43 -> 0.00 | I43: =April!I43+May!I43+June!I43+July!I43+August!I43+September!I43+October!I43+November!I43+December!I43+January!I43+February!I43+March!I43 -> 0.00 | J43: =April!J43+May!J43+June!J43+July!J43+August!J43+September!J43+October!J43+November!J43+December!J43+January!J43+February!J43+March!J43 -> 0.00 | K43: =April!K43+May!K43+June!K43+July!K43+August!K43+September!K43+October!K43+November!K43+December!K43+January!K43+February!K43+March!K43 -> 0.00 | L43: =April!L43+May!L43+June!L43+July!L43+August!L43+September!L43+October!L43+November!L43+December!L43+January!L43+February!L43+March!L43 -> 5.67 | N43: =SUM(D43:L43) -> 5.67
B44: Lead (nf) | C44: RecyclingLead (nf) | D44: =April!D44+May!D44+June!D44+July!D44+August!D44+September!D44+October!D44+November!D44+December!D44+January!D44+February!D44+March!D44 -> 0.00 | E44: =April!E44+May!E44+June!E44+July!E44+August!E44+September!E44+October!E44+November!E44+December!E44+January!E44+February!E44+March!E44 -> 0.00 | F44: =April!F44+May!F44+June!F44+July!F44+August!F44+September!F44+October!F44+November!F44+December!F44+January!F44+February!F44+March!F44 -> 0.00 | G44: =April!G44+May!G44+June!G44+July!G44+August!G44+September!G44+October!G44+November!G44+December!G44+January!G44+February!G44+March!G44 -> 0.00 | H44: =April!H44+May!H44+June!H44+July!H44+August!H44+September!H44+October!H44+November!H44+December!H44+January!H44+February!H44+March!H44 -> 0.00 | I44: =April!I44+May!I44+June!I44+July!I44+August!I44+September!I44+October!I44+November!I44+December!I44+January!I44+February!I44+March!I44 -> 0.04 | J44: =April!J44+May!J44+June!J44+July!J44+August!J44+September!J44+October!J44+November!J44+December!J44+January!J44+February!J44+March!J44 -> 0.00 | K44: =April!K44+May!K44+June!K44+July!K44+August!K44+September!K44+October!K44+November!K44+December!K44+January!K44+February!K44+March!K44 -> 0.00 | L44: =April!L44+May!L44+June!L44+July!L44+August!L44+September!L44+October!L44+November!L44+December!L44+January!L44+February!L44+March!L44 -> 0.00 | N44: =SUM(D44:L44) -> 0.04
B45: Matresses | C45: RecyclingMatresses | D45: =April!D45+May!D45+June!D45+July!D45+August!D45+September!D45+October!D45+November!D45+December!D45+January!D45+February!D45+March!D45 -> 12.68 | E45: =April!E45+May!E45+June!E45+July!E45+August!E45+September!E45+October!E45+November!E45+December!E45+January!E45+February!E45+March!E45 -> 9.61 | F45: =April!F45+May!F45+June!F45+July!F45+August!F45+September!F45+October!F45+November!F45+December!F45+January!F45+February!F45+March!F45 -> 19.62 | G45: =April!G45+May!G45+June!G45+July!G45+August!G45+September!G45+October!G45+November!G45+December!G45+January!G45+February!G45+March!G45 -> 0.00 | H45: =April!H45+May!H45+June!H45+July!H45+August!H45+September!H45+October!H45+November!H45+December!H45+January!H45+February!H45+March!H45 -> 32.06 | I45: =April!I45+May!I45+June!I45+July!I45+August!I45+September!I45+October!I45+November!I45+December!I45+January!I45+February!I45+March!I45 -> 28.75 | J45: =April!J45+May!J45+June!J45+July!J45+August!J45+September!J45+October!J45+November!J45+December!J45+January!J45+February!J45+March!J45 -> 1.49 | K45: =April!K45+May!K45+June!K45+July!K45+August!K45+September!K45+October!K45+November!K45+December!K45+January!K45+February!K45+March!K45 -> 0.00 | L45: =April!L45+May!L45+June!L45+July!L45+August!L45+September!L45+October!L45+November!L45+December!L45+January!L45+February!L45+March!L45 -> 0.00 | N45: =SUM(D45:L45) -> 104.20
B46: Microwave Motors | C46: RecyclingMicrowave Motors | D46: =April!D46+May!D46+June!D46+July!D46+August!D46+September!D46+October!D46+November!D46+December!D46+January!D46+February!D46+March!D46 -> 0.00 | E46: =April!E46+May!E46+June!E46+July!E46+August!E46+September!E46+October!E46+November!E46+December!E46+January!E46+February!E46+March!E46 -> 1.25 | F46: =April!F46+May!F46+June!F46+July!F46+August!F46+September!F46+October!F46+November!F46+December!F46+January!F46+February!F46+March!F46 -> 2.68 | G46: =April!G46+May!G46+June!G46+July!G46+August!G46+September!G46+October!G46+November!G46+December!G46+January!G46+February!G46+March!G46 -> 0.00 | H46: =April!H46+May!H46+June!H46+July!H46+August!H46+September!H46+October!H46+November!H46+December!H46+January!H46+February!H46+March!H46 -> 0.00 | I46: =April!I46+May!I46+June!I46+July!I46+August!I46+September!I46+October!I46+November!I46+December!I46+January!I46+February!I46+March!I46 -> 13.28 | J46: =April!J46+May!J46+June!J46+July!J46+August!J46+September!J46+October!J46+November!J46+December!J46+January!J46+February!J46+March!J46 -> 0.42 | K46: =April!K46+May!K46+June!K46+July!K46+August!K46+September!K46+October!K46+November!K46+December!K46+January!K46+February!K46+March!K46 -> 0.00 | L46: =April!L46+May!L46+June!L46+July!L46+August!L46+September!L46+October!L46+November!L46+December!L46+January!L46+February!L46+March!L46 -> 0.00 | N46: =SUM(D46:L46) -> 17.63
B47: Non Ferrous Metal Non Ferrous Metal | C47: RecyclingNon Ferrous Metal Non Ferrous Metal | D47: =April!D47+May!D47+June!D47+July!D47+August!D47+September!D47+October!D47+November!D47+December!D47+January!D47+February!D47+March!D47 -> 0.38 | E47: =April!E47+May!E47+June!E47+July!E47+August!E47+September!E47+October!E47+November!E47+December!E47+January!E47+February!E47+March!E47 -> 11.77 | F47: =April!F47+May!F47+June!F47+July!F47+August!F47+September!F47+October!F47+November!F47+December!F47+January!F47+February!F47+March!F47 -> 14.69 | G47: =April!G47+May!G47+June!G47+July!G47+August!G47+September!G47+October!G47+November!G47+December!G47+January!G47+February!G47+March!G47 -> 0.00 | H47: =April!H47+May!H47+June!H47+July!H47+August!H47+September!H47+October!H47+November!H47+December!H47+January!H47+February!H47+March!H47 -> 10.19 | I47: =April!I47+May!I47+June!I47+July!I47+August!I47+September!I47+October!I47+November!I47+December!I47+January!I47+February!I47+March!I47 -> 9.23 | J47: =April!J47+May!J47+June!J47+July!J47+August!J47+September!J47+October!J47+November!J47+December!J47+January!J47+February!J47+March!J47 -> 8.91 | K47: =April!K47+May!K47+June!K47+July!K47+August!K47+September!K47+October!K47+November!K47+December!K47+January!K47+February!K47+March!K47 -> 0.88 | L47: =April!L47+May!L47+June!L47+July!L47+August!L47+September!L47+October!L47+November!L47+December!L47+January!L47+February!L47+March!L47 -> 1.58 | N47: =SUM(D47:L47) -> 57.63
B48: Oil (Engine) | C48: RecyclingOil (Engine) | D48: =April!D48+May!D48+June!D48+July!D48+August!D48+September!D48+October!D48+November!D48+December!D48+January!D48+February!D48+March!D48 -> 5.96 | E48: =April!E48+May!E48+June!E48+July!E48+August!E48+September!E48+October!E48+November!E48+December!E48+January!E48+February!E48+March!E48 -> 2.90 | F48: =April!F48+May!F48+June!F48+July!F48+August!F48+September!F48+October!F48+November!F48+December!F48+January!F48+February!F48+March!F48 -> 12.32 | G48: =April!G48+May!G48+June!G48+July!G48+August!G48+September!G48+October!G48+November!G48+December!G48+January!G48+February!G48+March!G48 -> 18.56 | H48: =April!H48+May!H48+June!H48+July!H48+August!H48+September!H48+October!H48+November!H48+December!H48+January!H48+February!H48+March!H48 -> 12.14 | I48: =April!I48+May!I48+June!I48+July!I48+August!I48+September!I48+October!I48+November!I48+December!I48+January!I48+February!I48+March!I48 -> 14.21 | J48: =April!J48+May!J48+June!J48+July!J48+August!J48+September!J48+October!J48+November!J48+December!J48+January!J48+February!J48+March!J48 -> 0.44 | K48: =April!K48+May!K48+June!K48+July!K48+August!K48+September!K48+October!K48+November!K48+December!K48+January!K48+February!K48+March!K48 -> 1.80 | L48: =April!L48+May!L48+June!L48+July!L48+August!L48+September!L48+October!L48+November!L48+December!L48+January!L48+February!L48+March!L48 -> 1.76 | N48: =SUM(D48:L48) -> 70.10
B49: Oil (Vegetable) | C49: RecyclingOil (Vegetable) | D49: =April!D49+May!D49+June!D49+July!D49+August!D49+September!D49+October!D49+November!D49+December!D49+January!D49+February!D49+March!D49 -> 0.42 | E49: =April!E49+May!E49+June!E49+July!E49+August!E49+September!E49+October!E49+November!E49+December!E49+January!E49+February!E49+March!E49 -> 0.90 | F49: =April!F49+May!F49+June!F49+July!F49+August!F49+September!F49+October!F49+November!F49+December!F49+January!F49+February!F49+March!F49 -> 1.71 | G49: =April!G49+May!G49+June!G49+July!G49+August!G49+September!G49+October!G49+November!G49+December!G49+January!G49+February!G49+March!G49 -> 0.00 | H49: =April!H49+May!H49+June!H49+July!H49+August!H49+September!H49+October!H49+November!H49+December!H49+January!H49+February!H49+March!H49 -> 1.18 | I49: =April!I49+May!I49+June!I49+July!I49+August!I49+September!I49+October!I49+November!I49+December!I49+January!I49+February!I49+March!I49 -> 3.34 | J49: =April!J49+May!J49+June!J49+July!J49+August!J49+September!J49+October!J49+November!J49+December!J49+January!J49+February!J49+March!J49 -> 0.53 | K49: =April!K49+May!K49+June!K49+July!K49+August!K49+September!K49+October!K49+November!K49+December!K49+January!K49+February!K49+March!K49 -> 0.00 | L49: =April!L49+May!L49+June!L49+July!L49+August!L49+September!L49+October!L49+November!L49+December!L49+January!L49+February!L49+March!L49 -> 0.00 | N49: =SUM(D49:L49) -> 8.08
B50: Paint (chemicals) | C50: RecyclingPaint (chemicals) | D50: =April!D50+May!D50+June!D50+July!D50+August!D50+September!D50+October!D50+November!D50+December!D50+January!D50+February!D50+March!D50 -> 0.00 | E50: =April!E50+May!E50+June!E50+July!E50+August!E50+September!E50+October!E50+November!E50+December!E50+January!E50+February!E50+March!E50 -> 0.18 | F50: =April!F50+May!F50+June!F50+July!F50+August!F50+September!F50+October!F50+November!F50+December!F50+January!F50+February!F50+March!F50 -> 0.00 | G50: =April!G50+May!G50+June!G50+July!G50+August!G50+September!G50+October!G50+November!G50+December!G50+January!G50+February!G50+March!G50 -> 0.00 | H50: =April!H50+May!H50+June!H50+July!H50+August!H50+September!H50+October!H50+November!H50+December!H50+January!H50+February!H50+March!H50 -> 4.78 | I50: =April!I50+May!I50+June!I50+July!I50+August!I50+September!I50+October!I50+November!I50+December!I50+January!I50+February!I50+March!I50 -> 11.89 | J50: =April!J50+May!J50+June!J50+July!J50+August!J50+September!J50+October!J50+November!J50+December!J50+January!J50+February!J50+March!J50 -> 0.00 | K50: =April!K50+May!K50+June!K50+July!K50+August!K50+September!K50+October!K50+November!K50+December!K50+January!K50+February!K50+March!K50 -> 0.95 | L50: =April!L50+May!L50+June!L50+July!L50+August!L50+September!L50+October!L50+November!L50+December!L50+January!L50+February!L50+March!L50 -> 0.75 | N50: =SUM(D50:L50) -> 18.55
B51: Paper (mixed with card) | C51: RecyclingPaper (mixed with card) | D51: =April!D51+May!D51+June!D51+July!D51+August!D51+September!D51+October!D51+November!D51+December!D51+January!D51+February!D51+March!D51 -> 0.00 | E51: =April!E51+May!E51+June!E51+July!E51+August!E51+September!E51+October!E51+November!E51+December!E51+January!E51+February!E51+March!E51 -> 0.00 | F51: =April!F51+May!F51+June!F51+July!F51+August!F51+September!F51+October!F51+November!F51+December!F51+January!F51+February!F51+March!F51 -> 0.00 | G51: =April!G51+May!G51+June!G51+July!G51+August!G51+September!G51+October!G51+November!G51+December!G51+January!G51+February!G51+March!G51 -> 30.50 | H51: =April!H51+May!H51+June!H51+July!H51+August!H51+September!H51+October!H51+November!H51+December!H51+January!H51+February!H51+March!H51 -> 4.16 | I51: =April!I51+May!I51+June!I51+July!I51+August!I51+September!I51+October!I51+November!I51+December!I51+January!I51+February!I51+March!I51 -> 0.00 | J51: =April!J51+May!J51+June!J51+July!J51+August!J51+September!J51+October!J51+November!J51+December!J51+January!J51+February!J51+March!J51 -> 0.00 | K51: =April!K51+May!K51+June!K51+July!K51+August!K51+September!K51+October!K51+November!K51+December!K51+January!K51+February!K51+March!K51 -> 0.00 | L51: =April!L51+May!L51+June!L51+July!L51+August!L51+September!L51+October!L51+November!L51+December!L51+January!L51+February!L51+March!L51 -> 0.00 | N51: =SUM(D51:L51) -> 34.66
B52: Paper (newspaper & magazines) | C52: RecyclingPaper (newspaper & magazines) | D52: =April!D52+May!D52+June!D52+July!D52+August!D52+September!D52+October!D52+November!D52+December!D52+January!D52+February!D52+March!D52 -> 201.12 | E52: =April!E52+May!E52+June!E52+July!E52+August!E52+September!E52+October!E52+November!E52+December!E52+January!E52+February!E52+March!E52 -> 164.56 | F52: =April!F52+May!F52+June!F52+July!F52+August!F52+September!F52+October!F52+November!F52+December!F52+January!F52+February!F52+March!F52 -> 208.40 | G52: =April!G52+May!G52+June!G52+July!G52+August!G52+September!G52+October!G52+November!G52+December!G52+January!G52+February!G52+March!G52 -> 68.62 | H52: =April!H52+May!H52+June!H52+July!H52+August!H52+September!H52+October!H52+November!H52+December!H52+January!H52+February!H52+March!H52 -> 112.96 | I52: =April!I52+May!I52+June!I52+July!I52+August!I52+September!I52+October!I52+November!I52+December!I52+January!I52+February!I52+March!I52 -> 295.56 | J52: =April!J52+May!J52+June!J52+July!J52+August!J52+September!J52+October!J52+November!J52+December!J52+January!J52+February!J52+March!J52 -> 77.78 | K52: =April!K52+May!K52+June!K52+July!K52+August!K52+September!K52+October!K52+November!K52+December!K52+January!K52+February!K52+March!K52 -> 0.00 | L52: =April!L52+May!L52+June!L52+July!L52+August!L52+September!L52+October!L52+November!L52+December!L52+January!L52+February!L52+March!L52 -> 0.00 | N52: =SUM(D52:L52) -> 1,129.00
B53: Plasterboard | C53: RecyclingPlasterboard | D53: =April!D53+May!D53+June!D53+July!D53+August!D53+September!D53+October!D53+November!D53+December!D53+January!D53+February!D53+March!D53 -> 62.24 | E53: =April!E53+May!E53+June!E53+July!E53+August!E53+September!E53+October!E53+November!E53+December!E53+January!E53+February!E53+March!E53 -> 0.67 | F53: =April!F53+May!F53+June!F53+July!F53+August!F53+September!F53+October!F53+November!F53+December!F53+January!F53+February!F53+March!F53 -> 63.40 | G53: =April!G53+May!G53+June!G53+July!G53+August!G53+September!G53+October!G53+November!G53+December!G53+January!G53+February!G53+March!G53 -> 101.58 | H53: =April!H53+May!H53+June!H53+July!H53+August!H53+September!H53+October!H53+November!H53+December!H53+January!H53+February!H53+March!H53 -> 89.91 | I53: =April!I53+May!I53+June!I53+July!I53+August!I53+September!I53+October!I53+November!I53+December!I53+January!I53+February!I53+March!I53 -> 164.81 | J53: =April!J53+May!J53+June!J53+July!J53+August!J53+September!J53+October!J53+November!J53+December!J53+January!J53+February!J53+March!J53 -> 0.22 | K53: =April!K53+May!K53+June!K53+July!K53+August!K53+September!K53+October!K53+November!K53+December!K53+January!K53+February!K53+March!K53 -> 0.00 | L53: =April!L53+May!L53+June!L53+July!L53+August!L53+September!L53+October!L53+November!L53+December!L53+January!L53+February!L53+March!L53 -> 0.22 | N53: =SUM(D53:L53) -> 483.05
B54: Plastic (Mixed) | C54: RecyclingPlastic (Mixed) | D54: =April!D54+May!D54+June!D54+July!D54+August!D54+September!D54+October!D54+November!D54+December!D54+January!D54+February!D54+March!D54 -> 2.43 | E54: =April!E54+May!E54+June!E54+July!E54+August!E54+September!E54+October!E54+November!E54+December!E54+January!E54+February!E54+March!E54 -> 13.63 | F54: =April!F54+May!F54+June!F54+July!F54+August!F54+September!F54+October!F54+November!F54+December!F54+January!F54+February!F54+March!F54 -> 0.91 | G54: =April!G54+May!G54+June!G54+July!G54+August!G54+September!G54+October!G54+November!G54+December!G54+January!G54+February!G54+March!G54 -> 0.00 | H54: =April!H54+May!H54+June!H54+July!H54+August!H54+September!H54+October!H54+November!H54+December!H54+January!H54+February!H54+March!H54 -> 1.04 | I54: =April!I54+May!I54+June!I54+July!I54+August!I54+September!I54+October!I54+November!I54+December!I54+January!I54+February!I54+March!I54 -> 56.29 | J54: =April!J54+May!J54+June!J54+July!J54+August!J54+September!J54+October!J54+November!J54+December!J54+January!J54+February!J54+March!J54 -> 4.73 | K54: =April!K54+May!K54+June!K54+July!K54+August!K54+September!K54+October!K54+November!K54+December!K54+January!K54+February!K54+March!K54 -> 0.95 | L54: =April!L54+May!L54+June!L54+July!L54+August!L54+September!L54+October!L54+November!L54+December!L54+January!L54+February!L54+March!L54 -> 1.18 | N54: =SUM(D54:L54) -> 81.16
B55: Printer Cartridges | C55: RecyclingPrinter Cartridges | D55: =April!D55+May!D55+June!D55+July!D55+August!D55+September!D55+October!D55+November!D55+December!D55+January!D55+February!D55+March!D55 -> 0.00 | E55: =April!E55+May!E55+June!E55+July!E55+August!E55+September!E55+October!E55+November!E55+December!E55+January!E55+February!E55+March!E55 -> 0.00 | F55: =April!F55+May!F55+June!F55+July!F55+August!F55+September!F55+October!F55+November!F55+December!F55+January!F55+February!F55+March!F55 -> 0.57 | G55: =April!G55+May!G55+June!G55+July!G55+August!G55+September!G55+October!G55+November!G55+December!G55+January!G55+February!G55+March!G55 -> 0.00 | H55: =April!H55+May!H55+June!H55+July!H55+August!H55+September!H55+October!H55+November!H55+December!H55+January!H55+February!H55+March!H55 -> 0.00 | I55: =April!I55+May!I55+June!I55+July!I55+August!I55+September!I55+October!I55+November!I55+December!I55+January!I55+February!I55+March!I55 -> 0.00 | J55: =April!J55+May!J55+June!J55+July!J55+August!J55+September!J55+October!J55+November!J55+December!J55+January!J55+February!J55+March!J55 -> 0.00 | K55: =April!K55+May!K55+June!K55+July!K55+August!K55+September!K55+October!K55+November!K55+December!K55+January!K55+February!K55+March!K55 -> 0.00 | L55: =April!L55+May!L55+June!L55+July!L55+August!L55+September!L55+October!L55+November!L55+December!L55+January!L55+February!L55+March!L55 -> 0.00 | N55: =SUM(D55:L55) -> 0.57
B56: Road Sweepings | C56: RecyclingRoad Sweepings | D56: =April!D56+May!D56+June!D56+July!D56+August!D56+September!D56+October!D56+November!D56+December!D56+January!D56+February!D56+March!D56 -> 0.00 | E56: =April!E56+May!E56+June!E56+July!E56+August!E56+September!E56+October!E56+November!E56+December!E56+January!E56+February!E56+March!E56 -> 0.00 | F56: =April!F56+May!F56+June!F56+July!F56+August!F56+September!F56+October!F56+November!F56+December!F56+January!F56+February!F56+March!F56 -> 0.00 | G56: =April!G56+May!G56+June!G56+July!G56+August!G56+September!G56+October!G56+November!G56+December!G56+January!G56+February!G56+March!G56 -> 0.00 | H56: =April!H56+May!H56+June!H56+July!H56+August!H56+September!H56+October!H56+November!H56+December!H56+January!H56+February!H56+March!H56 -> 0.00 | I56: =April!I56+May!I56+June!I56+July!I56+August!I56+September!I56+October!I56+November!I56+December!I56+January!I56+February!I56+March!I56 -> 3,355.92 | J56: =April!J56+May!J56+June!J56+July!J56+August!J56+September!J56+October!J56+November!J56+December!J56+January!J56+February!J56+March!J56 -> 0.00 | K56: =April!K56+May!K56+June!K56+July!K56+August!K56+September!K56+October!K56+November!K56+December!K56+January!K56+February!K56+March!K56 -> 0.00 | L56: =April!L56+May!L56+June!L56+July!L56+August!L56+September!L56+October!L56+November!L56+December!L56+January!L56+February!L56+March!L56 -> 0.00 | N56: =SUM(D56:L56) -> 3,355.92
B57: Scrap metal (mixed) | C57: RecyclingScrap metal (mixed) | D57: =April!D57+May!D57+June!D57+July!D57+August!D57+September!D57+October!D57+November!D57+December!D57+January!D57+February!D57+March!D57 -> 424.13 | E57: =April!E57+May!E57+June!E57+July!E57+August!E57+September!E57+October!E57+November!E57+December!E57+January!E57+February!E57+March!E57 -> 253.50 | F57: =April!F57+May!F57+June!F57+July!F57+August!F57+September!F57+October!F57+November!F57+December!F57+January!F57+February!F57+March!F57 -> 534.36 | G57: =April!G57+May!G57+June!G57+July!G57+August!G57+September!G57+October!G57+November!G57+December!G57+January!G57+February!G57+March!G57 -> 466.09 | H57: =April!H57+May!H57+June!H57+July!H57+August!H57+September!H57+October!H57+November!H57+December!H57+January!H57+February!H57+March!H57 -> 356.57 | I57: =April!I57+May!I57+June!I57+July!I57+August!I57+September!I57+October!I57+November!I57+December!I57+January!I57+February!I57+March!I57 -> 854.82 | J57: =April!J57+May!J57+June!J57+July!J57+August!J57+September!J57+October!J57+November!J57+December!J57+January!J57+February!J57+March!J57 -> 207.70 | K57: =April!K57+May!K57+June!K57+July!K57+August!K57+September!K57+October!K57+November!K57+December!K57+January!K57+February!K57+March!K57 -> 80.45 | L57: =April!L57+May!L57+June!L57+July!L57+August!L57+September!L57+October!L57+November!L57+December!L57+January!L57+February!L57+March!L57 -> 85.28 | N57: =SUM(D57:L57) -> 3,262.90
B58: Screens output | C58: RecyclingScreens output | D58: =April!D58+May!D58+June!D58+July!D58+August!D58+September!D58+October!D58+November!D58+December!D58+January!D58+February!D58+March!D58 -> 48.71 | E58: =April!E58+May!E58+June!E58+July!E58+August!E58+September!E58+October!E58+November!E58+December!E58+January!E58+February!E58+March!E58 -> 36.50 | F58: =April!F58+May!F58+June!F58+July!F58+August!F58+September!F58+October!F58+November!F58+December!F58+January!F58+February!F58+March!F58 -> 92.04 | G58: =April!G58+May!G58+June!G58+July!G58+August!G58+September!G58+October!G58+November!G58+December!G58+January!G58+February!G58+March!G58 -> 76.79 | H58: =April!H58+May!H58+June!H58+July!H58+August!H58+September!H58+October!H58+November!H58+December!H58+January!H58+February!H58+March!H58 -> 68.08 | I58: =April!I58+May!I58+June!I58+July!I58+August!I58+September!I58+October!I58+November!I58+December!I58+January!I58+February!I58+March!I58 -> 116.57 | J58: =April!J58+May!J58+June!J58+July!J58+August!J58+September!J58+October!J58+November!J58+December!J58+January!J58+February!J58+March!J58 -> 27.39 | K58: =April!K58+May!K58+June!K58+July!K58+August!K58+September!K58+October!K58+November!K58+December!K58+January!K58+February!K58+March!K58 -> 10.61 | L58: =April!L58+May!L58+June!L58+July!L58+August!L58+September!L58+October!L58+November!L58+December!L58+January!L58+February!L58+March!L58 -> 22.09 | N58: =SUM(D58:L58) -> 498.78
B59: Small Domestic Appliances | C59: RecyclingSmall Domestic Appliances | D59: =April!D59+May!D59+June!D59+July!D59+August!D59+September!D59+October!D59+November!D59+December!D59+January!D59+February!D59+March!D59 -> 231.74 | E59: =April!E59+May!E59+June!E59+July!E59+August!E59+September!E59+October!E59+November!E59+December!E59+January!E59+February!E59+March!E59 -> 96.55 | F59: =April!F59+May!F59+June!F59+July!F59+August!F59+September!F59+October!F59+November!F59+December!F59+January!F59+February!F59+March!F59 -> 232.20 | G59: =April!G59+May!G59+June!G59+July!G59+August!G59+September!G59+October!G59+November!G59+December!G59+January!G59+February!G59+March!G59 -> 140.84 | H59: =April!H59+May!H59+June!H59+July!H59+August!H59+September!H59+October!H59+November!H59+December!H59+January!H59+February!H59+March!H59 -> 173.04 | I59: =April!I59+May!I59+June!I59+July!I59+August!I59+September!I59+October!I59+November!I59+December!I59+January!I59+February!I59+March!I59 -> 385.10 | J59: =April!J59+May!J59+June!J59+July!J59+August!J59+September!J59+October!J59+November!J59+December!J59+January!J59+February!J59+March!J59 -> 63.39 | K59: =April!K59+May!K59+June!K59+July!K59+August!K59+September!K59+October!K59+November!K59+December!K59+January!K59+February!K59+March!K59 -> 28.47 | L59: =April!L59+May!L59+June!L59+July!L59+August!L59+September!L59+October!L59+November!L59+December!L59+January!L59+February!L59+March!L59 -> 38.40 | N59: =SUM(D59:L59) -> 1,389.73
B60: Soil & rubble | C60: RecyclingSoil & rubble | D60: =April!D60+May!D60+June!D60+July!D60+August!D60+September!D60+October!D60+November!D60+December!D60+January!D60+February!D60+March!D60 -> 0.00 | E60: =April!E60+May!E60+June!E60+July!E60+August!E60+September!E60+October!E60+November!E60+December!E60+January!E60+February!E60+March!E60 -> 0.00 | F60: =April!F60+May!F60+June!F60+July!F60+August!F60+September!F60+October!F60+November!F60+December!F60+January!F60+February!F60+March!F60 -> 0.00 | G60: =April!G60+May!G60+June!G60+July!G60+August!G60+September!G60+October!G60+November!G60+December!G60+January!G60+February!G60+March!G60 -> 1,158.19 | H60: =April!H60+May!H60+June!H60+July!H60+August!H60+September!H60+October!H60+November!H60+December!H60+January!H60+February!H60+March!H60 -> 0.00 | I60: =April!I60+May!I60+June!I60+July!I60+August!I60+September!I60+October!I60+November!I60+December!I60+January!I60+February!I60+March!I60 -> 0.00 | J60: =April!J60+May!J60+June!J60+July!J60+August!J60+September!J60+October!J60+November!J60+December!J60+January!J60+February!J60+March!J60 -> 0.00 | K60: =April!K60+May!K60+June!K60+July!K60+August!K60+September!K60+October!K60+November!K60+December!K60+January!K60+February!K60+March!K60 -> 0.00 | L60: =April!L60+May!L60+June!L60+July!L60+August!L60+September!L60+October!L60+November!L60+December!L60+January!L60+February!L60+March!L60 -> 0.00 | N60: =SUM(D60:L60) -> 1,158.19
B61: Stainless Steel | C61: RecyclingStainless Steel | D61: =April!D61+May!D61+June!D61+July!D61+August!D61+September!D61+October!D61+November!D61+December!D61+January!D61+February!D61+March!D61 -> 0.00 | E61: =April!E61+May!E61+June!E61+July!E61+August!E61+September!E61+October!E61+November!E61+December!E61+January!E61+February!E61+March!E61 -> 0.00 | F61: =April!F61+May!F61+June!F61+July!F61+August!F61+September!F61+October!F61+November!F61+December!F61+January!F61+February!F61+March!F61 -> 0.00 | G61: =April!G61+May!G61+June!G61+July!G61+August!G61+September!G61+October!G61+November!G61+December!G61+January!G61+February!G61+March!G61 -> 0.00 | H61: =April!H61+May!H61+June!H61+July!H61+August!H61+September!H61+October!H61+November!H61+December!H61+January!H61+February!H61+March!H61 -> 0.00 | I61: =April!I61+May!I61+June!I61+July!I61+August!I61+September!I61+October!I61+November!I61+December!I61+January!I61+February!I61+March!I61 -> 0.53 | J61: =April!J61+May!J61+June!J61+July!J61+August!J61+September!J61+October!J61+November!J61+December!J61+January!J61+February!J61+March!J61 -> 0.00 | K61: =April!K61+May!K61+June!K61+July!K61+August!K61+September!K61+October!K61+November!K61+December!K61+January!K61+February!K61+March!K61 -> 0.00 | L61: =April!L61+May!L61+June!L61+July!L61+August!L61+September!L61+October!L61+November!L61+December!L61+January!L61+February!L61+March!L61 -> 0.00 | N61: =SUM(D61:L61) -> 0.53
B62: Textiles | C62: RecyclingTextiles | D62: =April!D62+May!D62+June!D62+July!D62+August!D62+September!D62+October!D62+November!D62+December!D62+January!D62+February!D62+March!D62 -> 83.95 | E62: =April!E62+May!E62+June!E62+July!E62+August!E62+September!E62+October!E62+November!E62+December!E62+January!E62+February!E62+March!E62 -> 57.83 | F62: =April!F62+May!F62+June!F62+July!F62+August!F62+September!F62+October!F62+November!F62+December!F62+January!F62+February!F62+March!F62 -> 91.58 | G62: =April!G62+May!G62+June!G62+July!G62+August!G62+September!G62+October!G62+November!G62+December!G62+January!G62+February!G62+March!G62 -> 135.86 | H62: =April!H62+May!H62+June!H62+July!H62+August!H62+September!H62+October!H62+November!H62+December!H62+January!H62+February!H62+March!H62 -> 73.33 | I62: =April!I62+May!I62+June!I62+July!I62+August!I62+September!I62+October!I62+November!I62+December!I62+January!I62+February!I62+March!I62 -> 114.97 | J62: =April!J62+May!J62+June!J62+July!J62+August!J62+September!J62+October!J62+November!J62+December!J62+January!J62+February!J62+March!J62 -> 23.99 | K62: =April!K62+May!K62+June!K62+July!K62+August!K62+September!K62+October!K62+November!K62+December!K62+January!K62+February!K62+March!K62 -> 7.79 | L62: =April!L62+May!L62+June!L62+July!L62+August!L62+September!L62+October!L62+November!L62+December!L62+January!L62+February!L62+March!L62 -> 19.91 | N62: =SUM(D62:L62) -> 609.21
B63: Tyres | C63: RecyclingTyres | D63: =April!D63+May!D63+June!D63+July!D63+August!D63+September!D63+October!D63+November!D63+December!D63+January!D63+February!D63+March!D63 -> 0.00 | E63: =April!E63+May!E63+June!E63+July!E63+August!E63+September!E63+October!E63+November!E63+December!E63+January!E63+February!E63+March!E63 -> 0.01 | F63: =April!F63+May!F63+June!F63+July!F63+August!F63+September!F63+October!F63+November!F63+December!F63+January!F63+February!F63+March!F63 -> 0.00 | G63: =April!G63+May!G63+June!G63+July!G63+August!G63+September!G63+October!G63+November!G63+December!G63+January!G63+February!G63+March!G63 -> 0.00 | H63: =April!H63+May!H63+June!H63+July!H63+August!H63+September!H63+October!H63+November!H63+December!H63+January!H63+February!H63+March!H63 -> 0.00 | I63: =April!I63+May!I63+June!I63+July!I63+August!I63+September!I63+October!I63+November!I63+December!I63+January!I63+February!I63+March!I63 -> 0.00 | J63: =April!J63+May!J63+June!J63+July!J63+August!J63+September!J63+October!J63+November!J63+December!J63+January!J63+February!J63+March!J63 -> 0.00 | K63: =April!K63+May!K63+June!K63+July!K63+August!K63+September!K63+October!K63+November!K63+December!K63+January!K63+February!K63+March!K63 -> 0.00 | L63: =April!L63+May!L63+June!L63+July!L63+August!L63+September!L63+October!L63+November!L63+December!L63+January!L63+February!L63+March!L63 -> 0.00 | N63: =SUM(D63:L63) -> 0.01
B64: Wood (including treated) | C64: RecyclingWood (including treated) | D64: =April!D64+May!D64+June!D64+July!D64+August!D64+September!D64+October!D64+November!D64+December!D64+January!D64+February!D64+March!D64 -> 128.02 | E64: =April!E64+May!E64+June!E64+July!E64+August!E64+September!E64+October!E64+November!E64+December!E64+January!E64+February!E64+March!E64 -> 551.58 | F64: =April!F64+May!F64+June!F64+July!F64+August!F64+September!F64+October!F64+November!F64+December!F64+January!F64+February!F64+March!F64 -> 478.05 | G64: =April!G64+May!G64+June!G64+July!G64+August!G64+September!G64+October!G64+November!G64+December!G64+January!G64+February!G64+March!G64 -> 1,208.35 | H64: =April!H64+May!H64+June!H64+July!H64+August!H64+September!H64+October!H64+November!H64+December!H64+January!H64+February!H64+March!H64 -> 705.70 | I64: =April!I64+May!I64+June!I64+July!I64+August!I64+September!I64+October!I64+November!I64+December!I64+January!I64+February!I64+March!I64 -> 2,174.18 | J64: =April!J64+May!J64+June!J64+July!J64+August!J64+September!J64+October!J64+November!J64+December!J64+January!J64+February!J64+March!J64 -> 179.21 | K64: =April!K64+May!K64+June!K64+July!K64+August!K64+September!K64+October!K64+November!K64+December!K64+January!K64+February!K64+March!K64 -> 116.75 | L64: =April!L64+May!L64+June!L64+July!L64+August!L64+September!L64+October!L64+November!L64+December!L64+January!L64+February!L64+March!L64 -> 148.68 | N64: =SUM(D64:L64) -> 5,690.51
B66: Sub Total | D66: =SUM(D23:D64) -> 2,626.19 | E66: =SUM(E23:E64) -> 1,883.32 | F66: =SUM(F23:F64) -> 3,255.90 | G66: =SUM(G23:G64) -> 4,080.25 | H66: =SUM(H23:H64) -> 2,986.51 | I66: =SUM(I23:I64) -> 9,293.53 | J66: =SUM(J23:J64) -> 992.84 | K66: =SUM(K23:K64) -> 375.89 | L66: =SUM(L23:L64) -> 539.81 | N66: =SUM(D66:L66) -> 26,034.24
A68: Re-Use | B68: Books | C68: Re-UseBooks | D68: =April!D68+May!D68+June!D68+July!D68+August!D68+September!D68+October!D68+November!D68+December!D68+January!D68+February!D68+March!D68 -> 1.09 | E68: =April!E68+May!E68+June!E68+July!E68+August!E68+September!E68+October!E68+November!E68+December!E68+January!E68+February!E68+March!E68 -> 0.00 | F68: =April!F68+May!F68+June!F68+July!F68+August!F68+September!F68+October!F68+November!F68+December!F68+January!F68+February!F68+March!F68 -> 0.00 | G68: =April!G68+May!G68+June!G68+July!G68+August!G68+September!G68+October!G68+November!G68+December!G68+January!G68+February!G68+March!G68 -> 0.00 | H68: =April!H68+May!H68+June!H68+July!H68+August!H68+September!H68+October!H68+November!H68+December!H68+January!H68+February!H68+March!H68 -> 0.00 | I68: =April!I68+May!I68+June!I68+July!I68+August!I68+September!I68+October!I68+November!I68+December!I68+January!I68+February!I68+March!I68 -> 0.00 | J68: =April!J68+May!J68+June!J68+July!J68+August!J68+September!J68+October!J68+November!J68+December!J68+January!J68+February!J68+March!J68 -> 0.00 | K68: =April!K68+May!K68+June!K68+July!K68+August!K68+September!K68+October!K68+November!K68+December!K68+January!K68+February!K68+March!K68 -> 0.00 | L68: =April!L68+May!L68+June!L68+July!L68+August!L68+September!L68+October!L68+November!L68+December!L68+January!L68+February!L68+March!L68 -> 0.96 | N68: =SUM(D68:L68) -> 2.05
B69: Gas Cylinders | C69: Re-UseGas Cylinders | D69: =April!D69+May!D69+June!D69+July!D69+August!D69+September!D69+October!D69+November!D69+December!D69+January!D69+February!D69+March!D69 -> 0.00 | E69: =April!E69+May!E69+June!E69+July!E69+August!E69+September!E69+October!E69+November!E69+December!E69+January!E69+February!E69+March!E69 -> 0.00 | F69: =April!F69+May!F69+June!F69+July!F69+August!F69+September!F69+October!F69+November!F69+December!F69+January!F69+February!F69+March!F69 -> 0.00 | G69: =April!G69+May!G69+June!G69+July!G69+August!G69+September!G69+October!G69+November!G69+December!G69+January!G69+February!G69+March!G69 -> 0.00 | H69: =April!H69+May!H69+June!H69+July!H69+August!H69+September!H69+October!H69+November!H69+December!H69+January!H69+February!H69+March!H69 -> 0.00 | I69: =April!I69+May!I69+June!I69+July!I69+August!I69+September!I69+October!I69+November!I69+December!I69+January!I69+February!I69+March!I69 -> 0.68 | J69: =April!J69+May!J69+June!J69+July!J69+August!J69+September!J69+October!J69+November!J69+December!J69+January!J69+February!J69+March!J69 -> 0.00 | K69: =April!K69+May!K69+June!K69+July!K69+August!K69+September!K69+October!K69+November!K69+December!K69+January!K69+February!K69+March!K69 -> 0.00 | L69: =April!L69+May!L69+June!L69+July!L69+August!L69+September!L69+October!L69+November!L69+December!L69+January!L69+February!L69+March!L69 -> 0.00 | N69: =SUM(D69:L69) -> 0.68
B70: Household Goods Household Goods | C70: Re-UseHousehold Goods Household Goods | D70: =April!D70+May!D70+June!D70+July!D70+August!D70+September!D70+October!D70+November!D70+December!D70+January!D70+February!D70+March!D70 -> 0.00 | E70: =April!E70+May!E70+June!E70+July!E70+August!E70+September!E70+October!E70+November!E70+December!E70+January!E70+February!E70+March!E70 -> 0.00 | F70: =April!F70+May!F70+June!F70+July!F70+August!F70+September!F70+October!F70+November!F70+December!F70+January!F70+February!F70+March!F70 -> 0.00 | G70: =April!G70+May!G70+June!G70+July!G70+August!G70+September!G70+October!G70+November!G70+December!G70+January!G70+February!G70+March!G70 -> 134.73 | H70: =April!H70+May!H70+June!H70+July!H70+August!H70+September!H70+October!H70+November!H70+December!H70+January!H70+February!H70+March!H70 -> 0.00 | I70: =April!I70+May!I70+June!I70+July!I70+August!I70+September!I70+October!I70+November!I70+December!I70+January!I70+February!I70+March!I70 -> 0.00 | J70: =April!J70+May!J70+June!J70+July!J70+August!J70+September!J70+October!J70+November!J70+December!J70+January!J70+February!J70+March!J70 -> 0.00 | K70: =April!K70+May!K70+June!K70+July!K70+August!K70+September!K70+October!K70+November!K70+December!K70+January!K70+February!K70+March!K70 -> 0.00 | L70: =April!L70+May!L70+June!L70+July!L70+August!L70+September!L70+October!L70+November!L70+December!L70+January!L70+February!L70+March!L70 -> 0.00 | N70: =SUM(D70:L70) -> 134.73
B71: Inert (rubble/hardcore) | C71: Re-UseInert (rubble/hardcore) | D71: =April!D71+May!D71+June!D71+July!D71+August!D71+September!D71+October!D71+November!D71+December!D71+January!D71+February!D71+March!D71 -> 1,055.91 | E71: =April!E71+May!E71+June!E71+July!E71+August!E71+September!E71+October!E71+November!E71+December!E71+January!E71+February!E71+March!E71 -> 673.64 | F71: =April!F71+May!F71+June!F71+July!F71+August!F71+September!F71+October!F71+November!F71+December!F71+January!F71+February!F71+March!F71 -> 953.66 | G71: =April!G71+May!G71+June!G71+July!G71+August!G71+September!G71+October!G71+November!G71+December!G71+January!G71+February!G71+March!G71 -> 0.00 | H71: =April!H71+May!H71+June!H71+July!H71+August!H71+September!H71+October!H71+November!H71+December!H71+January!H71+February!H71+March!H71 -> 819.82 | I71: =April!I71+May!I71+June!I71+July!I71+August!I71+September!I71+October!I71+November!I71+December!I71+January!I71+February!I71+March!I71 -> 2,052.08 | J71: =April!J71+May!J71+June!J71+July!J71+August!J71+September!J71+October!J71+November!J71+December!J71+January!J71+February!J71+March!J71 -> 230.90 | K71: =April!K71+May!K71+June!K71+July!K71+August!K71+September!K71+October!K71+November!K71+December!K71+January!K71+February!K71+March!K71 -> 149.12 | L71: =April!L71+May!L71+June!L71+July!L71+August!L71+September!L71+October!L71+November!L71+December!L71+January!L71+February!L71+March!L71 -> 169.29 | N71: =SUM(D71:L71) -> 6,104.42
B72: Soil | C72: Re-UseSoil | D72: =April!D72+May!D72+June!D72+July!D72+August!D72+September!D72+October!D72+November!D72+December!D72+January!D72+February!D72+March!D72 -> 34.60 | E72: =April!E72+May!E72+June!E72+July!E72+August!E72+September!E72+October!E72+November!E72+December!E72+January!E72+February!E72+March!E72 -> 0.00 | F72: =April!F72+May!F72+June!F72+July!F72+August!F72+September!F72+October!F72+November!F72+December!F72+January!F72+February!F72+March!F72 -> 0.00 | G72: =April!G72+May!G72+June!G72+July!G72+August!G72+September!G72+October!G72+November!G72+December!G72+January!G72+February!G72+March!G72 -> 0.00 | H72: =April!H72+May!H72+June!H72+July!H72+August!H72+September!H72+October!H72+November!H72+December!H72+January!H72+February!H72+March!H72 -> 0.00 | I72: =April!I72+May!I72+June!I72+July!I72+August!I72+September!I72+October!I72+November!I72+December!I72+January!I72+February!I72+March!I72 -> 0.00 | J72: =April!J72+May!J72+June!J72+July!J72+August!J72+September!J72+October!J72+November!J72+December!J72+January!J72+February!J72+March!J72 -> 8.80 | K72: =April!K72+May!K72+June!K72+July!K72+August!K72+September!K72+October!K72+November!K72+December!K72+January!K72+February!K72+March!K72 -> 0.00 | L72: =April!L72+May!L72+June!L72+July!L72+August!L72+September!L72+October!L72+November!L72+December!L72+January!L72+February!L72+March!L72 -> 0.00 | N72: =SUM(D72:L72) -> 43.40
B74: Sub Total | D74: =SUM(D68:D73) -> 1,091.60 | E74: =SUM(E68:E73) -> 673.64 | F74: =SUM(F68:F73) -> 953.66 | G74: =SUM(G68:G73) -> 134.73 | H74: =SUM(H68:H73) -> 819.82 | I74: =SUM(I68:I73) -> 2,052.76 | J74: =SUM(J68:J73) -> 239.70 | K74: =SUM(K68:K73) -> 149.12 | L74: =SUM(L68:L73) -> 170.25 | N74: =SUM(D74:L74) -> 6,285.28
B77: Grand Total | D77: =SUM(D7)+(D15)+(D21)+(D66)+(D74) -> 6,309.15 | E77: =SUM(E7)+(E15)+(E21)+(E66)+(E74) -> 4,618.55 | F77: =SUM(F7)+(F15)+(F21)+(F66)+(F74) -> 7,626.44 | G77: =SUM(G7)+(G15)+(G21)+(G66)+(G74) -> 9,037.95 | H77: =SUM(H7)+(H15)+(H21)+(H66)+(H74) -> 6,095.37 | I77: =SUM(I7)+(I15)+(I21)+(I66)+(I74) -> 21,068.02 | J77: =SUM(J7)+(J15)+(J21)+(J66)+(J74) -> 2,064.65 | K77: =SUM(K7)+(K15)+(K21)+(K66)+(K74) -> 925.45 | L77: =SUM(L7)+(L15)+(L21)+(L66)+(L74) -> 1,193.54 | N77: =SUM(D77:L77) -> 58,939.14

Sheet QueryImport
A1: Lookup Value | B1: SiteName | C1: OutputWasteType | D1: UseTreatment | E1: Apr | F1: May | G1: Jun | H1: Jul | I1: Aug | J1: Sep | K1: Oct | L1: Nov | M1: Dec | N1: Jan | O1: Feb | P1: Mar | Q1: Total
A2: =B2&D2&C2 -> Burton Farm HWRCRecyclingBatteries (car) | B2: Burton Farm HWRC | C2: Batteries (car) | D2: Recycling | E2: 1.4825 | Q2: 1.4825
A3: =B3&D3&C3 -> Burton Farm HWRCRecyclingBatteries (household) | B3: Burton Farm HWRC | C3: Batteries (household) | D3: Recycling | O3: 1.96 | Q3: 1.96
A4: =B4&D4&C4 -> Burton Farm HWRCRe-UseBooks | B4: Burton Farm HWRC | C4: Books | D4: Re-Use | E4: 0.18 | F4: 0.16 | G4: 0.009 | H4: 0.08 | I4: 0.09 | J4: 0.11 | K4: 0.13 | L4: 0.15 | N4: 0.18 | Q4: 1.089
A5: =B5&D5&C5 -> Burton Farm HWRCRecyclingCable (nf) | B5: Burton Farm HWRC | C5: Cable (nf) | D5: Recycling | E5: 0.4 | I5: 0.6 | P5: 0.48 | Q5: 1.48
A6: =B6&D6&C6 -> Burton Farm HWRCRecyclingCardboard | B6: Burton Farm HWRC | C6: Cardboard | D6: Recycling | E6: 25.68 | F6: 26.92 | G6: 24.3 | H6: 29.36 | I6: 21.6 | J6: 13.14 | K6: 23.1 | L6: 22.1 | M6: 28.68 | N6: 17.84 | O6: 20.16 | P6: 23.77 | Q6: 276.65
A7: =B7&D7&C7 -> Burton Farm HWRCRecyclingCarpet | B7: Burton Farm HWRC | C7: Carpet | D7: Recycling | E7: 23.16 | F7: 7.82 | G7: 5.46 | H7: 19.9 | I7: 22.12 | J7: 18.62 | K7: 7.24 | L7: 14.4 | M7: 12.38 | N7: 18.48 | O7: 21.3 | P7: 13.02 | Q7: 183.9
A8: =B8&D8&C8 -> Burton Farm HWRCRecyclingChipboard | B8: Burton Farm HWRC | C8: Chipboard | D8: Recycling | E8: 90.96 | F8: 6.92 | G8: 84.96 | H8: 91.24 | I8: 90.74 | J8: 64.02 | K8: 79.38 | L8: 61.02 | M8: 65.28 | N8: 63.98 | O8: 65.1 | P8: 71.64 | Q8: 835.24
A9: =B9&D9&C9 -> Burton Farm HWRCRecyclingFluorescent Tubes Output | B9: Burton Farm HWRC | C9: Fluorescent Tubes Output | D9: Recycling | E9: 0.26 | G9: 0.14 | I9: 0.23 | J9: 0.2 | M9: 0.2 | O9: 0.213 | Q9: 1.243
A10: =B10&D10&C10 -> Burton Farm HWRCRecyclingFridges Output | B10: Burton Farm HWRC | C10: Fridges Output | D10: Recycling | E10: 12.303 | F10: 5.395 | G10: 5.87724 | H10: 5.62 | I10: 6.245 | J10: 3.77198 | K10: 7.15 | L10: 6.0422 | M10: 6.1696 | N10: 7.8274 | O10: 4.4941 | P10: 6.9695 | Q10: 77.86502
A11: =B11&D11&C11 -> Burton Farm HWRCRecyclingGas Cylinders | B11: Burton Farm HWRC | C11: Gas Cylinders | D11: Recycling | I11: 0.065 | N11: 0.02 | O11: 1.46 | Q11: 1.545
A12: =B12&D12&C12 -> Burton Farm HWRCEfw (incineration)General (mixed waste) | B12: Burton Farm HWRC | C12: General (mixed waste) | D12: Efw (incineration) | M12: 7.26 | P12: 22.95 | Q12: 30.21
A13: =B13&D13&C13 -> Burton Farm HWRCLandfillGeneral (mixed waste) | B13: Burton Farm HWRC | C13: General (mixed waste) | D13: Landfill | E13: 198.12 | F13: 170.08 | G13: 141.9 | H13: 159.96 | I13: 167.2 | J13: 159.44 | K13: 143.68 | L13: 142.88 | M13: 133.42 | N13: 146.84 | O13: 160.3 | P13: 140.96 | Q13: 1864.78
A14: =B14&D14&C14 -> Burton Farm HWRCRecyclingGeneral (mixed waste) | B14: Burton Farm HWRC | C14: General (mixed waste) | D14: Recycling | P14: 2.33 | Q14: 2.33
A15: =B15&D15&C15 -> Burton Farm HWRCRecyclingGlass (bottles) | B15: Burton Farm HWRC | C15: Glass (bottles) | D15: Recycling | E15: 3.786 | G15: 3.261 | H15: 2.6 | I15: 5.521 | J15: 1.519 | L15: 6.633 | M15: 4.308 | N15: 4.843 | O15: 4.627 | P15: 3.619 | Q15: 40.717
A16: =B16&D16&C16 -> Burton Farm HWRCCompostingGreen waste | B16: Burton Farm HWRC | C16: Green waste | D16: Composting | E16: 82.92 | F16: 67.12 | G16: 76.9 | H16: 75.58 | I16: 68.12 | J16: 75.4 | K16: 72.24 | L16: 54.28 | M16: 24.68 | N16: 25.82 | O16: 24.64 | P16: 48.68 | Q16: 696.38
A17: =B17&D17&C17 -> Burton Farm HWRCRe-UseInert (rubble/hardcore) | B17: Burton Farm HWRC | C17: Inert (rubble/hardcore) | D17: Re-Use | E17: 143.1 | F17: 127.74 | G17: 111.44 | H17: 97.78 | I17: 108.02 | J17: 98.8 | K17: 68.78 | L17: 46.9 | M17: 41.22 | N17: 47.72 | O17: 64.43 | P17: 99.98 | Q17: 1055.91
A18: =B18&D18&C18 -> Burton Farm HWRCRecyclingMatresses | B18: Burton Farm HWRC | C18: Matresses | D18: Recycling | E18: 2.605 | F18: 3.22 | G18: 2.86 | H18: 2.24 | I18: 0.66 | P18: 1.09 | Q18: 12.675
A19: =B19&D19&C19 -> Burton Farm HWRCRecyclingNon Ferrous Metal Non Ferrous Metal | B19: Burton Farm HWRC | C19: Non Ferrous Metal Non Ferrous Metal | D19: Recycling | N19: 0.36 | P19: 0.02 | Q19: 0.38
A20: =B20&D20&C20 -> Burton Farm HWRCRecyclingOil (Engine) | B20: Burton Farm HWRC | C20: Oil (Engine) | D20: Recycling | E20: 1.12 | G20: 1.584 | J20: 1.672 | N20: 1.584 | Q20: 5.96
A21: =B21&D21&C21 -> Burton Farm HWRCRecyclingOil (Vegetable) | B21: Burton Farm HWRC | C21: Oil (Vegetable) | D21: Recycling | M21: 0.42 | Q21: 0.42
A22: =B22&D22&C22 -> Burton Farm HWRCRecyclingPaper (newspaper & magazines) | B22: Burton Farm HWRC | C22: Paper (newspaper & magazines) | D22: Recycling | E22: 15.02 | F22: 6.12 | G22: 9.2 | H22: 18.36 | I22: 25.1 | J22: 19.2 | K22: 10.84 | L22: 16.94 | M22: 24.24 | N22: 31.16 | O22: 10.46 | P22: 14.48 | Q22: 201.12
A23: =B23&D23&C23 -> Burton Farm HWRCRecyclingPlasterboard | B23: Burton Farm HWRC | C23: Plasterboard | D23: Recycling | E23: 6.46 | F23: 3.95 | G23: 3.89 | H23: 8.81 | K23: 14.2 | M23: 12.69 | O23: 12.24 | Q23: 62.24
A24: =B24&D24&C24 -> Burton Farm HWRCRecyclingPlastic (Mixed) | B24: Burton Farm HWRC | C24: Plastic (Mixed) | D24: Recycling | E24: 1.04 | M24: 1.39 | Q24: 2.43
A25: =B25&D25&C25 -> Burton Farm HWRCRecyclingScrap metal (mixed) | B25: Burton Farm HWRC | C25: Scrap metal (mixed) | D25: Recycling | E25: 50.82 | F25: 37.925 | G25: 31.04 | H25: 37.12 | I25: 39.31 | J25: 22.83 | K25: 36.49 | L25: 30.73 | M25: 30.67 | N25: 31.67 | O25: 36.52 | P25: 39 | Q25: 424.125
A26: =B26&D26&C26 -> Burton Farm HWRCRecyclingScreens output | B26: Burton Farm HWRC | C26: Screens output | D26: Recycling | E26: 5.125 | F26: 3.61 | G26: 3.928 | H26: 4.798 | I26: 3.36394 | J26: 4.25984 | K26: 4.16823 | L26: 3.4378 | M26: 3.8545 | N26: 4.2112 | O26: 4.0609 | P26: 3.8958 | Q26: 48.71321
A27: =B27&D27&C27 -> Burton Farm HWRCRecyclingSmall Domestic Appliances | B27: Burton Farm HWRC | C27: Small Domestic Appliances | D27: Recycling | E27: 24.66 | F27: 16.07 | G27: 16.88 | H27: 18.51 | I27: 17.6 | J27: 17.46 | K27: 19.38 | L27: 16.71 | M27: 7.88 | N27: 19.23 | O27: 38.36 | P27: 19 | Q27: 231.74
A28: =B28&D28&C28 -> Burton Farm HWRCRe-UseSoil | B28: Burton Farm HWRC | C28: Soil | D28: Re-Use | E28: 11.68 | F28: 13.26 | G28: 9.66 | Q28: 34.6
A29: =B29&D29&C29 -> Burton Farm HWRCRecyclingTextiles | B29: Burton Farm HWRC | C29: Textiles | D29: Recycling | E29: 7.19 | F29: 7.21 | G29: 6.48 | H29: 6.94 | I29: 6.52 | J29: 7.3 | K29: 6.42 | L29: 9.58 | M29: 5.5 | N29: 8.8 | O29: 4.39 | P29: 7.62 | Q29: 83.95
A30: =B30&D30&C30 -> Burton Farm HWRCRecyclingWood (including treated) | B30: Burton Farm HWRC | C30: Wood (including treated) | D30: Recycling | F30: 71.2 | J30: 20.6 | L30: 9.64 | P30: 26.58 | Q30: 128.02
A31: =B31&D31&C31 -> Cherry Orchard HWRCLandfillAsbestos | B31: Cherry Orchard HWRC | C31: Asbestos | D31: Landfill | E31: 0.02 | G31: 0.02 | H31: 0.08 | Q31: 0.12
A32: =B32&D32&C32 -> Cherry Orchard HWRCRecyclingBatteries (car) | B32: Cherry Orchard HWRC | C32: Batteries (car) | D32: Recycling | E32: 3.302 | F32: 0.979 | I32: 2.265 | K32: 2.183 | N32: 2.272 | P32: 1.86 | Q32: 12.861
A33: =B33&D33&C33 -> Cherry Orchard HWRCRecyclingBatteries (household) | B33: Cherry Orchard HWRC | C33: Batteries (household) | D33: Recycling | I33: 0.669 | O33: 0.891 | Q33: 1.56
A34: =B34&D34&C34 -> Cherry Orchard HWRCRecyclingBooks | B34: Cherry Orchard HWRC | C34: Books | D34: Recycling | E34: 0.63 | F34: 0.05 | G34: 0.15 | H34: 0.19 | Q34: 1.02
A35: =B35&D35&C35 -> Cherry Orchard HWRCRecyclingCable (nf) | B35: Cherry Orchard HWRC | C35: Cable (nf) | D35: Recycling | G35: 0.46 | Q35: 0.46
A36: =B36&D36&C36 -> Cherry Orchard HWRCRecyclingCardboard | B36: Cherry Orchard HWRC | C36: Cardboard | D36: Recycling | E36: 16.34 | F36: 14.18 | G36: 14.32 | H36: 16.86 | I36: 16.18 | J36: 16.9 | K36: 14.98 | L36: 14.56 | M36: 27.84 | N36: 15.62 | O36: 15.18 | P36: 22.34 | Q36: 205.3
A37: =B37&D37&C37 -> Cherry Orchard HWRCRecyclingCarpet | B37: Cherry Orchard HWRC | C37: Carpet | D37: Recycling | E37: 10.62 | F37: 11.3 | G37: 12.06 | H37: 13.56 | I37: 14.88 | J37: 14.14 | K37: 11.76 | L37: 7.16 | M37: 12.5 | N37: 13.64 | O37: 12.08 | P37: 11 | Q37: 144.7
A38: =B38&D38&C38 -> Cherry Orchard HWRCEfw (incineration)Chemicals | B38: Cherry Orchard HWRC | C38: Chemicals | D38: Efw (incineration) | E38: 0.05 | G38: 0.04 | J38: 0.05 | Q38: 0.14
A39: =B39&D39&C39 -> Cherry Orchard HWRCRecyclingChipboard | B39: Cherry Orchard HWRC | C39: Chipboard | D39: Recycling | E39: 20.66 | F39: 24.46 | G39: 5.94 | H39: 14.9 | J39: 17.26 | K39: 21.32 | L39: 22.24 | M39: 16.22 | N39: 15.16 | O39: 27.42 | P39: 19.84 | Q39: 205.42
A40: =B40&D40&C40 -> Cherry Orchard HWRCRecyclingDrink Cartons | B40: Cherry Orchard HWRC | C40: Drink Cartons | D40: Recycling | E40: 0.47774 | F40: 0.64161 | G40: 0.08274 | H40: 0.411 | I40: 0.159 | J40: 0.395 | K40: 0.405 | M40: 0.43 | N40: 0.15654 | O40: 0.308 | P40: 0.288 | Q40: 3.75463
A41: =B41&D41&C41 -> Cherry Orchard HWRCRecyclingFluorescent Tubes Output | B41: Cherry Orchard HWRC | C41: Fluorescent Tubes Output | D41: Recycling | E41: 0.167 | H41: 0.206 | L41: 0.18 | N41: 0.265 | Q41: 0.818
A42: =B42&D42&C42 -> Cherry Orchard HWRCRecyclingFridges Output | B42: Cherry Orchard HWRC | C42: Fridges Output | D42: Recycling | E42: 2.582 | F42: 2.085 | G42: 2.33 | H42: 2.803 | I42: 3.14518 | J42: 2.66828 | K42: 2.34859 | L42: 2.3215 | M42: 2.0248 | N42: 2.1393 | O42: 2.4075 | P42: 2.4763 | Q42: 29.33145
A43: =B43&D43&C43 -> Cherry Orchard HWRCRecyclingGas Cylinders | B43: Cherry Orchard HWRC | C43: Gas Cylinders | D43: Recycling | J43: 0.01 | P43: 0.01 | Q43: 0.02
A44: =B44&D44&C44 -> Cherry Orchard HWRCEfw (incineration)General (mixed waste) | B44: Cherry Orchard HWRC | C44: General (mixed waste) | D44: Efw (incineration) | L44: 7.3 | M44: 11.92 | P44: 12.78 | Q44: 32
A45: =B45&D45&C45 -> Cherry Orchard HWRCLandfillGeneral (mixed waste) | B45: Cherry Orchard HWRC | C45: General (mixed waste) | D45: Landfill | E45: 125.62 | F45: 97.72 | G45: 102.1 | H45: 115.9 | I45: 116.32 | J45: 80.9 | K45: 107.86 | L45: 87.06 | M45: 71.32 | N45: 110.03 | O45: 85.8 | P45: 83.68 | Q45: 1184.31
A46: =B46&D46&C46 -> Cherry Orchard HWRCRecyclingGlass (bottles) | B46: Cherry Orchard HWRC | C46: Glass (bottles) | D46: Recycling | E46: 6.725 | F46: 4.518 | G46: 3.735 | H46: 6 | I46: 7.412 | J46: 8.646 | K46: 3.906 | L46: 6.136 | M46: 8.495 | N46: 10.99 | O46: 6.566 | P46: 3.505 | Q46: 76.634
A47: =B47&D47&C47 -> Cherry Orchard HWRCCompostingGreen waste | B47: Cherry Orchard HWRC | C47: Green waste | D47: Composting | E47: 97.36 | F47: 76.2 | G47: 98.28 | H47: 93.56 | I47: 91.38 | J47: 78.02 | K47: 78.22 | L47: 57.9 | M47: 23.6 | N47: 14.1 | O47: 42.82 | P47: 57.52 | Q47: 808.96
A48: =B48&D48&C48 -> Cherry Orchard HWRCLandfillHard Plastic | B48: Cherry Orchard HWRC | C48: Hard Plastic | D48: Landfill | F48: 7.1 | G48: 1.635 | H48: 2.925 | I48: 10.49 | J48: 1.495 | K48: 4.58 | L48: 2.895 | M48: 1.52 | P48: 3.32 | Q48: 35.96
A49: =B49&D49&C49 -> Cherry Orchard HWRCRe-UseInert (rubble/hardcore) | B49: Cherry Orchard HWRC | C49: Inert (rubble/hardcore) | D49: Re-Use | E49: 75.54 | F49: 75.6 | G49: 79.02 | H49: 83.46 | I49: 66.92 | J49: 57.76 | K49: 48.18 | L49: 40.52 | M49: 25.84 | N49: 27.12 | O49: 41.74 | P49: 51.94 | Q49: 673.64
A50: =B50&D50&C50 -> Cherry Orchard HWRCRecyclingMatresses | B50: Cherry Orchard HWRC | C50: Matresses | D50: Recycling | E50: 2.19 | F50: 2.355 | G50: 0.651 | H50: 0.663 | I50: 2.31 | J50: 0.585 | O50: 0.86 | Q50: 9.614
A51: =B51&D51&C51 -> Cherry Orchard HWRCRecyclingMicrowave Motors | B51: Cherry Orchard HWRC | C51: Microwave Motors | D51: Recycling | G51: 0.64 | M51: 0.61 | Q51: 1.25
A52: =B52&D52&C52 -> Cherry Orchard HWRCRecyclingNon Ferrous Metal Non Ferrous Metal | B52: Cherry Orchard HWRC | C52: Non Ferrous Metal Non Ferrous Metal | D52: Recycling | E52: 0.2 | F52: 0.29 | G52: 1.16 | H52: 1.71 | I52: 1.49 | J52: 1.25 | L52: 1.88 | N52: 1.08 | O52: 0.48 | P52: 2.23 | Q52: 11.77
A53: =B53&D53&C53 -> Cherry Orchard HWRCRecyclingOil (Engine) | B53: Cherry Orchard HWRC | C53: Oil (Engine) | D53: Recycling | E53: 0.88 | K53: 2.024 | Q53: 2.904
A54: =B54&D54&C54 -> Cherry Orchard HWRCRecyclingOil (Vegetable) | B54: Cherry Orchard HWRC | C54: Oil (Vegetable) | D54: Recycling | E54: 0.44 | J54: 0.458 | Q54: 0.898
A55: =B55&D55&C55 -> Cherry Orchard HWRCEfw (incineration)Paint (chemicals) | B55: Cherry Orchard HWRC | C55: Paint (chemicals) | D55: Efw (incineration) | E55: 0.1 | Q55: 0.1
A56: =B56&D56&C56 -> Cherry Orchard HWRCRecyclingPaint (chemicals) | B56: Cherry Orchard HWRC | C56: Paint (chemicals) | D56: Recycling | J56: 0.05 | N56: 0.03 | P56: 0.1 | Q56: 0.18
A57: =B57&D57&C57 -> Cherry Orchard HWRCRecyclingPaper (newspaper & magazines) | B57: Cherry Orchard HWRC | C57: Paper (newspaper & magazines) | D57: Recycling | E57: 10.44 | F57: 10.22 | G57: 10.4 | H57: 13.12 | I57: 17 | J57: 12.2 | K57: 18.8 | L57: 12.18 | M57: 20.56 | N57: 29.1 | O57: 10.54 | Q57: 164.56
A58: =B58&D58&C58 -> Cherry Orchard HWRCRecyclingPlasterboard | B58: Cherry Orchard HWRC | C58: Plasterboard | D58: Recycling | E58: 0.08 | G58: 0.14 | H58: 0.04 | J58: 0.06 | L58: 0.14 | N58: 0.16 | P58: 0.05 | Q58: 0.67
A59: =B59&D59&C59 -> Cherry Orchard HWRCRecyclingPlastic (Mixed) | B59: Cherry Orchard HWRC | C59: Plastic (Mixed) | D59: Recycling | E59: 1.36 | F59: 1.58 | G59: 0.98 | H59: 1.36 | J59: 1.41 | K59: 1.18 | L59: 1.43 | M59: 0.99 | N59: 1.64 | O59: 1.7 | Q59: 13.63
A60: =B60&D60&C60 -> Cherry Orchard HWRCRecyclingScrap metal (mixed) | B60: Cherry Orchard HWRC | C60: Scrap metal (mixed) | D60: Recycling | E60: 25.34 | F60: 24.88 | G60: 17.52 | H60: 25 | I60: 18.64 | J60: 24.78 | K60: 28.07 | L60: 16.41 | M60: 18.56 | N60: 20.68 | O60: 14.8 | P60: 18.82 | Q60: 253.5
A61: =B61&D61&C61 -> Cherry Orchard HWRCRecyclingScreens output | B61: Cherry Orchard HWRC | C61: Screens output | D61: Recycling | E61: 2.615 | F61: 2.24 | G61: 3.697 | H61: 3.579 | I61: 3.25691 | J61: 3.48631 | K61: 3.26081 | L61: 3.4626 | M61: 1.7883 | N61: 2.8161 | O61: 3.7339 | P61: 2.5621 | Q61: 36.49803
A62: =B62&D62&C62 -> Cherry Orchard HWRCRecyclingSmall Domestic Appliances | B62: Cherry Orchard HWRC | C62: Small Domestic Appliances | D62: Recycling | E62: 7.02 | F62: 6.82 | G62: 6.16 | H62: 13.08 | I62: 6.8 | J62: 6.72 | K62: 7.24 | L62: 7.51 | M62: 8.14 | N62: 6.5 | O62: 7.2 | P62: 13.36 | Q62: 96.55
A63: =B63&D63&C63 -> Cherry Orchard HWRCRecyclingTextiles | B63: Cherry Orchard HWRC | C63: Textiles | D63: Recycling | E63: 4.5786 | F63: 3.7838 | G63: 5.48655 | H63: 4.6736 | I63: 2.2276 | J63: 6.54 | K63: 5.41 | L63: 5.13 | M63: 3.7 | N63: 7.1 | O63: 4.4 | P63: 4.8 | Q63: 57.83015
A64: =B64&D64&C64 -> Cherry Orchard HWRCRecyclingTyres | B64: Cherry Orchard HWRC | C64: Tyres | D64: Recycling | P64: 0.01 | Q64: 0.01
A65: =B65&D65&C65 -> Cherry Orchard HWRCRecyclingWood (including treated) | B65: Cherry Orchard HWRC | C65: Wood (including treated) | D65: Recycling | E65: 58.02 | F65: 31.5 | G65: 73.48 | H65: 49.08 | I65: 68.56 | J65: 52.32 | K65: 35.34 | L65: 38.06 | M65: 30.1 | N65: 37.64 | O65: 30.64 | P65: 46.84 | Q65: 551.58
A66: =B66&D66&C66 -> Hunters Lane HWRC & TransferRecyclingAluminium (nf) | B66: Hunters Lane HWRC & Transfer | C66: Aluminium (nf) | D66: Recycling | O66: 0.3 | Q66: 0.3
A67: =B67&D67&C67 -> Hunters Lane HWRC & TransferLandfillAsbestos | B67: Hunters Lane HWRC & Transfer | C67: Asbestos | D67: Landfill | F67: 4.38 | Q67: 4.38
A68: =B68&D68&C68 -> Hunters Lane HWRC & TransferRecyclingBatteries (car) | B68: Hunters Lane HWRC & Transfer | C68: Batteries (car) | D68: Recycling | E68: 4.33 | H68: 5.95 | K68: 5.87 | N68: 4.74 | P68: 4.61 | Q68: 25.5
A69: =B69&D69&C69 -> Hunters Lane HWRC & TransferRecyclingCable (nf) | B69: Hunters Lane HWRC & Transfer | C69: Cable (nf) | D69: Recycling | P69: 0.82 | Q69: 0.82
A70: =B70&D70&C70 -> Hunters Lane HWRC & TransferRecyclingCardboard | B70: Hunters Lane HWRC & Transfer | C70: Cardboard | D70: Recycling | E70: 18.02 | F70: 21.52 | G70: 21.04 | H70: 21.72 | I70: 34.92 | J70: 41.04 | K70: 18.82 | L70: 20 | M70: 9.58 | N70: 6.52 | O70: 9.38 | P70: 20.48 | Q70: 243.04
A71: =B71&D71&C71 -> Hunters Lane HWRC & TransferRecyclingCarpet | B71: Hunters Lane HWRC & Transfer | C71: Carpet | D71: Recycling | E71: 20.46 | F71: 18.38 | G71: 27.32 | H71: 23.35 | I71: 19.7 | J71: 25.38 | K71: 11.58 | L71: 21.22 | M71: 24.8 | N71: 16.67 | O71: 14.16 | P71: 15.97 | Q71: 238.99
A72: =B72&D72&C72 -> Hunters Lane HWRC & TransferRecyclingChipboard | B72: Hunters Lane HWRC & Transfer | C72: Chipboard | D72: Recycling | E72: 89.9 | F72: 109.91 | G72: 96.97 | H72: 85.52 | I72: 85.93 | J72: 91.8 | K72: 36.14 | L72: 60.86 | M72: 53.74 | N72: 59.54 | O72: 58.34 | P72: 51.23 | Q72: 879.88
A73: =B73&D73&C73 -> Hunters Lane HWRC & TransferRecyclingFluorescent Tubes Output | B73: Hunters Lane HWRC & Transfer | C73: Fluorescent Tubes Output | D73: Recycling | E73: 0.28 | J73: 0.44 | N73: 0.19 | Q73: 0.91
A74: =B74&D74&C74 -> Hunters Lane HWRC & TransferRecyclingFridges Output | B74: Hunters Lane HWRC & Transfer | C74: Fridges Output | D74: Recycling | E74: 7.643 | F74: 6.118 | G74: 5.714 | H74: 7.436 | I74: 7.13344 | J74: 7.88161 | K74: 9.40598 | L74: 4.5997 | M74: 7.8514 | N74: 11.5814 | O74: 8.2704 | P74: 7.3304 | Q74: 90.96533
A75: =B75&D75&C75 -> Hunters Lane HWRC & TransferRecyclingGas Cylinders | B75: Hunters Lane HWRC & Transfer | C75: Gas Cylinders | D75: Recycling | I75: 0.22 | J75: 0.4 | M75: 0.06 | Q75: 0.68
A76: =B76&D76&C76 -> Hunters Lane HWRC & TransferEfw (incineration)General (mixed waste) | B76: Hunters Lane HWRC & Transfer | C76: General (mixed waste) | D76: Efw (incineration) | M76: 14.26 | P76: 16.48 | Q76: 30.74
A77: =B77&D77&C77 -> Hunters Lane HWRC & TransferLandfillGeneral (mixed waste) | B77: Hunters Lane HWRC & Transfer | C77: General (mixed waste) | D77: Landfill | E77: 266.795 | F77: 205.51 | G77: 217.53 | H77: 235.91 | I77: 258.98 | J77: 227.14 | K77: 182.5 | L77: 179.32 | M77: 167.22 | N77: 211.76 | O77: 157.83 | P77: 220.82 | Q77: 2531.315
A78: =B78&D78&C78 -> Hunters Lane HWRC & TransferRecyclingGlass (bottles) | B78: Hunters Lane HWRC & Transfer | C78: Glass (bottles) | D78: Recycling | F78: 2.784 | G78: 0.68 | H78: 2.134 | J78: 3.135 | L78: 2.534 | N78: 4.416 | O78: 1.622 | P78: 1.147 | Q78: 18.452
A79: =B79&D79&C79 -> Hunters Lane HWRC & TransferCompostingGreen waste | B79: Hunters Lane HWRC & Transfer | C79: Green waste | D79: Composting | E79: 99.04 | F79: 84.48 | G79: 102.2 | H79: 94.34 | I79: 105.1 | J79: 97.52 | K79: 75.56 | L79: 43.08 | M79: 30.2 | N79: 16.46 | O79: 18.03 | P79: 54.76 | Q79: 820.77
A80: =B80&D80&C80 -> Hunters Lane HWRC & TransferLandfillHard Plastic | B80: Hunters Lane HWRC & Transfer | C80: Hard Plastic | D80: Landfill | F80: 6.665 | G80: 3.61 | H80: 1.9 | I80: 3.17 | J80: 3.405 | K80: 2.75 | L80: 3.175 | M80: 1.58 | O80: 3.425 | Q80: 29.68
A81: =B81&D81&C81 -> Hunters Lane HWRC & TransferRecyclingHard Plastic | B81: Hunters Lane HWRC & Transfer | C81: Hard Plastic | D81: Recycling | P81: 3.83 | Q81: 3.83
A82: =B82&D82&C82 -> Hunters Lane HWRC & TransferRe-UseInert (rubble/hardcore) | B82: Hunters Lane HWRC & Transfer | C82: Inert (rubble/hardcore) | D82: Re-Use | E82: 125.14 | F82: 110.38 | G82: 98.1 | H82: 124.64 | I82: 90.78 | J82: 77.8 | K82: 80.44 | L82: 48.9 | M82: 46.4 | N82: 23.1 | O82: 65.84 | P82: 62.14 | Q82: 953.66
A83: =B83&D83&C83 -> Hunters Lane HWRC & TransferRecyclingMatresses | B83: Hunters Lane HWRC & Transfer | C83: Matresses | D83: Recycling | E83: 4.94 | F83: 5.86 | G83: 4.41 | H83: 1.61 | I83: 2.8 | Q83: 19.62
A84: =B84&D84&C84 -> Hunters Lane HWRC & TransferRecyclingMicrowave Motors | B84: Hunters Lane HWRC & Transfer | C84: Microwave Motors | D84: Recycling | M84: 1.57 | P84: 1.11 | Q84: 2.68
A85: =B85&D85&C85 -> Hunters Lane HWRC & TransferRecyclingNon Ferrous Metal Non Ferrous Metal | B85: Hunters Lane HWRC & Transfer | C85: Non Ferrous Metal Non Ferrous Metal | D85: Recycling | F85: 1.01 | H85: 2.03 | I85: 0.19 | J85: 3.96 | L85: 1.22 | N85: 4.06 | O85: 2.22 | Q85: 14.69
A86: =B86&D86&C86 -> Hunters Lane HWRC & TransferRecyclingOil (Engine) | B86: Hunters Lane HWRC & Transfer | C86: Oil (Engine) | D86: Recycling | E86: 2.38 | G86: 2.024 | I86: 1.936 | K86: 1.848 | M86: 2.288 | P86: 1.848 | Q86: 12.324
A87: =B87&D87&C87 -> Hunters Lane HWRC & TransferRecyclingOil (Vegetable) | B87: Hunters Lane HWRC & Transfer | C87: Oil (Vegetable) | D87: Recycling | H87: 0.74 | M87: 0.97 | Q87: 1.71
A88: =B88&D88&C88 -> Hunters Lane HWRC & TransferRecyclingPaper (newspaper & magazines) | B88: Hunters Lane HWRC & Transfer | C88: Paper (newspaper & magazines) | D88: Recycling | E88: 21.64 | F88: 11.54 | G88: 15.18 | H88: 13.24 | J88: 22.3 | K88: 11.14 | L88: 6 | M88: 30.94 | N88: 30.06 | O88: 28.34 | P88: 18.02 | Q88: 208.4
A89: =B89&D89&C89 -> Hunters Lane HWRC & TransferRecyclingPlasterboard | B89: Hunters Lane HWRC & Transfer | C89: Plasterboard | D89: Recycling | E89: 9.16 | G89: 9.52 | I89: 8.94 | K89: 11.42 | N89: 13.04 | P89: 11.32 | Q89: 63.4
A90: =B90&D90&C90 -> Hunters Lane HWRC & TransferRecyclingPlastic (Mixed) | B90: Hunters Lane HWRC & Transfer | C90: Plastic (Mixed) | D90: Recycling | I90: 0.1 | J90: 0.28 | N90: 0.18 | O90: 0.25 | P90: 0.1 | Q90: 0.91
A91: =B91&D91&C91 -> Hunters Lane HWRC & TransferRecyclingPrinter Cartridges | B91: Hunters Lane HWRC & Transfer | C91: Printer Cartridges | D91: Recycling | O91: 0.57 | Q91: 0.57
A92: =B92&D92&C92 -> Hunters Lane HWRC & TransferRecyclingScrap metal (mixed) | B92: Hunters Lane HWRC & Transfer | C92: Scrap metal (mixed) | D92: Recycling | E92: 58.39 | F92: 49.93 | G92: 51.25 | H92: 44.48 | I92: 41.7 | J92: 44.35 | K92: 39.23 | L92: 45.42 | M92: 28.67 | N92: 37.64 | O92: 46.91 | P92: 46.39 | Q92: 534.36
A93: =B93&D93&C93 -> Hunters Lane HWRC & TransferRecyclingScreens output | B93: Hunters Lane HWRC & Transfer | C93: Screens output | D93: Recycling | E93: 10.63 | F93: 6.491 | G93: 8.224 | H93: 7.675 | I93: 8.56356 | J93: 6.03248 | K93: 7.90206 | L93: 6.5869 | M93: 8.0426 | N93: 6.8707 | O93: 8.11 | P93: 6.9112 | Q93: 92.0395
A94: =B94&D94&C94 -> Hunters Lane HWRC & TransferRecyclingSmall Domestic Appliances | B94: Hunters Lane HWRC & Transfer | C94: Small Domestic Appliances | D94: Recycling | E94: 23.5 | F94: 16.68 | G94: 25.38 | H94: 15.92 | I94: 24.2 | J94: 15.29 | K94: 15.82 | L94: 16.43 | M94: 21.49 | N94: 17.17 | O94: 16.57 | P94: 23.75 | Q94: 232.2
A95: =B95&D95&C95 -> Hunters Lane HWRC & TransferRecyclingTextiles | B95: Hunters Lane HWRC & Transfer | C95: Textiles | D95: Recycling | E95: 10.01 | F95: 7.79 | G95: 9.85 | H95: 9.03 | I95: 5.38 | J95: 0.271 | K95: 10.64 | L95: 7.23 | M95: 7.64 | N95: 9.21 | O95: 6.87 | P95: 7.66 | Q95: 91.581
A96: =B96&D96&C96 -> Hunters Lane HWRC & TransferRecyclingWood (including treated) | B96: Hunters Lane HWRC & Transfer | C96: Wood (including treated) | D96: Recycling | E96: 58.948 | G96: 14.41 | H96: 37.01 | I96: 35.82 | J96: 38.17 | K96: 62.63 | L96: 40.43 | M96: 36.17 | N96: 26.1 | O96: 48.61 | P96: 79.75 | Q96: 478.048
A97: =B97&D97&C97 -> Judkins HWRCRecyclingAluminium (nf) | B97: Judkins HWRC | C97: Aluminium (nf) | D97: Recycling | J97: 2.78 | Q97: 2.78
A98: =B98&D98&C98 -> Judkins HWRCLandfillAsbestos | B98: Judkins HWRC | C98: Asbestos | D98: Landfill | G98: 5.74 | L98: 4.3 | Q98: 10.04
A99: =B99&D99&C99 -> Judkins HWRCRecyclingBatteries (car) | B99: Judkins HWRC | C99: Batteries (car) | D99: Recycling | E99: 1.2 | F99: 1.361 | G99: 1.06 | H99: 1.74 | J99: 2.025 | K99: 2.025 | Q99: 9.411
A100: =B100&D100&C100 -> Judkins HWRCRecyclingBooks | B100: Judkins HWRC | C100: Books | D100: Recycling | E100: 2.3 | F100: 3.24 | G100: 1.46 | H100: 2.16 | I100: 1.02 | J100: 3.04 | K100: 2.14 | L100: 1.7 | M100: 2.6 | N100: 4.1 | O100: 1.5 | P100: 1.1 | Q100: 26.36
A101: =B101&D101&C101 -> Judkins HWRCRecyclingCardboard | B101: Judkins HWRC | C101: Cardboard | D101: Recycling | E101: 33.22 | F101: 26.48 | G101: 19.52 | H101: 28.32 | I101: 28.9 | J101: 28.82 | K101: 21.08 | L101: 24.4 | M101: 40.32 | N101: 38.19 | P101: 38.28 | Q101: 327.53
A102: =B102&D102&C102 -> Judkins HWRCRecyclingCarpet | B102: Judkins HWRC | C102: Carpet | D102: Recycling | M102: 14.7 | N102: 29.7 | O102: 35.4 | P102: 34.2 | Q102: 114
A103: =B103&D103&C103 -> Judkins HWRCRecyclingCopper & Brass Mixed (nf) | B103: Judkins HWRC | C103: Copper & Brass Mixed (nf) | D103: Recycling | G103: 11.2 | K103: 0.489 | Q103: 11.689
A104: =B104&D104&C104 -> Judkins HWRCRecyclingFluorescent Tubes Output | B104: Judkins HWRC | C104: Fluorescent Tubes Output | D104: Recycling | M104: 0.4 | P104: 0.6 | Q104: 1
A105: =B105&D105&C105 -> Judkins HWRCRecyclingFridges Output | B105: Judkins HWRC | C105: Fridges Output | D105: Recycling | E105: 6.98 | F105: 6.3 | G105: 16 | H105: 7.28 | I105: 3.3 | J105: 5.1 | K105: 5.4 | L105: 3.64 | M105: 4.4 | N105: 4 | O105: 3 | P105: 8.8 | Q105: 74.2
A106: =B106&D106&C106 -> Judkins HWRCRecyclingGas Cylinders | B106: Judkins HWRC | C106: Gas Cylinders | D106: Recycling | M106: 1.75 | N106: 0.95 | O106: 0.8 | P106: 0.3 | Q106: 3.8
A107: =B107&D107&C107 -> Judkins HWRCEfw (incineration)General (mixed waste) | B107: Judkins HWRC | C107: General (mixed waste) | D107: Efw (incineration) | M107: 6.82 | Q107: 6.82
A108: =B108&D108&C108 -> Judkins HWRCLandfillGeneral (mixed waste) | B108: Judkins HWRC | C108: General (mixed waste) | D108: Landfill | E108: 344.51 | F108: 317.98 | G108: 265.1 | H108: 481.49 | I108: 393.14 | J108: 611.31 | K108: 395.39 | L108: 262.19 | M108: 203.86 | N108: 348.86 | O108: 254.7 | P108: 255.9 | Q108: 4134.43
A109: =B109&D109&C109 -> Judkins HWRCRecyclingGlass (bottles) | B109: Judkins HWRC | C109: Glass (bottles) | D109: Recycling | H109: 2.28 | J109: 4.5 | L109: 3 | O109: 6.2 | Q109: 15.98
A110: =B110&D110&C110 -> Judkins HWRCCompostingGreen waste | B110: Judkins HWRC | C110: Green waste | D110: Composting | E110: 102.42 | F110: 84.78 | G110: 94.54 | H110: 79.9 | I110: 101.34 | J110: 59.8 | K110: 19.98 | L110: 33.42 | M110: 8.82 | N110: 19.98 | O110: 21.8 | P110: 44.9 | Q110: 671.68
A111: =B111&D111&C111 -> Judkins HWRCRecyclingHard Plastic | B111: Judkins HWRC | C111: Hard Plastic | D111: Recycling | E111: 18.58 | F111: 17.18 | G111: 15.72 | H111: 18.66 | N111: 7.58 | Q111: 77.72
A112: =B112&D112&C112 -> Judkins HWRCRecyclingHousehold Goods Household Goods | B112: Judkins HWRC | C112: Household Goods Household Goods | D112: Recycling | P112: 10.4 | Q112: 10.4
A113: =B113&D113&C113 -> Judkins HWRCRe-UseHousehold Goods Household Goods | B113: Judkins HWRC | C113: Household Goods Household Goods | D113: Re-Use | E113: 17.177 | F113: 12.481 | G113: 13.286 | H113: 13.689 | I113: 15.322 | J113: 11.464 | K113: 12.471 | L113: 9.929 | M113: 9.305 | N113: 10.604 | O113: 9 | Q113: 134.728
A114: =B114&D114&C114 -> Judkins HWRCRecyclingOil (Engine) | B114: Judkins HWRC | C114: Oil (Engine) | D114: Recycling | E114: 2.12 | F114: 1.36 | G114: 1.72 | H114: 2.66 | I114: 1.5 | J114: 1.7 | K114: 2.5 | M114: 1.1 | N114: 1.5 | O114: 1.4 | P114: 1 | Q114: 18.56
A115: =B115&D115&C115 -> Judkins HWRCRecyclingPaper (mixed with card) | B115: Judkins HWRC | C115: Paper (mixed with card) | D115: Recycling | O115: 30.5 | Q115: 30.5
A116: =B116&D116&C116 -> Judkins HWRCRecyclingPaper (newspaper & magazines) | B116: Judkins HWRC | C116: Paper (newspaper & magazines) | D116: Recycling | E116: 8.34 | F116: 7.62 | H116: 5.68 | I116: 7.34 | J116: 8.36 | K116: 6.98 | M116: 9.02 | N116: 7.8 | P116: 7.48 | Q116: 68.62
A117: =B117&D117&C117 -> Judkins HWRCRecyclingPlasterboard | B117: Judkins HWRC | C117: Plasterboard | D117: Recycling | E117: 10.36 | F117: 5.36 | G117: 10.92 | H117: 5.48 | I117: 10.21 | J117: 9.87 | K117: 11.81 | L117: 6.44 | M117: 5.53 | N117: 10 | O117: 5.7 | P117: 9.9 | Q117: 101.58
A118: =B118&D118&C118 -> Judkins HWRCRecyclingScrap metal (mixed) | B118: Judkins HWRC | C118: Scrap metal (mixed) | D118: Recycling | E118: 54.9 | F118: 36.14 | G118: 34.32 | H118: 31.2 | I118: 45.16 | J118: 38.2 | K118: 46.5 | L118: 20.1 | M118: 30.65 | N118: 46.42 | O118: 36.6 | P118: 45.9 | Q118: 466.09
A119: =B119&D119&C119 -> Judkins HWRCRecyclingScreens output | B119: Judkins HWRC | C119: Screens output | D119: Recycling | E119: 9.2 | F119: 7.08 | G119: 8.96 | H119: 7.14 | I119: 4.42 | J119: 3.9 | K119: 7.5 | L119: 3.29 | M119: 6.6 | N119: 4.1 | O119: 4.2 | P119: 10.4 | Q119: 76.79
A120: =B120&D120&C120 -> Judkins HWRCRecyclingSmall Domestic Appliances | B120: Judkins HWRC | C120: Small Domestic Appliances | D120: Recycling | E120: 17.72 | F120: 14.2 | G120: 13.8 | H120: 13.24 | I120: 13.28 | J120: 7 | K120: 21 | L120: 7 | M120: 6.3 | N120: 12.6 | O120: 7.7 | P120: 7 | Q120: 140.84
A121: =B121&D121&C121 -> Judkins HWRCRecyclingSoil & rubble | B121: Judkins HWRC | C121: Soil & rubble | D121: Recycling | E121: 180.86 | F121: 148.42 | G121: 149.82 | H121: 194.18 | I121: 100.62 | J121: 107 | K121: 125.24 | L121: 60.15 | M121: 36 | N121: 55.9 | Q121: 1158.19
A122: =B122&D122&C122 -> Judkins HWRCRecyclingTextiles | B122: Judkins HWRC | C122: Textiles | D122: Recycling | E122: 7.16 | F122: 6.88 | G122: 7.04 | H122: 6.34 | I122: 7.73 | J122: 17.9 | K122: 5.85 | L122: 3.72 | M122: 5.1 | N122: 5.64 | O122: 53.2 | P122: 9.3 | Q122: 135.86
A123: =B123&D123&C123 -> Judkins HWRCRecyclingWood (including treated) | B123: Judkins HWRC | C123: Wood (including treated) | D123: Recycling | E123: 218.78 | F123: 115.54 | G123: 182.02 | H123: 77.4 | L123: 108 | M123: 98.03 | N123: 101.38 | O123: 179.4 | P123: 127.8 | Q123: 1208.35
A124: =B124&D124&C124 -> Lower House Farm HWRCRecyclingAluminium (nf) | B124: Lower House Farm HWRC | C124: Aluminium (nf) | D124: Recycling | O124: 1.5 | Q124: 1.5
A125: =B125&D125&C125 -> Lower House Farm HWRCLandfillAsbestos | B125: Lower House Farm HWRC | C125: Asbestos | D125: Landfill | E125: 3.92 | P125: 4.6 | Q125: 8.52
A126: =B126&D126&C126 -> Lower House Farm HWRCRecyclingBatteries (car) | B126: Lower House Farm HWRC | C126: Batteries (car) | D126: Recycling | E126: 2.32 | F126: 2.28 | G126: 2.28 | H126: 2.36 | J126: 3.32 | K126: 2.38 | N126: 4.02 | P126: 4.38 | Q126: 23.34
A127: =B127&D127&C127 -> Lower House Farm HWRCRecyclingBatteries (household) | B127: Lower House Farm HWRC | C127: Batteries (household) | D127: Recycling | H127: 0.68 | N127: 0.72 | Q127: 1.4
A128: =B128&D128&C128 -> Lower House Farm HWRCEfw (incineration)Bulky Waste | B128: Lower House Farm HWRC | C128: Bulky Waste | D128: Efw (incineration) | E128: 31.24 | F128: 26.04 | G128: 18.66 | H128: 15.46 | I128: 14.16 | J128: 16.4 | K128: 15.82 | L128: 16.82 | M128: 20.9 | N128: 23.04 | O128: 17.18 | P128: 18.1 | Q128: 233.82
A129: =B129&D129&C129 -> Lower House Farm HWRCRecyclingCardboard | B129: Lower House Farm HWRC | C129: Cardboard | D129: Recycling | E129: 17.84 | F129: 25.28 | G129: 14.5 | H129: 16.38 | I129: 9.74 | J129: 19.34 | K129: 11.1 | L129: 21 | M129: 18.58 | N129: 14.8 | O129: 14.58 | P129: 13.68 | Q129: 196.82
A130: =B130&D130&C130 -> Lower House Farm HWRCRecyclingCarpet | B130: Lower House Farm HWRC | C130: Carpet | D130: Recycling | E130: 31.34 | F130: 32.54 | G130: 15.98 | H130: 31.22 | I130: 22.96 | J130: 29.74 | K130: 21.4 | L130: 32.4 | M130: 21.3 | N130: 14.46 | O130: 38.82 | P130: 37.11 | Q130: 329.27
A131: =B131&D131&C131 -> Lower House Farm HWRCEfw (incineration)Chemicals | B131: Lower House Farm HWRC | C131: Chemicals | D131: Efw (incineration) | P131: 2.6 | Q131: 2.6
A132: =B132&D132&C132 -> Lower House Farm HWRCRecyclingChipboard | B132: Lower House Farm HWRC | C132: Chipboard | D132: Recycling | E132: 91.12 | F132: 15.3 | G132: 41.3 | H132: 86.8 | I132: 76.4 | J132: 83.04 | K132: 63.08 | L132: 31.24 | M132: 41.68 | N132: 57.9 | O132: 24.24 | P132: 68.46 | Q132: 680.56
A133: =B133&D133&C133 -> Lower House Farm HWRCRecyclingDrink Cartons | B133: Lower House Farm HWRC | C133: Drink Cartons | D133: Recycling | F133: 0.07013 | G133: 0.02615 | I133: 0.067 | K133: 0.24 | L133: 0.243 | N133: 0.12119 | O133: 0 | Q133: 0.76747
A134: =B134&D134&C134 -> Lower House Farm HWRCRecyclingFluorescent Tubes Output | B134: Lower House Farm HWRC | C134: Fluorescent Tubes Output | D134: Recycling | E134: 0.189 | H134: 0.2 | J134: 0.182 | L134: 0.146 | P134: 0.34 | Q134: 1.057
A135: =B135&D135&C135 -> Lower House Farm HWRCRecyclingFridges Output | B135: Lower House Farm HWRC | C135: Fridges Output | D135: Recycling | E135: 6.792 | F135: 5.24 | G135: 6.585 | H135: 9.656 | I135: 5.4177 | J135: 7.37922 | K135: 7.16161 | L135: 4.5397 | M135: 8.2188 | N135: 13.3975 | O135: 9.6697 | P135: 8.8425 | Q135: 92.89973
A136: =B136&D136&C136 -> Lower House Farm HWRCRecyclingGas Cylinders | B136: Lower House Farm HWRC | C136: Gas Cylinders | D136: Recycling | G136: 0.44 | P136: 0.36 | Q136: 0.8
A137: =B137&D137&C137 -> Lower House Farm HWRCEfw (incineration)General (mixed waste) | B137: Lower House Farm HWRC | C137: General (mixed waste) | D137: Efw (incineration) | E137: 170.14 | F137: 132.16 | G137: 117.54 | H137: 102.6 | I137: 139.56 | J137: 102.14 | K137: 107.28 | L137: 92.44 | M137: 108.78 | N137: 130.92 | O137: 133.14 | P137: 156.93 | Q137: 1493.63
A138: =B138&D138&C138 -> Lower House Farm HWRCLandfillGeneral (mixed waste) | B138: Lower House Farm HWRC | C138: General (mixed waste) | D138: Landfill | O138: 18.11 | P138: 6.86 | Q138: 24.97
A139: =B139&D139&C139 -> Lower House Farm HWRCRecyclingGlass (bottles) | B139: Lower House Farm HWRC | C139: Glass (bottles) | D139: Recycling | E139: 0.879 | G139: 1.473 | J139: 1.367 | M139: 1.608 | N139: 2.271 | Q139: 7.598
A140: =B140&D140&C140 -> Lower House Farm HWRCCompostingGreen waste | B140: Lower House Farm HWRC | C140: Green waste | D140: Composting | E140: 64.38 | F140: 54.1 | G140: 67.56 | H140: 47.14 | I140: 54.22 | J140: 50.88 | K140: 53.22 | L140: 20.74 | M140: 10.08 | N140: 10.44 | O140: 17.22 | P140: 31.06 | Q140: 481.04
A141: =B141&D141&C141 -> Lower House Farm HWRCLandfillHard Plastic | B141: Lower House Farm HWRC | C141: Hard Plastic | D141: Landfill | F141: 4.685 | G141: 5.245 | H141: 6.105 | I141: 5.305 | J141: 6.475 | K141: 6.37 | L141: 1.705 | M141: 1.165 | N141: 1.48 | O141: 2.765 | P141: 3.165 | Q141: 44.465
A142: =B142&D142&C142 -> Lower House Farm HWRCRecyclingHard Plastic | B142: Lower House Farm HWRC | C142: Hard Plastic | D142: Recycling | F142: 5.36 | Q142: 5.36
A143: =B143&D143&C143 -> Lower House Farm HWRCRe-UseInert (rubble/hardcore) | B143: Lower House Farm HWRC | C143: Inert (rubble/hardcore) | D143: Re-Use | E143: 98.06 | F143: 106.08 | G143: 79.56 | H143: 70.62 | I143: 88.92 | J143: 69.94 | K143: 87.3 | L143: 37.32 | M143: 37.46 | N143: 46.34 | O143: 27.34 | P143: 70.88 | Q143: 819.82
A144: =B144&D144&C144 -> Lower House Farm HWRCRecyclingMatresses | B144: Lower House Farm HWRC | C144: Matresses | D144: Recycling | G144: 1.62 | H144: 3.36 | I144: 4.62 | J144: 4.88 | K144: 3.82 | N144: 7.06 | O144: 3.08 | P144: 3.62 | Q144: 32.06
A145: =B145&D145&C145 -> Lower House Farm HWRCRecyclingNon Ferrous Metal Non Ferrous Metal | B145: Lower House Farm HWRC | C145: Non Ferrous Metal Non Ferrous Metal | D145: Recycling | G145: 1.17 | H145: 1.01 | J145: 3.1 | N145: 1.8 | O145: 1.74 | P145: 1.37 | Q145: 10.19
A146: =B146&D146&C146 -> Lower House Farm HWRCRecyclingOil (Engine) | B146: Lower House Farm HWRC | C146: Oil (Engine) | D146: Recycling | F146: 4.85 | G146: 1.76 | I146: 1.76 | K146: 1.408 | L146: 1.04 | P146: 1.32 | Q146: 12.138
A147: =B147&D147&C147 -> Lower House Farm HWRCRecyclingOil (Vegetable) | B147: Lower House Farm HWRC | C147: Oil (Vegetable) | D147: Recycling | F147: 0.6 | J147: 0.58 | Q147: 1.18
A148: =B148&D148&C148 -> Lower House Farm HWRCRecyclingPaint (chemicals) | B148: Lower House Farm HWRC | C148: Paint (chemicals) | D148: Recycling | G148: 1.38 | I148: 0.74 | J148: 0.8 | K148: 0.64 | M148: 0.6 | O148: 0.62 | Q148: 4.78
A149: =B149&D149&C149 -> Lower House Farm HWRCRecyclingPaper (mixed with card) | B149: Lower House Farm HWRC | C149: Paper (mixed with card) | D149: Recycling | F149: 4.16 | Q149: 4.16
A150: =B150&D150&C150 -> Lower House Farm HWRCRecyclingPaper (newspaper & magazines) | B150: Lower House Farm HWRC | C150: Paper (newspaper & magazines) | D150: Recycling | E150: 14.42 | F150: 4.16 | G150: 18.18 | I150: 24.88 | K150: 8.38 | L150: 4.56 | M150: 9.34 | N150: 15.3 | O150: 10.36 | P150: 3.38 | Q150: 112.96
A151: =B151&D151&C151 -> Lower House Farm HWRCRecyclingPlasterboard | B151: Lower House Farm HWRC | C151: Plasterboard | D151: Recycling | E151: 7.11 | F151: 5.7 | G151: 7.43 | H151: 8.95 | I151: 8.55 | J151: 12.68 | K151: 8.5 | M151: 12.5 | P151: 18.49 | Q151: 89.91
A152: =B152&D152&C152 -> Lower House Farm HWRCRecyclingPlastic (Mixed) | B152: Lower House Farm HWRC | C152: Plastic (Mixed) | D152: Recycling | F152: 0.86 | G152: 0.07 | O152: 0.11 | Q152: 1.04
A153: =B153&D153&C153 -> Lower House Farm HWRCRecyclingScrap metal (mixed) | B153: Lower House Farm HWRC | C153: Scrap metal (mixed) | D153: Recycling | E153: 36.33 | F153: 29.81 | G153: 39.88 | H153: 33.92 | I153: 28.77 | J153: 29.93 | K153: 24.97 | L153: 16.63 | M153: 20.53 | N153: 31.2 | O153: 24.16 | P153: 40.44 | Q153: 356.57
A154: =B154&D154&C154 -> Lower House Farm HWRCRecyclingScreens output | B154: Lower House Farm HWRC | C154: Screens output | D154: Recycling | E154: 5.546 | F154: 4.078 | G154: 7.62 | H154: 4.458 | I154: 5.69729 | J154: 5.25851 | K154: 7.5969 | L154: 5.3786 | M154: 4.7468 | N154: 5.3609 | O154: 5.7639 | P154: 6.5725 | Q154: 68.0774
A155: =B155&D155&C155 -> Lower House Farm HWRCRecyclingSmall Domestic Appliances | B155: Lower House Farm HWRC | C155: Small Domestic Appliances | D155: Recycling | E155: 15.51 | F155: 14.22 | H155: 14.88 | I155: 13.2 | J155: 22.06 | K155: 13.52 | L155: 15.69 | M155: 11.26 | N155: 19.19 | O155: 15.05 | P155: 18.46 | Q155: 173.04
A156: =B156&D156&C156 -> Lower House Farm HWRCRecyclingTextiles | B156: Lower House Farm HWRC | C156: Textiles | D156: Recycling | E156: 4.78 | F156: 5.175 | G156: 4.72 | H156: 6.395 | I156: 4.46 | J156: 5.14 | K156: 6.94 | L156: 7.22 | M156: 5.78 | N156: 7.24 | O156: 6.34 | P156: 9.14 | Q156: 73.33
A157: =B157&D157&C157 -> Lower House Farm HWRCRecyclingWood (including treated) | B157: Lower House Farm HWRC | C157: Wood (including treated) | D157: Recycling | E157: 63 | F157: 98.96 | G157: 83.82 | H157: 38.66 | I157: 52.2 | J157: 40.32 | K157: 44.22 | L157: 59.6 | M157: 35.86 | N157: 34.78 | O157: 80.4 | P157: 73.88 | Q157: 705.7
A158: =B158&D158&C158 -> Princes Drive HWRC & TransferRecyclingAluminium (nf) | B158: Princes Drive HWRC & Transfer | C158: Aluminium (nf) | D158: Recycling | E158: 0.44 | G158: 0.96 | I158: 0.78 | O158: 0.44 | P158: 0.74 | Q158: 3.36
A159: =B159&D159&C159 -> Princes Drive HWRC & TransferLandfillAsbestos | B159: Princes Drive HWRC & Transfer | C159: Asbestos | D159: Landfill | F159: 2.7 | G159: 2.92 | J159: 2.92 | M159: 3.08 | Q159: 11.62
A160: =B160&D160&C160 -> Princes Drive HWRC & TransferRecyclingBatteries (car) | B160: Princes Drive HWRC & Transfer | C160: Batteries (car) | D160: Recycling | E160: 5.58 | F160: 1.7 | G160: 0.65 | I160: 8.607 | K160: 5.15 | M160: 5.356 | P160: 9.99 | Q160: 37.033
A161: =B161&D161&C161 -> Princes Drive HWRC & TransferRecyclingBatteries (household) | B161: Princes Drive HWRC & Transfer | C161: Batteries (household) | D161: Recycling | F161: 0.73 | I161: 1.42 | O161: 1.59 | Q161: 3.74
A162: =B162&D162&C162 -> Princes Drive HWRC & TransferRecyclingBooks | B162: Princes Drive HWRC & Transfer | C162: Books | D162: Recycling | E162: 1.12 | F162: 0.33 | G162: 0.86 | H162: 0.83 | K162: 0.59 | Q162: 3.73
A163: =B163&D163&C163 -> Princes Drive HWRC & TransferRecyclingBrass(nf) | B163: Princes Drive HWRC & Transfer | C163: Brass(nf) | D163: Recycling | M163: 0.073 | N163: 0.064 | Q163: 0.137
A164: =B164&D164&C164 -> Princes Drive HWRC & TransferRecyclingCable (nf) | B164: Princes Drive HWRC & Transfer | C164: Cable (nf) | D164: Recycling | I164: 0.1505 | O164: 1.38 | Q164: 1.5305
A165: =B165&D165&C165 -> Princes Drive HWRC & TransferRecyclingCardboard | B165: Princes Drive HWRC & Transfer | C165: Cardboard | D165: Recycling | E165: 46.61 | F165: 41.7 | G165: 42.66 | H165: 48.34 | I165: 49.4 | J165: 40.66 | K165: 42.2 | L165: 52.94 | M165: 55.36 | N165: 73.48 | O165: 50.66 | P165: 50.8 | Q165: 594.81
A166: =B166&D166&C166 -> Princes Drive HWRC & TransferRecyclingCarpet | B166: Princes Drive HWRC & Transfer | C166: Carpet | D166: Recycling | E166: 45.85 | F166: 34.69 | G166: 39.34 | H166: 28.37 | I166: 37.97 | J166: 32.427 | K166: 43.18 | L166: 28.32 | M166: 33.15 | N166: 36.2 | O166: 19.71 | P166: 42.53 | Q166: 421.737
A167: =B167&D167&C167 -> Princes Drive HWRC & TransferEfw (incineration)Chemicals | B167: Princes Drive HWRC & Transfer | C167: Chemicals | D167: Efw (incineration) | H167: 1.41 | J167: 0.53 | Q167: 1.94
A168: =B168&D168&C168 -> Princes Drive HWRC & TransferRecyclingChipboard | B168: Princes Drive HWRC & Transfer | C168: Chipboard | D168: Recycling | E168: 45.24 | F168: 5.98 | G168: 21.8 | H168: 39.82 | I168: 27.46 | J168: 25.34 | K168: 20.84 | L168: 46.9 | M168: 25.5 | N168: 14.7 | O168: 37.4 | P168: 72.74 | Q168: 383.72
A169: =B169&D169&C169 -> Princes Drive HWRC & TransferEfw (incineration)Clinical | B169: Princes Drive HWRC & Transfer | C169: Clinical | D169: Efw (incineration) | E169: 3.044 | F169: 2.206 | G169: 2.342 | H169: 1.954 | I169: 2.584 | J169: 2.855 | K169: 3.214 | L169: 2.688 | M169: 2.69 | N169: 2.305 | O169: 1.108 | P169: 4.257 | Q169: 31.247
A170: =B170&D170&C170 -> Princes Drive HWRC & TransferRecyclingDrink Cartons | B170: Princes Drive HWRC & Transfer | C170: Drink Cartons | D170: Recycling | E170: 0.24974 | F170: 0.12001 | G170: 0.22332 | H170: 0.274 | I170: 0.159 | J170: 0.197 | K170: 0.252 | L170: 0.215 | M170: 0.423 | N170: 0.15148 | O170: 0.176 | P170: 0.432 | Q170: 2.87255
A171: =B171&D171&C171 -> Princes Drive HWRC & TransferRecyclingFire Extinguishers | B171: Princes Drive HWRC & Transfer | C171: Fire Extinguishers | D171: Recycling | N171: 0.5 | Q171: 0.5
A172: =B172&D172&C172 -> Princes Drive HWRC & TransferRecyclingFluorescent Tubes Output | B172: Princes Drive HWRC & Transfer | C172: Fluorescent Tubes Output | D172: Recycling | E172: 0.19 | F172: 0.13 | H172: 0.19 | J172: 0.38 | L172: 0.29 | N172: 0.09 | O172: 0.16 | P172: 0.29 | Q172: 1.72
A173: =B173&D173&C173 -> Princes Drive HWRC & TransferRecyclingFridges Output | B173: Princes Drive HWRC & Transfer | C173: Fridges Output | D173: Recycling | E173: 13.085 | F173: 9.417 | G173: 12.191 | H173: 13.796 | I173: 8.16811 | J173: 15.1651 | K173: 10.8363 | L173: 11.9598 | M173: 8.9153 | N173: 9.9098 | O173: 9.8979 | P173: 11.8886 | Q173: 135.22991
A174: =B174&D174&C174 -> Princes Drive HWRC & TransferRecyclingGas Cylinders | B174: Princes Drive HWRC & Transfer | C174: Gas Cylinders | D174: Recycling | E174: 0.11 | F174: 0.09 | G174: 0.03 | H174: 0.12 | I174: 0.43 | L174: 0.81 | M174: 1.14 | N174: 0.62 | O174: 0.2 | P174: 0.55 | Q174: 4.1
A175: =B175&D175&C175 -> Princes Drive HWRC & TransferRe-UseGas Cylinders | B175: Princes Drive HWRC & Transfer | C175: Gas Cylinders | D175: Re-Use | K175: 0.68 | Q175: 0.68
A176: =B176&D176&C176 -> Princes Drive HWRC & TransferEfw (incineration)General (mixed waste) | B176: Princes Drive HWRC & Transfer | C176: General (mixed waste) | D176: Efw (incineration) | M176: 29.98 | P176: 9.82 | Q176: 39.8
A177: =B177&D177&C177 -> Princes Drive HWRC & TransferLandfillGeneral (mixed waste) | B177: Princes Drive HWRC & Transfer | C177: General (mixed waste) | D177: Landfill | E177: 752.14 | F177: 638.46 | G177: 660.48 | H177: 737.82 | I177: 708.26 | J177: 580.62 | K177: 721.66 | L177: 619.85 | M177: 615.21 | N177: 642.02 | O177: 600.14 | P177: 675.92 | Q177: 7952.58
A178: =B178&D178&C178 -> Princes Drive HWRC & TransferRecyclingGlass (bottles) | B178: Princes Drive HWRC & Transfer | C178: Glass (bottles) | D178: Recycling | E178: 6.371 | F178: 7.682 | G178: 7.841 | H178: 11.139 | I178: 9.142 | J178: 6.444 | K178: 9.85 | L178: 2.255 | M178: 8.667 | N178: 14.04 | O178: 7.61 | P178: 8.765 | Q178: 99.806
A179: =B179&D179&C179 -> Princes Drive HWRC & TransferCompostingGreen waste | B179: Princes Drive HWRC & Transfer | C179: Green waste | D179: Composting | E179: 154.88 | F179: 164.44 | G179: 204.5 | H179: 181.52 | I179: 201.66 | J179: 151.08 | K179: 167.92 | L179: 138.66 | M179: 75.91 | N179: 52.16 | O179: 62.58 | P179: 128.52 | Q179: 1683.83
A180: =B180&D180&C180 -> Princes Drive HWRC & TransferLandfillHard Plastic | B180: Princes Drive HWRC & Transfer | C180: Hard Plastic | D180: Landfill | N180: 0.71 | Q180: 0.71
A181: =B181&D181&C181 -> Princes Drive HWRC & TransferRe-UseInert (rubble/hardcore) | B181: Princes Drive HWRC & Transfer | C181: Inert (rubble/hardcore) | D181: Re-Use | E181: 266.48 | F181: 212.7 | G181: 218.98 | H181: 226.04 | I181: 226.7 | J181: 147.5 | K181: 174.7 | L181: 131.12 | M181: 83.58 | N181: 86.52 | O181: 104.68 | P181: 173.08 | Q181: 2052.08
A182: =B182&D182&C182 -> Princes Drive HWRC & TransferRecyclingLead (nf) | B182: Princes Drive HWRC & Transfer | C182: Lead (nf) | D182: Recycling | N182: 0.042 | Q182: 0.042
A183: =B183&D183&C183 -> Princes Drive HWRC & TransferRecyclingMatresses | B183: Princes Drive HWRC & Transfer | C183: Matresses | D183: Recycling | E183: 8.86 | F183: 6.18 | H183: 6.14 | I183: 6.09 | J183: 1.48 | Q183: 28.75
A184: =B184&D184&C184 -> Princes Drive HWRC & TransferRecyclingMicrowave Motors | B184: Princes Drive HWRC & Transfer | C184: Microwave Motors | D184: Recycling | F184: 6.78 | N184: 6.5 | Q184: 13.28
A185: =B185&D185&C185 -> Princes Drive HWRC & TransferRecyclingNon Ferrous Metal Non Ferrous Metal | B185: Princes Drive HWRC & Transfer | C185: Non Ferrous Metal Non Ferrous Metal | D185: Recycling | F185: 0.156 | G185: 0.444 | H185: 4.2375 | I185: 0.1845 | J185: 1.4655 | K185: 0.7865 | L185: 0.3135 | M185: 0.5365 | N185: 0.284 | P185: 0.8235 | Q185: 9.2315
A186: =B186&D186&C186 -> Princes Drive HWRC & TransferRecyclingOil (Engine) | B186: Princes Drive HWRC & Transfer | C186: Oil (Engine) | D186: Recycling | E186: 3.02 | F186: 0.74 | G186: 1.584 | I186: 2.2 | K186: 2.112 | L186: 1.41 | N186: 1.408 | P186: 1.74 | Q186: 14.214
A187: =B187&D187&C187 -> Princes Drive HWRC & TransferRecyclingOil (Vegetable) | B187: Princes Drive HWRC & Transfer | C187: Oil (Vegetable) | D187: Recycling | F187: 0.97 | H187: 1.04 | J187: 0.72 | M187: 0.61 | Q187: 3.34
A188: =B188&D188&C188 -> Princes Drive HWRC & TransferRecyclingPaint (chemicals) | B188: Princes Drive HWRC & Transfer | C188: Paint (chemicals) | D188: Recycling | E188: 2.29 | G188: 2.18 | I188: 1.08 | J188: 2.2 | K188: 1.83 | M188: 1.08 | P188: 1.23 | Q188: 11.89
A189: =B189&D189&C189 -> Princes Drive HWRC & TransferRecyclingPaper (newspaper & magazines) | B189: Princes Drive HWRC & Transfer | C189: Paper (newspaper & magazines) | D189: Recycling | E189: 20.98 | F189: 29.38 | G189: 20.58 | H189: 20.46 | I189: 26.94 | J189: 31.98 | K189: 21.34 | L189: 18 | M189: 32.94 | N189: 16.94 | O189: 26.4 | P189: 29.62 | Q189: 295.56
A190: =B190&D190&C190 -> Princes Drive HWRC & TransferRecyclingPlasterboard | B190: Princes Drive HWRC & Transfer | C190: Plasterboard | D190: Recycling | E190: 12.97 | F190: 13.1 | G190: 7.89 | H190: 17.72 | I190: 12.34 | J190: 12.55 | K190: 24.49 | L190: 10.68 | M190: 11.49 | N190: 9.72 | O190: 20.96 | P190: 10.9 | Q190: 164.81
A191: =B191&D191&C191 -> Princes Drive HWRC & TransferRecyclingPlastic (Mixed) | B191: Princes Drive HWRC & Transfer | C191: Plastic (Mixed) | D191: Recycling | F191: 23.68 | J191: 8.72 | O191: 23.89 | Q191: 56.29
A192: =B192&D192&C192 -> Princes Drive HWRC & TransferRecyclingRoad Sweepings | B192: Princes Drive HWRC & Transfer | C192: Road Sweepings | D192: Recycling | E192: 331.28 | F192: 232.3 | G192: 227.14 | H192: 293.5 | I192: 115.76 | J192: 195.68 | K192: 223.88 | L192: 354.92 | M192: 319.54 | N192: 377.2 | O192: 352.02 | P192: 332.7 | Q192: 3355.92
A193: =B193&D193&C193 -> Princes Drive HWRC & TransferRecyclingScrap metal (mixed) | B193: Princes Drive HWRC & Transfer | C193: Scrap metal (mixed) | D193: Recycling | E193: 82.03 | F193: 65.4125 | G193: 68.74 | H193: 75.21 | I193: 78.54 | J193: 83.11 | K193: 73.49 | L193: 57.25 | M193: 54.6 | N193: 62.16 | O193: 69.56 | P193: 84.72 | Q193: 854.8225
A194: =B194&D194&C194 -> Princes Drive HWRC & TransferRecyclingScreens output | B194: Princes Drive HWRC & Transfer | C194: Screens output | D194: Recycling | E194: 10.716 | F194: 7.672 | G194: 8.51 | H194: 11.272 | I194: 7.89395 | J194: 11.5834 | K194: 8.10006 | L194: 8.0349 | M194: 11.5849 | N194: 13.1273 | O194: 8.0376 | P194: 10.0403 | Q194: 116.57241
A195: =B195&D195&C195 -> Princes Drive HWRC & TransferRecyclingSmall Domestic Appliances | B195: Princes Drive HWRC & Transfer | C195: Small Domestic Appliances | D195: Recycling | E195: 47.49 | F195: 31.9 | G195: 31.04 | H195: 37.45 | I195: 30.6 | J195: 36.66 | K195: 23.3 | L195: 26.64 | M195: 21.79 | N195: 39.63 | O195: 32.42 | P195: 26.18 | Q195: 385.1
A196: =B196&D196&C196 -> Princes Drive HWRC & TransferRecyclingStainless Steel | B196: Princes Drive HWRC & Transfer | C196: Stainless Steel | D196: Recycling | O196: 0.53 | Q196: 0.53
A197: =B197&D197&C197 -> Princes Drive HWRC & TransferRecyclingTextiles | B197: Princes Drive HWRC & Transfer | C197: Textiles | D197: Recycling | E197: 8.78 | F197: 9.44 | G197: 9.06 | H197: 10.29 | I197: 6.9 | J197: 15.26 | K197: 8.95 | L197: 10.26 | M197: 5.56 | N197: 10.28 | O197: 8.48 | P197: 11.71 | Q197: 114.97
A198: =B198&D198&C198 -> Princes Drive HWRC & TransferRecyclingWood (including treated) | B198: Princes Drive HWRC & Transfer | C198: Wood (including treated) | D198: Recycling | E198: 209.82 | F198: 229.2 | G198: 213.56 | H198: 199.72 | I198: 220.96 | J198: 199.32 | K198: 162.4 | L198: 129.04 | M198: 124.88 | N198: 145.08 | O198: 169.98 | P198: 170.22 | Q198: 2174.18
A199: =B199&D199&C199 -> Shipston HWRCRecyclingAluminium (nf) | B199: Shipston HWRC | C199: Aluminium (nf) | D199: Recycling | I199: 0.5 | M199: 0.8 | Q199: 1.3
A200: =B200&D200&C200 -> Shipston HWRCRecyclingBatteries (car) | B200: Shipston HWRC | C200: Batteries (car) | D200: Recycling | E200: 0.12 | F200: 0.36 | G200: 0.2 | H200: 0.24 | I200: 1.13 | K200: 0.7 | L200: 0.4 | M200: 0.28 | N200: 0.36 | O200: 0.77 | Q200: 4.56
... 75 more rows

Sheet Dates (hidden)
A1: 01/04/2015 | B1: 31/03/2016
